Workbook

Sheet Summary
A1: 분 전
A2: minutes
A3: 일전
A4: days
A5: 시간 전
A6: hours
A7: 방금
A8: 1 minutes
A10: 브론즈
A11: Bronze
A12: 실버
A13: Silver
A14: 골드
A15: Gold
A16: 플래티넘
A17: Platinum
A18: 다이아몬드
A19: Diamond
A20: 마스터
A21: Master
A22: 그랜드마스터
A23: Grandmaster

Sheet Analysis - 1v1
A1: 2014-04-14 | B1: 104.4 | C1: 180 | D1: 104.4 | E1: 180 | F1: 1
A2: 2014-04-21 | B2: 104.4 | C2: 180 | D2: 208.8 | E2: 360 | F2: 2
A3: 2014-04-28 | B3: 104.4 | C3: 180 | D3: 313.2 | E3: 540 | F3: 3
A4: 2014-05-05 | B4: 104.4 | C4: 180 | D4: 417.6 | E4: 720 | F4: 4
A5: 2014-05-12 | B5: 104.4 | C5: 180 | D5: 522 | E5: 900 | F5: 5
A6: 2014-05-19 | B6: 104.4 | C6: 180 | D6: 626.4 | E6: 1080 | F6: 6
A7: 2014-05-26 | B7: 104.4 | C7: 180 | D7: 730.8 | E7: 1260 | F7: 7
A8: 2014-06-02 | B8: 104.4 | C8: 180 | D8: 835.2 | E8: 1440 | F8: 8
A9: 2014-06-09 | B9: 104.4 | C9: 180 | D9: 939.6 | E9: 1620 | F9: 9
A10: 2014-06-16 | B10: 104.4 | C10: 180 | D10: 1044 | E10: 1800 | F10: 10
A11: 2014-06-23 | B11: 104.4 | C11: 180 | D11: 1148.4 | E11: 1980 | F11: 11
A12: 6/30/2014 (season lock)
A14: Raw Counts | K14: % Distributions
A15: Weeks Remaining | B15: Bronze | C15: Silver | D15: Gold | E15: Platinum | F15: Diamond | G15: Master | H15: GM | I15: Totals | K15: Bronze | L15: Silver | M15: Gold | N15: Platinum | O15: Diamond | P15: Master
A16: 1 | B16: 371 | C16: 720 | D16: 3228 | E16: 2801 | F16: 3566 | G16: 608 | H16: 194 | I16: =SUM(B16:H16) -> 11488 | K16: =B16/$I16 -> 0.03229456825 | L16: =C16/$I16 -> 0.06267409471 | M16: =D16/$I16 -> 0.2809888579 | N16: =E16/$I16 -> 0.2438196379 | O16: =F16/$I16 -> 0.3104108635 | P16: =G16/$I16 -> 0.05292479109
A17: 2 | B17: 132 | C17: 242 | D17: 1335 | E17: 1026 | F17: 1143 | G17: 198 | H17: 0 | I17: =SUM(B17:H17) -> 4076 | K17: =B17/$I17 -> 0.03238469087 | L17: =C17/$I17 -> 0.05937193327 | M17: =D17/$I17 -> 0.3275269872 | N17: =E17/$I17 -> 0.25171737 | O17: =F17/$I17 -> 0.2804219823 | P17: =G17/$I17 -> 0.04857703631
A18: 3 | B18: 152 | C18: 282 | D18: 1295 | E18: 967 | F18: 928 | G18: 142 | H18: 0 | I18: 3766 | K18: 0.04036112586 | L18: 0.07488050982 | M18: 0.343866171 | N18: 0.2567711099 | O18: 0.2464152947 | P18: 0.03770578864
A19: 4 | B19: 129 | C19: 298 | D19: 1428 | E19: 1025 | F19: 886 | G19: 190 | H19: 0 | I19: 3956 | K19: 0.03260869565 | L19: 0.07532861476 | M19: 0.3609706775 | N19: 0.2591001011 | O19: 0.2239635996 | P19: 0.04802831143
A20: 5 | B20: 160 | C20: 404 | D20: 1666 | E20: 1133 | F20: 1007 | G20: 223 | H20: 0 | I20: 4593 | K20: 0.03483561942 | L20: 0.08795993904 | M20: 0.3627258872 | N20: 0.24667973 | O20: 0.2192466797 | P20: 0.04855214457
A21: 6 | B21: 203 | C21: 491 | D21: 2116 | E21: 1310 | F21: 948 | G21: 205 | H21: 0 | I21: 5273 | K21: 0.03849800872 | L21: 0.09311587332 | M21: 0.4012895885 | N21: 0.2484354258 | O21: 0.1797838043 | P21: 0.03887729945
A22: 7 | B22: 261 | C22: 787 | D22: 2909 | E22: 1586 | F22: 1102 | G22: 216 | H22: 0 | I22: 6861 | K22: 0.03804110188 | L22: 0.114706311 | M22: 0.4239906719 | N22: 0.2311616382 | O22: 0.1606179857 | P22: 0.03148229121
A23: 8 | B23: 417 | C23: 1472 | D23: 4130 | E23: 1698 | F23: 1149 | G23: 229 | H23: 0 | I23: 9095 | K23: 0.04584936778 | L23: 0.1618471688 | M23: 0.454095657 | N23: 0.1866959868 | O23: 0.1263331501 | P23: 0.0251786696
A24: 9 | B24: 938 | C24: 3166 | D24: 6110 | E24: 1910 | F24: 1118 | G24: 226 | H24: 0 | I24: 13468 | K24: 0.06964656965 | L24: 0.2350757351 | M24: 0.4536679537 | N24: 0.1418176418 | O24: 0.08301158301 | P24: 0.01678051678
A25: 10 | B25: 3815 | C25: 11345 | D25: 11064 | E25: 2906 | F25: 1566 | G25: 275 | H25: 0 | I25: 30971 | K25: 0.1231797488 | L25: 0.3663104194 | M25: 0.3572374156 | N25: 0.09382971167 | O25: 0.05056343031 | P25: 0.00887927416
A26: 11 | B26: 6017 | C26: 10702 | D26: 5795 | E26: 2432 | F26: 1036 | G26: 113 | H26: 0 | I26: 26095 | K26: 0.230580571 | L26: 0.4101168806 | M26: 0.2220731941 | N26: 0.09319793064 | O26: 0.03970109216 | P26: 0.004330331481
A27: Totals | B27: =SUM(B16:B26) -> 12595 | C27: =SUM(C16:C26) -> 29909 | D27: 41076 | E27: 18794 | F27: 14449 | G27: 2625 | H27: 194 | I27: 119642 | K27: =B27/$I27 -> 0.105272396 | L27: =C27/$I27 -> 0.2499874626 | M27: =D27/$I27 -> 0.3433242507 | N27: =E27/$I27 -> 0.1570853045 | O27: =F27/$I27 -> 0.1207686264 | P27: =G27/$I27 -> 0.02194045569
J28: Targets: | K28: 0.08 | L28: 0.2 | M28: 0.32 | N28: 0.2 | O28: 0.18 | P28: 0.02
A30: For Reddit tables
A31: =A16&"* | "&B16&" | "&C16&" | "&D16&" | "&E16&" | "&F16&" | "&G16 -> 1* | 371 | 720 | 3228 | 2801 | 3566 | 608 | K31: =A16&"* | "&ROUNDDOWN(K16,4)*100&"% | "&ROUNDDOWN(L16,4)*100&"% | "&ROUNDDOWN(M16,4)*100&"% | "&ROUNDDOWN(N16,4)*100&"% | "&ROUNDDOWN(O16,4)*100&"% | "&ROUNDDOWN(P16,4)*100&"%" -> 1* | 3.22% | 6.26% | 28.09% | 24.38% | 31.04% | 5.29%
A32: =A17&" | "&B17&" | "&C17&" | "&D17&" | "&E17&" | "&F17&" | "&G17 -> 2 | 132 | 242 | 1335 | 1026 | 1143 | 198 | K32: =A17&" | "&ROUNDDOWN(K17,4)*100&"% | "&ROUNDDOWN(L17,4)*100&"% | "&ROUNDDOWN(M17,4)*100&"% | "&ROUNDDOWN(N17,4)*100&"% | "&ROUNDDOWN(O17,4)*100&"% | "&ROUNDDOWN(P17,4)*100&"%" -> 2 | 3.23% | 5.93% | 32.75% | 25.17% | 28.04% | 4.85%
A33: 3 | 152 | 282 | 1295 | 967 | 928 | 142 | K33: 3 | 4.03% | 7.48% | 34.38% | 25.67% | 24.64% | 3.77%
A34: 4 | 129 | 298 | 1428 | 1025 | 886 | 190 | K34: 4 | 3.26% | 7.53% | 36.09% | 25.91% | 22.39% | 4.8%
A35: 5 | 160 | 404 | 1666 | 1133 | 1007 | 223 | K35: 5 | 3.48% | 8.79% | 36.27% | 24.66% | 21.92% | 4.85%
A36: 6 | 203 | 491 | 2116 | 1310 | 948 | 205 | K36: 6 | 3.84% | 9.31% | 40.12% | 24.84% | 17.97% | 3.88%
A37: 7 | 261 | 787 | 2909 | 1586 | 1102 | 216 | K37: 7 | 3.8% | 11.47% | 42.39% | 23.11% | 16.06% | 3.14%
A38: 8 | 417 | 1472 | 4130 | 1698 | 1149 | 229 | K38: 8 | 4.58% | 16.18% | 45.4% | 18.66% | 12.63% | 2.51%
A39: 9 | 938 | 3166 | 6110 | 1910 | 1118 | 226 | K39: 9 | 6.96% | 23.5% | 45.36% | 14.18% | 8.3% | 1.67%
A40: 10 | 3815 | 11345 | 11064 | 2906 | 1566 | 275 | K40: 10 | 12.31% | 36.63% | 35.72% | 9.38% | 5.05% | 0.88%
A41: =A26&"** | "&B26&" | "&C26&" | "&D26&" | "&E26&" | "&F26&" | "&G26 -> 11** | 6017 | 10702 | 5795 | 2432 | 1036 | 113 | K41: =A26&"** | "&ROUNDDOWN(K26,4)*100&"% | "&ROUNDDOWN(L26,4)*100&"% | "&ROUNDDOWN(M26,4)*100&"% | "&ROUNDDOWN(N26,4)*100&"% | "&ROUNDDOWN(O26,4)*100&"% | "&ROUNDDOWN(P26,4)*100&"%" -> 11** | 23.05% | 41.01% | 22.2% | 9.31% | 3.97% | 0.43%
A45: Race Stats
B46: Bronze | F46: Silver | J46: Gold | N46: Platinum | R46: Diamond | V46: Master | Z46: Grandmaster | AD46: Totals
A47: Weeks Remaining | B47: Z | C47: T | D47: P | E47: R | F47: Z | G47: T | H47: P | I47: R | J47: Z | K47: T | L47: P | M47: R | N47: Z | O47: T | P47: P | Q47: R | R47: Z | S47: T | T47: P | U47: R | V47: Z | W47: T | X47: P | Y47: R | Z47: Z | AA47: T | AB47: P | AC47: R | AD47: Z | AE47: T | AF47: P | AG47: R
A48: 1 | B48: 56 | C48: 164 | D48: 118 | E48: 33 | F48: 147 | G48: 291 | H48: 214 | I48: 68 | J48: 905 | K48: 1196 | L48: 808 | M48: 319 | N48: 1028 | O48: 839 | P48: 747 | Q48: 187 | R48: 1391 | S48: 1115 | T48: 928 | U48: 132 | V48: 258 | W48: 156 | X48: 190 | Y48: 4 | Z48: 79 | AA48: 46 | AB48: 66 | AC48: 3 | AD48: =B48+F48+J48+N48+R48+V48+Z48 -> 3864 | AE48: =C48+G48+K48+O48+S48+W48+AA48 -> 3807 | AF48: =D48+H48+L48+P48+T48+X48+AB48 -> 3071 | AG48: =E48+I48+M48+Q48+U48+Y48+AC48 -> 746
A49: 2 | B49: 23 | C49: 53 | D49: 48 | E49: 8 | F49: 40 | G49: 101 | H49: 73 | I49: 28 | J49: 423 | K49: 426 | L49: 361 | M49: 125 | N49: 375 | O49: 307 | P49: 263 | Q49: 81 | R49: 457 | S49: 349 | T49: 297 | U49: 40 | V49: 62 | W49: 56 | X49: 76 | Y49: 4 | AD49: =B49+F49+J49+N49+R49+V49+Z49 -> 1380 | AE49: 1292 | AF49: 1118 | AG49: 286
A50: 3 | B50: 27 | C50: 57 | D50: 54 | E50: 14 | F50: 60 | G50: 115 | H50: 81 | I50: 26 | J50: 410 | K50: 415 | L50: 358 | M50: 112 | N50: 393 | O50: 268 | P50: 227 | Q50: 79 | R50: 342 | S50: 288 | T50: 245 | U50: 53 | V50: 57 | W50: 37 | X50: 45 | Y50: 3 | AD50: 1289 | AE50: 1180 | AF50: 1010 | AG50: 287
A51: 4 | B51: 22 | C51: 66 | D51: 30 | E51: 11 | F51: 75 | G51: 97 | H51: 101 | I51: 25 | J51: 419 | K51: 456 | L51: 403 | M51: 150 | N51: 391 | O51: 303 | P51: 256 | Q51: 75 | R51: 348 | S51: 278 | T51: 224 | U51: 36 | V51: 71 | W51: 51 | X51: 64 | Y51: 4 | AD51: 1326 | AE51: 1251 | AF51: 1078 | AG51: 301
A52: 5 | B52: 24 | C52: 66 | D52: 49 | E52: 21 | F52: 86 | G52: 128 | H52: 148 | I52: 42 | J52: 525 | K52: 493 | L52: 479 | M52: 169 | N52: 430 | O52: 287 | P52: 322 | Q52: 94 | R52: 389 | S52: 286 | T52: 287 | U52: 45 | V52: 75 | W52: 68 | X52: 79 | Y52: 1 | AD52: 1529 | AE52: 1328 | AF52: 1364 | AG52: 372
A53: 6 | B53: 37 | C53: 88 | D53: 66 | E53: 12 | F53: 107 | G53: 183 | H53: 153 | I53: 48 | J53: 687 | K53: 634 | L53: 607 | M53: 188 | N53: 514 | O53: 347 | P53: 344 | Q53: 105 | R53: 355 | S53: 275 | T53: 269 | U53: 49 | V53: 64 | W53: 59 | X53: 80 | Y53: 2 | AD53: 1764 | AE53: 1586 | AF53: 1519 | AG53: 404
A54: 7 | B54: 68 | C54: 101 | D54: 74 | E54: 18 | F54: 182 | G54: 301 | H54: 239 | I54: 65 | J54: 973 | K54: 837 | L54: 830 | M54: 269 | N54: 627 | O54: 442 | P54: 391 | Q54: 126 | R54: 402 | S54: 346 | T54: 291 | U54: 63 | V54: 103 | W54: 50 | X54: 59 | Y54: 4 | AD54: 2355 | AE54: 2077 | AF54: 1884 | AG54: 545
A55: 8 | B55: 80 | C55: 193 | D55: 106 | E55: 38 | F55: 393 | G55: 502 | H55: 441 | I55: 136 | J55: 1379 | K55: 1180 | L55: 1152 | M55: 419 | N55: 619 | O55: 448 | P55: 470 | Q55: 161 | R55: 421 | S55: 337 | T55: 306 | U55: 85 | V55: 79 | W55: 79 | X55: 65 | Y55: 6 | AD55: 2971 | AE55: 2739 | AF55: 2540 | AG55: 845
A56: 9 | B56: 220 | C56: 339 | D56: 309 | E56: 70 | F56: 844 | G56: 1039 | H56: 963 | I56: 320 | J56: 2054 | K56: 1676 | L56: 1765 | M56: 615 | N56: 735 | O56: 519 | P56: 499 | Q56: 157 | R56: 400 | S56: 306 | T56: 360 | U56: 52 | V56: 60 | W56: 76 | X56: 87 | Y56: 3 | AD56: 4313 | AE56: 3955 | AF56: 3983 | AG56: 1217
A57: 10 | B57: 957 | C57: 1330 | D57: 1207 | E57: 321 | F57: 3235 | G57: 3512 | H57: 3477 | I57: 1121 | J57: 3812 | K57: 2948 | L57: 3160 | M57: 1144 | N57: 1044 | O57: 793 | P57: 832 | Q57: 237 | R57: 548 | S57: 448 | T57: 477 | U57: 93 | V57: 96 | W57: 68 | X57: 107 | Y57: 4 | AD57: 9692 | AE57: 9099 | AF57: 9260 | AG57: 2920
A58: 11 | B58: 1429 | C58: 2146 | D58: 1830 | E58: 612 | F58: 2968 | G58: 3484 | H58: 3213 | I58: 1037 | J58: 1775 | K58: 1724 | L58: 1728 | M58: 568 | N58: 830 | O58: 700 | P58: 682 | Q58: 220 | R58: 347 | S58: 307 | T58: 296 | U58: 86 | V58: 38 | W58: 27 | X58: 38 | Y58: 10 | AD58: 7387 | AE58: 8388 | AF58: 7787 | AG58: 2533
A59: Totals | B59: =SUM(B48:B58) -> 2943 | C59: =SUM(C48:C58) -> 4603 | D59: 3891 | E59: 1158 | F59: 8137 | G59: 9753 | H59: 9103 | I59: 2916 | J59: 13362 | K59: 11985 | L59: 11651 | M59: 4078 | N59: 6986 | O59: 5253 | P59: 5033 | Q59: 1522 | R59: 5400 | S59: 4335 | T59: 3980 | U59: 734 | V59: 963 | W59: 727 | X59: 890 | Y59: 45 | Z59: 79 | AA59: 46 | AB59: 66 | AC59: 3 | AD59: =SUM(AD48:AD58) -> 37870 | AE59: 36702 | AF59: 34614 | AG59: 10456
A63: Percentages Race Stats
B64: Bronze | F64: Silver | J64: Gold | N64: Platinum | R64: Diamond | V64: Master | Z64: Grandmaster | AD64: Totals
A65: Weeks Remaining | B65: Z | C65: T | D65: P | E65: R | F65: Z | G65: T | H65: P | I65: R | J65: Z | K65: T | L65: P | M65: R | N65: Z | O65: T | P65: P | Q65: R | R65: Z | S65: T | T65: P | U65: R | V65: Z | W65: T | X65: P | Y65: R | Z65: Z | AA65: T | AB65: P | AC65: R | AD65: Z | AE65: T | AF65: P | AG65: R
A66: 1 | B66: =B48/$B16 -> 0.1509433962 | C66: =C48/$B16 -> 0.4420485175 | D66: =D48/$B16 -> 0.3180592992 | E66: 0.08894878706 | F66: =F48/$C16 -> 0.2041666667 | G66: =G48/$C16 -> 0.4041666667 | H66: 0.2972222222 | I66: 0.09444444444 | J66: =J48/$D16 -> 0.2803593556 | K66: 0.3705080545 | L66: 0.2503097893 | M66: 0.0988228005 | N66: =N48/$E16 -> 0.3670117815 | O66: 0.29953588 | P66: 0.2666904677 | Q66: 0.06676187076 | R66: =R48/$F16 -> 0.3900729108 | S66: 0.3126752664 | T66: 0.260235558 | U66: 0.03701626472 | V66: =V48/$G16 -> 0.4243421053 | W66: 0.2565789474 | X66: 0.3125 | Y66: 0.006578947368 | Z66: =Z48/$H16 -> 0.4072164948 | AA66: 0.2371134021 | AB66: =AH48/$H16 -> 0 | AC66: =AC48/$H16 -> 0.01546391753 | AD66: =AD48/$I16 -> 0.3363509749 | AE66: 0.3313892758 | AF66: 0.2673224234 | AG66: 0.06493732591
A67: 2 | B67: =B49/$B17 -> 0.1742424242 | C67: 0.4015151515 | D67: 0.3636363636 | E67: 0.06060606061 | F67: =F49/$C17 -> 0.1652892562 | G67: 0.4173553719 | H67: 0.3016528926 | I67: 0.1157024793 | J67: 0.3168539326 | K67: 0.3191011236 | L67: 0.270411985 | M67: 0.0936329588 | N67: 0.365497076 | O67: 0.2992202729 | P67: 0.2563352827 | Q67: 0.07894736842 | R67: 0.3998250219 | S67: 0.3053368329 | T67: 0.2598425197 | U67: 0.03499562555 | V67: 0.3131313131 | W67: 0.2828282828 | X67: 0.3838383838 | Y67: 0.0202020202 | AD67: 0.3385672228 | AE67: 0.3169774289 | AF67: 0.2742885182 | AG67: 0.07016683023
A68: 3 | B68: =B50/$B18 -> 0.1776315789 | C68: 0.375 | D68: 0.3552631579 | E68: 0.09210526316 | F68: =F50/$C18 -> 0.2127659574 | G68: 0.4078014184 | H68: 0.2872340426 | I68: 0.09219858156 | J68: 0.3166023166 | K68: 0.3204633205 | L68: 0.2764478764 | M68: 0.08648648649 | N68: 0.4064115822 | O68: 0.2771458118 | P68: 0.2347466391 | Q68: 0.08169596691 | R68: 0.3685344828 | S68: 0.3103448276 | T68: 0.2640086207 | U68: 0.05711206897 | V68: 0.4014084507 | W68: 0.2605633803 | X68: 0.3169014085 | Y68: 0.02112676056 | AD68: 0.3422729687 | AE68: 0.3133297929 | AF68: 0.26818906 | AG68: 0.07620817844
A69: 4 | B69: =B51/$B19 -> 0.1705426357 | C69: 0.511627907 | D69: 0.2325581395 | E69: 0.08527131783 | F69: =F51/$C19 -> 0.2516778523 | G69: 0.3255033557 | H69: 0.3389261745 | I69: 0.08389261745 | J69: 0.2934173669 | K69: 0.3193277311 | L69: 0.2822128852 | M69: 0.1050420168 | N69: 0.3814634146 | O69: 0.2956097561 | P69: 0.2497560976 | Q69: 0.07317073171 | R69: 0.3927765237 | S69: 0.3137697517 | T69: 0.2528216704 | U69: 0.04063205418 | V69: 0.3736842105 | W69: 0.2684210526 | X69: 0.3368421053 | Y69: 0.02105263158 | AD69: 0.3351870576 | AE69: 0.3162285137 | AF69: 0.2724974722 | AG69: 0.07608695652
A70: 5 | B70: =B52/$B20 -> 0.15 | C70: 0.4125 | D70: 0.30625 | E70: 0.13125 | F70: =F52/$C20 -> 0.2128712871 | G70: 0.3168316832 | H70: 0.3663366337 | I70: 0.103960396 | J70: 0.3151260504 | K70: 0.2959183673 | L70: 0.287515006 | M70: 0.1014405762 | N70: 0.3795233892 | O70: 0.253309797 | P70: 0.2842012357 | Q70: 0.08296557811 | R70: 0.3862959285 | S70: 0.2840119166 | T70: 0.2850049652 | U70: 0.04468718967 | V70: 0.33632287 | W70: 0.3049327354 | X70: 0.3542600897 | Y70: 0.004484304933 | AD70: 0.3328978881 | AE70: 0.2891356412 | AF70: 0.2969736556 | AG70: 0.08099281515
A71: 6 | B71: =B53/$B21 -> 0.1822660099 | C71: 0.4334975369 | D71: 0.3251231527 | E71: 0.05911330049 | F71: =F53/$C21 -> 0.2179226069 | G71: 0.3727087576 | H71: 0.3116089613 | I71: 0.09775967413 | J71: 0.3246691871 | K71: 0.2996219282 | L71: 0.2868620038 | M71: 0.08884688091 | N71: 0.3923664122 | O71: 0.2648854962 | P71: 0.2625954198 | Q71: 0.08015267176 | R71: 0.3744725738 | S71: 0.2900843882 | T71: 0.2837552743 | U71: 0.05168776371 | V71: 0.312195122 | W71: 0.287804878 | X71: 0.3902439024 | Y71: 0.009756097561 | AD71: 0.3345344206 | AE71: 0.300777546 | AF71: 0.2880713067 | AG71: 0.07661672672
A72: 7 | B72: =B54/$B22 -> 0.2605363985 | C72: 0.3869731801 | D72: 0.2835249042 | E72: 0.06896551724 | F72: =F54/$C22 -> 0.2312579416 | G72: 0.3824650572 | H72: 0.3036848793 | I72: 0.08259212198 | J72: 0.3344792025 | K72: 0.2877277415 | L72: 0.2853214163 | M72: 0.09247163974 | N72: 0.395334174 | O72: 0.2786885246 | P72: 0.2465321564 | Q72: 0.07944514502 | R72: 0.3647912886 | S72: 0.3139745917 | T72: 0.2640653358 | U72: 0.05716878403 | V72: 0.4768518519 | W72: 0.2314814815 | X72: 0.2731481481 | Y72: 0.01851851852 | AD72: 0.343244425 | AE72: 0.3027255502 | AF72: 0.27459554 | AG72: 0.07943448477
A73: 8 | B73: =B55/$B23 -> 0.1918465228 | C73: 0.4628297362 | D73: 0.2541966427 | E73: 0.09112709832 | F73: =F55/$C23 -> 0.2669836957 | G73: 0.3410326087 | H73: 0.2995923913 | I73: 0.09239130435 | J73: 0.3338983051 | K73: 0.2857142857 | L73: 0.2789346247 | M73: 0.1014527845 | N73: 0.3645465253 | O73: 0.2638398115 | P73: 0.2767962309 | Q73: 0.09481743227 | R73: 0.3664055701 | S73: 0.2932985205 | T73: 0.2663185379 | U73: 0.07397737163 | V73: 0.3449781659 | W73: 0.3449781659 | X73: 0.2838427948 | Y73: 0.02620087336 | AD73: 0.3266630016 | AE73: 0.3011544805 | AF73: 0.2792743266 | AG73: 0.09290819131
A74: 9 | B74: =B56/$B24 -> 0.2345415778 | C74: 0.3614072495 | D74: 0.329424307 | E74: 0.07462686567 | F74: =F56/$C24 -> 0.2665824384 | G74: 0.3281743525 | H74: 0.3041692988 | I74: 0.1010739103 | J74: 0.3361702128 | K74: 0.274304419 | L74: 0.2888707038 | M74: 0.1006546645 | N74: 0.3848167539 | O74: 0.2717277487 | P74: 0.2612565445 | Q74: 0.08219895288 | R74: 0.3577817531 | S74: 0.2737030411 | T74: 0.3220035778 | U74: 0.04651162791 | V74: 0.2654867257 | W74: 0.3362831858 | X74: 0.3849557522 | Y74: 0.01327433628 | AD74: 0.3202405702 | AE74: 0.2936590437 | AF74: 0.2957380457 | AG74: 0.09036234036
A75: 10 | B75: =B57/$B25 -> 0.2508519004 | C75: 0.3486238532 | D75: 0.3163826999 | E75: 0.08414154653 | F75: =F57/$C25 -> 0.2851476421 | G75: 0.3095636844 | H75: 0.3064786249 | I75: 0.09881004848 | J75: 0.3445408532 | K75: 0.2664497469 | L75: 0.2856109906 | M75: 0.1033984093 | N75: 0.3592567103 | O75: 0.2728836889 | P75: 0.2863041982 | Q75: 0.08155540262 | R75: 0.349936143 | S75: 0.2860791826 | T75: 0.3045977011 | U75: 0.05938697318 | V75: 0.3490909091 | W75: 0.2472727273 | X75: 0.3890909091 | Y75: 0.01454545455 | AD75: 0.3129379097 | AE75: 0.2937909657 | AF75: 0.2989893772 | AG75: 0.09428174744
A76: 11 | B76: =B58/$B26 -> 0.2374937677 | C76: 0.3566561409 | D76: 0.3041382749 | E76: 0.1017118165 | F76: =F58/$C26 -> 0.2773313399 | G76: 0.3255466268 | H76: 0.3002242571 | I76: 0.09689777612 | J76: 0.3062985332 | K76: 0.297497843 | L76: 0.2981880932 | M76: 0.09801553063 | N76: 0.3412828947 | O76: 0.2878289474 | P76: 0.2804276316 | Q76: 0.09046052632 | R76: 0.3349420849 | S76: 0.2963320463 | T76: 0.2857142857 | U76: 0.08301158301 | V76: 0.3362831858 | W76: 0.2389380531 | X76: 0.3362831858 | Y76: 0.08849557522 | AD76: 0.28308105 | AE76: 0.3214408891 | AF76: 0.298409657 | AG76: 0.09706840391
A80: Most Recent Games
B81: Bronze | D81: Silver | F81: Gold | H81: Platinum | J81: Diamond | L81: Master | N81: Grandmaster | P81: Totals
A82: Weeks Remaining | B82: Last Week | C82: Last Month | D82: Last Week | E82: Last Month | F82: Last Week | G82: Last Month | H82: Last Week | I82: Last Month | J82: Last Week | K82: Last Month | L82: Last Week | M82: Last Month | N82: Last Week | O82: Last Month | P82: Last Week | Q82: Last Month
A83: 1 | B83: 369 | C83: 2 | D83: 720 | F83: 3223 | G83: 5 | H83: 2798 | I83: 3 | J83: 3566 | L83: 608 | N83: 192 | O83: 2 | P83: =B83+D83+F83+H83+J83+L83+N83 -> 11476 | Q83: =C83+E83+G83+I83+K83+M83+O83 -> 12
A84: 2 | B84: 104 | C84: 28 | D84: 201 | E84: 41 | F84: 1032 | G84: 303 | H84: 749 | I84: 277 | J84: 772 | K84: 371 | L84: 162 | M84: 36 | P84: =B84+D84+F84+H84+J84+L84+N84 -> 3020 | Q84: 1056
A85: 3 | B85: 102 | C85: 50 | D85: 195 | E85: 87 | F85: 824 | G85: 471 | H85: 577 | I85: 390 | J85: 516 | K85: 412 | L85: 99 | M85: 43 | P85: 2313 | Q85: 1453
A86: 4 | B86: 76 | C86: 53 | D86: 177 | E86: 119 | F86: 882 | G86: 546 | H86: 558 | I86: 467 | J86: 441 | K86: 444 | L86: 135 | M86: 55 | P86: 2269 | Q86: 1684
A87: 5 | B87: 83 | C87: 67 | D87: 243 | E87: 155 | F87: 934 | G87: 685 | H87: 584 | I87: 501 | J87: 450 | K87: 487 | L87: 148 | M87: 69 | P87: 2442 | Q87: 1964
A88: 6 | B88: 77 | C88: 87 | D88: 252 | E88: 179 | F88: 1112 | G88: 755 | H88: 584 | I88: 496 | J88: 424 | K88: 319 | L88: 110 | M88: 75 | P88: 2559 | Q88: 1911
A89: 7 | B89: 109 | C89: 82 | D89: 364 | E89: 278 | F89: 1358 | G89: 1044 | H89: 613 | I89: 556 | J89: 400 | K89: 394 | L89: 94 | M89: 87 | P89: 2938 | Q89: 2441
A90: 8 | B90: 139 | C90: 114 | D90: 550 | E90: 466 | F90: 1687 | G90: 1570 | H90: 600 | I90: 599 | J90: 324 | K90: 425 | L90: 96 | M90: 76 | P90: 3396 | Q90: 3250
A91: 9 | B91: 213 | C91: 244 | D91: 893 | E91: 1028 | F91: 2133 | G91: 2387 | H91: 581 | I91: 672 | J91: 301 | K91: 392 | L91: 68 | M91: 66 | P91: 4189 | Q91: 4789
A92: 10 | B92: 549 | C92: 845 | D92: 2356 | E92: 3643 | F92: 2800 | G92: 4504 | H92: 664 | I92: 1131 | J92: 360 | K92: 490 | L92: 70 | M92: 62 | P92: 6799 | Q92: 10675
A93: 11 | B93: 576 | C93: 1199 | D93: 1605 | E93: 3651 | F93: 1081 | G93: 2298 | H93: 414 | I93: 1016 | J93: 177 | K93: 333 | L93: 18 | M93: 21 | P93: 3871 | Q93: 8518
A94: Totals | B94: =SUM(B83:B93) -> 2397 | C94: =SUM(C83:C93) -> 2771 | D94: 7556 | E94: 9647 | F94: 17066 | G94: 14568 | H94: 8722 | I94: 6108 | J94: 7731 | K94: 4067 | L94: 1608 | M94: 590 | N94: 192 | O94: 2 | P94: 45272 | Q94: 37753
A95: At least 1 game in the last month | B95: =SUM(B94:C94) -> 5168 | D95: =SUM(D94:E94) -> 17203 | F95: =SUM(F94:G94) -> 31634 | H95: =SUM(H94:I94) -> 14830 | J95: =SUM(J94:K94) -> 11798 | L95: =SUM(L94:M94) -> 2198 | N95: =SUM(N94:O94) -> 194 | P95: =SUM(P94:Q94) -> 83025
A99: Percentages - Most Recent Games
B100: Bronze | D100: Silver | F100: Gold | H100: Platinum | J100: Diamond | L100: Master | N100: Grandmaster | P100: Totals
A101: Weeks Remaining | B101: Last Week | C101: Last Month | D101: Last Week | E101: Last Month | F101: Last Week | G101: Last Month | H101: Last Week | I101: Last Month | J101: Last Week | K101: Last Month | L101: Last Week | M101: Last Month | N101: Last Week | O101: Last Month | P101: Last Week | Q101: Last Month
A102: 1 | B102: =B83/$I16 -> 0.03212047354 | C102: =C83/$I16 -> 0.0001740947075 | D102: 0.06267409471 | E102: =E83/$I16 -> 0 | F102: 0.2805536212 | G102: 0.0004352367688 | H102: 0.2435584958 | I102: 0.0002611420613 | J102: 0.3104108635 | K102: 0 | L102: 0.05292479109 | M102: 0 | N102: 0.01671309192 | O102: 0.0001740947075 | P102: =P83/$I16 -> 0.9989554318 | Q102: 0.001044568245
A103: 2 | B103: =B84/$I17 -> 0.02551521099 | C103: 0.006869479882 | D103: 0.04931305201 | E103: =E84/$I17 -> 0.01005888126 | F103: 0.2531894014 | G103: 0.07433758587 | H103: 0.1837585868 | I103: 0.06795878312 | J103: 0.1894013739 | K103: 0.09102060844 | L103: 0.03974484789 | M103: 0.00883218842 | N103: 0 | O103: 0 | P103: =P84/$I17 -> 0.740922473 | Q103: 0.259077527
A104: 3 | B104: =B85/$I18 -> 0.02708443972 | C104: 0.01327668614 | D104: 0.05177907594 | E104: =E85/$I18 -> 0.02310143388 | F104: 0.2187997876 | G104: 0.1250663834 | H104: 0.153212958 | I104: 0.1035581519 | J104: 0.137015401 | K104: 0.1093998938 | L104: 0.02628783856 | M104: 0.01141795008 | N104: 0 | O104: 0 | P104: =P85/$I18 -> 0.6141795008 | Q104: 0.3858204992
A105: 4 | B105: =B86/$I19 -> 0.01921132457 | C105: 0.01339737108 | D105: 0.0447421638 | E105: =E86/$I19 -> 0.03008088979 | F105: 0.2229524772 | G105: 0.1380182002 | H105: 0.1410515672 | I105: 0.1180485339 | J105: 0.1114762386 | K105: 0.1122345804 | L105: 0.03412537917 | M105: 0.01390293225 | N105: 0 | O105: 0 | P105: =P86/$I19 -> 0.5735591507 | Q105: 0.4256825076
A106: 5 | B106: =B87/$I20 -> 0.01807097757 | C106: 0.01458741563 | D106: 0.052906597 | E106: =E87/$I20 -> 0.03374700631 | F106: 0.2033529284 | G106: 0.1491399956 | H106: 0.1271500109 | I106: 0.1090790333 | J106: 0.09797517962 | K106: 0.1060309166 | L106: 0.03222294796 | M106: 0.01502286088 | N106: 0 | O106: 0 | P106: =P87/$I20 -> 0.5316786414 | Q106: 0.4276072284
A107: 6 | B107: =B88/$I21 -> 0.01460269296 | C107: 0.0164991466 | D107: 0.04779063152 | E107: =E88/$I21 -> 0.03394652001 | F107: 0.2108856438 | G107: 0.1431822492 | H107: 0.1107528921 | I107: 0.09406410013 | J107: 0.08040963398 | K107: 0.06049687085 | L107: 0.02086098995 | M107: 0.01422340224 | N107: 0 | O107: 0 | P107: =P88/$I21 -> 0.4853024844 | Q107: 0.362412289
A108: 7 | B108: =B89/$I22 -> 0.01588689695 | C108: 0.01195161055 | D108: 0.05305349074 | E108: =E89/$I22 -> 0.0405188748 | F108: 0.1979303309 | G108: 0.1521644075 | H108: 0.08934557645 | I108: 0.0810377496 | J108: 0.05830053928 | K108: 0.05742603119 | L108: 0.01370062673 | M108: 0.01268036729 | N108: 0 | O108: 0 | P108: =P89/$I22 -> 0.428217461 | Q108: 0.355779041
A109: 8 | B109: =B90/$I23 -> 0.01528312259 | C109: 0.01253435954 | D109: 0.06047278725 | E109: =E90/$I23 -> 0.05123694338 | F109: 0.1854865311 | G109: 0.17262232 | H109: 0.06597031336 | I109: 0.06586036284 | J109: 0.03562396921 | K109: 0.04672897196 | L109: 0.01055525014 | M109: 0.008356239692 | N109: 0 | O109: 0 | P109: =P90/$I23 -> 0.3733919736 | Q109: 0.3573391974
A110: 9 | B110: =B91/$I24 -> 0.01581526582 | C110: 0.01811701812 | D110: 0.06630531631 | E110: =E91/$I24 -> 0.07632907633 | F110: 0.1583754084 | G110: 0.1772349272 | H110: 0.04313929314 | I110: 0.0498960499 | J110: 0.02234927235 | K110: 0.02910602911 | L110: 0.005049005049 | M110: 0.004900504901 | N110: 0 | O110: 0 | P110: =P91/$I24 -> 0.311033561 | Q110: 0.3555836056
A111: 10 | B111: =B92/$I25 -> 0.01772626005 | C111: 0.02728358787 | D111: 0.07607116335 | E111: =E92/$I25 -> 0.1176261664 | F111: 0.09040715508 | G111: 0.1454263666 | H111: 0.02143941106 | I111: 0.036518033 | J111: 0.01162377708 | K111: 0.01582125214 | L111: 0.002260178877 | M111: 0.00200187272 | N111: 0 | O111: 0 | P111: =P92/$I25 -> 0.2195279455 | Q111: 0.3446772787
A112: 11 | B112: =B93/$I26 -> 0.0220731941 | C112: 0.04594749952 | D112: 0.06150603564 | E112: =E93/$I26 -> 0.1399118605 | F112: 0.04142556045 | G112: 0.08806284729 | H112: 0.01586510826 | I112: 0.03893466181 | J112: 0.006782908603 | K112: 0.01276106534 | L112: 0.0006897873156 | M112: 0.0008047518682 | N112: 0 | O112: 0 | P112: =P93/$I26 -> 0.1483425944 | Q112: 0.3264226863
A113: Totals | B113: 0.0200347704 | C113: 0.02316076294 | D113: 0.06315507932 | E113: =E94/$I27 -> 0.08063221945 | F113: 0.1426422159 | G113: 0.1217632604 | H113: 0.07290082078 | I113: 0.05105230605 | J113: 0.06461777637 | K113: 0.03399307935 | L113: 0.01344009629 | M113: 0.004931378613 | N113: 0.001604787616 | O113: 1.671653767e-05 | P113: =P94/$I27 -> 0.3783955467 | Q113: 0.3155497233
A114: Percentage in the Last Month | B114: =SUM(B113:C113) -> 0.04319553334 | D114: =SUM(D113:E113) -> 0.1437872988 | F114: =SUM(F113:G113) -> 0.2644054763 | H114: =SUM(H113:I113) -> 0.1239531268 | J114: =SUM(J113:K113) -> 0.09861085572 | L114: =SUM(L113:M113) -> 0.0183714749 | N114: =SUM(N113:O113) -> 0.001621504154 | P114: =SUM(P113:Q113) -> 0.6939452701
A117: Inactive Player Analysis (11 bonus pool weeks remaining that have not played a game in the last month) | B117: Bronze | C117: Silver | D117: Gold | E117: Platinum | F117: Diamond | G117: Master | H117: Totals
A118: Total Players | B118: =B26-B93-C93 -> 4242 | C118: =C26-D93-E93 -> 5446 | D118: =D26-F93-G93 -> 2416 | E118: =E26-H93-I93 -> 1002 | F118: =F26-J93-K93 -> 526 | G118: =G26-L93-M93 -> 74 | H118: =SUM(B118:G118) -> 13706

Sheet 1v1 Bronze
A1: ID | B1: Name | C1: Race | D1: League | E1: Division | F1: Win | G1: Loss | H1: Score | I1: Bonus Pool Remaining | J1: Date Joined | K1: Last Game | L1: Timestamp | N1: ID-Name | O1: Duplicate
A2: 1000104 | B2: Dave | C2: z | D2: Bronze | E2: Division Bhekar Ro Iota | F2: 0 | G2: 1 | H2: 0 | I2: 1058 | J2: 2014-05-18 | K2: 34 days | L2: 2014-06-23T10:07:36 | M2: 11 | N2: =A2&"-"&B2 -> 1000104-Dave | O2: 0
A3: 1000179 | B3: Nume | C3: p | D3: Bronze | E3: Division Queen Eta | F3: 5 | G3: 10 | H3: 160 | I3: 916 | J3: 2014-05-07 | K3: 12 hours | L3: 2014-06-23T08:33:16 | M3: 9 | N3: 1000179-Nume | O3: 0
A4: 1000688 | B4: костен | C4: t | D4: Bronze | E4: Division Defiler Sierra | F4: 4 | G4: 4 | H4: 106 | I4: 992 | J4: 2014-04-26 | K4: 43 days | L4: 2014-06-23T08:45:57 | M4: 10 | N4: 1000688-костен | O4: 0
A5: 1001004 | B5: RaW | C5: t | D5: Bronze | E5: Division Kaloth Echo | F5: 0 | G5: 2 | H5: 0 | I5: 1058 | J5: 2014-04-21 | K5: 61 days | L5: 2014-06-23T10:07:37 | M5: 11 | N5: 1001004-RaW | O5: 0
A6: 1001394 | B6: Trumpwtf | C6: z | D6: Bronze | E6: Division Zerus Epsilon | F6: 0 | G6: 1 | H6: 0 | I6: 1058 | J6: 2014-05-11 | K6: 41 days | L6: 2014-06-23T10:07:38 | M6: 11 | N6: 1001394-Trumpwtf | O6: 0
A7: 1001501 | B7: BRV | C7: t | D7: Bronze | E7: Division War Pigs Eta | F7: 1 | G7: 4 | H7: 36 | I7: 1023 | J7: 2014-04-15 | K7: 59 days | L7: 2014-06-23T09:24:00 | M7: 10 | N7: 1001501-BRV | O7: 0
A8: 1001890 | B8: Ali | C8: p | D8: Bronze | E8: Division Sentry Romeo | F8: 21 | G8: 15 | H8: 542 | I8: 648 | J8: 2014-04-16 | K8: 19 days | L8: 2014-06-23T08:07:37 | M8: 7 | N8: 1001890-Ali | O8: 0
A9: 1004449 | B9: titicorse | C9: z | D9: Bronze | E9: Division Char Delta | F9: 5 | G9: 7 | H9: 146 | I9: 955 | J9: 2014-06-01 | K9: 9 days | L9: 2014-06-23T08:35:50 | M9: 10 | N9: 1004449-titicorse | O9: 0
A10: 1004477 | B10: NsGǂAzEuilZ | C10: z | D10: Bronze | E10: Division Feld Uncle | F10: 10 | G10: 10 | H10: 311 | I10: 704 | J10: 2014-06-17 | K10: 11 hours | L10: 2014-06-22T14:49:54 | M10: 7 | N10: 1004477-NsGǂAzEuilZ | O10: 0
A11: 1004487 | B11: Will | C11: t | D11: Bronze | E11: Division Executor Pi | F11: 72 | G11: 69 | H11: 1208 | I11: 9 | J11: 2014-04-15 | K11: 10 hours | L11: 2014-06-23T07:51:01 | M11: 1 | N11: 1004487-Will | O11: 0
A12: 1004633 | B12: Ksenoform | C12: t | D12: Bronze | E12: Division Araq Tango | F12: 0 | G12: 5 | H12: 0 | I12: 1058 | J12: 2014-06-18 | K12: 3 days | L12: 2014-06-23T10:07:39 | M12: 11 | N12: 1004633-Ksenoform | O12: 0
A13: 1005264 | B13: DrZ | C13: p | D13: Bronze | E13: Division Rimes Lambda | F13: 1 | G13: 0 | H13: 0 | I13: 1058 | J13: 2014-04-25 | K13: 57 days | L13: 2014-06-23T10:07:40 | M13: 11 | N13: 1005264-DrZ | O13: 0
A14: 1005331 | B14: Kwagga | C14: p | D14: Bronze | E14: Division Reaper Kappa | F14: 40 | G14: 66 | H14: 1048 | I14: 36 | J14: 2014-05-15 | K14: 1 days | L14: 2014-06-23T07:55:41 | M14: 1 | N14: 1005331-Kwagga | O14: 0
A15: 1006726 | B15: skorp | C15: p | D15: Bronze | E15: Division Mar Sara Chi | F15: 80 | G15: 137 | H15: 927 | I15: 196 | J15: 2014-04-19 | K15: 5 days | L15: 2014-06-23T07:58:45 | M15: 2 | N15: 1006726-skorp | O15: 0
A16: 1006847 | B16: Withelight | C16: t | D16: Bronze | E16: Division Rimes Lambda | F16: 0 | G16: 3 | H16: 0 | I16: 1058 | J16: 2014-04-25 | K16: 57 days | L16: 2014-06-23T10:07:41 | M16: 11 | N16: 1006847-Withelight | O16: 0
A17: 1006925 | B17: BLADERUNNER | C17: p | D17: Bronze | E17: Division Char Delta | F17: 0 | G17: 3 | H17: 0 | I17: 1058 | J17: 2014-05-05 | K17: 47 days | L17: 2014-06-23T10:07:42 | M17: 11 | N17: 1006925-BLADERUNNER | O17: 0
A18: 1006976 | B18: TrSertac | C18: p | D18: Bronze | E18: Division Zerus Epsilon | F18: 11 | G18: 15 | H18: 338 | I18: 747 | J18: 2014-04-24 | K18: 37 days | L18: 2014-06-23T08:15:46 | M18: 8 | N18: 1006976-TrSertac | O18: 0
A19: 1007596 | B19: hdfgamer | C19: z | D19: Bronze | E19: Division Mutalisk Mars | F19: 1 | G19: 1 | H19: 40 | I19: 1038 | J19: 2014-05-06 | K19: 46 days | L19: 2014-06-23T09:15:02 | M19: 10 | N19: 1007596-hdfgamer | O19: 0
A20: 1007770 | B20: SpaceHomer | C20: p | D20: Bronze | E20: Division Lassatar Indigo | F20: 0 | G20: 1 | H20: 0 | I20: 1058 | J20: 2014-04-14 | K20: 67 days | L20: 2014-06-23T10:07:43 | M20: 11 | N20: 1007770-SpaceHomer | O20: 0
A21: 1007773 | B21: stantal | C21: p | D21: Bronze | E21: Division Viking Bravo | F21: 0 | G21: 3 | H21: 0 | I21: 1058 | J21: 2014-05-20 | K21: 32 days | L21: 2014-06-23T10:07:44 | M21: 11 | N21: 1007773-stantal | O21: 0
A22: 1007808 | B22: SpiritSouL | C22: t | D22: Bronze | E22: Division Shuttle Hawk | F22: 13 | G22: 12 | H22: 288 | I22: 782 | J22: 2014-05-28 | K22: 7 hours | L22: 2014-06-23T08:18:55 | M22: 8 | N22: 1007808-SpiritSouL | O22: 0
A23: 1008252 | B23: artem | C23: t | D23: Bronze | E23: Division Antioch Delta | F23: 0 | G23: 5 | H23: 0 | I23: 1058 | J23: 2014-04-17 | K23: 65 days | L23: 2014-06-23T10:07:45 | M23: 11 | N23: 1008252-artem | O23: 0
A24: 1010130 | B24: Joinfield | C24: z | D24: Bronze | E24: Division Tal’darim Tau | F24: 1 | G24: 1 | H24: 0 | I24: 1058 | J24: 2014-04-20 | K24: 62 days | L24: 2014-06-23T10:07:46 | M24: 11 | N24: 1010130-Joinfield | O24: 0
A25: 1010267 | B25: Michaël | C25: p | D25: Bronze | E25: Division Boros Lima | F25: 0 | G25: 2 | H25: 0 | I25: 1058 | J25: 2014-06-05 | K25: 16 days | L25: 2014-06-23T10:07:47 | M25: 11 | N25: 1010267-Michaël | O25: 0
A26: 1010562 | B26: Maximus | C26: z | D26: Bronze | E26: Division Kaloth Echo | F26: 1 | G26: 0 | H26: 0 | I26: 1058 | J26: 2014-06-21 | K26: 19 hours | L26: 2014-06-23T10:07:48 | M26: 11 | N26: 1010562-Maximus | O26: 0
A27: 1010847 | B27: kamat | C27: z | D27: Bronze | E27: Division Observer Kilo | F27: 0 | G27: 3 | H27: 0 | I27: 1058 | J27: 2014-04-25 | K27: 51 days | L27: 2014-06-23T10:07:49 | M27: 11 | N27: 1010847-kamat | O27: 0
A28: 1011134 | B28: ANTHONY | C28: t | D28: Bronze | E28: Division Muadun Dixie | F28: 1 | G28: 2 | H28: 30 | I28: 1043 | J28: 2014-04-20 | K28: 62 days | L28: 2014-06-23T09:33:26 | M28: 10 | N28: 1011134-ANTHONY | O28: 0
A29: 1011169 | B29: HellBoyX | C29: t | D29: Bronze | E29: Division Viking Bravo | F29: 2 | G29: 7 | H29: 65 | I29: 996 | J29: 2014-04-14 | K29: 64 days | L29: 2014-06-23T09:02:49 | M29: 10 | N29: 1011169-HellBoyX | O29: 0
A30: 1011370 | B30: VolkaDlak | C30: t | D30: Bronze | E30: Division Phash Mars | F30: 5 | G30: 15 | H30: 180 | I30: 858 | J30: 2014-05-24 | K30: 15 days | L30: 2014-06-23T08:30:16 | M30: 9 | N30: 1011370-VolkaDlak | O30: 0
A31: 1011558 | B31: den | C31: p | D31: Bronze | E31: Division Guardian Whiskey | F31: 7 | G31: 15 | H31: 210 | I31: 821 | J31: 2014-04-22 | K31: 29 days | L31: 2014-06-23T08:26:03 | M31: 8 | N31: 1011558-den | O31: 0
A32: 1011774 | B32: ланцдлавычто | C32: t | D32: Bronze | E32: Division Khalis Quest | F32: 2 | G32: 2 | H32: 72 | I32: 1019 | J32: 2014-06-05 | K32: 13 days | L32: 2014-06-23T08:58:31 | M32: 10 | N32: 1011774-ланцдлавычто | O32: 0
A33: 1011878 | B33: Swype | C33: t | D33: Bronze | E33: Division Torrasque Psi | F33: 0 | G33: 6 | H33: 0 | I33: 1058 | J33: 2014-04-26 | K33: 33 days | L33: 2014-06-23T10:07:50 | M33: 11 | N33: 1011878-Swype | O33: 0
A34: 1012420 | B34: Valeron | C34: t | D34: Bronze | E34: Division Broodling Tango | F34: 10 | G34: 35 | H34: 354 | I34: 672 | J34: 2014-06-04 | K34: 9 days | L34: 2014-06-23T08:14:50 | M34: 7 | N34: 1012420-Valeron | O34: 0
A35: 1013190 | B35: xiou | C35: p | D35: Bronze | E35: Division Hydralisk Dixie | F35: 2 | G35: 3 | H35: 66 | I35: 1014 | J35: 2014-06-09 | K35: 12 days | L35: 2014-06-23T09:01:59 | M35: 10 | N35: 1013190-xiou | O35: 0
A36: 1013323 | B36: михаил | C36: z | D36: Bronze | E36: Division Infestor Alamo | F36: 2 | G36: 10 | H36: 78 | I36: 979 | J36: 2014-06-09 | K36: 4 days | L36: 2014-06-23T08:55:17 | M36: 10 | N36: 1013323-михаил | O36: 0
A37: 1013401 | B37: WiryMachine | C37: p | D37: Bronze | E37: Division Araq Tango | F37: 0 | G37: 1 | H37: 0 | I37: 1058 | J37: 2014-05-05 | K37: 47 days | L37: 2014-06-23T10:07:51 | M37: 11 | N37: 1013401-WiryMachine | O37: 0
A38: 101367 | B38: Crestoff | C38: z | D38: Bronze | E38: Division Meinhoff Nu | F38: 0 | G38: 1 | H38: 0 | I38: 1058 | J38: 2014-04-25 | K38: 57 days | L38: 2014-06-23T09:43:45 | M38: 11 | N38: 101367-Crestoff | O38: 0
A39: 101409 | B39: Busta | C39: p | D39: Bronze | E39: Division SCV Dixie | F39: 25 | G39: 33 | H39: 618 | I39: 423 | J39: 2014-05-26 | K39: 24 days | L39: 2014-06-23T08:05:31 | M39: 5 | N39: 101409-Busta | O39: 0
A40: 1014594 | B40: maciekuk | C40: t | D40: Bronze | E40: Division Roxara Lima | F40: 30 | G40: 36 | H40: 838 | I40: 305 | J40: 2014-05-08 | K40: 2 days | L40: 2014-06-23T08:00:53 | M40: 3 | N40: 1014594-maciekuk | O40: 0
A41: 1015227 | B41: Sammael | C41: t | D41: Bronze | E41: Division Nahaan Upsilon | F41: 5 | G41: 9 | H41: 198 | I41: 932 | J41: 2014-05-18 | K41: 9 days | L41: 2014-06-23T08:27:39 | M41: 9 | N41: 1015227-Sammael | O41: 0
A42: 1016678 | B42: Luy | C42: t | D42: Bronze | E42: Division Roxara Lima | F42: 0 | G42: 1 | H42: 0 | I42: 1058 | J42: 2014-04-17 | K42: 65 days | L42: 2014-06-23T10:07:52 | M42: 11 | N42: 1016678-Luy | O42: 0
A43: 1016825 | B43: Baseman | C43: p | D43: Bronze | E43: Division Zasz Juliet | F43: 0 | G43: 1 | H43: 0 | I43: 1058 | J43: 2014-05-16 | K43: 36 days | L43: 2014-06-23T10:07:53 | M43: 11 | N43: 1016825-Baseman | O43: 0
A44: 1017603 | B44: Walkman | C44: p | D44: Bronze | E44: Division Ehlna Mu | F44: 1 | G44: 1 | H44: 38 | I44: 1039 | J44: 2014-04-30 | K44: 51 days | L44: 2014-06-23T09:18:40 | M44: 10 | N44: 1017603-Walkman | O44: 0
A45: 1017635 | B45: fénix | C45: p | D45: Bronze | E45: Division Raszagal Rho | F45: 39 | G45: 39 | H45: 1036 | I45: 118 | J45: 2014-04-14 | K45: 20 hours | L45: 2014-06-23T07:56:22 | M45: 2 | N45: 1017635-fénix | O45: 0
A46: 1017952 | B46: Каява | C46: p | D46: Bronze | E46: Division Raven Quest | F46: 0 | G46: 1 | H46: 0 | I46: 1058 | J46: 2014-05-01 | K46: 51 days | L46: 2014-06-23T10:07:54 | M46: 11 | N46: 1017952-Каява | O46: 0
A47: 1018413 | B47: OLEGEGOROV | C47: t | D47: Bronze | E47: Division Mutalisk Phi | F47: 16 | G47: 20 | H47: 482 | I47: 661 | J47: 2014-04-25 | K47: 16 days | L47: 2014-06-23T08:09:22 | M47: 7 | N47: 1018413-OLEGEGOROV | O47: 0
A48: 1018594 | B48: MrConnery | C48: t | D48: Bronze | E48: Division Pridewater Epsilon | F48: 0 | G48: 1 | H48: 0 | I48: 1058 | J48: 2014-06-13 | K48: 8 days | L48: 2014-06-23T10:07:55 | M48: 11 | N48: 1018594-MrConnery | O48: 0
A49: 1019103 | B49: unknown | C49: t | D49: Bronze | E49: Division Hive Psi | F49: 0 | G49: 3 | H49: 0 | I49: 1058 | J49: 2014-06-20 | K49: 2 days | L49: 2014-06-23T10:07:56 | M49: 11 | N49: 1019103-unknown | O49: 0
A50: 1019174 | B50: Drama | C50: p | D50: Bronze | E50: Division Ulrezaj Sigma | F50: 4 | G50: 6 | H50: 146 | I50: 960 | J50: 2014-04-28 | K50: 51 days | L50: 2014-06-23T08:35:51 | M50: 10 | N50: 1019174-Drama | O50: 0
A51: 1019352 | B51: lvlIKE | C51: r | D51: Bronze | E51: Division Defiler Sierra | F51: 0 | G51: 2 | H51: 0 | I51: 1058 | J51: 2014-05-17 | K51: 35 days | L51: 2014-06-23T10:07:57 | M51: 11 | N51: 1019352-lvlIKE | O51: 0
A52: 1019503 | B52: Cuba | C52: z | D52: Bronze | E52: Division Sentry Romeo | F52: 0 | G52: 1 | H52: 0 | I52: 1058 | J52: 2014-05-25 | K52: 27 days | L52: 2014-06-23T10:07:58 | M52: 11 | N52: 1019503-Cuba | O52: 0
A53: 1020252 | B53: DomiFlex | C53: t | D53: Bronze | E53: Division Roach Yankee | F53: 0 | G53: 4 | H53: 0 | I53: 1058 | J53: 2014-05-19 | K53: 32 days | L53: 2014-06-23T10:07:58 | M53: 11 | N53: 1020252-DomiFlex | O53: 0
A54: 1020819 | B54: Falc | C54: t | D54: Bronze | E54: Division Kerrigan Mu | F54: 1 | G54: 1 | H54: 30 | I54: 1043 | J54: 2014-04-21 | K54: 56 days | L54: 2014-06-23T09:33:27 | M54: 10 | N54: 1020819-Falc | O54: 0
A55: 1020929 | B55: Marcel | C55: t | D55: Bronze | E55: Division Valkyrie Eta | F55: 0 | G55: 2 | H55: 0 | I55: 1058 | J55: 2014-04-19 | K55: 19 days | L55: 2014-06-23T10:07:59 | M55: 11 | N55: 1020929-Marcel | O55: 0
A56: 102114 | B56: DedMopoZ | C56: r | D56: Bronze | E56: Division Tosh X-Ray | F56: 0 | G56: 2 | H56: 0 | I56: 1058 | J56: 2014-05-24 | K56: 27 days | L56: 2014-06-23T09:43:46 | M56: 11 | N56: 102114-DedMopoZ | O56: 0
A57: 102188 | B57: Travkin | C57: p | D57: Bronze | E57: Division Akilae Omega | F57: 2 | G57: 6 | H57: 34 | I57: 1022 | J57: 2014-04-18 | K57: 64 days | L57: 2014-06-23T09:26:51 | M57: 10 | N57: 102188-Travkin | O57: 0
A58: 1022306 | B58: Spox | C58: r | D58: Bronze | E58: Division Viking Bravo | F58: 1 | G58: 0 | H58: 0 | I58: 1058 | J58: 2014-04-21 | K58: 61 days | L58: 2014-06-23T10:08:00 | M58: 11 | N58: 1022306-Spox | O58: 0
A59: 1022562 | B59: evilRo | C59: p | D59: Bronze | E59: Division Firebat Beta | F59: 41 | G59: 51 | H59: 674 | I59: 395 | J59: 2014-04-16 | K59: 20 days | L59: 2014-06-23T08:04:08 | M59: 4 | N59: 1022562-evilRo | O59: 0
A60: 1022710 | B60: LaJota | C60: r | D60: Bronze | E60: Division Raynor Alpha | F60: 1 | G60: 0 | H60: 0 | I60: 1058 | J60: 2014-04-18 | K60: 64 days | L60: 2014-06-23T10:08:01 | M60: 11 | N60: 1022710-LaJota | O60: 0
A61: 1022755 | B61: Kova | C61: r | D61: Bronze | E61: Division SCV Dixie | F61: 1 | G61: 1 | H61: 30 | I61: 1043 | J61: 2014-04-19 | K61: 63 days | L61: 2014-06-23T09:33:28 | M61: 10 | N61: 1022755-Kova | O61: 0
A62: 1023378 | B62: Echelon | C62: t | D62: Bronze | E62: Division Monlyth Rho | F62: 1 | G62: 3 | H62: 30 | I62: 1028 | J62: 2014-04-19 | K62: 57 days | L62: 2014-06-23T09:33:29 | M62: 10 | N62: 1023378-Echelon | O62: 0
A63: 102341 | B63: Opxexe | C63: p | D63: Bronze | E63: Division Ursa Upsilon | F63: 2 | G63: 2 | H63: 60 | I63: 1028 | J63: 2014-06-02 | K63: 19 days | L63: 2014-06-23T09:05:06 | M63: 10 | N63: 102341-Opxexe | O63: 0
A64: 1023819 | B64: Danille | C64: p | D64: Bronze | E64: Division Roach Yankee | F64: 0 | G64: 1 | H64: 0 | I64: 1058 | J64: 2014-04-16 | K64: 66 days | L64: 2014-06-23T10:08:02 | M64: 11 | N64: 1023819-Danille | O64: 0
A65: 1024283 | B65: ДАРКЛАЗЕР | C65: p | D65: Bronze | E65: Division Shelak Uncle | F65: 2 | G65: 11 | H65: 58 | I65: 980 | J65: 2014-05-29 | K65: 23 days | L65: 2014-06-23T09:07:21 | M65: 10 | N65: 1024283-ДАРКЛАЗЕР | O65: 0
A66: 1024844 | B66: PeRsis | C66: t | D66: Bronze | E66: Division Boros Lima | F66: 3 | G66: 4 | H66: 122 | I66: 980 | J66: 2014-05-29 | K66: 14 hours | L66: 2014-06-23T08:41:25 | M66: 10 | N66: =A66&"-"&B66 -> 1024844-PeRsis | O66: 0
A67: 1025150 | B67: Alkololic | C67: z | D67: Bronze | E67: Division Pridewater Epsilon | F67: 1 | G67: 1 | H67: 0 | I67: 1058 | J67: 2014-04-21 | K67: 61 days | L67: 2014-06-23T10:08:03 | M67: 11 | N67: 1025150-Alkololic | O67: 0
A68: 1025163 | B68: Naf | C68: p | D68: Bronze | E68: Division SCV Dixie | F68: 1 | G68: 2 | H68: 36 | I68: 1035 | J68: 2014-04-20 | K68: 15 days | L68: 2014-06-23T09:24:01 | M68: 10 | N68: 1025163-Naf | O68: 0
A69: 1025410 | B69: GALINDROR | C69: p | D69: Bronze | E69: Division Raszagal Rho | F69: 4 | G69: 14 | H69: 122 | I69: 937 | J69: 2014-06-01 | K69: 17 days | L69: 2014-06-23T08:41:26 | M69: 9 | N69: 1025410-GALINDROR | O69: 0
A70: 1025807 | B70: Skakiller | C70: r | D70: Bronze | E70: Division Lassatar Indigo | F70: 29 | G70: 22 | H70: 717 | I70: 476 | J70: 2014-04-14 | K70: 4 days | L70: 2014-06-23T08:03:08 | M70: 5 | N70: 1025807-Skakiller | O70: 0
A71: 1026852 | B71: Madox | C71: z | D71: Bronze | E71: Division Corruptor Victor | F71: 0 | G71: 2 | H71: 0 | I71: 1058 | J71: 2014-04-18 | K71: 64 days | L71: 2014-06-23T10:08:04 | M71: 11 | N71: 1026852-Madox | O71: 0
A72: 1026909 | B72: isø | C72: z | D72: Bronze | E72: Division Argo Gravity | F72: 1 | G72: 3 | H72: 38 | I72: 1027 | J72: 2014-04-28 | K72: 53 days | L72: 2014-06-23T09:18:41 | M72: 10 | N72: 1026909-isø | O72: 0
A73: 1028105 | B73: Teekanne | C73: z | D73: Bronze | E73: Division Gorn Zed | F73: 0 | G73: 2 | H73: 0 | I73: 1058 | J73: 2014-04-17 | K73: 65 days | L73: 2014-06-23T10:08:05 | M73: 11 | N73: 1028105-Teekanne | O73: 0
A74: 1028228 | B74: Iskhander | C74: p | D74: Bronze | E74: Division Agria Kappa | F74: 2 | G74: 8 | H74: 3 | I74: 1034 | J74: 2014-04-14 | K74: 67 days | L74: 2014-06-23T09:42:07 | M74: 10 | N74: 1028228-Iskhander | O74: 0
A75: 1028410 | B75: jhb | C75: t | D75: Bronze | E75: Division Stukov Victor | F75: 24 | G75: 50 | H75: 766 | I75: 189 | J75: 2014-05-11 | K75: 17 hours | L75: 2014-06-23T08:02:08 | M75: 2 | N75: 1028410-jhb | O75: 0
A76: 1029078 | B76: Nervös | C76: p | D76: Bronze | E76: Division Khaydarin Hawk | F76: 0 | G76: 1 | H76: 0 | I76: 1058 | J76: 2014-06-21 | K76: 14 hours | L76: 2014-06-23T10:08:06 | M76: 11 | N76: 1029078-Nervös | O76: 0
A77: 1029138 | B77: HollowMan | C77: p | D77: Bronze | E77: Division Sargas Psi | F77: 2 | G77: 1 | H77: 88 | I77: 1014 | J77: 2014-04-17 | K77: 34 days | L77: 2014-06-23T08:52:07 | M77: 10 | N77: 1029138-HollowMan | O77: 0
A78: 1029951 | B78: ZouBaky | C78: p | D78: Bronze | E78: Division Kerrigan Mu | F78: 26 | G78: 33 | H78: 630 | I78: 464 | J78: 2014-05-16 | K78: 10 days | L78: 2014-06-23T08:05:19 | M78: 5 | N78: 1029951-ZouBaky | O78: 0
A79: 1029963 | B79: Sullric | C79: p | D79: Bronze | E79: Division Akilae Omega | F79: 1 | G79: 4 | H79: 38 | I79: 1028 | J79: 2014-05-31 | K79: 21 days | L79: 2014-06-23T09:18:42 | M79: 10 | N79: 1029963-Sullric | O79: 0
A80: 1030171 | B80: AeroCell | C80: t | D80: Bronze | E80: Division Roxara Lima | F80: 0 | G80: 1 | H80: 0 | I80: 1058 | J80: 2014-05-03 | K80: 49 days | L80: 2014-06-23T10:08:07 | M80: 11 | N80: 1030171-AeroCell | O80: 0
A81: 1030226 | B81: SHUS | C81: t | D81: Bronze | E81: Division Kalathi Alamo | F81: 0 | G81: 1 | H81: 0 | I81: 1058 | J81: 2014-04-15 | K81: 67 days | L81: 2014-06-23T10:08:08 | M81: 11 | N81: 1030226-SHUS | O81: 0
A82: 1030461 | B82: Throw | C82: t | D82: Bronze | E82: Division Char Delta | F82: 0 | G82: 2 | H82: 0 | I82: 1058 | J82: 2014-04-18 | K82: 64 days | L82: 2014-06-23T10:08:09 | M82: 11 | N82: 1030461-Throw | O82: 0
A83: 1030550 | B83: Sintariel | C83: p | D83: Bronze | E83: Division Raven Kilo | F83: 0 | G83: 7 | H83: 0 | I83: 1058 | J83: 2014-05-21 | K83: 30 days | L83: 2014-06-23T10:08:10 | M83: 11 | N83: 1030550-Sintariel | O83: 0
A84: 103083 | B84: Horki | C84: z | D84: Bronze | E84: Division Tabrenus Omega | F84: 0 | G84: 1 | H84: 0 | I84: 1058 | J84: 2014-04-26 | K84: 56 days | L84: 2014-06-23T09:43:47 | M84: 11 | N84: 103083-Horki | O84: 0
A85: 1031472 | B85: Aldoran | C85: t | D85: Bronze | E85: Division Pylon Foxtrot | F85: 1 | G85: 1 | H85: 40 | I85: 1038 | J85: 2014-05-04 | K85: 48 days | L85: 2014-06-23T09:15:03 | M85: 10 | N85: 1031472-Aldoran | O85: 0
A86: 1032071 | B86: IIePer | C86: t | D86: Bronze | E86: Division Zealot Bravo | F86: 1 | G86: 0 | H86: 0 | I86: 1058 | J86: 2014-04-17 | K86: 65 days | L86: 2014-06-23T10:08:11 | M86: 11 | N86: 1032071-IIePer | O86: 0
A87: 1032167 | B87: BiuBiu | C87: t | D87: Bronze | E87: Division Marine November | F87: 21 | G87: 23 | H87: 546 | I87: 614 | J87: 2014-05-13 | K87: 33 days | L87: 2014-06-23T08:07:28 | M87: 6 | N87: 1032167-BiuBiu | O87: 0
A88: 1032202 | B88: чвырлз | C88: t | D88: Bronze | E88: Division Infestor Alamo | F88: 1 | G88: 0 | H88: 0 | I88: 1058 | J88: 2014-05-01 | K88: 51 days | L88: 2014-06-23T10:08:12 | M88: 11 | N88: 1032202-чвырлз | O88: 0
A89: 1032829 | B89: LOL | C89: t | D89: Bronze | E89: Division Zekrath Beta | F89: 0 | G89: 2 | H89: 0 | I89: 1058 | J89: 2014-05-20 | K89: 28 days | L89: 2014-06-23T10:08:13 | M89: 11 | N89: 1032829-LOL | O89: 0
A90: 1032845 | B90: CRIMBA | C90: p | D90: Bronze | E90: Division Banshee Echo | F90: 2 | G90: 11 | H90: 64 | I90: 943 | J90: 2014-04-17 | K90: 47 days | L90: 2014-06-23T09:03:07 | M90: 10 | N90: 1032845-CRIMBA | O90: 0
A91: 1033391 | B91: ZoXan | C91: z | D91: Bronze | E91: Division Ulrezaj Sigma | F91: 0 | G91: 4 | H91: 0 | I91: 1058 | J91: 2014-04-25 | K91: 56 days | L91: 2014-06-23T10:08:14 | M91: 11 | N91: 1033391-ZoXan | O91: 0
A92: 1034022 | B92: fendtchou | C92: p | D92: Bronze | E92: Division Zamara Lambda | F92: 10 | G92: 18 | H92: 306 | I92: 763 | J92: 2014-04-30 | K92: 48 days | L92: 2014-06-23T08:17:33 | M92: 8 | N92: 1034022-fendtchou | O92: 0
A93: 1034073 | B93: CAHR | C93: z | D93: Bronze | E93: Division Lockwell Charlie | F93: 0 | G93: 1 | H93: 0 | I93: 1058 | J93: 2014-05-25 | K93: 27 days | L93: 2014-06-23T10:08:15 | M93: 11 | N93: 1034073-CAHR | O93: 0
A94: 1034216 | B94: SsevenN | C94: z | D94: Bronze | E94: Division Archon Mars | F94: 0 | G94: 2 | H94: 0 | I94: 1058 | J94: 2014-04-19 | K94: 63 days | L94: 2014-06-23T10:08:16 | M94: 11 | N94: 1034216-SsevenN | O94: 0
A95: 1034299 | B95: Hotiman | C95: p | D95: Bronze | E95: Division Zealot Bravo | F95: 0 | G95: 2 | H95: 0 | I95: 1058 | J95: 2014-04-17 | K95: 65 days | L95: 2014-06-23T10:08:17 | M95: 11 | N95: 1034299-Hotiman | O95: 0
A96: 1034713 | B96: Landronik | C96: z | D96: Bronze | E96: Division Ramsey Zeta | F96: 0 | G96: 6 | H96: 0 | I96: 1058 | J96: 2014-06-12 | K96: 8 days | L96: 2014-06-23T10:08:19 | M96: 11 | N96: 1034713-Landronik | O96: 0
A97: 1034756 | B97: iwtfylaa | C97: r | D97: Bronze | E97: Division Leviathan Quest | F97: 1 | G97: 2 | H97: 30 | I97: 1036 | J97: 2014-04-19 | K97: 63 days | L97: 2014-06-23T09:33:30 | M97: 10 | N97: 1034756-iwtfylaa | O97: 0
A98: 1035185 | B98: Elygyar | C98: p | D98: Bronze | E98: Division Lockwell Charlie | F98: 0 | G98: 1 | H98: 0 | I98: 1058 | J98: 2014-05-09 | K98: 43 days | L98: 2014-06-23T10:08:19 | M98: 11 | N98: 1035185-Elygyar | O98: 0
A99: 1035207 | B99: HeavySquall | C99: t | D99: Bronze | E99: Division Observer Kilo | F99: 0 | G99: 1 | H99: 0 | I99: 1058 | J99: 2014-04-21 | K99: 61 days | L99: 2014-06-23T10:08:20 | M99: 11 | N99: 1035207-HeavySquall | O99: 0
A100: 1035356 | B100: Tage | C100: t | D100: Bronze | E100: Division Mutalisk Phi | F100: 1 | G100: 0 | H100: 0 | I100: 1058 | J100: 2014-04-30 | K100: 52 days | L100: 2014-06-23T10:08:21 | M100: 11 | N100: 1035356-Tage | O100: 0
A101: 1035450 | B101: Galaad | C101: p | D101: Bronze | E101: Division Corruptor Victor | F101: 2 | G101: 3 | H101: 36 | I101: 1028 | J101: 2014-04-18 | K101: 62 days | L101: 2014-06-23T09:24:02 | M101: 10 | N101: 1035450-Galaad | O101: 0
A102: 1035665 | B102: Doommer | C102: r | D102: Bronze | E102: Division Scion Theta | F102: 0 | G102: 4 | H102: 0 | I102: 1058 | J102: 2014-04-29 | K102: 53 days | L102: 2014-06-23T10:08:22 | M102: 11 | N102: 1035665-Doommer | O102: 0
A103: 1036200 | B103: koekie | C103: t | D103: Bronze | E103: Division Khas Uncle | F103: 2 | G103: 5 | H103: 60 | I103: 1017 | J103: 2014-04-27 | K103: 38 days | L103: 2014-06-23T09:05:26 | M103: 10 | N103: 1036200-koekie | O103: 0
A104: 1036462 | B104: Beast | C104: z | D104: Bronze | E104: Division Sakai Pi | F104: 1 | G104: 3 | H104: 0 | I104: 1058 | J104: 2014-06-18 | K104: 1 days | L104: 2014-06-23T10:08:23 | M104: 11 | N104: 1036462-Beast | O104: 0
A105: 1036805 | B105: SMa | C105: z | D105: Bronze | E105: Division Jorgensen November | F105: 0 | G105: 2 | H105: 0 | I105: 1058 | J105: 2014-06-01 | K105: 8 days | L105: 2014-06-23T10:08:24 | M105: 11 | N105: 1036805-SMa | O105: 0
A106: 1037166 | B106: Victor | C106: z | D106: Bronze | E106: Division Hyperion Indigo | F106: 2 | G106: 14 | H106: 68 | I106: 989 | J106: 2014-04-18 | K106: 20 days | L106: 2014-06-23T09:00:47 | M106: 10 | N106: 1037166-Victor | O106: 0
A107: 1037353 | B107: cyrus | C107: p | D107: Bronze | E107: Division Firebat Beta | F107: 0 | G107: 1 | H107: 0 | I107: 1058 | J107: 2014-05-09 | K107: 43 days | L107: 2014-06-23T10:08:26 | M107: 11 | N107: 1037353-cyrus | O107: 0
A108: 1037465 | B108: Nubyara | C108: t | D108: Bronze | E108: Division Mutalisk Mars | F108: 147 | G108: 178 | H108: 1119 | I108: 1000 | J108: 2014-05-18 | K108: 17 minutes | L108: 2014-06-22T22:53:54 | M108: 10 | N108: 1037465-Nubyara | O108: 0
A109: 1037466 | B109: ZAhmed | C109: z | D109: Bronze | E109: Division Changeling Foxtrot | F109: 5 | G109: 15 | H109: 146 | I109: 948 | J109: 2014-04-29 | K109: 34 days | L109: 2014-06-23T08:35:52 | M109: 10 | N109: 1037466-ZAhmed | O109: 0
A110: 1037535 | B110: FairFoxx | C110: p | D110: Bronze | E110: Division Swann Zeta | F110: 0 | G110: 2 | H110: 0 | I110: 1058 | J110: 2014-06-08 | K110: 12 days | L110: 2014-06-23T10:08:27 | M110: 11 | N110: 1037535-FairFoxx | O110: 0
A111: 103754 | B111: BlackyFox | C111: z | D111: Bronze | E111: Division Reagan Mars | F111: 1 | G111: 5 | H111: 34 | I111: 1041 | J111: 2014-05-25 | K111: 26 days | L111: 2014-06-23T09:26:52 | M111: 10 | N111: 103754-BlackyFox | O111: 0
A112: 1037729 | B112: Hunter | C112: z | D112: Bronze | E112: Division Akilae Omega | F112: 0 | G112: 2 | H112: 0 | I112: 1058 | J112: 2014-04-18 | K112: 64 days | L112: 2014-06-23T10:08:28 | M112: 11 | N112: 1037729-Hunter | O112: 0
A113: 1040133 | B113: EnergieHai | C113: z | D113: Bronze | E113: Division Taarim Alamo | F113: 2 | G113: 3 | H113: 74 | I113: 1013 | J113: 2014-04-21 | K113: 56 days | L113: 2014-06-23T08:57:33 | M113: 10 | N113: 1040133-EnergieHai | O113: 0
A114: 1040456 | B114: jimmy | C114: r | D114: Bronze | E114: Division Mutalisk Phi | F114: 0 | G114: 1 | H114: 0 | I114: 1058 | J114: 2014-04-14 | K114: 67 days | L114: 2014-06-23T10:08:29 | M114: 11 | N114: 1040456-jimmy | O114: 0
A115: 1040645 | B115: Rebelike | C115: z | D115: Bronze | E115: Division Prelate Echo | F115: 3 | G115: 1 | H115: 102 | I115: 1007 | J115: 2014-05-03 | K115: 43 days | L115: 2014-06-23T08:46:58 | M115: 10 | N115: 1040645-Rebelike | O115: 0
A116: 1042054 | B116: iDP | C116: p | D116: Bronze | E116: Division Ulrezaj Sigma | F116: 4 | G116: 3 | H116: 30 | I116: 1043 | J116: 2014-06-05 | K116: 4 days | L116: 2014-06-23T09:33:31 | M116: 10 | N116: 1042054-iDP | O116: 0
A117: 1042436 | B117: TemaGorexRUS | C117: z | D117: Bronze | E117: Division Tychus Gamma | F117: 0 | G117: 4 | H117: 0 | I117: 1058 | J117: 2014-05-06 | K117: 46 days | L117: 2014-06-23T10:08:30 | M117: 11 | N117: 1042436-TemaGorexRUS | O117: 0
A118: 1042704 | B118: lapinvert | C118: r | D118: Bronze | E118: Division Viking Bravo | F118: 0 | G118: 1 | H118: 0 | I118: 1058 | J118: 2014-06-05 | K118: 16 days | L118: 2014-06-23T10:08:31 | M118: 11 | N118: 1042704-lapinvert | O118: 0
A119: 1043790 | B119: german | C119: t | D119: Bronze | E119: Division Alzadar Romeo | F119: 67 | G119: 76 | H119: 996 | I119: 22 | J119: 2014-04-23 | K119: 7 hours | L119: 2014-06-23T07:57:25 | M119: 1 | N119: 1043790-german | O119: 0
A120: 1043792 | B120: Fish | C120: t | D120: Bronze | E120: Division Korhal Whiskey | F120: 3 | G120: 8 | H120: 100 | I120: 971 | J120: 2014-04-18 | K120: 64 days | L120: 2014-06-23T08:47:49 | M120: 10 | N120: 1043792-Fish | O120: 0
A121: 1043821 | B121: Guthx | C121: t | D121: Bronze | E121: Division Raynor Alpha | F121: 0 | G121: 1 | H121: 0 | I121: 1058 | J121: 2014-04-27 | K121: 55 days | L121: 2014-06-23T10:08:32 | M121: 11 | N121: 1043821-Guthx | O121: 0
A122: 1044009 | B122: BombGuy | C122: t | D122: Bronze | E122: Division Vermillion Epsilon | F122: 1 | G122: 2 | H122: 30 | I122: 1043 | J122: 2014-04-28 | K122: 51 days | L122: 2014-06-23T09:33:31 | M122: 10 | N122: 1044009-BombGuy | O122: 0
A123: 1044197 | B123: Лаврентий | C123: z | D123: Bronze | E123: Division Argo Gravity | F123: 0 | G123: 10 | H123: 0 | I123: 1058 | J123: 2014-04-22 | K123: 54 days | L123: 2014-06-23T10:08:33 | M123: 11 | N123: 1044197-Лаврентий | O123: 0
A124: 1044285 | B124: varune | C124: p | D124: Bronze | E124: Division Tabrenus Omega | F124: 0 | G124: 1 | H124: 0 | I124: 1058 | J124: 2014-04-26 | K124: 56 days | L124: 2014-06-23T10:08:34 | M124: 11 | N124: 1044285-varune | O124: 0
A125: 1045276 | B125: Kloowac | C125: t | D125: Bronze | E125: Division Auriga Phi | F125: 28 | G125: 80 | H125: 999 | I125: 37 | J125: 2014-04-21 | K125: 14 hours | L125: 2014-06-23T07:57:20 | M125: 1 | N125: 1045276-Kloowac | O125: 0
A126: 1045324 | B126: Zentauri | C126: t | D126: Bronze | E126: Division Hartley Omega | F126: 20 | G126: 29 | H126: 582 | I126: 471 | J126: 2014-04-14 | K126: 1 days | L126: 2014-06-23T08:06:24 | M126: 5 | N126: 1045324-Zentauri | O126: 0
A127: 1045729 | B127: Zaurito | C127: p | D127: Bronze | E127: Division Observer Kilo | F127: 3 | G127: 2 | H127: 0 | I127: 1058 | J127: 2014-06-05 | K127: 16 days | L127: 2014-06-23T10:08:35 | M127: 11 | N127: 1045729-Zaurito | O127: 0
A128: 1045796 | B128: Paul | C128: t | D128: Bronze | E128: Division Changeling Foxtrot | F128: 36 | G128: 42 | H128: 858 | I128: 242 | J128: 2014-04-15 | K128: 11 days | L128: 2014-06-23T08:00:25 | M128: 3 | N128: 1045796-Paul | O128: 0
A129: 104601 | B129: levaSafronov | C129: z | D129: Bronze | E129: Division Tassadar Sigma | F129: 4 | G129: 10 | H129: 132 | I129: 954 | J129: 2014-04-14 | K129: 52 days | L129: 2014-06-23T08:38:48 | M129: 10 | N129: 104601-levaSafronov | O129: 0
A130: 1046348 | B130: Wurzelbaron | C130: p | D130: Bronze | E130: Division Overseer Zed | F130: 0 | G130: 1 | H130: 0 | I130: 1058 | J130: 2014-04-24 | K130: 58 days | L130: 2014-06-23T10:08:36 | M130: 11 | N130: =A130&"-"&B130 -> 1046348-Wurzelbaron | O130: 0
A131: 1046459 | B131: Axel | C131: z | D131: Bronze | E131: Division Gorn Zed | F131: 1 | G131: 9 | H131: 30 | I131: 1043 | J131: 2014-04-17 | K131: 51 days | L131: 2014-06-23T09:33:33 | M131: 10 | N131: 1046459-Axel | O131: 0
A132: 1046905 | B132: Polbacsa | C132: t | D132: Bronze | E132: Division Scourge Delta | F132: 0 | G132: 1 | H132: 0 | I132: 1058 | J132: 2014-05-15 | K132: 37 days | L132: 2014-06-23T10:08:37 | M132: 11 | N132: 1046905-Polbacsa | O132: 0
A133: 1047261 | B133: EDwin | C133: p | D133: Bronze | E133: Division Halcyon Xi | F133: 3 | G133: 6 | H133: 30 | I133: 1029 | J133: 2014-05-25 | K133: 26 days | L133: 2014-06-23T09:33:34 | M133: 10 | N133: 1047261-EDwin | O133: 0
A134: 1047351 | B134: Cooler | C134: r | D134: Bronze | E134: Division Baneling Yankee | F134: 0 | G134: 2 | H134: 0 | I134: 1058 | J134: 2014-04-23 | K134: 4 days | L134: 2014-06-23T10:08:38 | M134: 11 | N134: 1047351-Cooler | O134: 0
A135: 1047357 | B135: Roninounet | C135: t | D135: Bronze | E135: Division Muadun Dixie | F135: 3 | G135: 5 | H135: 114 | I135: 978 | J135: 2014-04-20 | K135: 12 days | L135: 2014-06-23T08:43:38 | M135: 10 | N135: 1047357-Roninounet | O135: 0
A136: 1047706 | B136: klazc | C136: t | D136: Bronze | E136: Division Zasz Omicron | F136: 0 | G136: 1 | H136: 0 | I136: 1058 | J136: 2014-05-02 | K136: 50 days | L136: 2014-06-23T10:08:39 | M136: 11 | N136: 1047706-klazc | O136: 0
A137: 1047836 | B137: SemenT | C137: t | D137: Bronze | E137: Division Torrasque Psi | F137: 1 | G137: 6 | H137: 30 | I137: 1043 | J137: 2014-04-26 | K137: 54 days | L137: 2014-06-23T09:33:35 | M137: 10 | N137: 1047836-SemenT | O137: 0
A138: 1047837 | B138: Flagitio | C138: t | D138: Bronze | E138: Division Amerigo Oscar | F138: 0 | G138: 3 | H138: 0 | I138: 1058 | J138: 2014-04-16 | K138: 66 days | L138: 2014-06-23T10:08:40 | M138: 11 | N138: 1047837-Flagitio | O138: 0
A139: 1047981 | B139: MarKJekas | C139: r | D139: Bronze | E139: Division Hive Psi | F139: 4 | G139: 5 | H139: 108 | I139: 986 | J139: 2014-04-25 | K139: 55 days | L139: 2014-06-23T08:45:24 | M139: 10 | N139: 1047981-MarKJekas | O139: 0
A140: 1048585 | B140: MAZEN | C140: p | D140: Bronze | E140: Division Sakai Pi | F140: 13 | G140: 31 | H140: 357 | I140: 587 | J140: 2014-04-20 | K140: 8 days | L140: 2014-06-23T08:14:39 | M140: 6 | N140: 1048585-MAZEN | O140: 0
A141: 1048981 | B141: SantatheLoTR | C141: t | D141: Bronze | E141: Division Observer Kilo | F141: 0 | G141: 5 | H141: 0 | I141: 1058 | J141: 2014-04-21 | K141: 59 days | L141: 2014-06-23T10:08:41 | M141: 11 | N141: 1048981-SantatheLoTR | O141: 0
A142: 1049180 | B142: Hamder | C142: t | D142: Bronze | E142: Division Warbringer Xi | F142: 0 | G142: 1 | H142: 0 | I142: 1058 | J142: 2014-04-14 | K142: 67 days | L142: 2014-06-23T10:08:42 | M142: 11 | N142: 1049180-Hamder | O142: 0
A143: 1049624 | B143: Vergeture | C143: p | D143: Bronze | E143: Division Firebat Beta | F143: 0 | G143: 1 | H143: 0 | I143: 1058 | J143: 2014-04-16 | K143: 66 days | L143: 2014-06-23T10:08:43 | M143: 11 | N143: 1049624-Vergeture | O143: 0
A144: 1049823 | B144: Leonidas | C144: p | D144: Bronze | E144: Division Tal’darim Tau | F144: 2 | G144: 9 | H144: 30 | I144: 1032 | J144: 2014-05-26 | K144: 10 days | L144: 2014-06-23T09:33:35 | M144: 10 | N144: 1049823-Leonidas | O144: 0
A145: 1050502 | B145: Zionis | C145: r | D145: Bronze | E145: Division Arcturus Gamma | F145: 1 | G145: 3 | H145: 44 | I145: 1030 | J145: 2014-05-09 | K145: 43 days | L145: 2014-06-23T09:10:32 | M145: 10 | N145: 1050502-Zionis | O145: 0
A146: 1050781 | B146: nilmilda | C146: p | D146: Bronze | E146: Division Auriga Phi | F146: 0 | G146: 1 | H146: 0 | I146: 1058 | J146: 2014-04-21 | K146: 61 days | L146: 2014-06-23T10:08:44 | M146: 11 | N146: 1050781-nilmilda | O146: 0
A147: 1051413 | B147: Парамон | C147: p | D147: Bronze | E147: Division SCV Dixie | F147: 92 | G147: 86 | H147: 1117 | I147: 16 | J147: 2014-04-15 | K147: 7 hours | L147: 2014-06-23T07:53:08 | M147: 1 | N147: 1051413-Парамон | O147: 0
A148: 1051583 | B148: MONOLIT | C148: z | D148: Bronze | E148: Division Viking Bravo | F148: 1 | G148: 2 | H148: 0 | I148: 1058 | J148: 2014-06-11 | K148: 9 days | L148: 2014-06-23T10:08:45 | M148: 11 | N148: 1051583-MONOLIT | O148: 0
A149: 1051833 | B149: DonProm | C149: r | D149: Bronze | E149: Division Aldaris Juliet | F149: 2 | G149: 1 | H149: 62 | I149: 1027 | J149: 2014-04-16 | K149: 66 days | L149: 2014-06-23T09:04:10 | M149: 10 | N149: 1051833-DonProm | O149: 0
A150: 10528 | B150: Yashka | C150: p | D150: Bronze | E150: Division Templar Nu | F150: 0 | G150: 1 | H150: 0 | I150: 1058 | J150: 2014-04-24 | K150: 58 days | L150: 2014-06-23T09:42:15 | M150: 11 | N150: 10528-Yashka | O150: 0
A151: 1053839 | B151: LiquidPanda | C151: t | D151: Bronze | E151: Division Zealot Bravo | F151: 0 | G151: 1 | H151: 0 | I151: 1058 | J151: 2014-04-21 | K151: 61 days | L151: 2014-06-23T10:08:46 | M151: 11 | N151: 1053839-LiquidPanda | O151: 0
A152: 1054015 | B152: HoRuS | C152: r | D152: Bronze | E152: Division Kerrigan Mu | F152: 98 | G152: 105 | H152: 1181 | I152: 15 | J152: 2014-04-14 | K152: 5 hours | L152: 2014-06-23T07:51:13 | M152: 1 | N152: 1054015-HoRuS | O152: 0
A153: 1055319 | B153: Dorian | C153: z | D153: Bronze | E153: Division Daggoth Charlie | F153: 9 | G153: 12 | H153: 164 | I153: 906 | J153: 2014-04-14 | K153: 56 days | L153: 2014-06-23T08:32:40 | M153: 9 | N153: 1055319-Dorian | O153: 0
A154: 1055369 | B154: andrey | C154: p | D154: Bronze | E154: Division Norad Iota | F154: 0 | G154: 5 | H154: 0 | I154: 1058 | J154: 2014-04-14 | K154: 67 days | L154: 2014-06-23T10:08:47 | M154: 11 | N154: 1055369-andrey | O154: 0
A155: 1056315 | B155: Punitor | C155: t | D155: Bronze | E155: Division Overseer Zed | F155: 0 | G155: 2 | H155: 0 | I155: 1058 | J155: 2014-05-13 | K155: 6 days | L155: 2014-06-23T10:08:49 | M155: 11 | N155: 1056315-Punitor | O155: 0
A156: 1056484 | B156: JackONeill | C156: p | D156: Bronze | E156: Division Scourge Delta | F156: 0 | G156: 5 | H156: 0 | I156: 1058 | J156: 2014-04-22 | K156: 60 days | L156: 2014-06-23T10:08:50 | M156: 11 | N156: 1056484-JackONeill | O156: 0
A157: 1056507 | B157: vladislav | C157: z | D157: Bronze | E157: Division Bhekar Ro Iota | F157: 0 | G157: 3 | H157: 0 | I157: 1058 | J157: 2014-06-19 | K157: 2 days | L157: 2014-06-23T10:08:51 | M157: 11 | N157: 1056507-vladislav | O157: 0
A158: 1056592 | B158: Kratos | C158: p | D158: Bronze | E158: Division UED Foxtrot | F158: 1 | G158: 0 | H158: 0 | I158: 1058 | J158: 2014-04-19 | K158: 63 days | L158: 2014-06-23T10:08:52 | M158: 11 | N158: 1056592-Kratos | O158: 0
A159: 1057217 | B159: ELALGOR | C159: t | D159: Bronze | E159: Division Bucephalus Iota | F159: 35 | G159: 46 | H159: 1020 | I159: 29 | J159: 2014-05-23 | K159: 1 days | L159: 2014-06-23T07:56:51 | M159: 1 | N159: 1057217-ELALGOR | O159: 0
A160: 105734 | B160: KENT | C160: t | D160: Bronze | E160: Division Sargas Psi | F160: 0 | G160: 1 | H160: 0 | I160: 1058 | J160: 2014-06-14 | K160: 7 days | L160: 2014-06-23T09:43:48 | M160: 11 | N160: 105734-KENT | O160: 0
A161: 1057673 | B161: Valerius | C161: z | D161: Bronze | E161: Division Koronis Tango | F161: 3 | G161: 4 | H161: 64 | I161: 1026 | J161: 2014-06-17 | K161: 2 days | L161: 2014-06-23T09:03:08 | M161: 10 | N161: 1057673-Valerius | O161: 0
A162: 1058479 | B162: Witheredleaf | C162: z | D162: Bronze | E162: Division Meinhoff Nu | F162: 0 | G162: 1 | H162: 0 | I162: 1058 | J162: 2014-05-30 | K162: 22 days | L162: 2014-06-23T10:08:53 | M162: 11 | N162: 1058479-Witheredleaf | O162: 0
A163: 1058552 | B163: wirelezZ | C163: z | D163: Bronze | E163: Division Hartley Omega | F163: 0 | G163: 1 | H163: 0 | I163: 1058 | J163: 2014-04-20 | K163: 62 days | L163: 2014-06-23T10:08:54 | M163: 11 | N163: 1058552-wirelezZ | O163: 0
A164: 1058754 | B164: Kwosie | C164: z | D164: Bronze | E164: Division Torrasque Psi | F164: 1 | G164: 1 | H164: 40 | I164: 1038 | J164: 2014-06-10 | K164: 11 days | L164: 2014-06-23T09:15:03 | M164: 10 | N164: 1058754-Kwosie | O164: 0
A165: 1058917 | B165: Icebender | C165: p | D165: Bronze | E165: Division Scourge Delta | F165: 1 | G165: 6 | H165: 42 | I165: 1034 | J165: 2014-05-15 | K165: 25 days | L165: 2014-06-23T09:12:03 | M165: 10 | N165: 1058917-Icebender | O165: 0
A166: 1059401 | B166: djpolack | C166: p | D166: Bronze | E166: Division Kalathi Alamo | F166: 7 | G166: 6 | H166: 196 | I166: 911 | J166: 2014-04-15 | K166: 55 days | L166: 2014-06-23T08:27:59 | M166: 9 | N166: 1059401-djpolack | O166: 0
A167: 1059516 | B167: SpecialOne | C167: p | D167: Bronze | E167: Division Prelate Echo | F167: 1 | G167: 1 | H167: 0 | I167: 1058 | J167: 2014-04-15 | K167: 67 days | L167: 2014-06-23T10:08:55 | M167: 11 | N167: 1059516-SpecialOne | O167: 0
A168: 1059737 | B168: Rallyx | C168: z | D168: Bronze | E168: Division Marauder Sierra | F168: 1 | G168: 2 | H168: 36 | I168: 1040 | J168: 2014-05-08 | K168: 44 days | L168: 2014-06-23T09:24:03 | M168: 10 | N168: 1059737-Rallyx | O168: 0
A169: 1061042 | B169: SAWUUP | C169: z | D169: Bronze | E169: Division Koronis Tango | F169: 6 | G169: 9 | H169: 192 | I169: 911 | J169: 2014-04-27 | K169: 41 days | L169: 2014-06-23T08:28:26 | M169: 9 | N169: 1061042-SAWUUP | O169: 0
A170: 1062026 | B170: alCatraZ | C170: t | D170: Bronze | E170: Division Amerigo Oscar | F170: 1 | G170: 0 | H170: 0 | I170: 1058 | J170: 2014-04-16 | K170: 66 days | L170: 2014-06-23T10:08:56 | M170: 11 | N170: 1062026-alCatraZ | O170: 0
A171: 1062408 | B171: Mithlond | C171: t | D171: Bronze | E171: Division Araq Tango | F171: 1 | G171: 6 | H171: 44 | I171: 1035 | J171: 2014-04-23 | K171: 51 days | L171: 2014-06-23T09:10:33 | M171: 10 | N171: 1062408-Mithlond | O171: 0
A172: 1062807 | B172: UNAgamer | C172: t | D172: Bronze | E172: Division Rimes Lambda | F172: 1 | G172: 1 | H172: 32 | I172: 1042 | J172: 2014-04-25 | K172: 57 days | L172: 2014-06-23T09:30:07 | M172: 10 | N172: 1062807-UNAgamer | O172: 0
A173: 1062826 | B173: Leone | C173: p | D173: Bronze | E173: Division Shuttle Hawk | F173: 21 | G173: 27 | H173: 606 | I173: 509 | J173: 2014-04-15 | K173: 13 days | L173: 2014-06-23T08:05:49 | M173: 5 | N173: 1062826-Leone | O173: 0
A174: 1063030 | B174: FLY | C174: p | D174: Bronze | E174: Division Tabrenus Omega | F174: 1 | G174: 2 | H174: 0 | I174: 1058 | J174: 2014-04-26 | K174: 17 days | L174: 2014-06-23T10:08:57 | M174: 11 | N174: 1063030-FLY | O174: 0
A175: 1063088 | B175: sazonov | C175: t | D175: Bronze | E175: Division Uraj Omicron | F175: 0 | G175: 7 | H175: 0 | I175: 1058 | J175: 2014-04-15 | K175: 67 days | L175: 2014-06-23T10:08:58 | M175: 11 | N175: 1063088-sazonov | O175: 0
A176: 1063138 | B176: VanGloom | C176: p | D176: Bronze | E176: Division Marine November | F176: 1 | G176: 6 | H176: 36 | I176: 1012 | J176: 2014-06-16 | K176: 8 hours | L176: 2014-06-23T09:24:04 | M176: 10 | N176: 1063138-VanGloom | O176: 0
A177: 1063237 | B177: HopliTe | C177: t | D177: Bronze | E177: Division Vermillion Epsilon | F177: 0 | G177: 1 | H177: 0 | I177: 1058 | J177: 2014-04-17 | K177: 65 days | L177: 2014-06-23T10:08:59 | M177: 11 | N177: 1063237-HopliTe | O177: 0
A178: 1063280 | B178: Pavel | C178: z | D178: Bronze | E178: Division Nova Lima | F178: 11 | G178: 10 | H178: 294 | I178: 832 | J178: 2014-06-17 | K178: 3 hours | L178: 2014-06-23T08:18:23 | M178: 8 | N178: 1063280-Pavel | O178: 0
A179: 1063305 | B179: Terminator | C179: t | D179: Bronze | E179: Division Sakai Pi | F179: 1 | G179: 0 | H179: 0 | I179: 1058 | J179: 2014-04-20 | K179: 62 days | L179: 2014-06-23T10:09:00 | M179: 11 | N179: 1063305-Terminator | O179: 0
A180: 1063475 | B180: RoachKing | C180: z | D180: Bronze | E180: Division Corruptor Victor | F180: 1 | G180: 4 | H180: 30 | I180: 1039 | J180: 2014-04-18 | K180: 15 days | L180: 2014-06-23T09:33:36 | M180: 10 | N180: 1063475-RoachKing | O180: 0
A181: 1063496 | B181: abetoman | C181: p | D181: Bronze | E181: Division Raynor Alpha | F181: 0 | G181: 1 | H181: 0 | I181: 1058 | J181: 2014-04-19 | K181: 63 days | L181: 2014-06-23T10:09:01 | M181: 11 | N181: 1063496-abetoman | O181: 0
A182: 1063591 | B182: ZZoDo | C182: z | D182: Bronze | E182: Division Spectre Whiskey | F182: 0 | G182: 1 | H182: 0 | I182: 1058 | J182: 2014-04-14 | K182: 67 days | L182: 2014-06-23T10:09:02 | M182: 11 | N182: 1063591-ZZoDo | O182: 0
A183: 1063892 | B183: VLADiMIR | C183: r | D183: Bronze | E183: Division Shelak Uncle | F183: 7 | G183: 6 | H183: 154 | I183: 925 | J183: 2014-04-19 | K183: 2 days | L183: 2014-06-23T08:34:23 | M183: 9 | N183: 1063892-VLADiMIR | O183: 0
A184: 1064170 | B184: svaar | C184: z | D184: Bronze | E184: Division Defiler Sierra | F184: 4 | G184: 24 | H184: 142 | I184: 870 | J184: 2014-04-14 | K184: 7 days | L184: 2014-06-23T08:36:54 | M184: 9 | N184: 1064170-svaar | O184: 0
A185: 1064336 | B185: LastGeekHero | C185: p | D185: Bronze | E185: Division Thor Lambda | F185: 31 | G185: 24 | H185: 667 | I185: 504 | J185: 2014-04-14 | K185: 9 hours | L185: 2014-06-23T08:04:19 | M185: 5 | N185: 1064336-LastGeekHero | O185: 0
A186: 1064462 | B186: KenayaRawwwr | C186: z | D186: Bronze | E186: Division Shakuras Victor | F186: 56 | G186: 64 | H186: 1174 | I186: 0 | J186: 2014-05-05 | K186: 2 hours | L186: 2014-06-23T07:51:21 | M186: 1 | N186: 1064462-KenayaRawwwr | O186: 0
A187: 1064676 | B187: miles | C187: z | D187: Bronze | E187: Division Zerus Epsilon | F187: 0 | G187: 1 | H187: 0 | I187: 1058 | J187: 2014-04-24 | K187: 58 days | L187: 2014-06-23T10:09:03 | M187: 11 | N187: 1064676-miles | O187: 0
A188: 1064918 | B188: Cryptkiller | C188: t | D188: Bronze | E188: Division Boros Lima | F188: 0 | G188: 6 | H188: 0 | I188: 1058 | J188: 2014-04-30 | K188: 29 days | L188: 2014-06-23T10:09:04 | M188: 11 | N188: 1064918-Cryptkiller | O188: 0
A189: 1065102 | B189: OwlHunter | C189: z | D189: Bronze | E189: Division Warp Prism Sigma | F189: 7 | G189: 7 | H189: 216 | I189: 905 | J189: 2014-04-17 | K189: 53 days | L189: 2014-06-23T08:25:21 | M189: 9 | N189: 1065102-OwlHunter | O189: 0
A190: 106676 | B190: edwin | C190: z | D190: Bronze | E190: Division Lockwell Charlie | F190: 1 | G190: 0 | H190: 0 | I190: 1058 | J190: 2014-04-25 | K190: 57 days | L190: 2014-06-23T09:43:49 | M190: 11 | N190: 106676-edwin | O190: 0
A191: 1066783 | B191: DzuR | C191: z | D191: Bronze | E191: Division Turaxis Romeo | F191: 2 | G191: 5 | H191: 62 | I191: 1010 | J191: 2014-04-27 | K191: 22 days | L191: 2014-06-23T09:04:12 | M191: 10 | N191: 1066783-DzuR | O191: 0
A192: 1066913 | B192: Sweeper | C192: p | D192: Bronze | E192: Division Overseer Zed | F192: 1 | G192: 8 | H192: 32 | I192: 1028 | J192: 2014-04-24 | K192: 44 days | L192: 2014-06-23T09:30:08 | M192: 10 | N192: 1066913-Sweeper | O192: 0
A193: 1066963 | B193: Jonathan | C193: p | D193: Bronze | E193: Division Jorgensen November | F193: 1 | G193: 2 | H193: 38 | I193: 1036 | J193: 2014-04-16 | K193: 32 days | L193: 2014-06-23T09:18:44 | M193: 10 | N193: 1066963-Jonathan | O193: 0
A194: 1067044 | B194: Gonzo | C194: r | D194: Bronze | E194: Division Samiku X-Ray | F194: 9 | G194: 29 | H194: 292 | I194: 707 | J194: 2014-04-14 | K194: 5 days | L194: 2014-06-23T08:18:36 | M194: 7 | N194: =A194&"-"&B194 -> 1067044-Gonzo | O194: 0
A195: 1067601 | B195: ManGusTT | C195: t | D195: Bronze | E195: Division Typhon Chi | F195: 3 | G195: 2 | H195: 44 | I195: 1023 | J195: 2014-04-15 | K195: 67 days | L195: 2014-06-23T09:10:34 | M195: 10 | N195: 1067601-ManGusTT | O195: 0
A196: 1067980 | B196: Sengrev | C196: r | D196: Bronze | E196: Division Mutalisk Phi | F196: 16 | G196: 43 | H196: 547 | I196: 496 | J196: 2014-04-14 | K196: 21 days | L196: 2014-06-23T08:07:24 | M196: 5 | N196: 1067980-Sengrev | O196: 0
A197: 1068153 | B197: ClemsouZ | C197: r | D197: Bronze | E197: Division Corruptor Victor | F197: 4 | G197: 5 | H197: 130 | I197: 959 | J197: 2014-06-21 | K197: 12 hours | L197: 2014-06-23T08:39:14 | M197: 10 | N197: 1068153-ClemsouZ | O197: 0
A198: 1068723 | B198: Ejaay | C198: p | D198: Bronze | E198: Division Hyperion Indigo | F198: 0 | G198: 1 | H198: 0 | I198: 1058 | J198: 2014-04-18 | K198: 64 days | L198: 2014-06-23T10:09:05 | M198: 11 | N198: 1068723-Ejaay | O198: 0
A199: 1068814 | B199: Darkman | C199: t | D199: Bronze | E199: Division Zasz Omicron | F199: 1 | G199: 0 | H199: 0 | I199: 1058 | J199: 2014-05-01 | K199: 51 days | L199: 2014-06-23T10:09:06 | M199: 11 | N199: 1068814-Darkman | O199: 0
A200: 1069338 | B200: xxFAxxNORxx | C200: t | D200: Bronze | E200: Division Warp Prism Sigma | F200: 0 | G200: 1 | H200: 0 | I200: 1058 | J200: 2014-04-17 | K200: 65 days | L200: 2014-06-23T10:09:07 | M200: 11 | N200: 1069338-xxFAxxNORxx | O200: 0
... 4300 more rows

Sheet 1v1 Silver
A1: ID | B1: Name | C1: Race | D1: League | E1: Division | F1: Win | G1: Loss | H1: Score | I1: Bonus Pool Remaining | J1: Date Joined | K1: Last Game | L1: Timestamp | M1: Bonus Pool Weeks Remaining | N1: ID-Name | O1: Duplicate
A2: 1000170 | B2: Stark | C2: t | D2: Silver | E2: Division Argo Chi | F2: 13 | G2: 11 | H2: 290 | I2: 797 | J2: 2014-04-20 | K2: 23 days | L2: 2014-06-23T00:05:07 | M2: 8 | N2: =A2&"-"&B2 -> 1000170-Stark | O2: 0
A3: 1000244 | B3: voltra | C3: r | D3: Silver | E3: Division Argo Foxtrot | F3: 2 | G3: 10 | H3: 115 | I3: 1016 | J3: 2014-05-22 | K3: 30 days | L3: 2014-06-23T01:59:51 | M3: 10 | N3: 1000244-voltra | O3: 0
A4: 1000357 | B4: shepart | C4: p | D4: Silver | E4: Division Infestor Romeo | F4: 1 | G4: 5 | H4: 0 | I4: 1058 | J4: 2014-04-27 | K4: 54 days | L4: 2014-06-23T05:28:29 | M4: 11 | N4: 1000357-shepart | O4: 0
A5: 1000393 | B5: steve | C5: z | D5: Silver | E5: Division Tychus Pepper | F5: 0 | G5: 1 | H5: 0 | I5: 1058 | J5: 2014-05-31 | K5: 21 days | L5: 2014-06-23T05:28:30 | M5: 11 | N5: 1000393-steve | O5: 0
A6: 1000506 | B6: Valiante | C6: z | D6: Silver | E6: Division Lurker Beta | F6: 0 | G6: 3 | H6: 0 | I6: 1058 | J6: 2014-06-02 | K6: 15 days | L6: 2014-06-23T05:28:31 | M6: 11 | N6: 1000506-Valiante | O6: 0
A7: 1000520 | B7: RisingFenix | C7: t | D7: Silver | E7: Division Medivac Foxtrot | F7: 1 | G7: 4 | H7: 88 | I7: 1043 | J7: 2014-06-14 | K7: 7 days | L7: 2014-06-23T02:37:39 | M7: 10 | N7: 1000520-RisingFenix | O7: 0
A8: 1000529 | B8: VakaAtaka | C8: r | D8: Silver | E8: Division Prelate Echo | F8: 0 | G8: 1 | H8: 0 | I8: 1058 | J8: 2014-06-08 | K8: 13 days | L8: 2014-06-23T05:28:32 | M8: 11 | N8: 1000529-VakaAtaka | O8: 0
A9: 1000576 | B9: Titoune | C9: t | D9: Silver | E9: Division Lockwell Victor | F9: 4 | G9: 10 | H9: 154 | I9: 966 | J9: 2014-06-09 | K9: 7 days | L9: 2014-06-23T01:12:27 | M9: 10 | N9: 1000576-Titoune | O9: 0
A10: 1000588 | B10: ClOwN | C10: t | D10: Silver | E10: Division Prelate Gravity | F10: 0 | G10: 8 | H10: 0 | I10: 1058 | J10: 2014-05-09 | K10: 41 days | L10: 2014-06-23T05:28:34 | M10: 11 | N10: 1000588-ClOwN | O10: 0
A11: 1000597 | B11: Lèvatex | C11: p | D11: Silver | E11: Division Ulrezaj Chi | F11: 2 | G11: 1 | H11: 32 | I11: 1042 | J11: 2014-04-17 | K11: 17 days | L11: 2014-06-23T03:49:59 | M11: 10 | N11: 1000597-Lèvatex | O11: 0
A12: 1000606 | B12: Sampsa | C12: t | D12: Silver | E12: Division Scion Sigma | F12: 3 | G12: 4 | H12: 0 | I12: 1058 | J12: 2014-04-25 | K12: 55 days | L12: 2014-06-23T05:28:35 | M12: 11 | N12: 1000606-Sampsa | O12: 0
A13: 1000806 | B13: Wahn | C13: r | D13: Silver | E13: Division Auriga Tau | F13: 1 | G13: 1 | H13: 0 | I13: 1058 | J13: 2014-06-16 | K13: 5 days | L13: 2014-06-23T05:28:36 | M13: 11 | N13: 1000806-Wahn | O13: 0
A14: 1000811 | B14: AngelOfChaos | C14: t | D14: Silver | E14: Division Devourer Victor | F14: 6 | G14: 8 | H14: 150 | I14: 921 | J14: 2014-05-11 | K14: 33 days | L14: 2014-06-23T01:16:24 | M14: 9 | N14: 1000811-AngelOfChaos | O14: 0
A15: 1001044 | B15: Schnoob | C15: z | D15: Silver | E15: Division Khalis Echo | F15: 3 | G15: 1 | H15: 58 | I15: 1022 | J15: 2014-04-30 | K15: 43 days | L15: 2014-06-23T03:19:05 | M15: 10 | N15: 1001044-Schnoob | O15: 0
A16: 1001145 | B16: MrRoach | C16: p | D16: Silver | E16: Division Goliath Yankee | F16: 8 | G16: 16 | H16: 289 | I16: 763 | J16: 2014-04-15 | K16: 10 hours | L16: 2014-06-23T00:05:27 | M16: 8 | N16: 1001145-MrRoach | O16: 0
A17: 1002326 | B17: deadpool | C17: p | D17: Silver | E17: Division Meinhoff Romeo | F17: 12 | G17: 12 | H17: 200 | I17: 912 | J17: 2014-04-14 | K17: 60 days | L17: 2014-06-23T00:42:02 | M17: 9 | N17: 1002326-deadpool | O17: 0
A18: 1002594 | B18: EdMosher | C18: r | D18: Silver | E18: Division Zamara Beta | F18: 2 | G18: 4 | H18: 118 | I18: 989 | J18: 2014-04-15 | K18: 63 days | L18: 2014-06-23T01:55:30 | M18: 10 | N18: 1002594-EdMosher | O18: 0
A19: 1002672 | B19: HeinB | C19: t | D19: Silver | E19: Division Meinhoff Dixie | F19: 32 | G19: 24 | H19: 798 | I19: 309 | J19: 2014-06-09 | K19: 15 hours | L19: 2014-06-22T23:12:10 | M19: 3 | N19: 1002672-HeinB | O19: 0
A20: 1002716 | B20: Biclong | C20: t | D20: Silver | E20: Division Bucephalus Iota | F20: 0 | G20: 1 | H20: 0 | I20: 1058 | J20: 2014-05-22 | K20: 31 days | L20: 2014-06-23T05:28:37 | M20: 11 | N20: 1002716-Biclong | O20: 0
A21: 1002717 | B21: WollKnoll | C21: z | D21: Silver | E21: Division Scourge Victor | F21: 1 | G21: 0 | H21: 0 | I21: 1058 | J21: 2014-04-25 | K21: 57 days | L21: 2014-06-23T05:28:38 | M21: 11 | N21: 1002717-WollKnoll | O21: 0
A22: 1002821 | B22: TweekR | C22: t | D22: Silver | E22: Division Prelate Phi | F22: 1 | G22: 0 | H22: 0 | I22: 1058 | J22: 2014-04-21 | K22: 61 days | L22: 2014-06-23T05:28:39 | M22: 11 | N22: 1002821-TweekR | O22: 0
A23: 1003236 | B23: Zimmer | C23: p | D23: Silver | E23: Division Overmind Eta | F23: 1 | G23: 3 | H23: 32 | I23: 1042 | J23: 2014-05-09 | K23: 42 days | L23: 2014-06-23T03:50:00 | M23: 10 | N23: 1003236-Zimmer | O23: 0
A24: 1003979 | B24: moran | C24: t | D24: Silver | E24: Division Bucephalus Nu | F24: 1 | G24: 1 | H24: 0 | I24: 1058 | J24: 2014-06-17 | K24: 4 days | L24: 2014-06-23T05:28:40 | M24: 11 | N24: 1003979-moran | O24: 0
A25: 1004052 | B25: Spider | C25: r | D25: Silver | E25: Division Prelate Echo | F25: 2 | G25: 4 | H25: 123 | I25: 995 | J25: 2014-05-17 | K25: 32 days | L25: 2014-06-23T01:48:34 | M25: 10 | N25: 1004052-Spider | O25: 0
A26: 1004284 | B26: Timbo | C26: t | D26: Silver | E26: Division Devourer Nu | F26: 2 | G26: 6 | H26: 30 | I26: 1032 | J26: 2014-05-23 | K26: 26 days | L26: 2014-06-23T04:10:24 | M26: 10 | N26: 1004284-Timbo | O26: 0
A27: 1004467 | B27: Hélia | C27: z | D27: Silver | E27: Division Rimes Tau | F27: 1 | G27: 2 | H27: 0 | I27: 1058 | J27: 2014-06-12 | K27: 6 days | L27: 2014-06-23T05:28:40 | M27: 11 | N27: 1004467-Hélia | O27: 0
A28: 1004585 | B28: Zakath | C28: p | D28: Silver | E28: Division Nahaan Mu | F28: 1 | G28: 2 | H28: 0 | I28: 1058 | J28: 2014-04-30 | K28: 51 days | L28: 2014-06-23T05:28:42 | M28: 11 | N28: 1004585-Zakath | O28: 0
A29: 100484 | B29: Zuzelbekker | C29: p | D29: Silver | E29: Division Dylar Tango | F29: 3 | G29: 4 | H29: 162 | I29: 956 | J29: 2014-04-26 | K29: 14 days | L29: 2014-06-23T01:05:45 | M29: 10 | N29: 100484-Zuzelbekker | O29: 0
A30: 1004984 | B30: Oric | C30: z | D30: Silver | E30: Division Overmind Uncle | F30: 35 | G30: 50 | H30: 108 | I30: 925 | J30: 2014-04-13 | K30: 61 days | L30: 2014-06-23T02:06:26 | M30: 9 | N30: 1004984-Oric | O30: 0
A31: 1005011 | B31: lix | C31: z | D31: Silver | E31: Division Talematros Hawk | F31: 2 | G31: 0 | H31: 30 | I31: 1043 | J31: 2014-04-25 | K31: 54 days | L31: 2014-06-23T04:10:25 | M31: 10 | N31: 1005011-lix | O31: 0
A32: 1005131 | B32: Deliriumc | C32: p | D32: Silver | E32: Division Prelate Delta | F32: 2 | G32: 0 | H32: 32 | I32: 1042 | J32: 2014-05-09 | K32: 43 days | L32: 2014-06-23T03:50:01 | M32: 10 | N32: 1005131-Deliriumc | O32: 0
A33: 1005200 | B33: Yukio | C33: r | D33: Silver | E33: Division Tabrenus Indigo | F33: 15 | G33: 13 | H33: 292 | I33: 823 | J33: 2014-04-17 | K33: 54 days | L33: 2014-06-23T00:04:38 | M33: 8 | N33: 1005200-Yukio | O33: 0
A34: 1005310 | B34: Soren | C34: t | D34: Silver | E34: Division Bucephalus Theta | F34: 1 | G34: 0 | H34: 0 | I34: 1058 | J34: 2014-04-15 | K34: 67 days | L34: 2014-06-23T05:28:43 | M34: 11 | N34: 1005310-Soren | O34: 0
A35: 1005394 | B35: OLEG | C35: z | D35: Silver | E35: Division Braken Delta | F35: 1 | G35: 1 | H35: 91 | I35: 1040 | J35: 2014-05-02 | K35: 50 days | L35: 2014-06-23T02:31:18 | M35: 10 | N35: 1005394-OLEG | O35: 0
A36: 1005745 | B36: YMaster | C36: z | D36: Silver | E36: Division Talematros Pi | F36: 3 | G36: 3 | H36: 117 | I36: 992 | J36: 2014-05-02 | K36: 44 days | L36: 2014-06-23T01:57:14 | M36: 10 | N36: 1005745-YMaster | O36: 0
A37: 1005859 | B37: Neiyl | C37: p | D37: Silver | E37: Division Auriga X-Ray | F37: 3 | G37: 0 | H37: 30 | I37: 1043 | J37: 2014-05-09 | K37: 43 days | L37: 2014-06-23T04:10:26 | M37: 10 | N37: 1005859-Neiyl | O37: 0
A38: 100591 | B38: Fistashca | C38: r | D38: Silver | E38: Division Goliath Whiskey | F38: 2 | G38: 0 | H38: 30 | I38: 1043 | J38: 2014-04-16 | K38: 66 days | L38: 2014-06-23T04:00:41 | M38: 10 | N38: 100591-Fistashca | O38: 0
A39: 1005951 | B39: SHimmer | C39: z | D39: Silver | E39: Division Dylar Tango | F39: 2 | G39: 2 | H39: 60 | I39: 1022 | J39: 2014-06-20 | K39: 5 hours | L39: 2014-06-23T03:10:04 | M39: 10 | N39: 1005951-SHimmer | O39: 0
A40: 1005954 | B40: Cíbanz | C40: t | D40: Silver | E40: Division Antioch Echo | F40: 1 | G40: 0 | H40: 0 | I40: 1058 | J40: 2014-04-28 | K40: 54 days | L40: 2014-06-23T05:28:44 | M40: 11 | N40: 1005954-Cíbanz | O40: 0
A41: 1006313 | B41: AriG | C41: t | D41: Silver | E41: Division Warp Prism November | F41: 1 | G41: 3 | H41: 0 | I41: 1058 | J41: 2014-06-06 | K41: 1 hours | L41: 2014-06-23T05:28:45 | M41: 11 | N41: 1006313-AriG | O41: 0
A42: 1006491 | B42: OlegionUA | C42: r | D42: Silver | E42: Division Auriga Alpha | F42: 1 | G42: 0 | H42: 0 | I42: 1058 | J42: 2014-05-22 | K42: 30 days | L42: 2014-06-23T05:28:46 | M42: 11 | N42: 1006491-OlegionUA | O42: 0
A43: 1006504 | B43: Marloon | C43: t | D43: Silver | E43: Division Halcyon Uncle | F43: 1 | G43: 2 | H43: 32 | I43: 1042 | J43: 2014-06-18 | K43: 1 days | L43: 2014-06-23T03:50:02 | M43: 10 | N43: 1006504-Marloon | O43: 0
A44: 1006778 | B44: Eestigamer | C44: z | D44: Silver | E44: Division Templar Zeta | F44: 14 | G44: 13 | H44: 395 | I44: 752 | J44: 2014-05-09 | K44: 27 days | L44: 2014-06-22T23:42:06 | M44: 8 | N44: 1006778-Eestigamer | O44: 0
A45: 1007057 | B45: Warmonkey | C45: p | D45: Silver | E45: Division Immortal Quest | F45: 0 | G45: 1 | H45: 0 | I45: 1058 | J45: 2014-05-29 | K45: 23 days | L45: 2014-06-23T05:28:47 | M45: 11 | N45: 1007057-Warmonkey | O45: 0
A46: 1007250 | B46: AlterNative | C46: z | D46: Silver | E46: Division Goliath November | F46: 5 | G46: 10 | H46: 152 | I46: 907 | J46: 2014-06-03 | K46: 14 days | L46: 2014-06-23T01:13:58 | M46: 9 | N46: 1007250-AlterNative | O46: 0
A47: 10075 | B47: SoulMaker | C47: r | D47: Silver | E47: Division Khalis Iota | F47: 1 | G47: 7 | H47: 30 | I47: 1043 | J47: 2014-05-22 | K47: 10 days | L47: 2014-06-23T04:00:17 | M47: 10 | N47: 10075-SoulMaker | O47: 0
A48: 1007939 | B48: Naoda | C48: p | D48: Silver | E48: Division Khalis Echo | F48: 11 | G48: 6 | H48: 282 | I48: 845 | J48: 2014-04-30 | K48: 51 days | L48: 2014-06-23T00:07:32 | M48: 9 | N48: 1007939-Naoda | O48: 0
A49: 1007954 | B49: ElinaX | C49: p | D49: Silver | E49: Division Talematros Yankee | F49: 5 | G49: 13 | H49: 189 | I49: 909 | J49: 2014-05-17 | K49: 10 days | L49: 2014-06-23T00:48:21 | M49: 9 | N49: 1007954-ElinaX | O49: 0
A50: 1008000 | B50: Kerrigan | C50: r | D50: Silver | E50: Division Auriga Mu | F50: 18 | G50: 27 | H50: 428 | I50: 598 | J50: 2014-05-05 | K50: 17 days | L50: 2014-06-22T23:37:41 | M50: 6 | N50: 1008000-Kerrigan | O50: 0
A51: 1008011 | B51: Whiplash | C51: t | D51: Silver | E51: Division Argo Pepper | F51: 1 | G51: 3 | H51: 94 | I51: 1030 | J51: 2014-05-09 | K51: 2 days | L51: 2014-06-23T02:18:21 | M51: 10 | N51: 1008011-Whiplash | O51: 0
A52: 100810 | B52: assault | C52: z | D52: Silver | E52: Division Devourer Delta | F52: 2 | G52: 0 | H52: 30 | I52: 1043 | J52: 2014-04-26 | K52: 56 days | L52: 2014-06-23T04:00:43 | M52: 10 | N52: 100810-assault | O52: 0
A53: 1008153 | B53: Kevin | C53: p | D53: Silver | E53: Division Argo Foxtrot | F53: 4 | G53: 5 | H53: 86 | I53: 976 | J53: 2014-04-18 | K53: 40 days | L53: 2014-06-23T02:40:45 | M53: 10 | N53: 1008153-Kevin | O53: 0
A54: 1008154 | B54: coma | C54: t | D54: Silver | E54: Division Devourer Iota | F54: 10 | G54: 12 | H54: 154 | I54: 944 | J54: 2014-04-14 | K54: 62 days | L54: 2014-06-23T01:12:28 | M54: 10 | N54: 1008154-coma | O54: 0
A55: 1008365 | B55: Jeff | C55: r | D55: Silver | E55: Division Scourge Iota | F55: 2 | G55: 1 | H55: 30 | I55: 1043 | J55: 2014-04-29 | K55: 53 days | L55: 2014-06-23T04:10:27 | M55: 10 | N55: 1008365-Jeff | O55: 0
A56: 1008497 | B56: KRASAN | C56: t | D56: Silver | E56: Division Bhekar Ro Xi | F56: 0 | G56: 5 | H56: 0 | I56: 1058 | J56: 2014-05-18 | K56: 19 days | L56: 2014-06-23T05:28:49 | M56: 11 | N56: 1008497-KRASAN | O56: 0
A57: 1008711 | B57: Soder | C57: t | D57: Silver | E57: Division Braken Delta | F57: 1 | G57: 1 | H57: 30 | I57: 1033 | J57: 2014-06-15 | K57: 6 days | L57: 2014-06-23T04:10:28 | M57: 10 | N57: 1008711-Soder | O57: 0
A58: 1009036 | B58: Milk | C58: p | D58: Silver | E58: Division Khalis Delta | F58: 2 | G58: 0 | H58: 30 | I58: 1043 | J58: 2014-04-20 | K58: 21 days | L58: 2014-06-23T04:10:29 | M58: 10 | N58: 1009036-Milk | O58: 0
A59: 1009087 | B59: Hiigara | C59: p | D59: Silver | E59: Division Tychus Indigo | F59: 2 | G59: 3 | H59: 58 | I59: 1018 | J59: 2014-04-15 | K59: 60 days | L59: 2014-06-23T03:19:06 | M59: 10 | N59: 1009087-Hiigara | O59: 0
A60: 1009109 | B60: Vincent | C60: t | D60: Silver | E60: Division Bhekar Ro Xi | F60: 0 | G60: 4 | H60: 0 | I60: 801 | J60: 2014-05-29 | K60: 23 days | L60: 2014-06-22T21:13:33 | M60: 8 | N60: 1009109-Vincent | O60: 0
A61: 1009285 | B61: CeDruS | C61: t | D61: Silver | E61: Division Hierarch Romeo | F61: 1 | G61: 2 | H61: 32 | I61: 1033 | J61: 2014-06-03 | K61: 5 days | L61: 2014-06-23T03:50:03 | M61: 10 | N61: 1009285-CeDruS | O61: 0
A62: 1009726 | B62: SirEndor | C62: t | D62: Silver | E62: Division Bucephalus Alamo | F62: 24 | G62: 16 | H62: 244 | I62: 945 | J62: 2014-04-14 | K62: 32 days | L62: 2014-06-23T00:20:56 | M62: 10 | N62: 1009726-SirEndor | O62: 0
A63: 1009846 | B63: FunnyBanana | C63: z | D63: Silver | E63: Division Immortal Quest | F63: 1 | G63: 0 | H63: 0 | I63: 1058 | J63: 2014-05-07 | K63: 45 days | L63: 2014-06-23T05:28:50 | M63: 11 | N63: 1009846-FunnyBanana | O63: 0
A64: 1009918 | B64: Rammler | C64: p | D64: Silver | E64: Division Taarim Kappa | F64: 3 | G64: 10 | H64: 61 | I64: 1009 | J64: 2014-04-14 | K64: 65 days | L64: 2014-06-23T03:07:33 | M64: 10 | N64: 1009918-Rammler | O64: 0
A65: 1009930 | B65: roar | C65: p | D65: Silver | E65: Division Leviathan Theta | F65: 1 | G65: 1 | H65: 32 | I65: 1007 | J65: 2014-05-04 | K65: 48 days | L65: 2014-06-23T03:50:04 | M65: 10 | N65: 1009930-roar | O65: 0
A66: 1010003 | B66: AlucarD | C66: r | D66: Silver | E66: Division Tabrenus Tango | F66: 1 | G66: 2 | H66: 94 | I66: 1037 | J66: 2014-05-24 | K66: 28 days | L66: 2014-06-23T02:18:22 | M66: 10 | N66: =A66&"-"&B66 -> 1010003-AlucarD | O66: 0
A67: 1010116 | B67: Ainhorr | C67: z | D67: Silver | E67: Division Liberty Rho | F67: 2 | G67: 2 | H67: 46 | I67: 1035 | J67: 2014-05-21 | K67: 25 days | L67: 2014-06-23T03:26:37 | M67: 10 | N67: 1010116-Ainhorr | O67: 0
A68: 1010212 | B68: Rolfey | C68: p | D68: Silver | E68: Division Antioch Upsilon | F68: 1 | G68: 2 | H68: 0 | I68: 1058 | J68: 2014-04-25 | K68: 54 days | L68: 2014-06-23T05:28:51 | M68: 11 | N68: 1010212-Rolfey | O68: 0
A69: 1010381 | B69: Deprecator | C69: r | D69: Silver | E69: Division Devourer Charlie | F69: 0 | G69: 1 | H69: 0 | I69: 1058 | J69: 2014-05-02 | K69: 50 days | L69: 2014-06-23T05:28:52 | M69: 11 | N69: 1010381-Deprecator | O69: 0
A70: 1010500 | B70: Kalumbina | C70: p | D70: Silver | E70: Division Scion Theta | F70: 14 | G70: 1 | H70: 302 | I70: 920 | J70: 2014-04-14 | K70: 57 days | L70: 2014-06-23T00:01:33 | M70: 9 | N70: 1010500-Kalumbina | O70: 0
A71: 1010593 | B71: herousson | C71: p | D71: Silver | E71: Division Infestor Bravo | F71: 0 | G71: 1 | H71: 0 | I71: 1058 | J71: 2014-04-19 | K71: 63 days | L71: 2014-06-23T05:28:53 | M71: 11 | N71: 1010593-herousson | O71: 0
A72: 1010701 | B72: GrandMéchant | C72: z | D72: Silver | E72: Division Braken Xi | F72: 3 | G72: 3 | H72: 134 | I72: 1004 | J72: 2014-04-18 | K72: 2 days | L72: 2014-06-23T01:38:29 | M72: 10 | N72: 1010701-GrandMéchant | O72: 0
A73: 1010736 | B73: SNiPeR | C73: p | D73: Silver | E73: Division Ulrezaj Foxtrot | F73: 1 | G73: 3 | H73: 0 | I73: 1058 | J73: 2014-04-15 | K73: 67 days | L73: 2014-06-23T05:28:54 | M73: 11 | N73: 1010736-SNiPeR | O73: 0
A74: 1010775 | B74: Dharkus | C74: p | D74: Silver | E74: Division Akilae Hawk | F74: 1 | G74: 9 | H74: 0 | I74: 1058 | J74: 2014-05-31 | K74: 20 days | L74: 2014-06-23T05:28:55 | M74: 11 | N74: 1010775-Dharkus | O74: 0
A75: 1010906 | B75: gulldan | C75: p | D75: Silver | E75: Division Tabrenus Uncle | F75: 1 | G75: 1 | H75: 34 | I75: 1041 | J75: 2014-05-26 | K75: 25 days | L75: 2014-06-23T03:41:41 | M75: 10 | N75: 1010906-gulldan | O75: 0
A76: 10110 | B76: IIIIIIIIIIII | C76: t | D76: Silver | E76: Division Akilae Whiskey | F76: 0 | G76: 1 | H76: 0 | I76: 1058 | J76: 2014-04-14 | K76: 67 days | L76: 2014-06-23T04:38:14 | M76: 11 | N76: 10110-IIIIIIIIIIII | O76: 0
A77: 1011218 | B77: Chaotic | C77: z | D77: Silver | E77: Division Taarim Kappa | F77: 2 | G77: 1 | H77: 30 | I77: 1043 | J77: 2014-04-20 | K77: 62 days | L77: 2014-06-23T04:10:30 | M77: 10 | N77: 1011218-Chaotic | O77: 0
A78: 1011306 | B78: IceTea | C78: p | D78: Silver | E78: Division Shakuras Epsilon | F78: 35 | G78: 48 | H78: 996 | I78: 113 | J78: 2014-05-26 | K78: 2 days | L78: 2014-06-22T23:03:20 | M78: 2 | N78: 1011306-IceTea | O78: 0
A79: 1011313 | B79: Urgak | C79: t | D79: Silver | E79: Division Tabrenus Foxtrot | F79: 1 | G79: 0 | H79: 0 | I79: 1058 | J79: 2014-04-14 | K79: 67 days | L79: 2014-06-23T05:28:56 | M79: 11 | N79: 1011313-Urgak | O79: 0
A80: 101184 | B80: StarScream | C80: t | D80: Silver | E80: Division Medivac Foxtrot | F80: 6 | G80: 9 | H80: 144 | I80: 947 | J80: 2014-06-15 | K80: 19 hours | L80: 2014-06-23T01:23:12 | M80: 10 | N80: 101184-StarScream | O80: 0
A81: 1011916 | B81: VINS | C81: p | D81: Silver | E81: Division Devourer Nu | F81: 5 | G81: 6 | H81: 124 | I81: 944 | J81: 2014-04-22 | K81: 18 days | L81: 2014-06-23T01:46:52 | M81: 10 | N81: 1011916-VINS | O81: 0
A82: 1012110 | B82: Skynet | C82: p | D82: Silver | E82: Division Rimes Alpha | F82: 7 | G82: 6 | H82: 239 | I82: 906 | J82: 2014-06-21 | K82: 8 hours | L82: 2014-06-23T00:23:13 | M82: 9 | N82: 1012110-Skynet | O82: 0
A83: 1012265 | B83: FAckeL | C83: r | D83: Silver | E83: Division Prelate Charlie | F83: 13 | G83: 25 | H83: 406 | I83: 660 | J83: 2014-05-27 | K83: 11 hours | L83: 2014-06-22T23:40:33 | M83: 7 | N83: 1012265-FAckeL | O83: 0
A84: 1012274 | B84: Дмитрич | C84: p | D84: Silver | E84: Division Tabrenus Chi | F84: 5 | G84: 8 | H84: 55 | I84: 1018 | J84: 2014-04-15 | K84: 67 days | L84: 2014-06-23T03:23:52 | M84: 10 | N84: 1012274-Дмитрич | O84: 0
A85: 1012317 | B85: Sinbad | C85: t | D85: Silver | E85: Division Leviathan Alamo | F85: 11 | G85: 29 | H85: 364 | I85: 650 | J85: 2014-05-19 | K85: 4 days | L85: 2014-06-22T23:46:52 | M85: 7 | N85: 1012317-Sinbad | O85: 0
A86: 1012398 | B86: VanCleef | C86: p | D86: Silver | E86: Division Argo Eta | F86: 2 | G86: 2 | H86: 58 | I86: 1020 | J86: 2014-06-21 | K86: 14 hours | L86: 2014-06-23T03:19:08 | M86: 10 | N86: 1012398-VanCleef | O86: 0
A87: 101257 | B87: nikki | C87: p | D87: Silver | E87: Division Prelate Lambda | F87: 1 | G87: 3 | H87: 32 | I87: 1042 | J87: 2014-06-13 | K87: 8 days | L87: 2014-06-23T03:46:09 | M87: 10 | N87: 101257-nikki | O87: 0
A88: 1012627 | B88: nevan | C88: p | D88: Silver | E88: Division Auriga Mu | F88: 2 | G88: 19 | H88: 32 | I88: 911 | J88: 2014-05-24 | K88: 14 days | L88: 2014-06-23T03:50:05 | M88: 9 | N88: 1012627-nevan | O88: 0
A89: 1012651 | B89: Angelius | C89: p | D89: Silver | E89: Division Kaloth Alamo | F89: 2 | G89: 0 | H89: 30 | I89: 1043 | J89: 2014-04-21 | K89: 61 days | L89: 2014-06-23T04:10:31 | M89: 10 | N89: 1012651-Angelius | O89: 0
A90: 1012752 | B90: Schwarm | C90: t | D90: Silver | E90: Division Infestor Bravo | F90: 1 | G90: 1 | H90: 0 | I90: 1058 | J90: 2014-04-19 | K90: 63 days | L90: 2014-06-23T05:28:57 | M90: 11 | N90: 1012752-Schwarm | O90: 0
A91: 1012829 | B91: Snask | C91: z | D91: Silver | E91: Division Tychus Chi | F91: 3 | G91: 2 | H91: 60 | I91: 1017 | J91: 2014-04-18 | K91: 23 days | L91: 2014-06-23T03:10:05 | M91: 10 | N91: 1012829-Snask | O91: 0
A92: 1013003 | B92: TheGhostDog | C92: z | D92: Silver | E92: Division Hierarch Omicron | F92: 2 | G92: 3 | H92: 62 | I92: 1011 | J92: 2014-05-06 | K92: 41 days | L92: 2014-06-23T03:02:02 | M92: 10 | N92: 1013003-TheGhostDog | O92: 0
A93: 1013039 | B93: Trackermanbg | C93: t | D93: Silver | E93: Division Liberty Rho | F93: 42 | G93: 42 | H93: 1123 | I93: 40 | J93: 2014-05-03 | K93: 10 hours | L93: 2014-06-22T22:53:28 | M93: 1 | N93: 1013039-Trackermanbg | O93: 0
A94: 1013607 | B94: Boghi | C94: t | D94: Silver | E94: Division Scourge Theta | F94: 12 | G94: 11 | H94: 317 | I94: 791 | J94: 2014-04-20 | K94: 34 days | L94: 2014-06-22T23:57:34 | M94: 8 | N94: 1013607-Boghi | O94: 0
A95: 1013801 | B95: Brainstorm | C95: t | D95: Silver | E95: Division Nahaan Alpha | F95: 0 | G95: 5 | H95: 0 | I95: 1058 | J95: 2014-06-11 | K95: 3 days | L95: 2014-06-23T05:28:58 | M95: 11 | N95: 1013801-Brainstorm | O95: 0
A96: 1014073 | B96: nsd | C96: p | D96: Silver | E96: Division Auriga X-Ray | F96: 27 | G96: 44 | H96: 659 | I96: 423 | J96: 2014-05-01 | K96: 5 days | L96: 2014-06-22T23:18:47 | M96: 5 | N96: 1014073-nsd | O96: 0
A97: 1014091 | B97: sSs | C97: z | D97: Silver | E97: Division Tychus Tango | F97: 3 | G97: 10 | H97: 64 | I97: 944 | J97: 2014-04-22 | K97: 4 days | L97: 2014-06-23T02:56:56 | M97: 10 | N97: 1014091-sSs | O97: 0
A98: 1014291 | B98: анис | C98: t | D98: Silver | E98: Division Warp Prism November | F98: 5 | G98: 16 | H98: 210 | I98: 829 | J98: 2014-06-03 | K98: 8 days | L98: 2014-06-23T00:36:46 | M98: 8 | N98: 1014291-анис | O98: 0
A99: 1014462 | B99: Sim | C99: t | D99: Silver | E99: Division Tabrenus Uncle | F99: 1 | G99: 11 | H99: 95 | I99: 1009 | J99: 2014-05-07 | K99: 44 days | L99: 2014-06-23T02:16:15 | M99: 10 | N99: 1014462-Sim | O99: 0
A100: 1014467 | B100: Süns | C100: t | D100: Silver | E100: Division Shakuras Zeta | F100: 1 | G100: 1 | H100: 0 | I100: 1058 | J100: 2014-05-15 | K100: 37 days | L100: 2014-06-23T05:29:00 | M100: 11 | N100: 1014467-Süns | O100: 0
A101: 1014632 | B101: AkkmaN | C101: t | D101: Silver | E101: Division Tychus Yankee | F101: 0 | G101: 1 | H101: 0 | I101: 1058 | J101: 2014-06-09 | K101: 12 days | L101: 2014-06-23T05:29:01 | M101: 11 | N101: 1014632-AkkmaN | O101: 0
A102: 1014839 | B102: playfreak | C102: p | D102: Silver | E102: Division Infestor Romeo | F102: 1 | G102: 1 | H102: 0 | I102: 1058 | J102: 2014-04-27 | K102: 55 days | L102: 2014-06-23T05:29:02 | M102: 11 | N102: 1014839-playfreak | O102: 0
A103: 1014911 | B103: MACHOMAN | C103: t | D103: Silver | E103: Division Halcyon Indigo | F103: 5 | G103: 10 | H103: 226 | I103: 805 | J103: 2014-06-08 | K103: 3 days | L103: 2014-06-23T00:29:23 | M103: 8 | N103: 1014911-MACHOMAN | O103: 0
A104: 1015263 | B104: been | C104: p | D104: Silver | E104: Division Lurker Bravo | F104: 0 | G104: 1 | H104: 0 | I104: 1058 | J104: 2014-04-23 | K104: 59 days | L104: 2014-06-23T05:29:03 | M104: 11 | N104: 1015263-been | O104: 0
A105: 1015411 | B105: TheWincH | C105: r | D105: Silver | E105: Division Dylar November | F105: 1 | G105: 5 | H105: 0 | I105: 1058 | J105: 2014-04-21 | K105: 61 days | L105: 2014-06-23T05:29:05 | M105: 11 | N105: 1015411-TheWincH | O105: 0
A106: 1015575 | B106: PaFǂSalysa | C106: t | D106: Silver | E106: Division Bucephalus Alamo | F106: 0 | G106: 1 | H106: 0 | I106: 1058 | J106: 2014-05-24 | K106: 28 days | L106: 2014-06-23T05:29:06 | M106: 11 | N106: 1015575-PaFǂSalysa | O106: 0
A107: 1015778 | B107: Dungoen | C107: t | D107: Silver | E107: Division Tabrenus Zed | F107: 0 | G107: 12 | H107: 0 | I107: 1058 | J107: 2014-06-05 | K107: 2 days | L107: 2014-06-23T05:29:07 | M107: 11 | N107: 1015778-Dungoen | O107: 0
A108: 1016012 | B108: Gizmo | C108: p | D108: Silver | E108: Division Infestor Sierra | F108: 5 | G108: 6 | H108: 185 | I108: 934 | J108: 2014-04-24 | K108: 2 days | L108: 2014-06-23T00:50:53 | M108: 9 | N108: 1016012-Gizmo | O108: 0
A109: 1016047 | B109: Metafrost | C109: t | D109: Silver | E109: Division Umoja Zeta | F109: 1 | G109: 1 | H109: 30 | I109: 1043 | J109: 2014-06-07 | K109: 13 days | L109: 2014-06-23T04:10:32 | M109: 10 | N109: 1016047-Metafrost | O109: 0
A110: 101652 | B110: DonaldDark | C110: r | D110: Silver | E110: Division Lurker Epsilon | F110: 0 | G110: 1 | H110: 0 | I110: 1058 | J110: 2014-05-08 | K110: 44 days | L110: 2014-06-23T04:40:35 | M110: 11 | N110: 101652-DonaldDark | O110: 0
A111: 1016558 | B111: VÐQ | C111: z | D111: Silver | E111: Division Khalis Omega | F111: 1 | G111: 1 | H111: 32 | I111: 1042 | J111: 2014-06-02 | K111: 16 days | L111: 2014-06-23T03:50:06 | M111: 10 | N111: 1016558-VÐQ | O111: 0
A112: 1017049 | B112: Sean | C112: t | D112: Silver | E112: Division Scout Kilo | F112: 3 | G112: 12 | H112: 72 | I112: 943 | J112: 2014-05-03 | K112: 4 days | L112: 2014-06-23T02:48:18 | M112: 10 | N112: 1017049-Sean | O112: 0
A113: 1017085 | B113: agravène | C113: r | D113: Silver | E113: Division Tabrenus November | F113: 1 | G113: 1 | H113: 94 | I113: 1037 | J113: 2014-06-22 | K113: 20 minutes | L113: 2014-06-23T02:18:23 | M113: 10 | N113: 1017085-agravène | O113: 0
A114: 1017193 | B114: Morpheus | C114: r | D114: Silver | E114: Division Overmind Zed | F114: 0 | G114: 1 | H114: 0 | I114: 1058 | J114: 2014-06-07 | K114: 14 days | L114: 2014-06-23T05:29:08 | M114: 11 | N114: 1017193-Morpheus | O114: 0
A115: 1017314 | B115: kaïus | C115: t | D115: Silver | E115: Division Rimes Zeta | F115: 36 | G115: 52 | H115: 1076 | I115: 3 | J115: 2014-05-04 | K115: 2 hours | L115: 2014-06-22T22:57:55 | M115: 1 | N115: 1017314-kaïus | O115: 0
A116: 1017347 | B116: oTwPrOjEcT | C116: t | D116: Silver | E116: Division Overmind Tango | F116: 1 | G116: 0 | H116: 0 | I116: 1058 | J116: 2014-05-17 | K116: 35 days | L116: 2014-06-23T05:29:10 | M116: 11 | N116: 1017347-oTwPrOjEcT | O116: 0
A117: 1017349 | B117: Lasgun | C117: z | D117: Silver | E117: Division Scout Dixie | F117: 0 | G117: 3 | H117: 0 | I117: 1058 | J117: 2014-06-10 | K117: 10 days | L117: 2014-06-23T05:29:11 | M117: 11 | N117: 1017349-Lasgun | O117: 0
A118: 1017615 | B118: Karles | C118: t | D118: Silver | E118: Division Prelate Sigma | F118: 5 | G118: 4 | H118: 178 | I118: 942 | J118: 2014-04-19 | K118: 1 days | L118: 2014-06-23T00:55:17 | M118: 10 | N118: 1017615-Karles | O118: 0
A119: 1018053 | B119: Mortred | C119: z | D119: Silver | E119: Division Infestor Mu | F119: 14 | G119: 15 | H119: 384 | I119: 768 | J119: 2014-04-14 | K119: 9 days | L119: 2014-06-22T23:43:50 | M119: 8 | N119: 1018053-Mortred | O119: 0
A120: 1018252 | B120: Hummer | C120: p | D120: Silver | E120: Division Tychus Psi | F120: 1 | G120: 5 | H120: 92 | I120: 1039 | J120: 2014-05-05 | K120: 47 days | L120: 2014-06-23T02:26:17 | M120: 10 | N120: 1018252-Hummer | O120: 0
A121: 101827 | B121: RusNoob | C121: z | D121: Silver | E121: Division Antioch Gravity | F121: 2 | G121: 3 | H121: 30 | I121: 1037 | J121: 2014-04-16 | K121: 62 days | L121: 2014-06-23T04:00:44 | M121: 10 | N121: 101827-RusNoob | O121: 0
A122: 1018506 | B122: bosarn | C122: p | D122: Silver | E122: Division Hierarch Omicron | F122: 14 | G122: 18 | H122: 408 | I122: 679 | J122: 2014-05-03 | K122: 13 days | L122: 2014-06-22T23:40:13 | M122: 7 | N122: 1018506-bosarn | O122: 0
A123: 1018612 | B123: arkashkajjj | C123: p | D123: Silver | E123: Division Bucephalus Sigma | F123: 27 | G123: 49 | H123: 793 | I123: 257 | J123: 2014-05-29 | K123: 8 days | L123: 2014-06-22T23:12:27 | M123: 3 | N123: 1018612-arkashkajjj | O123: 0
A124: 1019027 | B124: Schokotossi | C124: r | D124: Silver | E124: Division Tabrenus Pepper | F124: 0 | G124: 1 | H124: 0 | I124: 1058 | J124: 2014-04-19 | K124: 63 days | L124: 2014-06-23T05:29:12 | M124: 11 | N124: 1019027-Schokotossi | O124: 0
A125: 1019364 | B125: Woland | C125: z | D125: Silver | E125: Division Tychus Indigo | F125: 0 | G125: 1 | H125: 0 | I125: 1058 | J125: 2014-05-07 | K125: 45 days | L125: 2014-06-23T05:29:13 | M125: 11 | N125: 1019364-Woland | O125: 0
A126: 1019531 | B126: Xymek | C126: z | D126: Silver | E126: Division Braken Quest | F126: 2 | G126: 0 | H126: 36 | I126: 1040 | J126: 2014-05-26 | K126: 26 days | L126: 2014-06-23T03:37:33 | M126: 10 | N126: 1019531-Xymek | O126: 0
A127: 101967 | B127: Kerrigan | C127: z | D127: Silver | E127: Division Warp Prism Mars | F127: 7 | G127: 1 | H127: 197 | I127: 942 | J127: 2014-04-23 | K127: 59 days | L127: 2014-06-23T00:43:45 | M127: 10 | N127: 101967-Kerrigan | O127: 0
A128: 1019781 | B128: Arn | C128: z | D128: Silver | E128: Division Rimes Tau | F128: 6 | G128: 4 | H128: 150 | I128: 942 | J128: 2014-04-22 | K128: 36 days | L128: 2014-06-23T01:16:26 | M128: 10 | N128: 1019781-Arn | O128: 0
A129: 1020525 | B129: Ares | C129: p | D129: Silver | E129: Division Overmind Juliet | F129: 1 | G129: 0 | H129: 0 | I129: 1058 | J129: 2014-06-14 | K129: 7 days | L129: 2014-06-23T05:29:15 | M129: 11 | N129: 1020525-Ares | O129: 0
A130: 1020550 | B130: GeneralHalle | C130: t | D130: Silver | E130: Division Immortal Xi | F130: 3 | G130: 6 | H130: 72 | I130: 1016 | J130: 2014-06-13 | K130: 4 days | L130: 2014-06-23T02:48:19 | M130: 10 | N130: =A130&"-"&B130 -> 1020550-GeneralHalle | O130: 0
A131: 1020709 | B131: Marcus | C131: z | D131: Silver | E131: Division Devourer Nu | F131: 0 | G131: 2 | H131: 0 | I131: 1058 | J131: 2014-05-18 | K131: 34 days | L131: 2014-06-23T05:29:16 | M131: 11 | N131: 1020709-Marcus | O131: 0
A132: 1020941 | B132: Isaac | C132: r | D132: Silver | E132: Division Gateway Hawk | F132: 4 | G132: 5 | H132: 90 | I132: 990 | J132: 2014-05-10 | K132: 7 days | L132: 2014-06-23T02:33:08 | M132: 10 | N132: 1020941-Isaac | O132: 0
A133: 1021270 | B133: Moppel | C133: z | D133: Silver | E133: Division Bucephalus Nu | F133: 0 | G133: 4 | H133: 0 | I133: 1058 | J133: 2014-06-17 | K133: 4 days | L133: 2014-06-23T05:29:17 | M133: 11 | N133: 1021270-Moppel | O133: 0
A134: 1021978 | B134: Fizzie | C134: t | D134: Silver | E134: Division Scion Lambda | F134: 1 | G134: 3 | H134: 0 | I134: 1058 | J134: 2014-05-19 | K134: 30 days | L134: 2014-06-23T05:29:18 | M134: 11 | N134: 1021978-Fizzie | O134: 0
A135: 1022393 | B135: Whitewolf | C135: r | D135: Silver | E135: Division Scourge Iota | F135: 0 | G135: 2 | H135: 0 | I135: 1058 | J135: 2014-05-24 | K135: 1 days | L135: 2014-06-23T05:29:19 | M135: 11 | N135: 1022393-Whitewolf | O135: 0
A136: 1023229 | B136: Jafar | C136: t | D136: Silver | E136: Division Void Ray Uncle | F136: 0 | G136: 1 | H136: 0 | I136: 1058 | J136: 2014-06-21 | K136: 20 hours | L136: 2014-06-23T05:29:20 | M136: 11 | N136: 1023229-Jafar | O136: 0
A137: 1023356 | B137: Dissaor | C137: z | D137: Silver | E137: Division Immortal Xi | F137: 1 | G137: 1 | H137: 0 | I137: 1058 | J137: 2014-05-02 | K137: 50 days | L137: 2014-06-23T05:29:22 | M137: 11 | N137: 1023356-Dissaor | O137: 0
A138: 1023466 | B138: Hanta | C138: p | D138: Silver | E138: Division Shakuras Romeo | F138: 0 | G138: 2 | H138: 0 | I138: 1058 | J138: 2014-06-13 | K138: 8 days | L138: 2014-06-23T05:29:23 | M138: 11 | N138: 1023466-Hanta | O138: 0
A139: 1023613 | B139: Donatsi | C139: r | D139: Silver | E139: Division Scion Delta | F139: 1 | G139: 0 | H139: 0 | I139: 1058 | J139: 2014-06-15 | K139: 6 days | L139: 2014-06-23T05:29:24 | M139: 11 | N139: 1023613-Donatsi | O139: 0
A140: 1023647 | B140: Gordo | C140: t | D140: Silver | E140: Division Antioch Echo | F140: 2 | G140: 8 | H140: 60 | I140: 1008 | J140: 2014-05-17 | K140: 34 days | L140: 2014-06-23T03:10:06 | M140: 10 | N140: 1023647-Gordo | O140: 0
A141: 1023730 | B141: CheFirKa | C141: t | D141: Silver | E141: Division Hierarch Beta | F141: 1 | G141: 0 | H141: 0 | I141: 1058 | J141: 2014-05-23 | K141: 29 days | L141: 2014-06-23T05:29:25 | M141: 11 | N141: 1023730-CheFirKa | O141: 0
A142: 1023833 | B142: JanosMlotos | C142: t | D142: Silver | E142: Division Auriga X-Ray | F142: 25 | G142: 21 | H142: 655 | I142: 501 | J142: 2014-05-02 | K142: 1 days | L142: 2014-06-22T23:19:02 | M142: 5 | N142: 1023833-JanosMlotos | O142: 0
A143: 1023989 | B143: Arno | C143: p | D143: Silver | E143: Division Zeratul Mars | F143: 5 | G143: 4 | H143: 128 | I143: 966 | J143: 2014-04-25 | K143: 11 days | L143: 2014-06-23T01:42:47 | M143: 10 | N143: 1023989-Arno | O143: 0
A144: 1024062 | B144: FINCH | C144: t | D144: Silver | E144: Division Tabrenus Pepper | F144: 7 | G144: 21 | H144: 249 | I144: 775 | J144: 2014-05-03 | K144: 9 days | L144: 2014-06-23T00:19:11 | M144: 8 | N144: 1024062-FINCH | O144: 0
A145: 1024073 | B145: Endolora | C145: t | D145: Silver | E145: Division Auriga Tau | F145: 1 | G145: 0 | H145: 0 | I145: 1058 | J145: 2014-06-16 | K145: 5 days | L145: 2014-06-23T05:29:26 | M145: 11 | N145: 1024073-Endolora | O145: 0
A146: 1024270 | B146: Abberforth | C146: t | D146: Silver | E146: Division Tabrenus November | F146: 0 | G146: 2 | H146: 0 | I146: 1058 | J146: 2014-06-21 | K146: 4 hours | L146: 2014-06-23T05:29:27 | M146: 11 | N146: 1024270-Abberforth | O146: 0
A147: 1024348 | B147: KJYDDISEN | C147: r | D147: Silver | E147: Division Umoja Zeta | F147: 5 | G147: 8 | H147: 197 | I147: 919 | J147: 2014-06-07 | K147: 14 days | L147: 2014-06-23T00:43:50 | M147: 9 | N147: 1024348-KJYDDISEN | O147: 0
A148: 1024428 | B148: Craftanikuz | C148: t | D148: Silver | E148: Division Antioch Sigma | F148: 0 | G148: 1 | H148: 0 | I148: 1058 | J148: 2014-05-27 | K148: 25 days | L148: 2014-06-23T05:29:28 | M148: 11 | N148: 1024428-Craftanikuz | O148: 0
A149: 102450 | B149: DedMedwed | C149: z | D149: Silver | E149: Division Bhekar Ro Xi | F149: 1 | G149: 0 | H149: 0 | I149: 1058 | J149: 2014-05-20 | K149: 32 days | L149: 2014-06-23T04:40:36 | M149: 11 | N149: 102450-DedMedwed | O149: 0
A150: 1024521 | B150: Limiter | C150: z | D150: Silver | E150: Division Meinhoff Kappa | F150: 4 | G150: 3 | H150: 149 | I150: 982 | J150: 2014-05-25 | K150: 27 days | L150: 2014-06-23T01:17:51 | M150: 10 | N150: 1024521-Limiter | O150: 0
A151: 1024809 | B151: Energy | C151: p | D151: Silver | E151: Division Infestor Oscar | F151: 1 | G151: 8 | H151: 46 | I151: 1028 | J151: 2014-05-26 | K151: 24 days | L151: 2014-06-23T03:26:38 | M151: 10 | N151: 1024809-Energy | O151: 0
A152: 1024816 | B152: DOC | C152: t | D152: Silver | E152: Division Scion Gravity | F152: 113 | G152: 148 | H152: 868 | I152: 114 | J152: 2014-04-22 | K152: 13 days | L152: 2014-06-23T08:00:08 | M152: 2 | N152: 1024816-DOC | O152: 0
A153: 1024876 | B153: KelvinZerØ | C153: z | D153: Silver | E153: Division Meinhoff Romeo | F153: 2 | G153: 2 | H153: 30 | I153: 1043 | J153: 2014-04-18 | K153: 64 days | L153: 2014-06-23T04:10:33 | M153: 10 | N153: 1024876-KelvinZerØ | O153: 0
A154: 1025180 | B154: Zapan | C154: p | D154: Silver | E154: Division Infestor Romeo | F154: 0 | G154: 1 | H154: 0 | I154: 1058 | J154: 2014-06-13 | K154: 8 days | L154: 2014-06-23T05:29:29 | M154: 11 | N154: 1025180-Zapan | O154: 0
A155: 1025435 | B155: darckfail | C155: z | D155: Silver | E155: Division Prelate Nu | F155: 3 | G155: 11 | H155: 48 | I155: 1005 | J155: 2014-04-16 | K155: 65 days | L155: 2014-06-23T03:24:52 | M155: 10 | N155: 1025435-darckfail | O155: 0
A156: 1025486 | B156: Beuteltier | C156: t | D156: Silver | E156: Division Scion Omega | F156: 39 | G156: 41 | H156: 1047 | I156: 102 | J156: 2014-06-01 | K156: 3 hours | L156: 2014-06-22T23:00:02 | M156: 1 | N156: 1025486-Beuteltier | O156: 0
A157: 1026105 | B157: Gejleren | C157: z | D157: Silver | E157: Division Brontes Quest | F157: 0 | G157: 1 | H157: 0 | I157: 1058 | J157: 2014-04-24 | K157: 58 days | L157: 2014-06-23T05:29:30 | M157: 11 | N157: 1026105-Gejleren | O157: 0
A158: 1026249 | B158: Hugo | C158: t | D158: Silver | E158: Division Hierarch Beta | F158: 1 | G158: 0 | H158: 0 | I158: 1058 | J158: 2014-04-21 | K158: 61 days | L158: 2014-06-23T05:29:31 | M158: 11 | N158: 1026249-Hugo | O158: 0
A159: 1026356 | B159: HQQ | C159: t | D159: Silver | E159: Division Lurker X-Ray | F159: 1 | G159: 0 | H159: 0 | I159: 1058 | J159: 2014-05-21 | K159: 31 days | L159: 2014-06-23T05:29:31 | M159: 11 | N159: 1026356-HQQ | O159: 0
A160: 1026986 | B160: Bubbibjørn | C160: z | D160: Silver | E160: Division Goliath Pi | F160: 1 | G160: 6 | H160: 0 | I160: 1058 | J160: 2014-06-09 | K160: 12 days | L160: 2014-06-23T05:29:32 | M160: 11 | N160: 1026986-Bubbibjørn | O160: 0
A161: 1027016 | B161: Tombombadil | C161: t | D161: Silver | E161: Division Prelate Gravity | F161: 2 | G161: 3 | H161: 119 | I161: 1013 | J161: 2014-06-19 | K161: 2 days | L161: 2014-06-23T01:53:56 | M161: 10 | N161: 1027016-Tombombadil | O161: 0
A162: 102727 | B162: SilentTer | C162: z | D162: Silver | E162: Division Scout Romeo | F162: 10 | G162: 7 | H162: 239 | I162: 872 | J162: 2014-04-18 | K162: 4 days | L162: 2014-06-23T00:23:07 | M162: 9 | N162: 102727-SilentTer | O162: 0
A163: 1027330 | B163: Bistiara | C163: t | D163: Silver | E163: Division Liberty Rho | F163: 0 | G163: 2 | H163: 0 | I163: 1058 | J163: 2014-05-26 | K163: 26 days | L163: 2014-06-23T05:29:34 | M163: 11 | N163: 1027330-Bistiara | O163: 0
A164: 1027509 | B164: zergarr | C164: t | D164: Silver | E164: Division Infestor Beta | F164: 1 | G164: 4 | H164: 0 | I164: 1058 | J164: 2014-06-18 | K164: 3 days | L164: 2014-06-23T05:29:34 | M164: 11 | N164: 1027509-zergarr | O164: 0
A165: 1027595 | B165: King | C165: t | D165: Silver | E165: Division Infestor Lima | F165: 7 | G165: 11 | H165: 252 | I165: 851 | J165: 2014-06-07 | K165: 1 days | L165: 2014-06-23T00:17:51 | M165: 9 | N165: 1027595-King | O165: 0
A166: 1027651 | B166: Reverse | C166: z | D166: Silver | E166: Division Nahaan Mu | F166: 1 | G166: 4 | H166: 0 | I166: 1058 | J166: 2014-06-09 | K166: 9 days | L166: 2014-06-23T05:29:35 | M166: 11 | N166: 1027651-Reverse | O166: 0
A167: 1027688 | B167: Goku | C167: p | D167: Silver | E167: Division Auriga Mu | F167: 1 | G167: 0 | H167: 0 | I167: 1058 | J167: 2014-05-29 | K167: 23 days | L167: 2014-06-23T05:29:36 | M167: 11 | N167: 1027688-Goku | O167: 0
A168: 1027932 | B168: TeN | C168: t | D168: Silver | E168: Division Braken Delta | F168: 0 | G168: 1 | H168: 0 | I168: 1058 | J168: 2014-04-14 | K168: 67 days | L168: 2014-06-23T05:29:37 | M168: 11 | N168: 1027932-TeN | O168: 0
A169: 1027941 | B169: ponc | C169: r | D169: Silver | E169: Division Rimes X-Ray | F169: 4 | G169: 5 | H169: 92 | I169: 966 | J169: 2014-04-20 | K169: 49 days | L169: 2014-06-23T02:26:19 | M169: 10 | N169: 1027941-ponc | O169: 0
A170: 1028413 | B170: Topeharco | C170: t | D170: Silver | E170: Division Halcyon Foxtrot | F170: 30 | G170: 39 | H170: 302 | I170: 739 | J170: 2014-04-22 | K170: 40 days | L170: 2014-06-23T00:01:34 | M170: 8 | N170: 1028413-Topeharco | O170: 0
A171: 1028489 | B171: lumpy | C171: p | D171: Silver | E171: Division Infestor Romeo | F171: 6 | G171: 8 | H171: 112 | I171: 976 | J171: 2014-04-27 | K171: 6 days | L171: 2014-06-23T02:03:29 | M171: 10 | N171: 1028489-lumpy | O171: 0
A172: 1028526 | B172: shellschock | C172: p | D172: Silver | E172: Division Talematros Juliet | F172: 2 | G172: 1 | H172: 30 | I172: 1043 | J172: 2014-05-18 | K172: 20 days | L172: 2014-06-23T04:10:34 | M172: 10 | N172: 1028526-shellschock | O172: 0
A173: 1028547 | B173: Zzagg | C173: t | D173: Silver | E173: Division Braken Phi | F173: 1 | G173: 0 | H173: 0 | I173: 1058 | J173: 2014-06-09 | K173: 12 days | L173: 2014-06-23T05:29:38 | M173: 11 | N173: 1028547-Zzagg | O173: 0
A174: 102868 | B174: Guess | C174: p | D174: Silver | E174: Division Devourer Delta | F174: 66 | G174: 73 | H174: 1120 | I174: 1 | J174: 2014-05-03 | K174: 4 hours | L174: 2014-06-22T22:53:47 | M174: 1 | N174: 102868-Guess | O174: 0
A175: 1028829 | B175: Roland | C175: p | D175: Silver | E175: Division Dylar Psi | F175: 42 | G175: 38 | H175: 559 | I175: 477 | J175: 2014-05-04 | K175: 18 hours | L175: 2014-06-22T23:25:21 | M175: 5 | N175: 1028829-Roland | O175: 0
A176: 1029222 | B176: Camcam | C176: t | D176: Silver | E176: Division Hierarch Kappa | F176: 0 | G176: 1 | H176: 0 | I176: 1058 | J176: 2014-06-15 | K176: 6 days | L176: 2014-06-23T05:29:39 | M176: 11 | N176: 1029222-Camcam | O176: 0
A177: 1029274 | B177: Althaor | C177: t | D177: Silver | E177: Division Overmind Whiskey | F177: 1 | G177: 0 | H177: 0 | I177: 1058 | J177: 2014-05-29 | K177: 23 days | L177: 2014-06-23T05:29:40 | M177: 11 | N177: 1029274-Althaor | O177: 0
A178: 1029625 | B178: Tera | C178: r | D178: Silver | E178: Division Shakuras Mu | F178: 1 | G178: 0 | H178: 0 | I178: 1058 | J178: 2014-04-14 | K178: 67 days | L178: 2014-06-23T05:29:41 | M178: 11 | N178: 1029625-Tera | O178: 0
A179: 1029873 | B179: Garvan | C179: t | D179: Silver | E179: Division Shakuras Bravo | F179: 1 | G179: 2 | H179: 94 | I179: 1025 | J179: 2014-05-25 | K179: 27 days | L179: 2014-06-23T02:18:24 | M179: 10 | N179: 1029873-Garvan | O179: 0
A180: 1029901 | B180: Akuma | C180: t | D180: Silver | E180: Division Talematros November | F180: 1 | G180: 2 | H180: 30 | I180: 1043 | J180: 2014-04-19 | K180: 63 days | L180: 2014-06-23T04:10:36 | M180: 10 | N180: 1029901-Akuma | O180: 0
A181: 1030040 | B181: USgames | C181: t | D181: Silver | E181: Division Halcyon Indigo | F181: 4 | G181: 9 | H181: 199 | I181: 897 | J181: 2014-06-08 | K181: 13 days | L181: 2014-06-23T00:42:39 | M181: 9 | N181: 1030040-USgames | O181: 0
A182: 1030209 | B182: DoctorEvil | C182: z | D182: Silver | E182: Division Antioch Gravity | F182: 4 | G182: 6 | H182: 128 | I182: 950 | J182: 2014-05-25 | K182: 7 days | L182: 2014-06-23T01:42:48 | M182: 10 | N182: 1030209-DoctorEvil | O182: 0
A183: 1030492 | B183: KSKuper | C183: r | D183: Silver | E183: Division Talematros Pi | F183: 12 | G183: 18 | H183: 351 | I183: 732 | J183: 2014-05-07 | K183: 1 days | L183: 2014-06-22T23:49:36 | M183: 8 | N183: 1030492-KSKuper | O183: 0
A184: 1030518 | B184: PARTISAN | C184: t | D184: Silver | E184: Division Overmind Eta | F184: 3 | G184: 0 | H184: 119 | I184: 1026 | J184: 2014-04-22 | K184: 8 days | L184: 2014-06-23T01:53:57 | M184: 10 | N184: 1030518-PARTISAN | O184: 0
A185: 1030612 | B185: Loobo | C185: p | D185: Silver | E185: Division Akilae Hawk | F185: 3 | G185: 1 | H185: 137 | I185: 1008 | J185: 2014-04-15 | K185: 23 days | L185: 2014-06-23T01:36:21 | M185: 10 | N185: 1030612-Loobo | O185: 0
A186: 1030735 | B186: Chupakabra | C186: z | D186: Silver | E186: Division Templar Bravo | F186: 1 | G186: 1 | H186: 32 | I186: 1042 | J186: 2014-06-21 | K186: 5 hours | L186: 2014-06-23T03:50:07 | M186: 10 | N186: 1030735-Chupakabra | O186: 0
A187: 1030851 | B187: gift | C187: p | D187: Silver | E187: Division Immortal Xi | F187: 1 | G187: 0 | H187: 0 | I187: 1058 | J187: 2014-04-14 | K187: 67 days | L187: 2014-06-23T05:29:43 | M187: 11 | N187: 1030851-gift | O187: 0
A188: 1030860 | B188: JBIpaga | C188: p | D188: Silver | E188: Division Tychus Indigo | F188: 2 | G188: 1 | H188: 30 | I188: 1043 | J188: 2014-04-15 | K188: 66 days | L188: 2014-06-23T04:10:37 | M188: 10 | N188: 1030860-JBIpaga | O188: 0
A189: 1030870 | B189: Oasis | C189: t | D189: Silver | E189: Division Akilae Hawk | F189: 0 | G189: 4 | H189: 0 | I189: 1058 | J189: 2014-06-04 | K189: 16 days | L189: 2014-06-23T05:29:44 | M189: 11 | N189: 1030870-Oasis | O189: 0
A190: 1030935 | B190: FumiStar | C190: t | D190: Silver | E190: Division Meinhoff Sierra | F190: 18 | G190: 31 | H190: 594 | I190: 482 | J190: 2014-05-22 | K190: 1 days | L190: 2014-06-22T23:23:08 | M190: 5 | N190: 1030935-FumiStar | O190: 0
A191: 1031076 | B191: Töhre | C191: r | D191: Silver | E191: Division Bucephalus Lambda | F191: 0 | G191: 3 | H191: 0 | I191: 1058 | J191: 2014-05-31 | K191: 18 days | L191: 2014-06-23T05:29:44 | M191: 11 | N191: 1031076-Töhre | O191: 0
A192: 1031096 | B192: Евгений | C192: r | D192: Silver | E192: Division Bhekar Ro Gravity | F192: 2 | G192: 11 | H192: 112 | I192: 967 | J192: 2014-05-12 | K192: 40 days | L192: 2014-06-23T02:03:30 | M192: 10 | N192: 1031096-Евгений | O192: 0
A193: 1031122 | B193: FILIP | C193: t | D193: Silver | E193: Division Auriga Zeta | F193: 0 | G193: 2 | H193: 0 | I193: 1058 | J193: 2014-05-11 | K193: 41 days | L193: 2014-06-23T05:29:46 | M193: 11 | N193: 1031122-FILIP | O193: 0
A194: 1031174 | B194: Rasco | C194: p | D194: Silver | E194: Division Lurker Kilo | F194: 2 | G194: 13 | H194: 60 | I194: 1017 | J194: 2014-06-06 | K194: 11 days | L194: 2014-06-23T03:10:07 | M194: 10 | N194: =A194&"-"&B194 -> 1031174-Rasco | O194: 0
A195: 1031241 | B195: EBLOSTREL | C195: p | D195: Silver | E195: Division Shakuras Tau | F195: 7 | G195: 7 | H195: 232 | I195: 903 | J195: 2014-05-07 | K195: 3 days | L195: 2014-06-23T00:26:19 | M195: 9 | N195: 1031241-EBLOSTREL | O195: 0
A196: 1031243 | B196: Albatros | C196: r | D196: Silver | E196: Division Prelate Lambda | F196: 2 | G196: 0 | H196: 34 | I196: 1041 | J196: 2014-04-20 | K196: 43 days | L196: 2014-06-23T03:41:42 | M196: 10 | N196: 1031243-Albatros | O196: 0
A197: 1031245 | B197: Thegorent | C197: p | D197: Silver | E197: Division Dylar Juliet | F197: 1 | G197: 4 | H197: 34 | I197: 1017 | J197: 2014-05-28 | K197: 22 days | L197: 2014-06-23T03:41:43 | M197: 10 | N197: 1031245-Thegorent | O197: 0
A198: 1031388 | B198: MMCS | C198: r | D198: Silver | E198: Division Void Ray Uncle | F198: 3 | G198: 3 | H198: 134 | I198: 997 | J198: 2014-06-20 | K198: 1 days | L198: 2014-06-23T01:38:30 | M198: 10 | N198: 1031388-MMCS | O198: 0
A199: 1031414 | B199: Khaldra | C199: z | D199: Silver | E199: Division Bucephalus Charlie | F199: 2 | G199: 1 | H199: 30 | I199: 1043 | J199: 2014-04-27 | K199: 55 days | L199: 2014-06-23T04:10:38 | M199: 10 | N199: 1031414-Khaldra | O199: 0
A200: 1031551 | B200: Playdoh | C200: p | D200: Silver | E200: Division Zamara Kilo | F200: 22 | G200: 23 | H200: 441 | I200: 681 | J200: 2014-05-04 | K200: 35 days | L200: 2014-06-22T23:35:55 | M200: 7 | N200: 1031551-Playdoh | O200: 0
... 4300 more rows

Sheet 1v1 Gold
A1: ID | B1: Name | C1: Race | D1: League | E1: Division | F1: Win | G1: Loss | H1: Score | I1: Bonus Pool Remaining | J1: Date Joined | K1: Last Game | L1: Timestamp | M1: Bonus Pool Weeks Remaining | N1: ID-Name | O1: Duplicate
A2: 1000011 | B2: MAGNUS | C2: t | D2: Gold | E2: Division Thor Kilo | F2: 16 | G2: 4 | H2: 414 | I2: 796 | J2: 2014-05-30 | K2: 2 days | L2: 2014-06-22T13:39:49 | M2: 8 | N2: =A2&"-"&B2 -> 1000011-MAGNUS | O2: 0
A3: 1000077 | B3: Rude | C3: z | D3: Gold | E3: Division Arbiter Alamo | F3: 7 | G3: 3 | H3: 182 | I3: 939 | J3: 2014-05-08 | K3: 37 days | L3: 2014-06-22T16:59:41 | M3: 9 | N3: 1000077-Rude | O3: 0
A4: 1000112 | B4: VGxDaJuice | C4: p | D4: Gold | E4: Division Bucephalus Omicron | F4: 40 | G4: 53 | H4: 1100 | I4: 13 | J4: 2014-05-22 | K4: 7 hours | L4: 2014-06-22T09:46:19 | M4: 1 | N4: 1000112-VGxDaJuice | O4: 0
A5: 1000163 | B5: herfhp | C5: z | D5: Gold | E5: Division Immortal Omega | F5: 13 | G5: 4 | H5: 344 | I5: 857 | J5: 2014-06-09 | K5: 2 days | L5: 2014-06-22T14:27:22 | M5: 9 | N5: 1000163-herfhp | O5: 0
A6: 1000438 | B6: Sin | C6: p | D6: Gold | E6: Division Grizzly Uncle | F6: 5 | G6: 1 | H6: 164 | I6: 989 | J6: 2014-06-04 | K6: 11 days | L6: 2014-06-22T17:23:11 | M6: 10 | N6: 1000438-Sin | O6: 0
A7: 1000488 | B7: FeeeZzY | C7: p | D7: Gold | E7: Division Judicator Hawk | F7: 19 | G7: 22 | H7: 504 | I7: 564 | J7: 2014-06-11 | K7: 2 days | L7: 2014-06-22T12:49:59 | M7: 6 | N7: 1000488-FeeeZzY | O7: 0
A8: 1000908 | B8: Erenom | C8: t | D8: Gold | E8: Division Praetor Pepper | F8: 1 | G8: 0 | H8: 0 | I8: 1058 | J8: 2014-05-04 | K8: 48 days | L8: 2014-06-22T21:13:22 | M8: 11 | N8: 1000908-Erenom | O8: 0
A9: 100093 | B9: GLADIATOR | C9: p | D9: Gold | E9: Division Araq Gravity | F9: 66 | G9: 101 | H9: 853 | I9: 49 | J9: 2014-05-02 | K9: 15 hours | L9: 2014-06-22T10:55:22 | M9: 1 | N9: 100093-GLADIATOR | O9: 0
A10: 1000976 | B10: Drononator | C10: p | D10: Gold | E10: Division Goliath November | F10: 21 | G10: 17 | H10: 446 | I10: 671 | J10: 2014-05-07 | K10: 27 days | L10: 2014-06-22T13:19:40 | M10: 7 | N10: 1000976-Drononator | O10: 0
A11: 1001123 | B11: Nomade | C11: p | D11: Gold | E11: Division Brood Lord Rho | F11: 10 | G11: 6 | H11: 254 | I11: 860 | J11: 2014-06-10 | K11: 5 days | L11: 2014-06-22T15:42:14 | M11: 9 | N11: 1001123-Nomade | O11: 0
A12: 1001130 | B12: Kognor | C12: t | D12: Gold | E12: Division Thor Rho | F12: 7 | G12: 2 | H12: 190 | I12: 963 | J12: 2014-04-16 | K12: 17 days | L12: 2014-06-22T16:50:12 | M12: 10 | N12: 1001130-Kognor | O12: 0
A13: 1001626 | B13: viciousvex | C13: r | D13: Gold | E13: Division Hellion Pi | F13: 46 | G13: 35 | H13: 374 | I13: 755 | J13: 2014-06-16 | K13: 5 days | L13: 2014-06-22T14:04:50 | M13: 8 | N13: 1001626-viciousvex | O13: 0
A14: 1001646 | B14: DualCor | C14: r | D14: Gold | E14: Division Daggoth Lima | F14: 10 | G14: 12 | H14: 281 | I14: 784 | J14: 2014-05-10 | K14: 6 hours | L14: 2014-06-22T15:14:22 | M14: 8 | N14: 1001646-DualCor | O14: 0
A15: 1001852 | B15: Jowanowitch | C15: t | D15: Gold | E15: Division Reaper Lima | F15: 28 | G15: 30 | H15: 694 | I15: 344 | J15: 2014-05-31 | K15: 2 hours | L15: 2014-06-22T11:38:40 | M15: 4 | N15: 1001852-Jowanowitch | O15: 0
A16: 1001878 | B16: Sheldor | C16: r | D16: Gold | E16: Division Halcyon Iota | F16: 18 | G16: 10 | H16: 412 | I16: 760 | J16: 2014-05-02 | K16: 50 days | L16: 2014-06-22T13:40:44 | M16: 8 | N16: 1001878-Sheldor | O16: 0
A17: 1001894 | B17: Robadob | C17: p | D17: Gold | E17: Division Moria Foxtrot | F17: 5 | G17: 5 | H17: 158 | I17: 961 | J17: 2014-05-03 | K17: 47 days | L17: 2014-06-22T17:30:00 | M17: 10 | N17: 1001894-Robadob | O17: 0
A18: 1002300 | B18: BadAce | C18: z | D18: Gold | E18: Division Norad Theta | F18: 20 | G18: 8 | H18: 474 | I18: 716 | J18: 2014-06-13 | K18: 4 days | L18: 2014-06-22T13:04:42 | M18: 7 | N18: 1002300-BadAce | O18: 0
A19: 1002378 | B19: MrMind | C19: z | D19: Gold | E19: Division Reagan Kappa | F19: 8 | G19: 8 | H19: 214 | I19: 892 | J19: 2014-05-11 | K19: 35 days | L19: 2014-06-22T16:23:22 | M19: 9 | N19: 1002378-MrMind | O19: 0
A20: 1002782 | B20: Ahriman | C20: z | D20: Gold | E20: Division Marine Kappa | F20: 19 | G20: 18 | H20: 502 | I20: 615 | J20: 2014-06-03 | K20: 16 days | L20: 2014-06-22T12:51:00 | M20: 6 | N20: 1002782-Ahriman | O20: 0
A21: 1002802 | B21: Weakepo | C21: z | D21: Gold | E21: Division Sakai Mu | F21: 2 | G21: 2 | H21: 64 | I21: 1026 | J21: 2014-05-12 | K21: 29 days | L21: 2014-06-22T19:32:38 | M21: 10 | N21: 1002802-Weakepo | O21: 0
A22: 100293 | B22: GReen | C22: t | D22: Gold | E22: Division Preserver Nu | F22: 0 | G22: 2 | H22: 0 | I22: 1058 | J22: 2014-06-17 | K22: 4 days | L22: 2014-06-22T20:32:19 | M22: 11 | N22: 100293-GReen | O22: 0
A23: 1003004 | B23: HetzeR | C23: z | D23: Gold | E23: Division Swann Gravity | F23: 1 | G23: 2 | H23: 40 | I23: 1038 | J23: 2014-04-14 | K23: 67 days | L23: 2014-06-22T19:54:56 | M23: 10 | N23: 1003004-HetzeR | O23: 0
A24: 1003057 | B24: Zentis | C24: z | D24: Gold | E24: Division Marine Chi | F24: 2 | G24: 0 | H24: 30 | I24: 1043 | J24: 2014-05-20 | K24: 32 days | L24: 2014-06-22T20:12:18 | M24: 10 | N24: 1003057-Zentis | O24: 0
A25: 1003465 | B25: Guiritham | C25: z | D25: Gold | E25: Division Marauder Echo | F25: 19 | G25: 17 | H25: 529 | I25: 604 | J25: 2014-05-05 | K25: 12 days | L25: 2014-06-22T12:39:51 | M25: 6 | N25: 1003465-Guiritham | O25: 0
A26: 1003498 | B26: Boss | C26: p | D26: Gold | E26: Division Leviathan Echo | F26: 2 | G26: 13 | H26: 30 | I26: 1032 | J26: 2014-06-01 | K26: 16 days | L26: 2014-06-22T20:12:19 | M26: 10 | N26: 1003498-Boss | O26: 0
A27: 1003549 | B27: Sylph | C27: z | D27: Gold | E27: Division Overlord Theta | F27: 18 | G27: 27 | H27: 521 | I27: 593 | J27: 2014-05-05 | K27: 2 days | L27: 2014-06-22T12:43:12 | M27: 6 | N27: 1003549-Sylph | O27: 0
A28: 1003560 | B28: Shamrock | C28: t | D28: Gold | E28: Division DuGalle Romeo | F28: 2 | G28: 0 | H28: 88 | I28: 1043 | J28: 2014-05-27 | K28: 25 days | L28: 2014-06-22T19:16:01 | M28: 10 | N28: 1003560-Shamrock | O28: 0
A29: 1003592 | B29: Resurrection | C29: p | D29: Gold | E29: Division Amerigo Quest | F29: 0 | G29: 1 | H29: 0 | I29: 1058 | J29: 2014-05-25 | K29: 27 days | L29: 2014-06-22T21:13:24 | M29: 11 | N29: 1003592-Resurrection | O29: 0
A30: 1003637 | B30: BMmeng | C30: z | D30: Gold | E30: Division Baneling Bravo | F30: 89 | G30: 81 | H30: 1228 | I30: 19 | J30: 2014-05-14 | K30: 21 hours | L30: 2014-06-22T09:17:52 | M30: 1 | N30: 1003637-BMmeng | O30: 0
A31: 1003925 | B31: Wuu | C31: t | D31: Gold | E31: Division Broodling Indigo | F31: 15 | G31: 13 | H31: 425 | I31: 710 | J31: 2014-05-29 | K31: 12 days | L31: 2014-06-22T13:33:55 | M31: 7 | N31: 1003925-Wuu | O31: 0
A32: 1004072 | B32: Chenchen | C32: t | D32: Gold | E32: Division Ultralisk Romeo | F32: 9 | G32: 10 | H32: 258 | I32: 907 | J32: 2014-06-13 | K32: 8 days | L32: 2014-06-22T15:36:29 | M32: 9 | N32: 1004072-Chenchen | O32: 0
A33: 1004079 | B33: MaRgoTT | C33: z | D33: Gold | E33: Division Observer Sigma | F33: 11 | G33: 8 | H33: 317 | I33: 821 | J33: 2014-05-04 | K33: 20 days | L33: 2014-06-22T14:45:23 | M33: 8 | N33: 1004079-MaRgoTT | O33: 0
A34: 1004413 | B34: aXe | C34: z | D34: Gold | E34: Division Victory Lambda | F34: 1 | G34: 3 | H34: 30 | I34: 1032 | J34: 2014-06-02 | K34: 19 days | L34: 2014-06-22T20:12:20 | M34: 10 | N34: 1004413-aXe | O34: 0
A35: 1004500 | B35: twist | C35: z | D35: Gold | E35: Division Colossus Kilo | F35: 0 | G35: 1 | H35: 0 | I35: 1058 | J35: 2014-04-16 | K35: 66 days | L35: 2014-06-22T21:13:26 | M35: 11 | N35: 1004500-twist | O35: 0
A36: 1004544 | B36: Iori | C36: p | D36: Gold | E36: Division Zer’atai Omicron | F36: 12 | G36: 1 | H36: 290 | I36: 876 | J36: 2014-06-01 | K36: 4 hours | L36: 2014-06-22T15:06:59 | M36: 9 | N36: 1004544-Iori | O36: 0
A37: 1004551 | B37: Zaarec | C37: t | D37: Gold | E37: Division Amerigo X-Ray | F37: 2 | G37: 9 | H37: 0 | I37: 1058 | J37: 2014-05-11 | K37: 2 days | L37: 2014-06-22T21:13:27 | M37: 11 | N37: 1004551-Zaarec | O37: 0
A38: 1004598 | B38: agcbjkkc | C38: p | D38: Gold | E38: Division Hyperion X-Ray | F38: 14 | G38: 14 | H38: 392 | I38: 713 | J38: 2014-05-20 | K38: 8 days | L38: 2014-06-22T13:52:54 | M38: 7 | N38: 1004598-agcbjkkc | O38: 0
A39: 1004631 | B39: Zulco | C39: p | D39: Gold | E39: Division Spectre Alamo | F39: 1 | G39: 0 | H39: 0 | I39: 1058 | J39: 2014-05-05 | K39: 47 days | L39: 2014-06-22T21:13:28 | M39: 11 | N39: 1004631-Zulco | O39: 0
A40: 1004880 | B40: Karrak | C40: t | D40: Gold | E40: Division Duran Echo | F40: 15 | G40: 14 | H40: 412 | I40: 709 | J40: 2014-06-14 | K40: 7 days | L40: 2014-06-22T13:40:46 | M40: 7 | N40: 1004880-Karrak | O40: 0
A41: 1005015 | B41: mMarinesSs | C41: z | D41: Gold | E41: Division Aleksander Uncle | F41: 4 | G41: 2 | H41: 169 | I41: 976 | J41: 2014-05-14 | K41: 17 days | L41: 2014-06-22T17:15:39 | M41: 10 | N41: 1005015-mMarinesSs | O41: 0
A42: 1005576 | B42: MAtos | C42: p | D42: Gold | E42: Division Templar Quest | F42: 13 | G42: 8 | H42: 358 | I42: 787 | J42: 2014-05-26 | K42: 19 minutes | L42: 2014-06-22T14:17:00 | M42: 8 | N42: 1005576-MAtos | O42: 0
A43: 1005663 | B43: ArchEvil | C43: z | D43: Gold | E43: Division Swann Gravity | F43: 3 | G43: 1 | H43: 74 | I43: 1021 | J43: 2014-06-07 | K43: 14 days | L43: 2014-06-22T19:28:09 | M43: 10 | N43: 1005663-ArchEvil | O43: 0
A44: 1005811 | B44: Kawett | C44: z | D44: Gold | E44: Division Siege Tank Theta | F44: 4 | G44: 1 | H44: 86 | I44: 1004 | J44: 2014-05-11 | K44: 4 days | L44: 2014-06-22T19:22:37 | M44: 10 | N44: 1005811-Kawett | O44: 0
A45: 1005958 | B45: CroatiaHonk | C45: p | D45: Gold | E45: Division Valerian Delta | F45: 4 | G45: 4 | H45: 0 | I45: 1058 | J45: 2014-06-10 | K45: 3 days | L45: 2014-06-22T21:13:30 | M45: 11 | N45: 1005958-CroatiaHonk | O45: 0
A46: 1006131 | B46: Drag | C46: t | D46: Gold | E46: Division Dominion Victor | F46: 1 | G46: 4 | H46: 30 | I46: 1022 | J46: 2014-06-11 | K46: 10 days | L46: 2014-06-22T20:12:21 | M46: 10 | N46: 1006131-Drag | O46: 0
A47: 1006143 | B47: Profexxor | C47: t | D47: Gold | E47: Division Braken Beta | F47: 10 | G47: 17 | H47: 283 | I47: 754 | J47: 2014-05-25 | K47: 6 days | L47: 2014-06-22T15:12:59 | M47: 8 | N47: 1006143-Profexxor | O47: 0
A48: 1006196 | B48: МоРт | C48: p | D48: Gold | E48: Division Infestor Zed | F48: 1 | G48: 0 | H48: 0 | I48: 1058 | J48: 2014-05-10 | K48: 42 days | L48: 2014-06-22T21:13:32 | M48: 11 | N48: 1006196-МоРт | O48: 0
A49: 1006245 | B49: Terrabyte | C49: r | D49: Gold | E49: Division Roxara Omicron | F49: 3 | G49: 3 | H49: 114 | I49: 993 | J49: 2014-06-01 | K49: 12 days | L49: 2014-06-22T18:28:45 | M49: 10 | N49: 1006245-Terrabyte | O49: 0
A50: 1006555 | B50: DarkHorz | C50: t | D50: Gold | E50: Division Khala Psi | F50: 26 | G50: 23 | H50: 693 | I50: 442 | J50: 2014-05-04 | K50: 23 days | L50: 2014-06-22T11:38:56 | M50: 5 | N50: 1006555-DarkHorz | O50: 0
A51: 100663 | B51: theCool | C51: z | D51: Gold | E51: Division Medic Charlie | F51: 7 | G51: 7 | H51: 192 | I51: 890 | J51: 2014-04-22 | K51: 28 days | L51: 2014-06-22T16:47:36 | M51: 9 | N51: 100663-theCool | O51: 0
A52: 1006683 | B52: docinger | C52: p | D52: Gold | E52: Division Mohandar Gamma | F52: 54 | G52: 45 | H52: 1123 | I52: 44 | J52: 2014-05-05 | K52: 2 days | L52: 2014-06-22T09:38:28 | M52: 1 | N52: 1006683-docinger | O52: 0
A53: 1006738 | B53: Ezacki | C53: t | D53: Gold | E53: Division Selendis Romeo | F53: 35 | G53: 23 | H53: 812 | I53: 371 | J53: 2014-05-03 | K53: 10 days | L53: 2014-06-22T11:06:12 | M53: 4 | N53: 1006738-Ezacki | O53: 0
A54: 100687 | B54: Terranoise | C54: z | D54: Gold | E54: Division Preserver Beta | F54: 1 | G54: 1 | H54: 44 | I54: 1036 | J54: 2014-05-02 | K54: 50 days | L54: 2014-06-22T19:51:06 | M54: 10 | N54: 100687-Terranoise | O54: 0
A55: 1007011 | B55: Montecristie | C55: z | D55: Gold | E55: Division Nexus Tango | F55: 18 | G55: 6 | H55: 411 | I55: 778 | J55: 2014-05-26 | K55: 3 days | L55: 2014-06-22T13:41:23 | M55: 8 | N55: 1007011-Montecristie | O55: 0
A56: 1007023 | B56: Xavyy | C56: r | D56: Gold | E56: Division Reaper Zed | F56: 16 | G56: 8 | H56: 446 | I56: 754 | J56: 2014-04-16 | K56: 32 days | L56: 2014-06-22T13:19:41 | M56: 8 | N56: 1007023-Xavyy | O56: 0
A57: 100703 | B57: SnakeSG | C57: p | D57: Gold | E57: Division Braken Pi | F57: 3 | G57: 6 | H57: 114 | I57: 959 | J57: 2014-05-22 | K57: 11 days | L57: 2014-06-22T18:26:56 | M57: 10 | N57: 100703-SnakeSG | O57: 0
A58: 1007044 | B58: BillyBoy | C58: z | D58: Gold | E58: Division Bhekar Ro Romeo | F58: 7 | G58: 2 | H58: 234 | I58: 943 | J58: 2014-05-08 | K58: 43 days | L58: 2014-06-22T16:01:40 | M58: 10 | N58: 1007044-BillyBoy | O58: 0
A59: 1007499 | B59: Suloo | C59: z | D59: Gold | E59: Division Khalis Charlie | F59: 104 | G59: 109 | H59: 1136 | I59: 13 | J59: 2014-05-17 | K59: 7 hours | L59: 2014-06-22T09:32:56 | M59: 1 | N59: 1007499-Suloo | O59: 0
A60: 1007529 | B60: Taisto | C60: z | D60: Gold | E60: Division Antioch Victor | F60: 55 | G60: 50 | H60: 1141 | I60: 102 | J60: 2014-04-16 | K60: 1 hours | L60: 2014-06-22T09:31:29 | M60: 1 | N60: 1007529-Taisto | O60: 0
A61: 1007602 | B61: ThMaN | C61: z | D61: Gold | E61: Division Ultralisk Romeo | F61: 15 | G61: 15 | H61: 473 | I61: 684 | J61: 2014-05-12 | K61: 4 days | L61: 2014-06-22T13:05:15 | M61: 7 | N61: 1007602-ThMaN | O61: 0
A62: 1007619 | B62: Froste | C62: z | D62: Gold | E62: Division Amerigo X-Ray | F62: 83 | G62: 81 | H62: 1140 | I62: 2 | J62: 2014-05-11 | K62: 2 hours | L62: 2014-06-22T09:31:42 | M62: 1 | N62: 1007619-Froste | O62: 0
A63: 1007879 | B63: antoine | C63: z | D63: Gold | E63: Division Reaver Gamma | F63: 18 | G63: 9 | H63: 481 | I63: 673 | J63: 2014-05-07 | K63: 20 days | L63: 2014-06-22T13:01:25 | M63: 7 | N63: 1007879-antoine | O63: 0
A64: 1007913 | B64: GrayFox | C64: p | D64: Gold | E64: Division Liberty November | F64: 2 | G64: 0 | H64: 88 | I64: 1043 | J64: 2014-05-13 | K64: 39 days | L64: 2014-06-22T19:16:02 | M64: 10 | N64: 1007913-GrayFox | O64: 0
A65: 1007917 | B65: netfox | C65: p | D65: Gold | E65: Division Raszagal Zed | F65: 12 | G65: 7 | H65: 332 | I65: 829 | J65: 2014-05-02 | K65: 6 days | L65: 2014-06-22T14:35:58 | M65: 8 | N65: 1007917-netfox | O65: 0
A66: 1008024 | B66: JasonX | C66: z | D66: Gold | E66: Division Kalathi Lambda | F66: 6 | G66: 3 | H66: 169 | I66: 964 | J66: 2014-06-14 | K66: 1 days | L66: 2014-06-22T17:15:40 | M66: 10 | N66: =A66&"-"&B66 -> 1008024-JasonX | O66: 0
A67: 1008128 | B67: REDKOW | C67: p | D67: Gold | E67: Division Marauder Echo | F67: 20 | G67: 12 | H67: 520 | I67: 649 | J67: 2014-05-05 | K67: 24 days | L67: 2014-06-22T12:43:31 | M67: 7 | N67: 1008128-REDKOW | O67: 0
A68: 1008141 | B68: Kanoya | C68: t | D68: Gold | E68: Division Shelak Oscar | F68: 26 | G68: 33 | H68: 762 | I68: 334 | J68: 2014-05-04 | K68: 1 days | L68: 2014-06-22T11:19:17 | M68: 4 | N68: 1008141-Kanoya | O68: 0
A69: 1008256 | B69: Тюбик | C69: r | D69: Gold | E69: Division Baneling Bravo | F69: 48 | G69: 45 | H69: 751 | I69: 320 | J69: 2014-05-14 | K69: 8 days | L69: 2014-06-22T11:22:22 | M69: 4 | N69: 1008256-Тюбик | O69: 0
A70: 1008341 | B70: Saÿs | C70: t | D70: Gold | E70: Division Nagglfar Sierra | F70: 10 | G70: 1 | H70: 278 | I70: 895 | J70: 2014-05-12 | K70: 6 days | L70: 2014-06-22T15:16:38 | M70: 9 | N70: 1008341-Saÿs | O70: 0
A71: 1008383 | B71: ZanycedaHero | C71: p | D71: Gold | E71: Division Auriga Lima | F71: 45 | G71: 18 | H71: 904 | I71: 345 | J71: 2014-05-20 | K71: 10 days | L71: 2014-06-22T10:44:16 | M71: 4 | N71: 1008383-ZanycedaHero | O71: 0
A72: 100852 | B72: UroboroS | C72: p | D72: Gold | E72: Division Khala Psi | F72: 8 | G72: 3 | H72: 220 | I72: 924 | J72: 2014-05-04 | K72: 15 hours | L72: 2014-06-22T16:15:13 | M72: 9 | N72: 100852-UroboroS | O72: 0
A73: 1008731 | B73: XoToX | C73: z | D73: Gold | E73: Division Phash Alamo | F73: 3 | G73: 0 | H73: 58 | I73: 1029 | J73: 2014-04-22 | K73: 53 days | L73: 2014-06-22T19:42:37 | M73: 10 | N73: 1008731-XoToX | O73: 0
A74: 1008983 | B74: Medo | C74: p | D74: Gold | E74: Division Nahaan Yankee | F74: 15 | G74: 19 | H74: 449 | I74: 649 | J74: 2014-04-23 | K74: 36 days | L74: 2014-06-22T13:17:49 | M74: 7 | N74: 1008983-Medo | O74: 0
A75: 1009010 | B75: Jtam | C75: z | D75: Gold | E75: Division Tychus Bravo | F75: 11 | G75: 18 | H75: 254 | I75: 829 | J75: 2014-06-14 | K75: 7 days | L75: 2014-06-22T15:42:15 | M75: 8 | N75: 1009010-Jtam | O75: 0
A76: 1009025 | B76: Swan | C76: z | D76: Gold | E76: Division Vulture Eta | F76: 7 | G76: 5 | H76: 196 | I76: 941 | J76: 2014-05-03 | K76: 2 days | L76: 2014-06-22T16:43:20 | M76: 10 | N76: 1009025-Swan | O76: 0
A77: 1009178 | B77: TiOli | C77: z | D77: Gold | E77: Division Valkyrie Kilo | F77: 0 | G77: 1 | H77: 0 | I77: 1058 | J77: 2014-05-19 | K77: 33 days | L77: 2014-06-22T21:13:35 | M77: 11 | N77: 1009178-TiOli | O77: 0
A78: 1009210 | B78: Brooks | C78: z | D78: Gold | E78: Division Carrier Mars | F78: 15 | G78: 15 | H78: 396 | I78: 687 | J78: 2014-05-26 | K78: 10 days | L78: 2014-06-22T13:50:27 | M78: 7 | N78: 1009210-Brooks | O78: 0
A79: 1009394 | B79: Gaijin | C79: t | D79: Gold | E79: Division Halcyon Uncle | F79: 16 | G79: 18 | H79: 410 | I79: 686 | J79: 2014-06-16 | K79: 1 days | L79: 2014-06-22T13:41:58 | M79: 7 | N79: 1009394-Gaijin | O79: 0
A80: 1009577 | B80: Dimazz | C80: p | D80: Gold | E80: Division Shuttle Alpha | F80: 62 | G80: 57 | H80: 1169 | I80: 26 | J80: 2014-05-17 | K80: 1 days | L80: 2014-06-22T09:24:22 | M80: 1 | N80: 1009577-Dimazz | O80: 0
A81: 1009716 | B81: Bruss | C81: t | D81: Gold | E81: Division Agria Dixie | F81: 40 | G81: 47 | H81: 898 | I81: 191 | J81: 2014-04-15 | K81: 49 minutes | L81: 2014-06-22T10:45:52 | M81: 2 | N81: 1009716-Bruss | O81: 0
A82: 1009754 | B82: JuMpMaN | C82: p | D82: Gold | E82: Division Tarsonis Iota | F82: 43 | G82: 23 | H82: 940 | I82: 328 | J82: 2014-05-25 | K82: 21 days | L82: 2014-06-22T10:36:23 | M82: 4 | N82: 1009754-JuMpMaN | O82: 0
A83: 1009843 | B83: Filiba | C83: r | D83: Gold | E83: Division Thor Kilo | F83: 23 | G83: 17 | H83: 526 | I83: 569 | J83: 2014-05-30 | K83: 2 days | L83: 2014-06-22T12:41:08 | M83: 6 | N83: 1009843-Filiba | O83: 0
A84: 1010019 | B84: Abolished | C84: p | D84: Gold | E84: Division Furinax Juliet | F84: 40 | G84: 56 | H84: 1039 | I84: 62 | J84: 2014-06-07 | K84: 3 days | L84: 2014-06-22T10:09:23 | M84: 1 | N84: 1010019-Abolished | O84: 0
A85: 1010072 | B85: FoFMeizter | C85: p | D85: Gold | E85: Division Medic Eta | F85: 1 | G85: 2 | H85: 0 | I85: 1058 | J85: 2014-06-08 | K85: 9 days | L85: 2014-06-22T21:13:37 | M85: 11 | N85: 1010072-FoFMeizter | O85: 0
A86: 1010192 | B86: Jacke | C86: r | D86: Gold | E86: Division Char Epsilon | F86: 3 | G86: 1 | H86: 128 | I86: 1015 | J86: 2014-05-29 | K86: 13 days | L86: 2014-06-22T18:07:33 | M86: 10 | N86: 1010192-Jacke | O86: 0
A87: 1010388 | B87: Razor | C87: p | D87: Gold | E87: Division Antioch Mars | F87: 5 | G87: 3 | H87: 163 | I87: 966 | J87: 2014-05-02 | K87: 50 days | L87: 2014-06-22T17:24:29 | M87: 10 | N87: 1010388-Razor | O87: 0
A88: 1010431 | B88: KarapuZ | C88: z | D88: Gold | E88: Division Norad Theta | F88: 3 | G88: 3 | H88: 103 | I88: 1028 | J88: 2014-06-13 | K88: 8 days | L88: 2014-06-22T18:49:31 | M88: 10 | N88: 1010431-KarapuZ | O88: 0
A89: 1010434 | B89: Dramlite | C89: r | D89: Gold | E89: Division Scarab Victor | F89: 21 | G89: 23 | H89: 520 | I89: 572 | J89: 2014-05-10 | K89: 8 days | L89: 2014-06-22T12:43:32 | M89: 6 | N89: 1010434-Dramlite | O89: 0
A90: 1010695 | B90: Scorp | C90: p | D90: Gold | E90: Division Dropship Mu | F90: 2 | G90: 1 | H90: 30 | I90: 1043 | J90: 2014-06-03 | K90: 18 days | L90: 2014-06-22T20:12:22 | M90: 10 | N90: 1010695-Scorp | O90: 0
A91: 1010712 | B91: Urv | C91: p | D91: Gold | E91: Division Kaloth Gravity | F91: 1 | G91: 2 | H91: 32 | I91: 1037 | J91: 2014-05-14 | K91: 38 days | L91: 2014-06-22T20:02:34 | M91: 10 | N91: 1010712-Urv | O91: 0
A92: 1010806 | B92: Eekso | C92: z | D92: Gold | E92: Division Warbringer Alpha | F92: 2 | G92: 2 | H92: 94 | I92: 1025 | J92: 2014-05-28 | K92: 13 days | L92: 2014-06-22T18:56:35 | M92: 10 | N92: 1010806-Eekso | O92: 0
A93: 1010898 | B93: Greed | C93: z | D93: Gold | E93: Division Akilae Upsilon | F93: 1 | G93: 0 | H93: 0 | I93: 1058 | J93: 2014-05-04 | K93: 48 days | L93: 2014-06-22T21:13:38 | M93: 11 | N93: 1010898-Greed | O93: 0
A94: 101096 | B94: vvvTIGRvvv | C94: r | D94: Gold | E94: Division Roach Echo | F94: 2 | G94: 1 | H94: 30 | I94: 1043 | J94: 2014-05-27 | K94: 25 days | L94: 2014-06-22T20:04:26 | M94: 10 | N94: 101096-vvvTIGRvvv | O94: 0
A95: 1011093 | B95: Xaxian | C95: z | D95: Gold | E95: Division Kalathi Lambda | F95: 15 | G95: 15 | H95: 389 | I95: 694 | J95: 2014-06-14 | K95: 1 days | L95: 2014-06-22T13:54:52 | M95: 7 | N95: 1011093-Xaxian | O95: 0
A96: 1011206 | B96: Flippleberry | C96: p | D96: Gold | E96: Division Lassatar Delta | F96: 2 | G96: 0 | H96: 30 | I96: 1043 | J96: 2014-04-17 | K96: 64 days | L96: 2014-06-22T20:12:24 | M96: 10 | N96: 1011206-Flippleberry | O96: 0
A97: 1011258 | B97: MuHZDPaB | C97: z | D97: Gold | E97: Division Warbringer Upsilon | F97: 6 | G97: 8 | H97: 170 | I97: 850 | J97: 2014-06-11 | K97: 3 days | L97: 2014-06-22T17:13:52 | M97: 9 | N97: 1011258-MuHZDPaB | O97: 0
A98: 1011311 | B98: rebel | C98: t | D98: Gold | E98: Division Uraj Iota | F98: 1 | G98: 1 | H98: 0 | I98: 1058 | J98: 2014-05-06 | K98: 46 days | L98: 2014-06-22T21:13:40 | M98: 11 | N98: 1011311-rebel | O98: 0
A99: 1011396 | B99: Mickaël | C99: r | D99: Gold | E99: Division Scimitar Alpha | F99: 22 | G99: 22 | H99: 598 | I99: 520 | J99: 2014-05-05 | K99: 7 hours | L99: 2014-06-22T12:09:29 | M99: 5 | N99: 1011396-Mickaël | O99: 0
A100: 1011652 | B100: Palliative | C100: p | D100: Gold | E100: Division Selendis Romeo | F100: 4 | G100: 1 | H100: 132 | I100: 999 | J100: 2014-06-02 | K100: 19 days | L100: 2014-06-22T18:02:07 | M100: 10 | N100: 1011652-Palliative | O100: 0
A101: 1011675 | B101: Ruiner | C101: z | D101: Gold | E101: Division Goliath November | F101: 15 | G101: 13 | H101: 395 | I101: 733 | J101: 2014-05-02 | K101: 18 days | L101: 2014-06-22T13:51:03 | M101: 8 | N101: 1011675-Ruiner | O101: 0
A102: 1011707 | B102: BlackWing | C102: p | D102: Gold | E102: Division Furinax Juliet | F102: 9 | G102: 2 | H102: 245 | I102: 922 | J102: 2014-06-07 | K102: 14 days | L102: 2014-06-22T15:50:57 | M102: 9 | N102: 1011707-BlackWing | O102: 0
A103: 1011749 | B103: Kaien | C103: p | D103: Gold | E103: Division Koronis Gamma | F103: 2 | G103: 0 | H103: 30 | I103: 1043 | J103: 2014-06-18 | K103: 3 days | L103: 2014-06-22T20:12:25 | M103: 10 | N103: 1011749-Kaien | O103: 0
A104: 1011755 | B104: MCMelonE | C104: t | D104: Gold | E104: Division Braxis November | F104: 10 | G104: 10 | H104: 284 | I104: 815 | J104: 2014-05-06 | K104: 10 days | L104: 2014-06-22T15:12:11 | M104: 8 | N104: 1011755-MCMelonE | O104: 0
A105: 1011810 | B105: Ermak | C105: z | D105: Gold | E105: Division Shelak Oscar | F105: 78 | G105: 75 | H105: 1035 | I105: 21 | J105: 2014-05-04 | K105: 7 days | L105: 2014-06-22T10:10:47 | M105: 1 | N105: 1011810-Ermak | O105: 0
A106: 1011874 | B106: Jopke | C106: t | D106: Gold | E106: Division Swann Gravity | F106: 20 | G106: 6 | H106: 476 | I106: 709 | J106: 2014-05-12 | K106: 6 hours | L106: 2014-06-22T13:03:39 | M106: 7 | N106: 1011874-Jopke | O106: 0
A107: 1011886 | B107: misSpigGy | C107: p | D107: Gold | E107: Division Hellion Pi | F107: 14 | G107: 13 | H107: 299 | I107: 843 | J107: 2014-05-02 | K107: 15 days | L107: 2014-06-22T14:59:36 | M107: 9 | N107: 1011886-misSpigGy | O107: 0
A108: 1011921 | B108: LapinRose | C108: p | D108: Gold | E108: Division Liberty November | F108: 16 | G108: 10 | H108: 424 | I108: 746 | J108: 2014-05-13 | K108: 4 days | L108: 2014-06-22T13:34:26 | M108: 8 | N108: 1011921-LapinRose | O108: 0
A109: 1011959 | B109: Bonde | C109: r | D109: Gold | E109: Division Xerana Gravity | F109: 2 | G109: 2 | H109: 102 | I109: 1018 | J109: 2014-06-15 | K109: 6 days | L109: 2014-06-22T18:51:00 | M109: 10 | N109: 1011959-Bonde | O109: 0
A110: 1012069 | B110: ProRockSpiro | C110: p | D110: Gold | E110: Division Aleksander Uncle | F110: 46 | G110: 35 | H110: 1128 | I110: 80 | J110: 2014-05-14 | K110: 4 days | L110: 2014-06-22T09:36:00 | M110: 1 | N110: 1012069-ProRockSpiro | O110: 0
A111: 1012286 | B111: Arroww | C111: p | D111: Gold | E111: Division Swann Gravity | F111: 35 | G111: 41 | H111: 892 | I111: 203 | J111: 2014-05-02 | K111: 2 days | L111: 2014-06-22T10:47:05 | M111: 2 | N111: 1012286-Arroww | O111: 0
A112: 1012369 | B112: Stasynich | C112: p | D112: Gold | E112: Division Moratun Epsilon | F112: 35 | G112: 32 | H112: 447 | I112: 694 | J112: 2014-05-03 | K112: 45 days | L112: 2014-06-22T13:18:59 | M112: 7 | N112: 1012369-Stasynich | O112: 0
A113: 1012549 | B113: MEFTOF | C113: z | D113: Gold | E113: Division Dragoon Iota | F113: 34 | G113: 20 | H113: 832 | I113: 392 | J113: 2014-05-19 | K113: 5 days | L113: 2014-06-22T11:00:29 | M113: 4 | N113: 1012549-MEFTOF | O113: 0
A114: 1012564 | B114: Liman | C114: z | D114: Gold | E114: Division Akilae Upsilon | F114: 81 | G114: 84 | H114: 866 | I114: 261 | J114: 2014-05-04 | K114: 16 days | L114: 2014-06-22T10:52:35 | M114: 3 | N114: 1012564-Liman | O114: 0
A115: 1012880 | B115: Zyrta | C115: z | D115: Gold | E115: Division Reagan Gravity | F115: 45 | G115: 59 | H115: 1103 | I115: 10 | J115: 2014-06-03 | K115: 2 hours | L115: 2014-06-22T09:45:11 | M115: 1 | N115: 1012880-Zyrta | O115: 0
A116: 1012888 | B116: Seth | C116: t | D116: Gold | E116: Division Shuttle Upsilon | F116: 1 | G116: 0 | H116: 0 | I116: 1058 | J116: 2014-05-31 | K116: 21 days | L116: 2014-06-22T21:13:42 | M116: 11 | N116: 1012888-Seth | O116: 0
A117: 1012941 | B117: Andras | C117: p | D117: Gold | E117: Division Reaper Zed | F117: 32 | G117: 30 | H117: 685 | I117: 448 | J117: 2014-05-08 | K117: 14 days | L117: 2014-06-22T11:41:12 | M117: 5 | N117: 1012941-Andras | O117: 0
A118: 1012986 | B118: COCO | C118: z | D118: Gold | E118: Division Roxara Omicron | F118: 15 | G118: 3 | H118: 372 | I118: 836 | J118: 2014-06-11 | K118: 1 days | L118: 2014-06-22T14:06:23 | M118: 9 | N118: 1012986-COCO | O118: 0
A119: 1013127 | B119: Charon | C119: p | D119: Gold | E119: Division Thor Kilo | F119: 25 | G119: 24 | H119: 682 | I119: 434 | J119: 2014-05-30 | K119: 5 hours | L119: 2014-06-22T11:41:59 | M119: 5 | N119: 1013127-Charon | O119: 0
A120: 1013132 | B120: Maxeee | C120: p | D120: Gold | E120: Division Lenassa Sierra | F120: 3 | G120: 0 | H120: 60 | I120: 1028 | J120: 2014-05-23 | K120: 29 days | L120: 2014-06-22T19:37:04 | M120: 10 | N120: 1013132-Maxeee | O120: 0
A121: 1013173 | B121: BartKnucle | C121: z | D121: Gold | E121: Division Moria Foxtrot | F121: 6 | G121: 1 | H121: 150 | I121: 983 | J121: 2014-04-21 | K121: 23 days | L121: 2014-06-22T17:37:00 | M121: 10 | N121: 1013173-BartKnucle | O121: 0
A122: 1013217 | B122: oppJustsmile | C122: p | D122: Gold | E122: Division Preserver Beta | F122: 15 | G122: 13 | H122: 340 | I122: 789 | J122: 2014-05-02 | K122: 50 days | L122: 2014-06-22T14:30:04 | M122: 8 | N122: 1013217-oppJustsmile | O122: 0
A123: 1013251 | B123: Raziel | C123: t | D123: Gold | E123: Division Brood Lord Gamma | F123: 28 | G123: 23 | H123: 744 | I123: 434 | J123: 2014-06-10 | K123: 1 days | L123: 2014-06-22T11:24:14 | M123: 5 | N123: 1013251-Raziel | O123: 0
A124: 1013346 | B124: RTArmistead | C124: t | D124: Gold | E124: Division Kerrigan Uncle | F124: 29 | G124: 24 | H124: 737 | I124: 415 | J124: 2014-05-06 | K124: 27 days | L124: 2014-06-22T11:25:58 | M124: 4 | N124: 1013346-RTArmistead | O124: 0
A125: 1013355 | B125: LORD | C125: z | D125: Gold | E125: Division Argo Kilo | F125: 9 | G125: 14 | H125: 305 | I125: 797 | J125: 2014-06-13 | K125: 6 days | L125: 2014-06-22T14:54:33 | M125: 8 | N125: 1013355-LORD | O125: 0
A126: 1013436 | B126: Terribull | C126: z | D126: Gold | E126: Division Nargil Eta | F126: 18 | G126: 16 | H126: 447 | I126: 720 | J126: 2014-06-16 | K126: 4 hours | L126: 2014-06-22T13:19:00 | M126: 7 | N126: 1013436-Terribull | O126: 0
A127: 101344 | B127: marain | C127: t | D127: Gold | E127: Division Xerana Gravity | F127: 16 | G127: 18 | H127: 418 | I127: 679 | J127: 2014-06-15 | K127: 1 days | L127: 2014-06-22T13:37:29 | M127: 7 | N127: 101344-marain | O127: 0
A128: 1013467 | B128: Alta | C128: z | D128: Gold | E128: Division Warfield Indigo | F128: 1 | G128: 3 | H128: 30 | I128: 1022 | J128: 2014-04-24 | K128: 58 days | L128: 2014-06-22T20:12:26 | M128: 10 | N128: 1013467-Alta | O128: 0
A129: 1013488 | B129: Uch | C129: z | D129: Gold | E129: Division Duran Echo | F129: 5 | G129: 8 | H129: 221 | I129: 928 | J129: 2014-06-13 | K129: 7 days | L129: 2014-06-22T16:14:31 | M129: 9 | N129: 1013488-Uch | O129: 0
A130: 1013493 | B130: univox | C130: t | D130: Gold | E130: Division Nargil Eta | F130: 18 | G130: 12 | H130: 485 | I130: 679 | J130: 2014-05-03 | K130: 6 days | L130: 2014-06-22T12:59:07 | M130: 7 | N130: =A130&"-"&B130 -> 1013493-univox | O130: 0
A131: 1013503 | B131: hannibal | C131: p | D131: Gold | E131: Division Defiler Theta | F131: 8 | G131: 1 | H131: 228 | I131: 959 | J131: 2014-05-21 | K131: 11 days | L131: 2014-06-22T16:07:26 | M131: 10 | N131: 1013503-hannibal | O131: 0
A132: 1013569 | B132: Styx | C132: t | D132: Gold | E132: Division Khalis Charlie | F132: 2 | G132: 6 | H132: 0 | I132: 1058 | J132: 2014-05-17 | K132: 31 days | L132: 2014-06-22T21:13:43 | M132: 11 | N132: 1013569-Styx | O132: 0
A133: 1013725 | B133: boblezerg | C133: z | D133: Gold | E133: Division Leviathan Zeta | F133: 7 | G133: 2 | H133: 202 | I133: 963 | J133: 2014-05-18 | K133: 8 days | L133: 2014-06-22T16:36:53 | M133: 10 | N133: 1013725-boblezerg | O133: 0
A134: 1013834 | B134: Kai | C134: z | D134: Gold | E134: Division Hanson Pepper | F134: 6 | G134: 1 | H134: 204 | I134: 973 | J134: 2014-05-05 | K134: 42 days | L134: 2014-06-22T16:34:43 | M134: 10 | N134: 1013834-Kai | O134: 0
A135: 1014004 | B135: Pilvios | C135: p | D135: Gold | E135: Division Corruptor Pepper | F135: 18 | G135: 9 | H135: 310 | I135: 795 | J135: 2014-05-12 | K135: 35 days | L135: 2014-06-22T14:50:32 | M135: 8 | N135: 1014004-Pilvios | O135: 0
A136: 1014051 | B136: Giann | C136: p | D136: Gold | E136: Division Kelerchian Phi | F136: 2 | G136: 6 | H136: 62 | I136: 976 | J136: 2014-06-21 | K136: 5 hours | L136: 2014-06-22T19:34:05 | M136: 10 | N136: 1014051-Giann | O136: 0
A137: 1014095 | B137: nielsbalboa | C137: p | D137: Gold | E137: Division Koronis Tau | F137: 55 | G137: 54 | H137: 1066 | I137: 19 | J137: 2014-05-11 | K137: 9 hours | L137: 2014-06-22T09:59:45 | M137: 1 | N137: 1014095-nielsbalboa | O137: 0
A138: 1014160 | B138: alecsahdr | C138: z | D138: Gold | E138: Division Judicator Hawk | F138: 12 | G138: 5 | H138: 300 | I138: 748 | J138: 2014-06-18 | K138: 7 hours | L138: 2014-06-23T00:02:17 | M138: 8 | N138: 1014160-alecsahdr | O138: 0
A139: 1014261 | B139: Nullings | C139: t | D139: Gold | E139: Division Grizzly Uncle | F139: 12 | G139: 20 | H139: 366 | I139: 698 | J139: 2014-06-04 | K139: 6 days | L139: 2014-06-22T14:10:44 | M139: 7 | N139: 1014261-Nullings | O139: 0
A140: 1014276 | B140: jjakji | C140: t | D140: Gold | E140: Division Praetor Pepper | F140: 4 | G140: 1 | H140: 86 | I140: 1009 | J140: 2014-05-31 | K140: 6 days | L140: 2014-06-22T19:22:38 | M140: 10 | N140: 1014276-jjakji | O140: 0
A141: 1014612 | B141: Daneda | C141: t | D141: Gold | E141: Division Furinax Xi | F141: 3 | G141: 2 | H141: 60 | I141: 1011 | J141: 2014-04-21 | K141: 61 days | L141: 2014-06-22T19:37:06 | M141: 10 | N141: 1014612-Daneda | O141: 0
A142: 101470 | B142: Baltazar | C142: p | D142: Gold | E142: Division Marauder Echo | F142: 2 | G142: 4 | H142: 93 | I142: 1038 | J142: 2014-05-05 | K142: 47 days | L142: 2014-06-22T18:57:52 | M142: 10 | N142: 101470-Baltazar | O142: 0
A143: 101473 | B143: jnick | C143: z | D143: Gold | E143: Division Chau Sara Xi | F143: 44 | G143: 30 | H143: 1062 | I143: 180 | J143: 2014-05-16 | K143: 11 days | L143: 2014-06-22T10:01:22 | M143: 2 | N143: 101473-jnick | O143: 0
A144: 1014929 | B144: Senior | C144: z | D144: Gold | E144: Division Sentry Alamo | F144: 12 | G144: 9 | H144: 336 | I144: 812 | J144: 2014-05-03 | K144: 14 days | L144: 2014-06-22T14:32:57 | M144: 8 | N144: 1014929-Senior | O144: 0
A145: 1014948 | B145: RemiXxX | C145: t | D145: Gold | E145: Division Gantrithor Whiskey | F145: 3 | G145: 1 | H145: 116 | I145: 1016 | J145: 2014-05-21 | K145: 30 days | L145: 2014-06-22T18:23:25 | M145: 10 | N145: 1014948-RemiXxX | O145: 0
A146: 1015021 | B146: PreXoN | C146: t | D146: Gold | E146: Division Templar Quest | F146: 60 | G146: 40 | H146: 882 | I146: 320 | J146: 2014-05-14 | K146: 12 hours | L146: 2014-06-22T10:49:22 | M146: 4 | N146: 1015021-PreXoN | O146: 0
A147: 1015145 | B147: Tasqi | C147: p | D147: Gold | E147: Division New Folsom Victor | F147: 3 | G147: 14 | H147: 94 | I147: 900 | J147: 2014-04-26 | K147: 52 days | L147: 2014-06-22T18:56:36 | M147: 9 | N147: 1015145-Tasqi | O147: 0
A148: 1015445 | B148: KuN | C148: z | D148: Gold | E148: Division Araq November | F148: 2 | G148: 1 | H148: 30 | I148: 1043 | J148: 2014-06-15 | K148: 6 days | L148: 2014-06-22T20:12:28 | M148: 10 | N148: 1015445-KuN | O148: 0
A149: 1015653 | B149: ShimA | C149: z | D149: Gold | E149: Division Scion Chi | F149: 31 | G149: 29 | H149: 788 | I149: 351 | J149: 2014-05-31 | K149: 17 days | L149: 2014-06-22T11:12:37 | M149: 4 | N149: 1015653-ShimA | O149: 0
A150: 1016295 | B150: kopou | C150: t | D150: Gold | E150: Division Valkyrie Kilo | F150: 13 | G150: 15 | H150: 352 | I150: 759 | J150: 2014-05-19 | K150: 1 days | L150: 2014-06-22T14:21:34 | M150: 8 | N150: 1016295-kopou | O150: 0
A151: 1016425 | B151: Nate | C151: z | D151: Gold | E151: Division Hydralisk Omega | F151: 1 | G151: 0 | H151: 0 | I151: 1058 | J151: 2014-05-09 | K151: 43 days | L151: 2014-06-22T21:13:45 | M151: 11 | N151: 1016425-Nate | O151: 0
A152: 1016623 | B152: Actionklaus | C152: p | D152: Gold | E152: Division Reaver Gamma | F152: 29 | G152: 38 | H152: 839 | I152: 247 | J152: 2014-05-18 | K152: 10 hours | L152: 2014-06-22T10:58:57 | M152: 3 | N152: 1016623-Actionklaus | O152: 0
A153: 1016643 | B153: Horsik | C153: p | D153: Gold | E153: Division Duke X-Ray | F153: 1 | G153: 5 | H153: 0 | I153: 1058 | J153: 2014-06-01 | K153: 20 days | L153: 2014-06-22T21:13:47 | M153: 11 | N153: 1016643-Horsik | O153: 0
A154: 1016998 | B154: Rocedue | C154: z | D154: Gold | E154: Division Bucephalus Omicron | F154: 1 | G154: 1 | H154: 0 | I154: 1058 | J154: 2014-05-22 | K154: 30 days | L154: 2014-06-22T21:13:48 | M154: 11 | N154: 1016998-Rocedue | O154: 0
A155: 1017054 | B155: AllStar | C155: t | D155: Gold | E155: Division Scarab Victor | F155: 9 | G155: 3 | H155: 275 | I155: 908 | J155: 2014-05-10 | K155: 35 days | L155: 2014-06-22T15:19:29 | M155: 9 | N155: 1017054-AllStar | O155: 0
A156: 10171 | B156: awsometoschi | C156: t | D156: Gold | E156: Division Marine Mars | F156: 1 | G156: 1 | H156: 0 | I156: 1058 | J156: 2014-04-18 | K156: 64 days | L156: 2014-06-22T20:30:42 | M156: 11 | N156: 10171-awsometoschi | O156: 0
A157: 1017206 | B157: Elcocoboy | C157: z | D157: Gold | E157: Division Khas Tau | F157: 19 | G157: 30 | H157: 620 | I157: 478 | J157: 2014-04-20 | K157: 5 days | L157: 2014-06-22T12:00:30 | M157: 5 | N157: 1017206-Elcocoboy | O157: 0
A158: 1017803 | B158: shishishi | C158: r | D158: Gold | E158: Division Raszagal Lima | F158: 12 | G158: 17 | H158: 348 | I158: 749 | J158: 2014-06-12 | K158: 1 days | L158: 2014-06-22T14:24:25 | M158: 8 | N158: 1017803-shishishi | O158: 0
A159: 1018020 | B159: Leats | C159: p | D159: Gold | E159: Division Aleksander Dixie | F159: 8 | G159: 8 | H159: 256 | I159: 863 | J159: 2014-05-29 | K159: 23 days | L159: 2014-06-22T15:39:43 | M159: 9 | N159: 1018020-Leats | O159: 0
A160: 1018148 | B160: Cocoyod | C160: z | D160: Gold | E160: Division Hellion Pi | F160: 9 | G160: 15 | H160: 274 | I160: 780 | J160: 2014-05-02 | K160: 7 days | L160: 2014-06-22T15:20:34 | M160: 8 | N160: 1018148-Cocoyod | O160: 0
A161: 1018194 | B161: Liet | C161: p | D161: Gold | E161: Division Nova November | F161: 0 | G161: 2 | H161: 0 | I161: 1058 | J161: 2014-06-04 | K161: 17 days | L161: 2014-06-22T21:13:50 | M161: 11 | N161: 1018194-Liet | O161: 0
A162: 1018400 | B162: IronEagle | C162: p | D162: Gold | E162: Division Aldaris Juliet | F162: 34 | G162: 32 | H162: 458 | I162: 647 | J162: 2014-05-03 | K162: 42 days | L162: 2014-06-22T13:12:56 | M162: 7 | N162: 1018400-IronEagle | O162: 0
A163: 1018498 | B163: DenielColt | C163: r | D163: Gold | E163: Division Tyrador Whiskey | F163: 60 | G163: 51 | H163: 1178 | I163: 47 | J163: 2014-05-24 | K163: 1 days | L163: 2014-06-22T09:22:53 | M163: 1 | N163: 1018498-DenielColt | O163: 0
A164: 1018501 | B164: Startrip | C164: z | D164: Gold | E164: Division Lenassa Whiskey | F164: 7 | G164: 4 | H164: 178 | I164: 936 | J164: 2014-06-16 | K164: 4 days | L164: 2014-06-22T17:04:13 | M164: 9 | N164: 1018501-Startrip | O164: 0
A165: 1018550 | B165: Koji | C165: t | D165: Gold | E165: Division Talematros Whiskey | F165: 19 | G165: 10 | H165: 473 | I165: 715 | J165: 2014-05-21 | K165: 18 days | L165: 2014-06-22T13:05:16 | M165: 7 | N165: 1018550-Koji | O165: 0
A166: 1018573 | B166: mdp | C166: z | D166: Gold | E166: Division Roach Echo | F166: 13 | G166: 31 | H166: 324 | I166: 783 | J166: 2014-05-11 | K166: 24 days | L166: 2014-06-22T14:42:12 | M166: 8 | N166: 1018573-mdp | O166: 0
A167: 1018731 | B167: Sonynico | C167: t | D167: Gold | E167: Division Aiur Beta | F167: 47 | G167: 55 | H167: 896 | I167: 150 | J167: 2014-05-02 | K167: 12 hours | L167: 2014-06-22T10:46:12 | M167: 2 | N167: 1018731-Sonynico | O167: 0
A168: 1018785 | B168: Flanigan | C168: p | D168: Gold | E168: Division Pylon Omega | F168: 7 | G168: 4 | H168: 174 | I168: 938 | J168: 2014-05-29 | K168: 9 days | L168: 2014-06-22T17:09:06 | M168: 9 | N168: 1018785-Flanigan | O168: 0
A169: 101879 | B169: Estella | C169: z | D169: Gold | E169: Division Colossus Foxtrot | F169: 14 | G169: 3 | H169: 368 | I169: 865 | J169: 2014-05-03 | K169: 44 days | L169: 2014-06-22T14:08:55 | M169: 9 | N169: 101879-Estella | O169: 0
A170: 101890 | B170: igolas | C170: t | D170: Gold | E170: Division Hyperion Theta | F170: 2 | G170: 3 | H170: 0 | I170: 1058 | J170: 2014-06-01 | K170: 15 days | L170: 2014-06-22T20:32:20 | M170: 11 | N170: 101890-igolas | O170: 0
A171: 1018999 | B171: Jitou | C171: z | D171: Gold | E171: Division Tal’darim Pepper | F171: 4 | G171: 0 | H171: 88 | I171: 1014 | J171: 2014-05-23 | K171: 29 days | L171: 2014-06-22T19:16:03 | M171: 10 | N171: 1018999-Jitou | O171: 0
A172: 1019309 | B172: Yurex | C172: z | D172: Gold | E172: Division Kaloth Gravity | F172: 5 | G172: 6 | H172: 164 | I172: 930 | J172: 2014-05-13 | K172: 14 hours | L172: 2014-06-22T17:23:12 | M172: 9 | N172: 1019309-Yurex | O172: 0
A173: 1019334 | B173: Hosghen | C173: z | D173: Gold | E173: Division Defiler Theta | F173: 45 | G173: 59 | H173: 481 | I173: 606 | J173: 2014-04-14 | K173: 36 days | L173: 2014-06-22T13:01:26 | M173: 6 | N173: 1019334-Hosghen | O173: 0
A174: 1019350 | B174: Präscha | C174: t | D174: Gold | E174: Division Scout Pepper | F174: 40 | G174: 28 | H174: 946 | I174: 213 | J174: 2014-05-09 | K174: 1 days | L174: 2014-06-22T10:34:41 | M174: 3 | N174: 1019350-Präscha | O174: 0
A175: 1019443 | B175: Warpig | C175: z | D175: Gold | E175: Division Lenassa Whiskey | F175: 1 | G175: 1 | H175: 0 | I175: 1058 | J175: 2014-05-07 | K175: 45 days | L175: 2014-06-22T21:13:52 | M175: 11 | N175: 1019443-Warpig | O175: 0
A176: 1019475 | B176: IDAHO | C176: z | D176: Gold | E176: Division Artanis Romeo | F176: 3 | G176: 2 | H176: 118 | I176: 995 | J176: 2014-06-04 | K176: 17 days | L176: 2014-06-22T18:19:32 | M176: 10 | N176: 1019475-IDAHO | O176: 0
A177: 1019796 | B177: GHARN | C177: z | D177: Gold | E177: Division Aiur Nu | F177: 6 | G177: 1 | H177: 181 | I177: 975 | J177: 2014-05-26 | K177: 11 days | L177: 2014-06-22T17:00:56 | M177: 10 | N177: 1019796-GHARN | O177: 0
A178: 1019940 | B178: SaF | C178: p | D178: Gold | E178: Division Aiur Beta | F178: 22 | G178: 15 | H178: 544 | I178: 637 | J178: 2014-05-06 | K178: 11 days | L178: 2014-06-22T12:33:33 | M178: 7 | N178: 1019940-SaF | O178: 0
A179: 1019997 | B179: HaLoX | C179: z | D179: Gold | E179: Division Horner Indigo | F179: 2 | G179: 0 | H179: 32 | I179: 1042 | J179: 2014-06-09 | K179: 12 days | L179: 2014-06-22T20:02:36 | M179: 10 | N179: 1019997-HaLoX | O179: 0
A180: 1020066 | B180: JonisSolis | C180: t | D180: Gold | E180: Division Preserver Nu | F180: 43 | G180: 49 | H180: 1027 | I180: 39 | J180: 2014-06-17 | K180: 1 days | L180: 2014-06-22T10:13:05 | M180: 1 | N180: 1020066-JonisSolis | O180: 0
A181: 1020171 | B181: DMoon | C181: p | D181: Gold | E181: Division Defiler Pi | F181: 63 | G181: 41 | H181: 187 | I181: 933 | J181: 2014-04-20 | K181: 61 days | L181: 2014-06-22T16:53:50 | M181: 9 | N181: 1020171-DMoon | O181: 0
A182: 1020533 | B182: Mizu | C182: z | D182: Gold | E182: Division Koronis Tau | F182: 10 | G182: 16 | H182: 373 | I182: 824 | J182: 2014-05-02 | K182: 20 days | L182: 2014-06-22T14:05:41 | M182: 8 | N182: 1020533-Mizu | O182: 0
A183: 1020644 | B183: Twister | C183: z | D183: Gold | E183: Division Chau Sara Xi | F183: 2 | G183: 3 | H183: 0 | I183: 1058 | J183: 2014-05-16 | K183: 36 days | L183: 2014-06-22T21:13:53 | M183: 11 | N183: 1020644-Twister | O183: 0
A184: 1020683 | B184: SauronsPets | C184: t | D184: Gold | E184: Division Sarengo Whiskey | F184: 41 | G184: 46 | H184: 554 | I184: 570 | J184: 2014-05-05 | K184: 6 days | L184: 2014-06-22T12:29:48 | M184: 6 | N184: 1020683-SauronsPets | O184: 0
A185: 1020799 | B185: Utopic | C185: t | D185: Gold | E185: Division Forge Lima | F185: 24 | G185: 5 | H185: 562 | I185: 722 | J185: 2014-05-04 | K185: 14 hours | L185: 2014-06-22T12:26:10 | M185: 7 | N185: 1020799-Utopic | O185: 0
A186: 1020947 | B186: SolidGling | C186: p | D186: Gold | E186: Division Hellion Pi | F186: 4 | G186: 3 | H186: 138 | I186: 980 | J186: 2014-05-02 | K186: 44 days | L186: 2014-06-22T17:55:45 | M186: 10 | N186: 1020947-SolidGling | O186: 0
A187: 1021074 | B187: MadMax | C187: t | D187: Gold | E187: Division Defiler Beta | F187: 4 | G187: 4 | H187: 142 | I187: 978 | J187: 2014-06-05 | K187: 15 days | L187: 2014-06-22T17:48:20 | M187: 10 | N187: 1021074-MadMax | O187: 0
A188: 1021090 | B188: Dandelion | C188: p | D188: Gold | E188: Division Valerian Delta | F188: 20 | G188: 4 | H188: 497 | I188: 778 | J188: 2014-06-10 | K188: 2 days | L188: 2014-06-22T12:53:29 | M188: 8 | N188: 1021090-Dandelion | O188: 0
A189: 1021214 | B189: Pert | C189: z | D189: Gold | E189: Division Zeratul Tau | F189: 2 | G189: 7 | H189: 70 | I189: 973 | J189: 2014-06-18 | K189: 1 days | L189: 2014-06-22T19:29:38 | M189: 10 | N189: 1021214-Pert | O189: 0
A190: 1021239 | B190: propagare | C190: t | D190: Gold | E190: Division Ultralisk Romeo | F190: 78 | G190: 78 | H190: 700 | I190: 417 | J190: 2014-05-03 | K190: 27 days | L190: 2014-06-22T11:37:06 | M190: 4 | N190: 1021239-propagare | O190: 0
A191: 1021304 | B191: Careem | C191: z | D191: Gold | E191: Division Lurker X-Ray | F191: 33 | G191: 27 | H191: 753 | I191: 333 | J191: 2014-06-12 | K191: 4 days | L191: 2014-06-22T11:21:48 | M191: 4 | N191: 1021304-Careem | O191: 0
A192: 1021512 | B192: zadrim | C192: r | D192: Gold | E192: Division Zeratul Tango | F192: 204 | G192: 201 | H192: 1125 | I192: 26 | J192: 2014-05-02 | K192: 1 days | L192: 2014-06-22T09:37:20 | M192: 1 | N192: 1021512-zadrim | O192: 0
A193: 1021518 | B193: Muse | C193: r | D193: Gold | E193: Division Nova November | F193: 12 | G193: 7 | H193: 290 | I193: 829 | J193: 2014-06-04 | K193: 2 days | L193: 2014-06-22T15:07:00 | M193: 8 | N193: 1021518-Muse | O193: 0
A194: 1021544 | B194: BLingUncle | C194: z | D194: Gold | E194: Division Uraj Iota | F194: 49 | G194: 69 | H194: 554 | I194: 550 | J194: 2014-05-06 | K194: 36 days | L194: 2014-06-22T12:29:49 | M194: 6 | N194: =A194&"-"&B194 -> 1021544-BLingUncle | O194: 0
A195: 1021744 | B195: Jaximus | C195: t | D195: Gold | E195: Division Aleksander Dixie | F195: 12 | G195: 10 | H195: 324 | I195: 789 | J195: 2014-05-28 | K195: 16 days | L195: 2014-06-22T14:42:13 | M195: 8 | N195: 1021744-Jaximus | O195: 0
A196: 1021870 | B196: TLTwizteR | C196: z | D196: Gold | E196: Division Sentry Oscar | F196: 9 | G196: 3 | H196: 261 | I196: 933 | J196: 2014-05-31 | K196: 6 days | L196: 2014-06-22T15:31:57 | M196: 9 | N196: 1021870-TLTwizteR | O196: 0
A197: 1021909 | B197: AbeJacob | C197: p | D197: Gold | E197: Division Bucephalus Indigo | F197: 3 | G197: 4 | H197: 0 | I197: 1058 | J197: 2014-05-09 | K197: 43 days | L197: 2014-06-22T21:13:55 | M197: 11 | N197: 1021909-AbeJacob | O197: 0
A198: 1022066 | B198: JOH | C198: z | D198: Gold | E198: Division Fole Tango | F198: 10 | G198: 7 | H198: 296 | I198: 861 | J198: 2014-05-15 | K198: 15 days | L198: 2014-06-22T15:02:11 | M198: 9 | N198: 1022066-JOH | O198: 0
A199: 1022173 | B199: Povke | C199: t | D199: Gold | E199: Division Adun Kilo | F199: 3 | G199: 0 | H199: 104 | I199: 1027 | J199: 2014-05-23 | K199: 29 days | L199: 2014-06-22T18:47:18 | M199: 10 | N199: 1022173-Povke | O199: 0
A200: 1022190 | B200: Nowonda | C200: t | D200: Gold | E200: Division Hartley Nu | F200: 24 | G200: 33 | H200: 549 | I200: 564 | J200: 2014-04-20 | K200: 34 days | L200: 2014-06-22T12:31:56 | M200: 6 | N200: 1022190-Nowonda | O200: 0
... 4300 more rows

Sheet 1v1 Platinum
A1: ID | B1: Name | C1: Race | D1: League | E1: Division | F1: Win | G1: Loss | H1: Score | I1: Bonus Pool Remaining | J1: Date Joined | K1: Last Game | L1: Timestamp | M1: Bonus Pool Weeks Remaining | N1: ID-Name | O1: Duplicate
A2: 1000779 | B2: Blokk | C2: p | D2: Platinum | E2: Division Hanson Mars | F2: 5 | G2: 9 | H2: 64 | I2: 977 | J2: 2014-05-05 | K2: 33 days | L2: 2014-06-22T08:11:34 | M2: 10 | N2: =A2&"-"&B2 -> 1000779-Blokk | O2: 0
A3: 1001137 | B3: UnKnown | C3: z | D3: Platinum | E3: Division Praetor X-Ray | F3: 22 | G3: 17 | H3: 557 | I3: 559 | J3: 2014-06-10 | K3: 2 days | L3: 2014-06-22T05:54:26 | M3: 6 | N3: 1001137-UnKnown | O3: 0
A4: 1001666 | B4: Marneusarius | C4: z | D4: Platinum | E4: Division Talematros Gamma | F4: 23 | G4: 7 | H4: 515 | I4: 685 | J4: 2014-05-10 | K4: 24 days | L4: 2014-06-22T06:04:16 | M4: 7 | N4: 1001666-Marneusarius | O4: 0
A5: 1001798 | B5: éliteBrian | C5: t | D5: Platinum | E5: Division Mar Sara Kilo | F5: 31 | G5: 28 | H5: 826 | I5: 383 | J5: 2014-05-03 | K5: 4 hours | L5: 2014-06-22T05:00:25 | M5: 4 | N5: 1001798-éliteBrian | O5: 0
A6: 1002373 | B6: KroTaL | C6: t | D6: Platinum | E6: Division Khalis Charlie | F6: 50 | G6: 46 | H6: 1005 | I6: 135 | J6: 2014-05-02 | K6: 3 days | L6: 2014-06-22T04:27:41 | M6: 2 | N6: 1002373-KroTaL | O6: 0
A7: 1002414 | B7: kLing | C7: z | D7: Platinum | E7: Division Medic Psi | F7: 3 | G7: 2 | H7: 60 | I7: 1000 | J7: 2014-05-26 | K7: 19 days | L7: 2014-06-22T08:13:39 | M7: 10 | N7: 1002414-kLing | O7: 0
A8: 1002581 | B8: Simcaa | C8: z | D8: Platinum | E8: Division Bhekar Ro Hawk | F8: 45 | G8: 38 | H8: 875 | I8: 239 | J8: 2014-05-03 | K8: 14 days | L8: 2014-06-22T04:51:10 | M8: 3 | N8: 1002581-Simcaa | O8: 0
A9: 1002916 | B9: MaSaCRe | C9: t | D9: Platinum | E9: Division Duke Foxtrot | F9: 1 | G9: 3 | H9: 0 | I9: 1053 | J9: 2014-05-15 | K9: 34 days | L9: 2014-06-22T08:43:40 | M9: 11 | N9: 1002916-MaSaCRe | O9: 0
A10: 1003184 | B10: TrueStory | C10: z | D10: Platinum | E10: Division Goliath Kilo | F10: 3 | G10: 2 | H10: 86 | I10: 998 | J10: 2014-04-24 | K10: 58 days | L10: 2014-06-22T08:07:25 | M10: 10 | N10: 1003184-TrueStory | O10: 0
A11: 1003488 | B11: HopeProtocol | C11: r | D11: Platinum | E11: Division Hyperion Romeo | F11: 14 | G11: 7 | H11: 309 | I11: 828 | J11: 2014-05-09 | K11: 38 days | L11: 2014-06-22T07:01:47 | M11: 8 | N11: 1003488-HopeProtocol | O11: 0
A12: 1003675 | B12: Journeyman | C12: p | D12: Platinum | E12: Division Kalathi Juliet | F12: 18 | G12: 19 | H12: 530 | I12: 615 | J12: 2014-05-06 | K12: 5 hours | L12: 2014-06-22T06:00:30 | M12: 6 | N12: 1003675-Journeyman | O12: 0
A13: 1004223 | B13: Max | C13: r | D13: Platinum | E13: Division Samiku Phi | F13: 4 | G13: 3 | H13: 0 | I13: 1053 | J13: 2014-06-11 | K13: 1 days | L13: 2014-06-22T08:43:42 | M13: 11 | N13: 1004223-Max | O13: 0
A14: 1004552 | B14: Pitcher | C14: z | D14: Platinum | E14: Division Templar Bravo | F14: 82 | G14: 83 | H14: 1132 | I14: 57 | J14: 2014-04-14 | K14: 2 days | L14: 2014-06-22T03:49:27 | M14: 1 | N14: 1004552-Pitcher | O14: 0
A15: 1004608 | B15: LaLeLuBaBo | C15: z | D15: Platinum | E15: Division Preserver Nu | F15: 77 | G15: 45 | H15: 1204 | I15: 11 | J15: 2014-05-02 | K15: 9 hours | L15: 2014-06-22T03:35:57 | M15: 1 | N15: 1004608-LaLeLuBaBo | O15: 0
A16: 1005187 | B16: Ayumie | C16: z | D16: Platinum | E16: Division Kagg Bravo | F16: 28 | G16: 3 | H16: 415 | I16: 709 | J16: 2014-05-30 | K16: 22 days | L16: 2014-06-22T06:31:11 | M16: 7 | N16: 1005187-Ayumie | O16: 0
A17: 1005367 | B17: Мао | C17: p | D17: Platinum | E17: Division Aiur Phi | F17: 53 | G17: 44 | H17: 965 | I17: 175 | J17: 2014-05-14 | K17: 11 days | L17: 2014-06-22T04:35:53 | M17: 2 | N17: 1005367-Мао | O17: 0
A18: 1005433 | B18: gOsush | C18: t | D18: Platinum | E18: Division War Pigs Omicron | F18: 69 | G18: 37 | H18: 915 | I18: 228 | J18: 2014-05-25 | K18: 5 days | L18: 2014-06-22T04:44:03 | M18: 3 | N18: 1005433-gOsush | O18: 0
A19: 1005817 | B19: Zillio | C19: z | D19: Platinum | E19: Division Prelate Romeo | F19: 32 | G19: 24 | H19: 788 | I19: 369 | J19: 2014-06-01 | K19: 1 days | L19: 2014-06-22T05:08:08 | M19: 4 | N19: 1005817-Zillio | O19: 0
A20: 1006381 | B20: IJFO | C20: p | D20: Platinum | E20: Division Aiur Phi | F20: 7 | G20: 2 | H20: 126 | I20: 989 | J20: 2014-05-14 | K20: 35 days | L20: 2014-06-22T07:52:37 | M20: 10 | N20: 1006381-IJFO | O20: 0
A21: 1006734 | B21: PaddyAI | C21: z | D21: Platinum | E21: Division Artika Delta | F21: 18 | G21: 20 | H21: 360 | I21: 760 | J21: 2014-05-26 | K21: 14 days | L21: 2014-06-22T06:47:30 | M21: 8 | N21: 1006734-PaddyAI | O21: 0
A22: 1007088 | B22: Shakdal | C22: z | D22: Platinum | E22: Division Overlord Sigma | F22: 63 | G22: 47 | H22: 1086 | I22: 1 | J22: 2014-05-29 | K22: 2 hours | L22: 2014-06-22T04:04:28 | M22: 1 | N22: 1007088-Shakdal | O22: 0
A23: 1007242 | B23: Balladeer | C23: z | D23: Platinum | E23: Division Scarab Mu | F23: 40 | G23: 30 | H23: 657 | I23: 523 | J23: 2014-05-02 | K23: 2 hours | L23: 2014-06-22T05:32:29 | M23: 6 | N23: 1007242-Balladeer | O23: 0
A24: 1007246 | B24: Mave | C24: r | D24: Platinum | E24: Division Daggoth Beta | F24: 85 | G24: 89 | H24: 1080 | I24: 24 | J24: 2014-05-02 | K24: 1 days | L24: 2014-06-22T04:06:34 | M24: 1 | N24: 1007246-Mave | O24: 0
A25: 1007310 | B25: Unsufferable | C25: z | D25: Platinum | E25: Division Agria Romeo | F25: 146 | G25: 139 | H25: 1154 | I25: 11 | J25: 2014-05-02 | K25: 8 hours | L25: 2014-06-22T03:43:01 | M25: 1 | N25: 1007310-Unsufferable | O25: 0
A26: 1007404 | B26: Dook | C26: p | D26: Platinum | E26: Division Warp Prism Rho | F26: 23 | G26: 26 | H26: 616 | I26: 455 | J26: 2014-05-23 | K26: 13 days | L26: 2014-06-22T05:41:20 | M26: 5 | N26: 1007404-Dook | O26: 0
A27: 1007483 | B27: Aznaroth | C27: z | D27: Platinum | E27: Division Colossus November | F27: 344 | G27: 341 | H27: 1051 | I27: 7 | J27: 2014-05-07 | K27: 1 hours | L27: 2014-06-22T04:15:54 | M27: 1 | N27: 1007483-Aznaroth | O27: 0
A28: 1007791 | B28: Voltrik | C28: r | D28: Platinum | E28: Division Agria Romeo | F28: 58 | G28: 49 | H28: 1023 | I28: 45 | J28: 2014-05-02 | K28: 16 hours | L28: 2014-06-22T04:22:35 | M28: 1 | N28: 1007791-Voltrik | O28: 0
A29: 1008054 | B29: Zakard | C29: z | D29: Platinum | E29: Division Artika Gamma | F29: 21 | G29: 12 | H29: 487 | I29: 625 | J29: 2014-06-05 | K29: 8 days | L29: 2014-06-22T06:11:10 | M29: 6 | N29: 1008054-Zakard | O29: 0
A30: 1008382 | B30: SeVenDarKneS | C30: z | D30: Platinum | E30: Division Scarab Mu | F30: 57 | G30: 40 | H30: 652 | I30: 494 | J30: 2014-05-03 | K30: 31 days | L30: 2014-06-22T05:33:27 | M30: 5 | N30: 1008382-SeVenDarKneS | O30: 0
A31: 1008657 | B31: Taffuz | C31: t | D31: Platinum | E31: Division Mohandar Mars | F31: 2 | G31: 0 | H31: 30 | I31: 1037 | J31: 2014-04-14 | K31: 58 days | L31: 2014-06-22T08:27:16 | M31: 10 | N31: 1008657-Taffuz | O31: 0
A32: 1009074 | B32: Baffius | C32: p | D32: Platinum | E32: Division Norad Pi | F32: 48 | G32: 26 | H32: 937 | I32: 238 | J32: 2014-06-01 | K32: 15 days | L32: 2014-06-22T04:40:29 | M32: 3 | N32: 1009074-Baffius | O32: 0
A33: 1009222 | B33: DeadIsRed | C33: z | D33: Platinum | E33: Division Scimitar Sierra | F33: 4 | G33: 0 | H33: 86 | I33: 1009 | J33: 2014-05-16 | K33: 3 days | L33: 2014-06-22T08:07:26 | M33: 10 | N33: 1009222-DeadIsRed | O33: 0
A34: 1009223 | B34: tafkap | C34: z | D34: Platinum | E34: Division Khaydarin Zed | F34: 237 | G34: 242 | H34: 1115 | I34: 5 | J34: 2014-05-02 | K34: 7 hours | L34: 2014-06-22T03:54:46 | M34: 1 | N34: 1009223-tafkap | O34: 0
A35: 1009288 | B35: CrusherT | C35: z | D35: Platinum | E35: Division Pridewater Alpha | F35: 27 | G35: 22 | H35: 721 | I35: 467 | J35: 2014-05-03 | K35: 2 days | L35: 2014-06-22T05:20:24 | M35: 5 | N35: 1009288-CrusherT | O35: 0
A36: 1011166 | B36: Raziel | C36: t | D36: Platinum | E36: Division Nova Charlie | F36: 43 | G36: 40 | H36: 1023 | I36: 139 | J36: 2014-05-12 | K36: 1 days | L36: 2014-06-22T04:22:36 | M36: 2 | N36: 1011166-Raziel | O36: 0
A37: 1011422 | B37: MarkyMark | C37: p | D37: Platinum | E37: Division Xerana Uncle | F37: 1 | G37: 2 | H37: 40 | I37: 1032 | J37: 2014-06-20 | K37: 1 days | L37: 2014-06-22T08:20:33 | M37: 10 | N37: 1011422-MarkyMark | O37: 0
A38: 1012040 | B38: MavDaMan | C38: t | D38: Platinum | E38: Division Zerus Phi | F38: 84 | G38: 86 | H38: 1066 | I38: 98 | J38: 2014-05-02 | K38: 6 days | L38: 2014-06-22T04:11:37 | M38: 1 | N38: 1012040-MavDaMan | O38: 0
A39: 1012282 | B39: tonas | C39: r | D39: Platinum | E39: Division Preserver Nu | F39: 47 | G39: 25 | H39: 1055 | I39: 165 | J39: 2014-05-05 | K39: 2 days | L39: 2014-06-22T04:14:54 | M39: 2 | N39: 1012282-tonas | O39: 0
A40: 1012593 | B40: Eden | C40: z | D40: Platinum | E40: Division Sakai Delta | F40: 33 | G40: 42 | H40: 708 | I40: 347 | J40: 2014-05-02 | K40: 15 days | L40: 2014-06-22T05:22:46 | M40: 4 | N40: 1012593-Eden | O40: 0
A41: 1012724 | B41: Dewi | C41: t | D41: Platinum | E41: Division Zealot Chi | F41: 36 | G41: 21 | H41: 848 | I41: 321 | J41: 2014-05-31 | K41: 8 days | L41: 2014-06-22T04:56:03 | M41: 4 | N41: 1012724-Dewi | O41: 0
A42: 1012891 | B42: cptsensor | C42: t | D42: Platinum | E42: Division Changeling Theta | F42: 14 | G42: 12 | H42: 399 | I42: 741 | J42: 2014-05-03 | K42: 15 days | L42: 2014-06-22T06:35:44 | M42: 8 | N42: 1012891-cptsensor | O42: 0
A43: 1013026 | B43: Jeebus | C43: t | D43: Platinum | E43: Division Swann Indigo | F43: 46 | G43: 51 | H43: 449 | I43: 687 | J43: 2014-05-02 | K43: 8 days | L43: 2014-06-22T06:22:18 | M43: 7 | N43: 1013026-Jeebus | O43: 0
A44: 1013108 | B44: PyramidHead | C44: t | D44: Platinum | E44: Division Khas Lambda | F44: 0 | G44: 1 | H44: 0 | I44: 1053 | J44: 2014-06-02 | K44: 19 days | L44: 2014-06-22T08:43:43 | M44: 11 | N44: 1013108-PyramidHead | O44: 0
A45: 1013306 | B45: madBONd | C45: z | D45: Platinum | E45: Division Praetor X-Ray | F45: 47 | G45: 13 | H45: 850 | I45: 346 | J45: 2014-06-10 | K45: 7 days | L45: 2014-06-22T04:55:36 | M45: 4 | N45: 1013306-madBONd | O45: 0
A46: 1013349 | B46: elnitz | C46: z | D46: Platinum | E46: Division Warfield Rho | F46: 55 | G46: 48 | H46: 772 | I46: 326 | J46: 2014-05-04 | K46: 21 days | L46: 2014-06-22T05:11:17 | M46: 4 | N46: 1013349-elnitz | O46: 0
A47: 1013585 | B47: Imo | C47: r | D47: Platinum | E47: Division Taarim Indigo | F47: 17 | G47: 5 | H47: 416 | I47: 783 | J47: 2014-06-08 | K47: 12 hours | L47: 2014-06-22T06:30:52 | M47: 8 | N47: 1013585-Imo | O47: 0
A48: 1013711 | B48: Nocturnal | C48: p | D48: Platinum | E48: Division Phash Charlie | F48: 1 | G48: 12 | H48: 0 | I48: 1053 | J48: 2014-06-16 | K48: 8 hours | L48: 2014-06-22T08:43:44 | M48: 11 | N48: 1013711-Nocturnal | O48: 0
A49: 1013748 | B49: Elegast | C49: t | D49: Platinum | E49: Division Braxis Psi | F49: 122 | G49: 117 | H49: 882 | I49: 211 | J49: 2014-06-03 | K49: 8 days | L49: 2014-06-22T04:50:04 | M49: 3 | N49: 1013748-Elegast | O49: 0
A50: 1013892 | B50: Cookie | C50: z | D50: Platinum | E50: Division Mar Sara Kilo | F50: 37 | G50: 23 | H50: 851 | I50: 146 | J50: 2014-05-07 | K50: 3 hours | L50: 2014-06-22T04:55:24 | M50: 2 | N50: 1013892-Cookie | O50: 0
A51: 1013923 | B51: SnowBlood | C51: t | D51: Platinum | E51: Division Templar Bravo | F51: 6 | G51: 6 | H51: 107 | I51: 966 | J51: 2014-04-14 | K51: 64 days | L51: 2014-06-22T07:59:24 | M51: 10 | N51: 1013923-SnowBlood | O51: 0
A52: 1014005 | B52: TheSane | C52: p | D52: Platinum | E52: Division Praetor X-Ray | F52: 38 | G52: 54 | H52: 966 | I52: 57 | J52: 2014-06-11 | K52: 1 days | L52: 2014-06-22T04:35:37 | M52: 1 | N52: 1014005-TheSane | O52: 0
A53: 1014020 | B53: Halbrok | C53: z | D53: Platinum | E53: Division Artanis Mars | F53: 1 | G53: 2 | H53: 0 | I53: 1053 | J53: 2014-06-09 | K53: 11 days | L53: 2014-06-22T08:43:45 | M53: 11 | N53: 1014020-Halbrok | O53: 0
A54: 1014055 | B54: Brave | C54: z | D54: Platinum | E54: Division Braxis Psi | F54: 0 | G54: 1 | H54: 0 | I54: 1053 | J54: 2014-06-03 | K54: 18 days | L54: 2014-06-22T08:43:47 | M54: 11 | N54: 1014055-Brave | O54: 0
A55: 1014878 | B55: Reality | C55: z | D55: Platinum | E55: Division Corsair Mu | F55: 10 | G55: 2 | H55: 252 | I55: 894 | J55: 2014-06-17 | K55: 2 days | L55: 2014-06-22T07:17:41 | M55: 9 | N55: 1014878-Reality | O55: 0
A56: 1014921 | B56: hezze | C56: r | D56: Platinum | E56: Division Tyrador X-Ray | F56: 83 | G56: 80 | H56: 1179 | I56: 0 | J56: 2014-05-02 | K56: 1 hours | L56: 2014-06-22T03:38:45 | M56: 1 | N56: 1014921-hezze | O56: 0
A57: 1015332 | B57: ROWmoondog | C57: z | D57: Platinum | E57: Division New Folsom Tau | F57: 26 | G57: 2 | H57: 492 | I57: 688 | J57: 2014-05-07 | K57: 38 days | L57: 2014-06-22T06:09:44 | M57: 7 | N57: 1015332-ROWmoondog | O57: 0
A58: 1016065 | B58: Shadow | C58: z | D58: Platinum | E58: Division Medivac Sigma | F58: 49 | G58: 34 | H58: 596 | I58: 505 | J58: 2014-05-02 | K58: 2 days | L58: 2014-06-22T05:45:44 | M58: 5 | N58: 1016065-Shadow | O58: 0
A59: 101631 | B59: Хонор | C59: z | D59: Platinum | E59: Division Gorn Iota | F59: 38 | G59: 11 | H59: 657 | I59: 520 | J59: 2014-05-15 | K59: 5 hours | L59: 2014-06-22T05:32:27 | M59: 5 | N59: 101631-Хонор | O59: 0
A60: 1016719 | B60: Almeva | C60: z | D60: Platinum | E60: Division Void Ray Oscar | F60: 11 | G60: 3 | H60: 270 | I60: 879 | J60: 2014-05-22 | K60: 7 days | L60: 2014-06-22T07:13:05 | M60: 9 | N60: 1016719-Almeva | O60: 0
A61: 1016744 | B61: gazrag | C61: z | D61: Platinum | E61: Division Routhe Juliet | F61: 1 | G61: 2 | H61: 0 | I61: 1053 | J61: 2014-05-27 | K61: 23 days | L61: 2014-06-22T08:43:48 | M61: 11 | N61: 1016744-gazrag | O61: 0
A62: 1017109 | B62: Bloo | C62: z | D62: Platinum | E62: Division Kagg Bravo | F62: 35 | G62: 15 | H62: 681 | I62: 524 | J62: 2014-05-02 | K62: 23 days | L62: 2014-06-22T05:27:22 | M62: 6 | N62: 1017109-Bloo | O62: 0
A63: 1017237 | B63: JoniKanoni | C63: p | D63: Platinum | E63: Division Khas Lambda | F63: 43 | G63: 13 | H63: 824 | I63: 424 | J63: 2014-06-09 | K63: 6 days | L63: 2014-06-22T05:00:51 | M63: 5 | N63: 1017237-JoniKanoni | O63: 0
A64: 1017258 | B64: McDuck | C64: p | D64: Platinum | E64: Division Overmind Nu | F64: 4 | G64: 6 | H64: 176 | I64: 949 | J64: 2014-05-18 | K64: 34 days | L64: 2014-06-22T07:39:34 | M64: 10 | N64: 1017258-McDuck | O64: 0
A65: 1017282 | B65: Styx | C65: r | D65: Platinum | E65: Division Zamara Yankee | F65: 1 | G65: 0 | H65: 0 | I65: 1053 | J65: 2014-06-19 | K65: 2 days | L65: 2014-06-22T08:43:49 | M65: 11 | N65: 1017282-Styx | O65: 0
A66: 1017583 | B66: Terbium | C66: z | D66: Platinum | E66: Division Wraith Omega | F66: 17 | G66: 18 | H66: 491 | I66: 640 | J66: 2014-05-31 | K66: 2 hours | L66: 2014-06-22T06:10:04 | M66: 7 | N66: =A66&"-"&B66 -> 1017583-Terbium | O66: 0
A67: 1017755 | B67: EnTrAx | C67: t | D67: Platinum | E67: Division Arbiter Iota | F67: 52 | G67: 19 | H67: 973 | I67: 228 | J67: 2014-06-04 | K67: 3 days | L67: 2014-06-22T04:34:17 | M67: 3 | N67: 1017755-EnTrAx | O67: 0
A68: 1017976 | B68: KimJongSkill | C68: t | D68: Platinum | E68: Division Pridewater Alpha | F68: 23 | G68: 29 | H68: 720 | I68: 447 | J68: 2014-04-19 | K68: 1 days | L68: 2014-06-22T05:20:34 | M68: 5 | N68: 1017976-KimJongSkill | O68: 0
A69: 1017984 | B69: tomawake | C69: p | D69: Platinum | E69: Division Overseer Victor | F69: 90 | G69: 91 | H69: 1067 | I69: 31 | J69: 2014-05-02 | K69: 1 days | L69: 2014-06-22T04:11:14 | M69: 1 | N69: 1017984-tomawake | O69: 0
A70: 1018634 | B70: fazerONE | C70: z | D70: Platinum | E70: Division Executor Gravity | F70: 15 | G70: 6 | H70: 362 | I70: 818 | J70: 2014-05-24 | K70: 27 days | L70: 2014-06-22T06:46:55 | M70: 8 | N70: 1018634-fazerONE | O70: 0
A71: 1019046 | B71: Kongsmaster | C71: z | D71: Platinum | E71: Division Hive Sigma | F71: 69 | G71: 33 | H71: 836 | I71: 417 | J71: 2014-05-07 | K71: 25 days | L71: 2014-06-22T04:58:20 | M71: 4 | N71: 1019046-Kongsmaster | O71: 0
A72: 1019603 | B72: RedDawn | C72: z | D72: Platinum | E72: Division Sarengo Bravo | F72: 3 | G72: 4 | H72: 70 | I72: 986 | J72: 2014-06-05 | K72: 15 days | L72: 2014-06-22T08:10:02 | M72: 10 | N72: 1019603-RedDawn | O72: 0
A73: 1019616 | B73: Nathanaël | C73: z | D73: Platinum | E73: Division Auriga Mars | F73: 14 | G73: 14 | H73: 400 | I73: 712 | J73: 2014-05-13 | K73: 7 days | L73: 2014-06-22T06:35:27 | M73: 7 | N73: 1019616-Nathanaël | O73: 0
A74: 101974 | B74: Kuart | C74: z | D74: Platinum | E74: Division DuGalle Uncle | F74: 1 | G74: 1 | H74: 30 | I74: 1037 | J74: 2014-06-11 | K74: 10 days | L74: 2014-06-22T08:24:39 | M74: 10 | N74: 101974-Kuart | O74: 0
A75: 1020011 | B75: Zharokh | C75: z | D75: Platinum | E75: Division Scourge Whiskey | F75: 3 | G75: 9 | H75: 106 | I75: 931 | J75: 2014-06-06 | K75: 12 days | L75: 2014-06-22T07:59:33 | M75: 9 | N75: 1020011-Zharokh | O75: 0
A76: 1020212 | B76: IIIIIIIIIIII | C76: z | D76: Platinum | E76: Division Pylon Whiskey | F76: 27 | G76: 16 | H76: 686 | I76: 576 | J76: 2014-05-11 | K76: 23 days | L76: 2014-06-22T05:26:41 | M76: 6 | N76: 1020212-IIIIIIIIIIII | O76: 0
A77: 1020255 | B77: Meatshield | C77: z | D77: Platinum | E77: Division Gateway Zed | F77: 33 | G77: 24 | H77: 575 | I77: 522 | J77: 2014-05-14 | K77: 34 days | L77: 2014-06-22T05:50:24 | M77: 5 | N77: 1020255-Meatshield | O77: 0
A78: 1020726 | B78: Saryrn | C78: z | D78: Platinum | E78: Division Mutalisk Lambda | F78: 42 | G78: 48 | H78: 1002 | I78: 105 | J78: 2014-05-04 | K78: 3 days | L78: 2014-06-22T04:28:19 | M78: 2 | N78: 1020726-Saryrn | O78: 0
A79: 1020987 | B79: Psycheo | C79: z | D79: Platinum | E79: Division Tassadar Iota | F79: 0 | G79: 1 | H79: 0 | I79: 1053 | J79: 2014-04-25 | K79: 57 days | L79: 2014-06-22T08:43:51 | M79: 11 | N79: 1020987-Psycheo | O79: 0
A80: 1021650 | B80: Newskiil | C80: z | D80: Platinum | E80: Division Antioch Alamo | F80: 34 | G80: 20 | H80: 826 | I80: 380 | J80: 2014-05-07 | K80: 7 hours | L80: 2014-06-22T05:00:26 | M80: 4 | N80: 1021650-Newskiil | O80: 0
A81: 1021677 | B81: NUADA | C81: p | D81: Platinum | E81: Division Meinhoff Epsilon | F81: 19 | G81: 23 | H81: 540 | I81: 570 | J81: 2014-05-05 | K81: 5 days | L81: 2014-06-22T05:58:23 | M81: 6 | N81: 1021677-NUADA | O81: 0
A82: 1021841 | B82: havane | C82: z | D82: Platinum | E82: Division Artika Gamma | F82: 20 | G82: 21 | H82: 530 | I82: 554 | J82: 2014-06-05 | K82: 46 minutes | L82: 2014-06-22T06:00:31 | M82: 6 | N82: 1021841-havane | O82: 0
A83: 1021861 | B83: Idontyoudont | C83: t | D83: Platinum | E83: Division Valkyrie Dixie | F83: 44 | G83: 39 | H83: 401 | I83: 751 | J83: 2014-05-02 | K83: 45 days | L83: 2014-06-22T06:35:11 | M83: 8 | N83: 1021861-Idontyoudont | O83: 0
A84: 1021979 | B84: Evras | C84: z | D84: Platinum | E84: Division Artanis Mars | F84: 2 | G84: 3 | H84: 0 | I84: 1053 | J84: 2014-06-09 | K84: 12 days | L84: 2014-06-22T08:43:52 | M84: 11 | N84: 1021979-Evras | O84: 0
A85: 1021993 | B85: Elias | C85: r | D85: Platinum | E85: Division Mar Sara Kilo | F85: 20 | G85: 16 | H85: 499 | I85: 621 | J85: 2014-04-14 | K85: 6 days | L85: 2014-06-22T06:08:15 | M85: 6 | N85: 1021993-Elias | O85: 0
A86: 1022006 | B86: Ink | C86: r | D86: Platinum | E86: Division UED Alamo | F86: 1 | G86: 1 | H86: 38 | I86: 1034 | J86: 2014-04-14 | K86: 67 days | L86: 2014-06-22T08:21:06 | M86: 10 | N86: 1022006-Ink | O86: 0
A87: 1022707 | B87: llllllllllll | C87: z | D87: Platinum | E87: Division Reaper Zeta | F87: 69 | G87: 51 | H87: 1121 | I87: 6 | J87: 2014-05-17 | K87: 31 minutes | L87: 2014-06-22T03:53:09 | M87: 1 | N87: 1022707-llllllllllll | O87: 0
A88: 1023527 | B88: Batlecruiser | C88: p | D88: Platinum | E88: Division Phash Upsilon | F88: 1 | G88: 1 | H88: 0 | I88: 1053 | J88: 2014-04-14 | K88: 50 days | L88: 2014-06-22T08:43:53 | M88: 11 | N88: 1023527-Batlecruiser | O88: 0
A89: 1023965 | B89: vaLis | C89: z | D89: Platinum | E89: Division Nova Charlie | F89: 75 | G89: 60 | H89: 875 | I89: 310 | J89: 2014-05-12 | K89: 20 days | L89: 2014-06-22T04:51:11 | M89: 3 | N89: 1023965-vaLis | O89: 0
A90: 1024275 | B90: Poir | C90: z | D90: Platinum | E90: Division Reaper Zeta | F90: 5 | G90: 10 | H90: 68 | I90: 974 | J90: 2014-05-17 | K90: 29 days | L90: 2014-06-22T08:10:35 | M90: 10 | N90: 1024275-Poir | O90: 0
A91: 102437 | B91: ForesT | C91: t | D91: Platinum | E91: Division Kagg Bravo | F91: 19 | G91: 20 | H91: 554 | I91: 591 | J91: 2014-05-02 | K91: 7 days | L91: 2014-06-22T05:55:14 | M91: 6 | N91: 102437-ForesT | O91: 0
A92: 1024679 | B92: Hermes | C92: z | D92: Platinum | E92: Division New Folsom Tau | F92: 31 | G92: 26 | H92: 600 | I92: 541 | J92: 2014-05-09 | K92: 19 days | L92: 2014-06-22T05:44:55 | M92: 6 | N92: 1024679-Hermes | O92: 0
A93: 1024782 | B93: Eldanar | C93: z | D93: Platinum | E93: Division Warp Prism Rho | F93: 31 | G93: 14 | H93: 670 | I93: 496 | J93: 2014-05-23 | K93: 10 days | L93: 2014-06-22T05:29:45 | M93: 5 | N93: 1024782-Eldanar | O93: 0
A94: 1025040 | B94: subzero | C94: t | D94: Platinum | E94: Division Wraith Omega | F94: 59 | G94: 46 | H94: 823 | I94: 277 | J94: 2014-05-31 | K94: 18 days | L94: 2014-06-22T05:01:05 | M94: 3 | N94: 1025040-subzero | O94: 0
A95: 102535 | B95: Wizard | C95: t | D95: Platinum | E95: Division Raszagal Hawk | F95: 16 | G95: 1 | H95: 381 | I95: 772 | J95: 2014-05-31 | K95: 2 hours | L95: 2014-06-22T06:40:44 | M95: 8 | N95: 102535-Wizard | O95: 0
A96: 1025500 | B96: HErMi | C96: p | D96: Platinum | E96: Division Scourge Whiskey | F96: 63 | G96: 31 | H96: 1056 | I96: 149 | J96: 2014-06-06 | K96: 9 days | L96: 2014-06-22T04:14:43 | M96: 2 | N96: 1025500-HErMi | O96: 0
A97: 1025833 | B97: Budinho | C97: p | D97: Platinum | E97: Division Moratun Zed | F97: 57 | G97: 49 | H97: 978 | I97: 67 | J97: 2014-06-02 | K97: 4 days | L97: 2014-06-22T04:33:13 | M97: 1 | N97: 1025833-Budinho | O97: 0
A98: 1025887 | B98: Skrulla | C98: t | D98: Platinum | E98: Division Medic Psi | F98: 54 | G98: 51 | H98: 766 | I98: 308 | J98: 2014-05-09 | K98: 3 hours | L98: 2014-06-22T05:12:29 | M98: 3 | N98: 1025887-Skrulla | O98: 0
A99: 1026082 | B99: llllllllllll | C99: p | D99: Platinum | E99: Division Antioch Alamo | F99: 149 | G99: 142 | H99: 654 | I99: 504 | J99: 2014-05-02 | K99: 26 days | L99: 2014-06-22T05:33:01 | M99: 5 | N99: 1026082-llllllllllll | O99: 0
A100: 1026128 | B100: Murdock | C100: t | D100: Platinum | E100: Division Amerigo Whiskey | F100: 104 | G100: 112 | H100: 829 | I100: 308 | J100: 2014-05-02 | K100: 20 days | L100: 2014-06-22T04:59:47 | M100: 3 | N100: 1026128-Murdock | O100: 0
A101: 1026204 | B101: DzAirways | C101: r | D101: Platinum | E101: Division Daggoth Beta | F101: 29 | G101: 33 | H101: 485 | I101: 618 | J101: 2014-05-02 | K101: 19 days | L101: 2014-06-22T06:12:03 | M101: 6 | N101: 1026204-DzAirways | O101: 0
A102: 1026221 | B102: Phill | C102: t | D102: Platinum | E102: Division Nahaan Kappa | F102: 2 | G102: 2 | H102: 116 | I102: 1009 | J102: 2014-05-11 | K102: 41 days | L102: 2014-06-22T07:56:23 | M102: 10 | N102: 1026221-Phill | O102: 0
A103: 1026381 | B103: BigDog | C103: t | D103: Platinum | E103: Division Dragoon Yankee | F103: 123 | G103: 122 | H103: 987 | I103: 18 | J103: 2014-06-08 | K103: 12 hours | L103: 2014-06-22T04:31:20 | M103: 1 | N103: 1026381-BigDog | O103: 0
A104: 1026652 | B104: AngryLings | C104: z | D104: Platinum | E104: Division Auriga Mars | F104: 22 | G104: 4 | H104: 516 | I104: 749 | J104: 2014-05-13 | K104: 21 days | L104: 2014-06-22T06:03:59 | M104: 8 | N104: 1026652-AngryLings | O104: 0
A105: 102667 | B105: ShurK | C105: z | D105: Platinum | E105: Division SCV Hawk | F105: 30 | G105: 14 | H105: 513 | I105: 650 | J105: 2014-05-16 | K105: 19 days | L105: 2014-06-22T06:04:53 | M105: 7 | N105: 102667-ShurK | O105: 0
A106: 1026835 | B106: MonkeyBone | C106: t | D106: Platinum | E106: Division Mohandar Zed | F106: 39 | G106: 45 | H106: 978 | I106: 106 | J106: 2014-06-10 | K106: 11 hours | L106: 2014-06-22T04:33:14 | M106: 2 | N106: 1026835-MonkeyBone | O106: 0
A107: 1027216 | B107: PhantomMiria | C107: z | D107: Platinum | E107: Division Changeling Theta | F107: 37 | G107: 22 | H107: 707 | I107: 394 | J107: 2014-05-26 | K107: 21 days | L107: 2014-06-22T05:22:57 | M107: 4 | N107: 1027216-PhantomMiria | O107: 0
A108: 1027325 | B108: Hazardous | C108: z | D108: Platinum | E108: Division Gateway Zed | F108: 10 | G108: 7 | H108: 262 | I108: 847 | J108: 2014-05-14 | K108: 7 days | L108: 2014-06-22T07:15:14 | M108: 9 | N108: 1027325-Hazardous | O108: 0
A109: 1027451 | B109: EVirus | C109: t | D109: Platinum | E109: Division Selendis Zeta | F109: 27 | G109: 17 | H109: 742 | I109: 494 | J109: 2014-06-14 | K109: 2 days | L109: 2014-06-22T05:16:25 | M109: 5 | N109: 1027451-EVirus | O109: 0
A110: 1027726 | B110: Kerrigan | C110: z | D110: Platinum | E110: Division Aldaris Xi | F110: 17 | G110: 9 | H110: 171 | I110: 943 | J110: 2014-04-17 | K110: 4 days | L110: 2014-06-22T07:41:30 | M110: 10 | N110: 1027726-Kerrigan | O110: 0
A111: 1027750 | B111: Hydroxicut | C111: t | D111: Platinum | E111: Division Archon Quest | F111: 50 | G111: 45 | H111: 1103 | I111: 2 | J111: 2014-05-06 | K111: 2 hours | L111: 2014-06-22T03:58:49 | M111: 1 | N111: 1027750-Hydroxicut | O111: 0
A112: 1027874 | B112: Ketchea | C112: z | D112: Platinum | E112: Division Zeratul Chi | F112: 7 | G112: 5 | H112: 216 | I112: 898 | J112: 2014-05-08 | K112: 39 days | L112: 2014-06-22T07:28:22 | M112: 9 | N112: 1027874-Ketchea | O112: 0
A113: 1027992 | B113: ToRdIEvel | C113: z | D113: Platinum | E113: Division Siege Tank Chi | F113: 202 | G113: 189 | H113: 1065 | I113: 97 | J113: 2014-05-22 | K113: 6 days | L113: 2014-06-22T04:12:09 | M113: 1 | N113: 1027992-ToRdIEvel | O113: 0
A114: 1028051 | B114: Djecraft | C114: t | D114: Platinum | E114: Division Bucephalus Pepper | F114: 1 | G114: 1 | H114: 0 | I114: 1053 | J114: 2014-05-29 | K114: 23 days | L114: 2014-06-22T08:43:54 | M114: 11 | N114: 1028051-Djecraft | O114: 0
A115: 1028075 | B115: PapaTschan | C115: t | D115: Platinum | E115: Division Colossus November | F115: 50 | G115: 38 | H115: 976 | I115: 230 | J115: 2014-05-05 | K115: 10 hours | L115: 2014-06-22T04:33:29 | M115: 3 | N115: 1028075-PapaTschan | O115: 0
A116: 1028346 | B116: Grawer | C116: p | D116: Platinum | E116: Division Umoja Victor | F116: 12 | G116: 7 | H116: 314 | I116: 798 | J116: 2014-05-05 | K116: 27 days | L116: 2014-06-22T07:00:32 | M116: 8 | N116: 1028346-Grawer | O116: 0
A117: 1028422 | B117: syxHerrBero | C117: p | D117: Platinum | E117: Division Gorn Iota | F117: 4 | G117: 6 | H117: 134 | I117: 932 | J117: 2014-05-15 | K117: 29 days | L117: 2014-06-22T07:50:57 | M117: 9 | N117: 1028422-syxHerrBero | O117: 0
A118: 1028453 | B118: Sparta | C118: p | D118: Platinum | E118: Division Sarengo Bravo | F118: 2 | G118: 0 | H118: 89 | I118: 1036 | J118: 2014-06-06 | K118: 15 days | L118: 2014-06-22T08:05:49 | M118: 10 | N118: 1028453-Sparta | O118: 0
A119: 10284 | B119: RusProtoss | C119: p | D119: Platinum | E119: Division Pylon Whiskey | F119: 10 | G119: 2 | H119: 252 | I119: 916 | J119: 2014-05-11 | K119: 41 days | L119: 2014-06-22T07:17:36 | M119: 9 | N119: 10284-RusProtoss | O119: 0
A120: 1028708 | B120: JFreeze | C120: z | D120: Platinum | E120: Division Dragoon Yankee | F120: 9 | G120: 8 | H120: 253 | I120: 872 | J120: 2014-05-20 | K120: 32 days | L120: 2014-06-22T07:17:26 | M120: 9 | N120: 1028708-JFreeze | O120: 0
A121: 102893 | B121: Nighthawk | C121: p | D121: Platinum | E121: Division Sarengo Bravo | F121: 17 | G121: 6 | H121: 394 | I121: 767 | J121: 2014-06-05 | K121: 15 days | L121: 2014-06-22T06:37:03 | M121: 8 | N121: 102893-Nighthawk | O121: 0
A122: 1029012 | B122: psylyN | C122: p | D122: Platinum | E122: Division Nahaan Kappa | F122: 3 | G122: 9 | H122: 66 | I122: 968 | J122: 2014-04-16 | K122: 45 days | L122: 2014-06-22T08:10:59 | M122: 10 | N122: 1029012-psylyN | O122: 0
A123: 1029774 | B123: Kafziel | C123: p | D123: Platinum | E123: Division Khas Lambda | F123: 18 | G123: 21 | H123: 392 | I123: 667 | J123: 2014-05-02 | K123: 44 days | L123: 2014-06-22T06:37:39 | M123: 7 | N123: 1029774-Kafziel | O123: 0
A124: 1029939 | B124: HolyDiver | C124: p | D124: Platinum | E124: Division Reaper Zeta | F124: 13 | G124: 19 | H124: 357 | I124: 731 | J124: 2014-05-17 | K124: 22 days | L124: 2014-06-22T06:48:39 | M124: 8 | N124: 1029939-HolyDiver | O124: 0
A125: 1029941 | B125: jimmy | C125: p | D125: Platinum | E125: Division Char Theta | F125: 14 | G125: 27 | H125: 350 | I125: 673 | J125: 2014-05-19 | K125: 8 days | L125: 2014-06-22T06:50:42 | M125: 7 | N125: 1029941-jimmy | O125: 0
A126: 1030218 | B126: Soul | C126: p | D126: Platinum | E126: Division Warp Prism Rho | F126: 2 | G126: 0 | H126: 30 | I126: 1037 | J126: 2014-05-23 | K126: 9 days | L126: 2014-06-22T08:27:17 | M126: 10 | N126: 1030218-Soul | O126: 0
A127: 1030422 | B127: Flash | C127: p | D127: Platinum | E127: Division Ramsey Kilo | F127: 19 | G127: 11 | H127: 483 | I127: 639 | J127: 2014-05-07 | K127: 30 days | L127: 2014-06-22T06:12:45 | M127: 7 | N127: 1030422-Flash | O127: 0
A128: 1030424 | B128: Apsalar | C128: r | D128: Platinum | E128: Division Reaper Zeta | F128: 16 | G128: 9 | H128: 414 | I128: 746 | J128: 2014-05-17 | K128: 2 hours | L128: 2014-06-22T06:31:32 | M128: 8 | N128: 1030424-Apsalar | O128: 0
A129: 1030434 | B129: WhiteLotus | C129: p | D129: Platinum | E129: Division Archon Quest | F129: 6 | G129: 1 | H129: 181 | I129: 956 | J129: 2014-05-06 | K129: 29 days | L129: 2014-06-22T07:38:10 | M129: 10 | N129: 1030434-WhiteLotus | O129: 0
A130: 1030679 | B130: Shopska | C130: p | D130: Platinum | E130: Division Umoja Victor | F130: 174 | G130: 171 | H130: 1215 | I130: 0 | J130: 2014-05-05 | K130: 6 hours | L130: 2014-06-22T03:35:09 | M130: 1 | N130: =A130&"-"&B130 -> 1030679-Shopska | O130: 0
A131: 1030788 | B131: NERUS | C131: p | D131: Platinum | E131: Division Void Ray Oscar | F131: 22 | G131: 15 | H131: 542 | I131: 599 | J131: 2014-05-22 | K131: 8 days | L131: 2014-06-22T05:57:51 | M131: 6 | N131: 1030788-NERUS | O131: 0
A132: 1030928 | B132: mrpungsvett | C132: r | D132: Platinum | E132: Division Zealot Chi | F132: 1 | G132: 2 | H132: 32 | I132: 1036 | J132: 2014-06-13 | K132: 8 days | L132: 2014-06-22T08:23:53 | M132: 10 | N132: 1030928-mrpungsvett | O132: 0
A133: 1030988 | B133: Liquid | C133: p | D133: Platinum | E133: Division Sakai Delta | F133: 41 | G133: 58 | H133: 843 | I133: 295 | J133: 2014-05-02 | K133: 11 days | L133: 2014-06-22T04:56:59 | M133: 3 | N133: 1030988-Liquid | O133: 0
A134: 1031050 | B134: attax | C134: p | D134: Platinum | E134: Division Sarengo Dixie | F134: 15 | G134: 8 | H134: 405 | I134: 767 | J134: 2014-05-03 | K134: 36 days | L134: 2014-06-22T06:34:05 | M134: 8 | N134: 1031050-attax | O134: 0
A135: 1031055 | B135: Slevin | C135: z | D135: Platinum | E135: Division Arbiter Iota | F135: 49 | G135: 38 | H135: 666 | I135: 403 | J135: 2014-05-07 | K135: 2 days | L135: 2014-06-22T05:30:33 | M135: 4 | N135: 1031055-Slevin | O135: 0
A136: 1031671 | B136: Renfree | C136: p | D136: Platinum | E136: Division Khalis Charlie | F136: 7 | G136: 3 | H136: 229 | I136: 954 | J136: 2014-05-02 | K136: 42 days | L136: 2014-06-22T07:24:53 | M136: 10 | N136: 1031671-Renfree | O136: 0
A137: 1032233 | B137: Plastik | C137: r | D137: Platinum | E137: Division Moratun Zed | F137: 44 | G137: 50 | H137: 490 | I137: 540 | J137: 2014-05-09 | K137: 13 days | L137: 2014-06-22T06:10:16 | M137: 6 | N137: 1032233-Plastik | O137: 0
A138: 1032647 | B138: Stubby | C138: z | D138: Platinum | E138: Division Kalathi Juliet | F138: 34 | G138: 8 | H138: 550 | I138: 687 | J138: 2014-05-06 | K138: 34 days | L138: 2014-06-22T05:56:02 | M138: 7 | N138: 1032647-Stubby | O138: 0
A139: 1033287 | B139: KeKeKe | C139: z | D139: Platinum | E139: Division Pridewater Alpha | F139: 12 | G139: 28 | H139: 382 | I139: 628 | J139: 2014-04-19 | K139: 15 days | L139: 2014-06-22T06:40:26 | M139: 7 | N139: 1033287-KeKeKe | O139: 0
A140: 1033773 | B140: Redrum | C140: t | D140: Platinum | E140: Division Felanis Indigo | F140: 68 | G140: 60 | H140: 1140 | I140: 29 | J140: 2014-04-14 | K140: 1 days | L140: 2014-06-22T03:47:14 | M140: 1 | N140: 1033773-Redrum | O140: 0
A141: 1033938 | B141: ryeryerye | C141: p | D141: Platinum | E141: Division Tarsonis Xi | F141: 59 | G141: 41 | H141: 1093 | I141: 30 | J141: 2014-06-20 | K141: 1 days | L141: 2014-06-22T04:02:20 | M141: 1 | N141: 1033938-ryeryerye | O141: 0
A142: 1034020 | B142: CriTiCaL | C142: p | D142: Platinum | E142: Division Firebat X-Ray | F142: 49 | G142: 42 | H142: 795 | I142: 400 | J142: 2014-05-03 | K142: 1 days | L142: 2014-06-22T05:06:35 | M142: 4 | N142: 1034020-CriTiCaL | O142: 0
A143: 1034285 | B143: Cid | C143: p | D143: Platinum | E143: Division Koronis Oscar | F143: 32 | G143: 24 | H143: 453 | I143: 683 | J143: 2014-05-04 | K143: 45 days | L143: 2014-06-22T06:21:13 | M143: 7 | N143: 1034285-Cid | O143: 0
A144: 1034899 | B144: Treex | C144: z | D144: Platinum | E144: Division Scimitar Sierra | F144: 22 | G144: 4 | H144: 498 | I144: 758 | J144: 2014-05-16 | K144: 2 days | L144: 2014-06-22T06:08:24 | M144: 8 | N144: 1034899-Treex | O144: 0
A145: 1034910 | B145: Chees | C145: t | D145: Platinum | E145: Division Aleksander Foxtrot | F145: 123 | G145: 125 | H145: 1130 | I145: 9 | J145: 2014-05-03 | K145: 5 hours | L145: 2014-06-22T03:49:59 | M145: 1 | N145: 1034910-Chees | O145: 0
A146: 1035136 | B146: Dellaos | C146: t | D146: Platinum | E146: Division Horner Omega | F146: 10 | G146: 14 | H146: 271 | I146: 802 | J146: 2014-05-08 | K146: 29 days | L146: 2014-06-22T07:12:44 | M146: 8 | N146: 1035136-Dellaos | O146: 0
A147: 1035425 | B147: Biboow | C147: t | D147: Platinum | E147: Division Zergling Alpha | F147: 23 | G147: 15 | H147: 325 | I147: 800 | J147: 2014-05-04 | K147: 48 days | L147: 2014-06-22T06:57:36 | M147: 8 | N147: 1035425-Biboow | O147: 0
A148: 1035462 | B148: Игнат | C148: t | D148: Platinum | E148: Division Anselm Pepper | F148: 6 | G148: 10 | H148: 189 | I148: 873 | J148: 2014-05-04 | K148: 6 days | L148: 2014-06-22T07:35:59 | M148: 9 | N148: 1035462-Игнат | O148: 0
A149: 1035512 | B149: Vyborg | C149: z | D149: Platinum | E149: Division Wraith Echo | F149: 27 | G149: 27 | H149: 706 | I149: 396 | J149: 2014-06-17 | K149: 5 hours | L149: 2014-06-22T05:23:07 | M149: 4 | N149: 1035512-Vyborg | O149: 0
A150: 103551 | B150: AdLoky | C150: z | D150: Platinum | E150: Division Tychus Tango | F150: 9 | G150: 11 | H150: 262 | I150: 811 | J150: 2014-05-17 | K150: 24 days | L150: 2014-06-22T07:15:09 | M150: 8 | N150: 103551-AdLoky | O150: 0
A151: 1035897 | B151: Momo | C151: z | D151: Platinum | E151: Division Warp Prism Rho | F151: 38 | G151: 30 | H151: 894 | I151: 204 | J151: 2014-05-23 | K151: 10 days | L151: 2014-06-22T04:47:47 | M151: 2 | N151: 1035897-Momo | O151: 0
A152: 1035941 | B152: Killavalon | C152: p | D152: Platinum | E152: Division Furinax Tau | F152: 112 | G152: 93 | H152: 1131 | I152: 8 | J152: 2014-05-14 | K152: 3 hours | L152: 2014-06-22T03:49:40 | M152: 1 | N152: 1035941-Killavalon | O152: 0
A153: 1036219 | B153: ZappBranigan | C153: t | D153: Platinum | E153: Division Valerian Echo | F153: 154 | G153: 148 | H153: 1159 | I153: 10 | J153: 2014-05-13 | K153: 6 hours | L153: 2014-06-22T03:42:01 | M153: 1 | N153: 1036219-ZappBranigan | O153: 0
A154: 1036332 | B154: Temir | C154: z | D154: Platinum | E154: Division Tassadar Iota | F154: 173 | G154: 193 | H154: 1020 | I154: 6 | J154: 2014-05-02 | K154: 3 minutes | L154: 2014-06-22T04:23:06 | M154: 1 | N154: 1036332-Temir | O154: 0
A155: 1036720 | B155: Klokker | C155: t | D155: Platinum | E155: Division Tyrador X-Ray | F155: 53 | G155: 73 | H155: 430 | I155: 670 | J155: 2014-05-02 | K155: 44 days | L155: 2014-06-22T06:27:17 | M155: 7 | N155: 1036720-Klokker | O155: 0
A156: 1036917 | B156: Zaxter | C156: p | D156: Platinum | E156: Division Siege Tank Chi | F156: 3 | G156: 2 | H156: 58 | I156: 1023 | J156: 2014-06-08 | K156: 12 days | L156: 2014-06-22T08:15:38 | M156: 10 | N156: 1036917-Zaxter | O156: 0
A157: 1037066 | B157: BeBackuped | C157: z | D157: Platinum | E157: Division Felanis Indigo | F157: 20 | G157: 12 | H157: 516 | I157: 594 | J157: 2014-05-04 | K157: 2 days | L157: 2014-06-22T06:04:00 | M157: 6 | N157: 1037066-BeBackuped | O157: 0
A158: 1037169 | B158: AleZ | C158: z | D158: Platinum | E158: Division New Folsom Tau | F158: 152 | G158: 145 | H158: 1058 | I158: 56 | J158: 2014-05-07 | K158: 3 days | L158: 2014-06-22T04:14:08 | M158: 1 | N158: 1037169-AleZ | O158: 0
A159: 1037501 | B159: DenisJenkins | C159: p | D159: Platinum | E159: Division Preserver Theta | F159: 7 | G159: 13 | H159: 196 | I159: 824 | J159: 2014-06-17 | K159: 2 hours | L159: 2014-06-22T07:33:49 | M159: 8 | N159: 1037501-DenisJenkins | O159: 0
A160: 1037525 | B160: Ringlord | C160: r | D160: Platinum | E160: Division Immortal Upsilon | F160: 2 | G160: 4 | H160: 0 | I160: 1053 | J160: 2014-06-08 | K160: 13 days | L160: 2014-06-22T08:43:55 | M160: 11 | N160: 1037525-Ringlord | O160: 0
A161: 1037571 | B161: Railgun | C161: p | D161: Platinum | E161: Division Ultralisk Beta | F161: 28 | G161: 4 | H161: 642 | I161: 668 | J161: 2014-05-12 | K161: 16 days | L161: 2014-06-22T05:35:35 | M161: 7 | N161: 1037571-Railgun | O161: 0
A162: 1039542 | B162: ChEiRoN | C162: z | D162: Platinum | E162: Division Preserver Theta | F162: 1 | G162: 0 | H162: 0 | I162: 1053 | J162: 2014-06-19 | K162: 2 days | L162: 2014-06-22T08:43:56 | M162: 11 | N162: 1039542-ChEiRoN | O162: 0
A163: 1039803 | B163: Stella | C163: t | D163: Platinum | E163: Division Warfield Rho | F163: 14 | G163: 8 | H163: 305 | I163: 811 | J163: 2014-05-04 | K163: 45 days | L163: 2014-06-22T07:02:53 | M163: 8 | N163: 1039803-Stella | O163: 0
A164: 1039899 | B164: Bekras | C164: t | D164: Platinum | E164: Division Muadun Juliet | F164: 0 | G164: 1 | H164: 0 | I164: 1053 | J164: 2014-04-22 | K164: 60 days | L164: 2014-06-22T08:43:58 | M164: 11 | N164: 1039899-Bekras | O164: 0
A165: 1039928 | B165: ŞęŘăŊå | C165: t | D165: Platinum | E165: Division Siege Tank Chi | F165: 21 | G165: 13 | H165: 536 | I165: 681 | J165: 2014-05-02 | K165: 18 days | L165: 2014-06-22T05:59:03 | M165: 7 | N165: 1039928-ŞęŘăŊå | O165: 0
A166: 1040045 | B166: Kyras | C166: t | D166: Platinum | E166: Division Xerana Uncle | F166: 56 | G166: 45 | H166: 1073 | I166: 5 | J166: 2014-06-20 | K166: 12 hours | L166: 2014-06-22T04:08:55 | M166: 1 | N166: 1040045-Kyras | O166: 0
A167: 1040353 | B167: BustaFlex | C167: z | D167: Platinum | E167: Division Judicator Hawk | F167: 30 | G167: 20 | H167: 729 | I167: 422 | J167: 2014-06-15 | K167: 2 days | L167: 2014-06-22T05:18:54 | M167: 5 | N167: 1040353-BustaFlex | O167: 0
A168: 1040367 | B168: Lindau | C168: p | D168: Platinum | E168: Division Lurker Phi | F168: 2 | G168: 6 | H168: 107 | I168: 1018 | J168: 2014-05-05 | K168: 47 days | L168: 2014-06-22T07:59:25 | M168: 10 | N168: 1040367-Lindau | O168: 0
A169: 10404 | B169: oSu | C169: p | D169: Platinum | E169: Division Argo X-Ray | F169: 15 | G169: 7 | H169: 330 | I169: 782 | J169: 2014-05-13 | K169: 39 days | L169: 2014-06-22T06:56:17 | M169: 8 | N169: 10404-oSu | O169: 0
A170: 1040689 | B170: Vhailor | C170: p | D170: Platinum | E170: Division Dylar Foxtrot | F170: 32 | G170: 25 | H170: 756 | I170: 415 | J170: 2014-05-04 | K170: 27 days | L170: 2014-06-22T05:14:13 | M170: 4 | N170: 1040689-Vhailor | O170: 0
A171: 1041637 | B171: blund | C171: t | D171: Platinum | E171: Division Bhekar Ro Hawk | F171: 19 | G171: 14 | H171: 500 | I171: 632 | J171: 2014-05-03 | K171: 4 hours | L171: 2014-06-22T06:08:03 | M171: 7 | N171: 1041637-blund | O171: 0
A172: 1041862 | B172: AntiDog | C172: p | D172: Platinum | E172: Division Warfield Rho | F172: 3 | G172: 6 | H172: 142 | I172: 949 | J172: 2014-05-04 | K172: 18 days | L172: 2014-06-22T07:48:32 | M172: 10 | N172: 1041862-AntiDog | O172: 0
A173: 1042229 | B173: teumas | C173: z | D173: Platinum | E173: Division Viking Yankee | F173: 2 | G173: 2 | H173: 60 | I173: 1012 | J173: 2014-06-19 | K173: 2 days | L173: 2014-06-22T08:13:40 | M173: 10 | N173: 1042229-teumas | O173: 0
A174: 1042301 | B174: AvP | C174: r | D174: Platinum | E174: Division Medivac Sigma | F174: 29 | G174: 28 | H174: 809 | I174: 390 | J174: 2014-05-02 | K174: 4 days | L174: 2014-06-22T05:04:01 | M174: 4 | N174: 1042301-AvP | O174: 0
A175: 1042383 | B175: ABdeuxAT | C175: z | D175: Platinum | E175: Division Umoja Victor | F175: 0 | G175: 1 | H175: 0 | I175: 1053 | J175: 2014-05-05 | K175: 47 days | L175: 2014-06-22T08:43:59 | M175: 11 | N175: 1042383-ABdeuxAT | O175: 0
A176: 1042443 | B176: Cael | C176: z | D176: Platinum | E176: Division Phash Upsilon | F176: 13 | G176: 15 | H176: 382 | I176: 752 | J176: 2014-04-14 | K176: 6 days | L176: 2014-06-22T06:40:28 | M176: 8 | N176: 1042443-Cael | O176: 0
A177: 1042624 | B177: SgtLucky | C177: t | D177: Platinum | E177: Division Xerana Uncle | F177: 57 | G177: 38 | H177: 1085 | I177: 9 | J177: 2014-06-21 | K177: 4 hours | L177: 2014-06-22T04:04:50 | M177: 1 | N177: 1042624-SgtLucky | O177: 0
A178: 1042816 | B178: KalanA | C178: t | D178: Platinum | E178: Division Zer’atai Kappa | F178: 67 | G178: 14 | H178: 849 | I178: 308 | J178: 2014-05-28 | K178: 1 days | L178: 2014-06-22T04:55:53 | M178: 3 | N178: 1042816-KalanA | O178: 0
A179: 1042929 | B179: Khakim | C179: z | D179: Platinum | E179: Division Aleksander Foxtrot | F179: 55 | G179: 36 | H179: 789 | I179: 409 | J179: 2014-05-03 | K179: 2 days | L179: 2014-06-22T05:08:01 | M179: 4 | N179: 1042929-Khakim | O179: 0
A180: 1042943 | B180: Husker | C180: t | D180: Platinum | E180: Division Siege Tank Chi | F180: 2 | G180: 5 | H180: 68 | I180: 999 | J180: 2014-04-14 | K180: 24 days | L180: 2014-06-22T08:10:36 | M180: 10 | N180: 1042943-Husker | O180: 0
A181: 1043259 | B181: croSS | C181: z | D181: Platinum | E181: Division Monlyth Pepper | F181: 2 | G181: 3 | H181: 66 | I181: 1001 | J181: 2014-05-26 | K181: 26 days | L181: 2014-06-22T08:11:00 | M181: 10 | N181: 1043259-croSS | O181: 0
A182: 1043267 | B182: Bishop | C182: z | D182: Platinum | E182: Division Lenassa Echo | F182: 2 | G182: 0 | H182: 38 | I182: 1033 | J182: 2014-04-28 | K182: 54 days | L182: 2014-06-22T08:21:07 | M182: 10 | N182: 1043267-Bishop | O182: 0
A183: 1043399 | B183: NOZES | C183: z | D183: Platinum | E183: Division Ehlna Omega | F183: 2 | G183: 1 | H183: 58 | I183: 1023 | J183: 2014-04-30 | K183: 14 days | L183: 2014-06-22T08:15:40 | M183: 10 | N183: 1043399-NOZES | O183: 0
A184: 1043475 | B184: Monokurek | C184: p | D184: Platinum | E184: Division Reaper Zeta | F184: 158 | G184: 152 | H184: 1065 | I184: 71 | J184: 2014-05-17 | K184: 4 days | L184: 2014-06-22T04:12:10 | M184: 1 | N184: 1043475-Monokurek | O184: 0
A185: 1043558 | B185: Tertull | C185: p | D185: Platinum | E185: Division Roxara Quest | F185: 9 | G185: 17 | H185: 268 | I185: 785 | J185: 2014-04-22 | K185: 26 days | L185: 2014-06-22T07:13:41 | M185: 8 | N185: 1043558-Tertull | O185: 0
A186: 1044050 | B186: Kalifen | C186: p | D186: Platinum | E186: Division Siege Tank Chi | F186: 18 | G186: 21 | H186: 515 | I186: 563 | J186: 2014-05-04 | K186: 6 days | L186: 2014-06-22T06:04:18 | M186: 6 | N186: 1044050-Kalifen | O186: 0
A187: 1044061 | B187: VOLKODAV | C187: z | D187: Platinum | E187: Division Talematros Gamma | F187: 10 | G187: 6 | H187: 296 | I187: 854 | J187: 2014-05-10 | K187: 12 days | L187: 2014-06-22T07:05:11 | M187: 9 | N187: 1044061-VOLKODAV | O187: 0
A188: 1044186 | B188: Drôk | C188: p | D188: Platinum | E188: Division SCV Hawk | F188: 3 | G188: 4 | H188: 58 | I188: 1023 | J188: 2014-05-16 | K188: 25 days | L188: 2014-06-22T08:15:41 | M188: 10 | N188: 1044186-Drôk | O188: 0
A189: 1044689 | B189: saMWell | C189: t | D189: Platinum | E189: Division Typhon Kappa | F189: 23 | G189: 17 | H189: 608 | I189: 544 | J189: 2014-05-03 | K189: 27 minutes | L189: 2014-06-22T05:43:04 | M189: 6 | N189: 1044689-saMWell | O189: 0
A190: 1044692 | B190: axit | C190: p | D190: Platinum | E190: Division Braxis Psi | F190: 7 | G190: 6 | H190: 246 | I190: 896 | J190: 2014-06-11 | K190: 7 days | L190: 2014-06-22T07:19:20 | M190: 9 | N190: 1044692-axit | O190: 0
A191: 1044942 | B191: Jemil | C191: z | D191: Platinum | E191: Division Scion Xi | F191: 280 | G191: 264 | H191: 1099 | I191: 10 | J191: 2014-05-09 | K191: 5 hours | L191: 2014-06-22T04:00:21 | M191: 1 | N191: 1044942-Jemil | O191: 0
A192: 1044948 | B192: AsAp | C192: t | D192: Platinum | E192: Division Baneling Sigma | F192: 4 | G192: 4 | H192: 41 | I192: 1015 | J192: 2014-04-13 | K192: 67 days | L192: 2014-06-22T08:20:25 | M192: 10 | N192: 1044948-AsAp | O192: 0
A193: 104529 | B193: Proklopik | C193: z | D193: Platinum | E193: Division Judicator Hawk | F193: 12 | G193: 3 | H193: 325 | I193: 863 | J193: 2014-06-14 | K193: 1 days | L193: 2014-06-22T06:57:25 | M193: 9 | N193: 104529-Proklopik | O193: 0
A194: 1045400 | B194: octanitro | C194: t | D194: Platinum | E194: Division Marine Omicron | F194: 46 | G194: 61 | H194: 995 | I194: 152 | J194: 2014-04-20 | K194: 1 days | L194: 2014-06-22T04:29:41 | M194: 2 | N194: =A194&"-"&B194 -> 1045400-octanitro | O194: 0
A195: 1045568 | B195: Ifs | C195: t | D195: Platinum | E195: Division Gorn Iota | F195: 3 | G195: 3 | H195: 108 | I195: 981 | J195: 2014-05-15 | K195: 34 days | L195: 2014-06-22T07:59:10 | M195: 10 | N195: 1045568-Ifs | O195: 0
A196: 1045743 | B196: garik | C196: z | D196: Platinum | E196: Division Zerus Phi | F196: 70 | G196: 68 | H196: 1035 | I196: 190 | J196: 2014-05-03 | K196: 10 days | L196: 2014-06-22T04:19:52 | M196: 2 | N196: 1045743-garik | O196: 0
A197: 1045831 | B197: OhmInpw | C197: r | D197: Platinum | E197: Division Monlyth Pepper | F197: 34 | G197: 27 | H197: 835 | I197: 307 | J197: 2014-05-06 | K197: 13 days | L197: 2014-06-22T04:58:32 | M197: 3 | N197: 1045831-OhmInpw | O197: 0
A198: 1045844 | B198: niclucky | C198: p | D198: Platinum | E198: Division Gateway Zed | F198: 4 | G198: 1 | H198: 136 | I198: 989 | J198: 2014-05-14 | K198: 38 days | L198: 2014-06-22T07:50:32 | M198: 10 | N198: 1045844-niclucky | O198: 0
A199: 1046285 | B199: pseis | C199: z | D199: Platinum | E199: Division Tychus Tango | F199: 6 | G199: 3 | H199: 194 | I199: 948 | J199: 2014-04-19 | K199: 51 days | L199: 2014-06-22T07:34:15 | M199: 10 | N199: 1046285-pseis | O199: 0
A200: 1046315 | B200: Злостик | C200: z | D200: Platinum | E200: Division Urun Lambda | F200: 163 | G200: 156 | H200: 1085 | I200: 27 | J200: 2014-05-22 | K200: 2 days | L200: 2014-06-22T04:04:52 | M200: 1 | N200: 1046315-Злостик | O200: 0
... 4300 more rows

Sheet 1v1 Diamond
A1: ID | B1: Name | C1: Race | D1: League | E1: Division | F1: Win | G1: Loss | H1: Score | I1: Bonus Pool Remaining | J1: Date Joined | K1: Last Game | L1: Timestamp | M1: Bonus Pool Weeks Remaining | N1: ID-Name | O1: Duplicate
A2: 1000785 | B2: Paco | C2: z | D2: Diamond | E2: Division Aldaris Psi | F2: 38 | G2: 34 | H2: 733 | I2: 387 | J2: 2014-06-10 | K2: 5 days | L2: 2014-06-22T01:13:47 | M2: 4 | N2: =A2&"-"&B2 -> 1000785-Paco | O2: 0
A3: 1001393 | B3: SlickHenrik | C3: z | D3: Diamond | E3: Division War Pigs Mu | F3: 22 | G3: 21 | H3: 609 | I3: 523 | J3: 2014-05-05 | K3: 8 days | L3: 2014-06-22T01:33:04 | M3: 6 | N3: 1001393-SlickHenrik | O3: 0
A4: 1001576 | B4: Stephano | C4: p | D4: Diamond | E4: Division Argo Uncle | F4: 41 | G4: 40 | H4: 193 | I4: 940 | J4: 2014-04-14 | K4: 57 days | L4: 2014-06-22T02:42:14 | M4: 10 | N4: 1001576-Stephano | O4: 0
A5: 1001608 | B5: Ben | C5: z | D5: Diamond | E5: Division Shuttle Zed | F5: 77 | G5: 64 | H5: 1190 | I5: 40 | J5: 2014-04-15 | K5: 2 days | L5: 2014-06-21T23:31:39 | M5: 1 | N5: 1001608-Ben | O5: 0
A6: 1002127 | B6: Matvey | C6: t | D6: Diamond | E6: Division Devourer Alamo | F6: 86 | G6: 73 | H6: 1105 | I6: 73 | J6: 2014-05-08 | K6: 4 days | L6: 2014-06-21T23:57:02 | M6: 1 | N6: 1002127-Matvey | O6: 0
A7: 1002406 | B7: UnicornFlex | C7: p | D7: Diamond | E7: Division Nargil Iota | F7: 17 | G7: 13 | H7: 470 | I7: 682 | J7: 2014-04-14 | K7: 3 days | L7: 2014-06-22T01:54:15 | M7: 7 | N7: 1002406-UnicornFlex | O7: 0
A8: 1002569 | B8: Ivthalas | C8: z | D8: Diamond | E8: Division Selendis Echo | F8: 1 | G8: 10 | H8: 30 | I8: 985 | J8: 2014-06-18 | K8: 2 days | L8: 2014-06-22T03:10:43 | M8: 10 | N8: 1002569-Ivthalas | O8: 0
A9: 1002589 | B9: FragStar | C9: r | D9: Diamond | E9: Division Braken Mars | F9: 1 | G9: 3 | H9: 30 | I9: 1034 | J9: 2014-04-16 | K9: 66 days | L9: 2014-06-22T03:10:44 | M9: 10 | N9: 1002589-FragStar | O9: 0
A10: 1002819 | B10: ArcherOI | C10: z | D10: Diamond | E10: Division Norad Theta | F10: 3 | G10: 1 | H10: 86 | I10: 1006 | J10: 2014-04-21 | K10: 48 days | L10: 2014-06-22T03:00:18 | M10: 10 | N10: 1002819-ArcherOI | O10: 0
A11: 1003063 | B11: NoFaCe | C11: z | D11: Diamond | E11: Division Mutalisk Gravity | F11: 107 | G11: 102 | H11: 1359 | I11: 13 | J11: 2014-04-14 | K11: 15 hours | L11: 2014-06-21T23:22:13 | M11: 1 | N11: 1003063-NoFaCe | O11: 0
A12: 1003148 | B12: Letmode | C12: t | D12: Diamond | E12: Division Nagglfar Epsilon | F12: 177 | G12: 178 | H12: 1211 | I12: 5 | J12: 2014-04-13 | K12: 2 hours | L12: 2014-06-21T23:29:14 | M12: 1 | N12: 1003148-Letmode | O12: 0
A13: 1004206 | B13: LondonPride | C13: z | D13: Diamond | E13: Division Braken Zeta | F13: 28 | G13: 20 | H13: 629 | I13: 538 | J13: 2014-05-02 | K13: 34 days | L13: 2014-06-22T01:29:40 | M13: 6 | N13: 1004206-LondonPride | O13: 0
A14: 1004687 | B14: DarkOne | C14: p | D14: Diamond | E14: Division Braken Zeta | F14: 3 | G14: 0 | H14: 76 | I14: 1011 | J14: 2014-05-02 | K14: 37 days | L14: 2014-06-22T03:01:31 | M14: 10 | N14: 1004687-DarkOne | O14: 0
A15: 1004734 | B15: Илья | C15: z | D15: Diamond | E15: Division Halcyon Kilo | F15: 1 | G15: 3 | H15: 30 | I15: 1013 | J15: 2014-05-09 | K15: 36 days | L15: 2014-06-22T03:10:45 | M15: 10 | N15: 1004734-Илья | O15: 0
A16: 1004784 | B16: Creyton | C16: z | D16: Diamond | E16: Division Devourer Zed | F16: 25 | G16: 33 | H16: 654 | I16: 450 | J16: 2014-05-03 | K16: 4 days | L16: 2014-06-22T01:25:41 | M16: 5 | N16: 1004784-Creyton | O16: 0
A17: 1004855 | B17: PoZu | C17: p | D17: Diamond | E17: Division Nargil Juliet | F17: 302 | G17: 301 | H17: 1106 | I17: 0 | J17: 2014-04-13 | K17: 1 hours | L17: 2014-06-21T23:56:33 | M17: 1 | N17: 1004855-PoZu | O17: 0
A18: 1005960 | B18: Ezekial | C18: p | D18: Diamond | E18: Division Devourer Omicron | F18: 6 | G18: 3 | H18: 142 | I18: 943 | J18: 2014-04-25 | K18: 55 days | L18: 2014-06-22T02:50:17 | M18: 10 | N18: 1005960-Ezekial | O18: 0
A19: 100608 | B19: IceDeath | C19: p | D19: Diamond | E19: Division Urun Quest | F19: 14 | G19: 4 | H19: 371 | I19: 836 | J19: 2014-04-30 | K19: 7 days | L19: 2014-06-22T02:12:46 | M19: 9 | N19: 100608-IceDeath | O19: 0
A20: 1006342 | B20: BlueLagoon | C20: z | D20: Diamond | E20: Division Corsair Romeo | F20: 12 | G20: 15 | H20: 377 | I20: 739 | J20: 2014-04-17 | K20: 16 days | L20: 2014-06-22T02:11:31 | M20: 8 | N20: 1006342-BlueLagoon | O20: 0
A21: 1006514 | B21: SuperMeatBoy | C21: z | D21: Diamond | E21: Division Tychus Omega | F21: 54 | G21: 45 | H21: 872 | I21: 264 | J21: 2014-05-07 | K21: 17 days | L21: 2014-06-22T00:53:09 | M21: 3 | N21: 1006514-SuperMeatBoy | O21: 0
A22: 1006676 | B22: TIMBA | C22: t | D22: Diamond | E22: Division Khaydarin Beta | F22: 16 | G22: 5 | H22: 400 | I22: 798 | J22: 2014-05-03 | K22: 2 days | L22: 2014-06-22T02:06:59 | M22: 8 | N22: 1006676-TIMBA | O22: 0
A23: 1006681 | B23: Raguel | C23: p | D23: Diamond | E23: Division Dominion Omicron | F23: 9 | G23: 19 | H23: 327 | I23: 719 | J23: 2014-05-11 | K23: 27 days | L23: 2014-06-22T02:20:42 | M23: 7 | N23: 1006681-Raguel | O23: 0
A24: 1006746 | B24: MaVepGStyle | C24: p | D24: Diamond | E24: Division Nagglfar Epsilon | F24: 233 | G24: 229 | H24: 1151 | I24: 4 | J24: 2014-04-13 | K24: 1 hours | L24: 2014-06-21T23:39:52 | M24: 1 | N24: 1006746-MaVepGStyle | O24: 0
A25: 1006839 | B25: Pewb | C25: t | D25: Diamond | E25: Division Shuttle Zed | F25: 54 | G25: 50 | H25: 979 | I25: 130 | J25: 2014-04-14 | K25: 8 days | L25: 2014-06-22T00:35:44 | M25: 2 | N25: 1006839-Pewb | O25: 0
A26: 1006912 | B26: MovieMaker | C26: t | D26: Diamond | E26: Division Braken Mars | F26: 52 | G26: 56 | H26: 1086 | I26: 126 | J26: 2014-04-14 | K26: 2 days | L26: 2014-06-22T00:04:55 | M26: 2 | N26: 1006912-MovieMaker | O26: 0
A27: 1007788 | B27: snAck | C27: z | D27: Diamond | E27: Division Gateway November | F27: 3 | G27: 0 | H27: 58 | I27: 1020 | J27: 2014-06-19 | K27: 7 hours | L27: 2014-06-22T03:05:38 | M27: 10 | N27: 1007788-snAck | O27: 0
A28: 1008431 | B28: Darkomicron | C28: p | D28: Diamond | E28: Division Gorn Sierra | F28: 17 | G28: 3 | H28: 558 | I28: 756 | J28: 2014-06-08 | K28: 10 days | L28: 2014-06-22T01:40:45 | M28: 8 | N28: 1008431-Darkomicron | O28: 0
A29: 1008974 | B29: Solcry | C29: p | D29: Diamond | E29: Division Pylon Delta | F29: 11 | G29: 8 | H29: 240 | I29: 879 | J29: 2014-04-16 | K29: 9 days | L29: 2014-06-22T02:35:04 | M29: 9 | N29: 1008974-Solcry | O29: 0
A30: 1009954 | B30: Afanasy | C30: z | D30: Diamond | E30: Division Corruptor Victor | F30: 145 | G30: 138 | H30: 804 | I30: 387 | J30: 2014-05-03 | K30: 1 days | L30: 2014-06-22T01:03:34 | M30: 4 | N30: 1009954-Afanasy | O30: 0
A31: 1010324 | B31: KoLiRiO | C31: t | D31: Diamond | E31: Division Scourge Epsilon | F31: 42 | G31: 26 | H31: 693 | I31: 430 | J31: 2014-05-10 | K31: 21 days | L31: 2014-06-22T01:19:19 | M31: 5 | N31: 1010324-KoLiRiO | O31: 0
A32: 1010802 | B32: BadManner | C32: t | D32: Diamond | E32: Division Liberty Kappa | F32: 41 | G32: 22 | H32: 849 | I32: 289 | J32: 2014-05-27 | K32: 17 days | L32: 2014-06-22T00:56:52 | M32: 3 | N32: 1010802-BadManner | O32: 0
A33: 1010805 | B33: BobbyCarrot | C33: z | D33: Diamond | E33: Division Mar Sara Zeta | F33: 28 | G33: 31 | H33: 695 | I33: 372 | J33: 2014-05-14 | K33: 5 days | L33: 2014-06-22T01:19:04 | M33: 4 | N33: 1010805-BobbyCarrot | O33: 0
A34: 1011037 | B34: Triggerhappy | C34: t | D34: Diamond | E34: Division Shuttle Alamo | F34: 80 | G34: 43 | H34: 940 | I34: 244 | J34: 2014-06-01 | K34: 16 days | L34: 2014-06-22T00:42:53 | M34: 3 | N34: 1011037-Triggerhappy | O34: 0
A35: 1011180 | B35: Привет | C35: t | D35: Diamond | E35: Division Arbiter X-Ray | F35: 61 | G35: 54 | H35: 1155 | I35: 7 | J35: 2014-05-03 | K35: 6 hours | L35: 2014-06-21T23:38:45 | M35: 1 | N35: 1011180-Привет | O35: 0
A36: 1011247 | B36: italz | C36: t | D36: Diamond | E36: Division Zergling Victor | F36: 59 | G36: 53 | H36: 957 | I36: 279 | J36: 2014-04-14 | K36: 4 days | L36: 2014-06-22T00:39:31 | M36: 3 | N36: 1011247-italz | O36: 0
A37: 1011314 | B37: opoa | C37: p | D37: Diamond | E37: Division Typhon Iota | F37: 13 | G37: 13 | H37: 378 | I37: 724 | J37: 2014-05-02 | K37: 37 days | L37: 2014-06-22T02:11:14 | M37: 7 | N37: 1011314-opoa | O37: 0
A38: 1011459 | B38: Stunter | C38: z | D38: Diamond | E38: Division Judicator Epsilon | F38: 9 | G38: 0 | H38: 246 | I38: 926 | J38: 2014-04-26 | K38: 55 days | L38: 2014-06-22T02:33:45 | M38: 9 | N38: 1011459-Stunter | O38: 0
A39: 1011614 | B39: StaNislaV | C39: t | D39: Diamond | E39: Division Carrier Upsilon | F39: 11 | G39: 13 | H39: 312 | I39: 797 | J39: 2014-06-04 | K39: 12 days | L39: 2014-06-22T02:23:03 | M39: 8 | N39: 1011614-StaNislaV | O39: 0
A40: 101206 | B40: Allsee | C40: t | D40: Diamond | E40: Division Liberty Kappa | F40: 76 | G40: 71 | H40: 808 | I40: 372 | J40: 2014-04-14 | K40: 22 days | L40: 2014-06-22T01:02:52 | M40: 4 | N40: 101206-Allsee | O40: 0
A41: 1012358 | B41: Bugsy | C41: z | D41: Diamond | E41: Division Jorgensen Indigo | F41: 97 | G41: 94 | H41: 1379 | I41: 9 | J41: 2014-04-15 | K41: 7 hours | L41: 2014-06-21T23:21:48 | M41: 1 | N41: 1012358-Bugsy | O41: 0
A42: 1012399 | B42: Johan | C42: t | D42: Diamond | E42: Division Braken Sigma | F42: 5 | G42: 7 | H42: 120 | I42: 958 | J42: 2014-04-20 | K42: 59 days | L42: 2014-06-22T02:53:31 | M42: 10 | N42: 1012399-Johan | O42: 0
A43: 1012918 | B43: green | C43: p | D43: Diamond | E43: Division Ramsey Indigo | F43: 96 | G43: 78 | H43: 1149 | I43: 28 | J43: 2014-06-03 | K43: 2 hours | L43: 2014-06-21T23:40:26 | M43: 1 | N43: 1012918-green | O43: 0
A44: 1012958 | B44: LYHxAlucard | C44: z | D44: Diamond | E44: Division Tassadar Lambda | F44: 95 | G44: 100 | H44: 1136 | I44: 3 | J44: 2014-04-14 | K44: 1 days | L44: 2014-06-21T23:44:26 | M44: 1 | N44: 1012958-LYHxAlucard | O44: 0
A45: 1013584 | B45: eTEKJannick | C45: p | D45: Diamond | E45: Division Pylon Alpha | F45: 4 | G45: 0 | H45: 86 | I45: 1006 | J45: 2014-04-30 | K45: 48 days | L45: 2014-06-22T03:00:20 | M45: 10 | N45: 1013584-eTEKJannick | O45: 0
A46: 1014106 | B46: SonyXperiaGO | C46: p | D46: Diamond | E46: Division Kerrigan Phi | F46: 19 | G46: 13 | H46: 469 | I46: 664 | J46: 2014-05-29 | K46: 17 days | L46: 2014-06-22T01:54:30 | M46: 7 | N46: 1014106-SonyXperiaGO | O46: 0
A47: 1014152 | B47: EniGmA | C47: p | D47: Diamond | E47: Division Viking Beta | F47: 3 | G47: 7 | H47: 58 | I47: 964 | J47: 2014-04-15 | K47: 1 days | L47: 2014-06-22T03:05:39 | M47: 10 | N47: 1014152-EniGmA | O47: 0
A48: 1014233 | B48: QuaTeras | C48: r | D48: Diamond | E48: Division Pylon Delta | F48: 43 | G48: 55 | H48: 1072 | I48: 10 | J48: 2014-04-16 | K48: 10 hours | L48: 2014-06-22T00:10:39 | M48: 1 | N48: 1014233-QuaTeras | O48: 0
A49: 1014427 | B49: ReaperGod | C49: t | D49: Diamond | E49: Division Archon Whiskey | F49: 166 | G49: 132 | H49: 1186 | I49: 8 | J49: 2014-06-05 | K49: 7 hours | L49: 2014-06-21T23:32:15 | M49: 1 | N49: 1014427-ReaperGod | O49: 0
A50: 1014663 | B50: Residuum | C50: z | D50: Diamond | E50: Division Typhon Juliet | F50: 14 | G50: 19 | H50: 406 | I50: 706 | J50: 2014-04-23 | K50: 18 days | L50: 2014-06-22T02:05:53 | M50: 7 | N50: 1014663-Residuum | O50: 0
A51: 1014692 | B51: Bergem | C51: t | D51: Diamond | E51: Division Ursa Xi | F51: 16 | G51: 7 | H51: 378 | I51: 772 | J51: 2014-05-17 | K51: 12 days | L51: 2014-06-22T02:11:15 | M51: 8 | N51: 1014692-Bergem | O51: 0
A52: 1015150 | B52: Mercury | C52: p | D52: Diamond | E52: Division Overlord Chi | F52: 0 | G52: 1 | H52: 0 | I52: 1049 | J52: 2014-05-09 | K52: 43 days | L52: 2014-06-22T03:21:05 | M52: 11 | N52: 1015150-Mercury | O52: 0
A53: 1015321 | B53: Lucifero | C53: t | D53: Diamond | E53: Division Boros Romeo | F53: 27 | G53: 31 | H53: 774 | I53: 368 | J53: 2014-06-14 | K53: 2 hours | L53: 2014-06-22T01:07:26 | M53: 4 | N53: 1015321-Lucifero | O53: 0
A54: 1016173 | B54: Lasbi | C54: z | D54: Diamond | E54: Division Shuttle Alamo | F54: 33 | G54: 39 | H54: 655 | I54: 590 | J54: 2014-04-20 | K54: 12 days | L54: 2014-06-22T01:25:32 | M54: 6 | N54: 1016173-Lasbi | O54: 0
A55: 1016344 | B55: Irep | C55: z | D55: Diamond | E55: Division Nargil Juliet | F55: 38 | G55: 40 | H55: 751 | I55: 384 | J55: 2014-04-13 | K55: 18 days | L55: 2014-06-22T01:11:07 | M55: 4 | N55: 1016344-Irep | O55: 0
A56: 1016749 | B56: fOrQQ | C56: p | D56: Diamond | E56: Division Duran Echo | F56: 2 | G56: 0 | H56: 30 | I56: 1034 | J56: 2014-05-07 | K56: 29 days | L56: 2014-06-22T03:10:46 | M56: 10 | N56: 1016749-fOrQQ | O56: 0
A57: 1017128 | B57: Avicii | C57: z | D57: Diamond | E57: Division Dragoon November | F57: 76 | G57: 34 | H57: 558 | I57: 593 | J57: 2014-05-07 | K57: 37 days | L57: 2014-06-22T01:40:46 | M57: 6 | N57: 1017128-Avicii | O57: 0
A58: 1017650 | B58: BlackerLotus | C58: t | D58: Diamond | E58: Division Umoja Gamma | F58: 0 | G58: 1 | H58: 0 | I58: 1049 | J58: 2014-06-09 | K58: 12 days | L58: 2014-06-22T03:21:06 | M58: 11 | N58: 1017650-BlackerLotus | O58: 0
A59: 1017740 | B59: Katten | C59: p | D59: Diamond | E59: Division Umoja Gamma | F59: 7 | G59: 5 | H59: 198 | I59: 907 | J59: 2014-06-08 | K59: 11 days | L59: 2014-06-22T02:41:40 | M59: 9 | N59: 1017740-Katten | O59: 0
A60: 1018092 | B60: TheGhost | C60: t | D60: Diamond | E60: Division Routhe Theta | F60: 35 | G60: 19 | H60: 538 | I60: 590 | J60: 2014-05-02 | K60: 39 days | L60: 2014-06-22T01:43:54 | M60: 6 | N60: 1018092-TheGhost | O60: 0
A61: 1018109 | B61: NyuNyu | C61: z | D61: Diamond | E61: Division Urun Chi | F61: 37 | G61: 18 | H61: 435 | I61: 690 | J61: 2014-05-06 | K61: 46 days | L61: 2014-06-22T02:00:28 | M61: 7 | N61: 1018109-NyuNyu | O61: 0
A62: 1018509 | B62: archiluse | C62: t | D62: Diamond | E62: Division Duran Echo | F62: 78 | G62: 96 | H62: 1087 | I62: 9 | J62: 2014-05-06 | K62: 9 hours | L62: 2014-06-22T00:04:37 | M62: 1 | N62: 1018509-archiluse | O62: 0
A63: 1018847 | B63: angelxxx | C63: p | D63: Diamond | E63: Division Viking Pepper | F63: 20 | G63: 18 | H63: 591 | I63: 626 | J63: 2014-04-26 | K63: 41 days | L63: 2014-06-22T01:35:53 | M63: 6 | N63: 1018847-angelxxx | O63: 0
A64: 1018894 | B64: RipBrohan | C64: p | D64: Diamond | E64: Division Marauder Omega | F64: 3 | G64: 5 | H64: 88 | I64: 983 | J64: 2014-06-15 | K64: 5 days | L64: 2014-06-22T02:59:30 | M64: 10 | N64: 1018894-RipBrohan | O64: 0
A65: 1018980 | B65: lila | C65: z | D65: Diamond | E65: Division Halcyon Kilo | F65: 34 | G65: 17 | H65: 766 | I65: 451 | J65: 2014-05-08 | K65: 16 hours | L65: 2014-06-22T01:08:44 | M65: 5 | N65: 1018980-lila | O65: 0
A66: 1019005 | B66: Hoilati | C66: r | D66: Diamond | E66: Division Marauder Hawk | F66: 40 | G66: 41 | H66: 826 | I66: 296 | J66: 2014-05-24 | K66: 19 days | L66: 2014-06-22T01:00:17 | M66: 3 | N66: =A66&"-"&B66 -> 1019005-Hoilati | O66: 0
A67: 1019381 | B67: Powerbub | C67: t | D67: Diamond | E67: Division Stukov Tango | F67: 48 | G67: 42 | H67: 619 | I67: 409 | J67: 2014-05-12 | K67: 12 days | L67: 2014-06-22T01:31:30 | M67: 4 | N67: 1019381-Powerbub | O67: 0
A68: 1019585 | B68: llllllllllll | C68: p | D68: Diamond | E68: Division Duran Lima | F68: 72 | G68: 62 | H68: 913 | I68: 210 | J68: 2014-05-18 | K68: 9 days | L68: 2014-06-22T00:47:06 | M68: 3 | N68: 1019585-llllllllllll | O68: 0
A69: 1019857 | B69: Jaxx | C69: p | D69: Diamond | E69: Division Moratun Xi | F69: 15 | G69: 24 | H69: 444 | I69: 663 | J69: 2014-04-14 | K69: 44 days | L69: 2014-06-22T01:59:06 | M69: 7 | N69: 1019857-Jaxx | O69: 0
A70: 1019970 | B70: Lubo | C70: p | D70: Diamond | E70: Division Urun Quest | F70: 68 | G70: 58 | H70: 873 | I70: 255 | J70: 2014-05-02 | K70: 1 days | L70: 2014-06-22T00:52:59 | M70: 3 | N70: 1019970-Lubo | O70: 0
A71: 1020194 | B71: Casquetteman | C71: z | D71: Diamond | E71: Division Khaydarin Pepper | F71: 92 | G71: 89 | H71: 1108 | I71: 6 | J71: 2014-05-09 | K71: 3 hours | L71: 2014-06-21T23:55:28 | M71: 1 | N71: 1020194-Casquetteman | O71: 0
A72: 1020717 | B72: Ashbringer | C72: t | D72: Diamond | E72: Division Praetor Dixie | F72: 2 | G72: 0 | H72: 30 | I72: 1034 | J72: 2014-04-16 | K72: 66 days | L72: 2014-06-22T03:10:48 | M72: 10 | N72: 1020717-Ashbringer | O72: 0
A73: 1020797 | B73: jAEGER | C73: p | D73: Diamond | E73: Division Stukov Dixie | F73: 39 | G73: 24 | H73: 848 | I73: 303 | J73: 2014-05-04 | K73: 6 days | L73: 2014-06-22T00:56:59 | M73: 3 | N73: 1020797-jAEGER | O73: 0
A74: 1021082 | B74: polarize | C74: t | D74: Diamond | E74: Division Ghost Tau | F74: 41 | G74: 27 | H74: 724 | I74: 521 | J74: 2014-05-07 | K74: 33 days | L74: 2014-06-22T01:14:42 | M74: 5 | N74: 1021082-polarize | O74: 0
A75: 1021248 | B75: Kev | C75: t | D75: Diamond | E75: Division Aldaris Psi | F75: 5 | G75: 4 | H75: 146 | I75: 955 | J75: 2014-06-15 | K75: 1 days | L75: 2014-06-22T02:49:24 | M75: 10 | N75: 1021248-Kev | O75: 0
A76: 1022902 | B76: CaptainChris | C76: z | D76: Diamond | E76: Division Devourer Omicron | F76: 43 | G76: 45 | H76: 935 | I76: 147 | J76: 2014-05-11 | K76: 6 days | L76: 2014-06-22T00:43:42 | M76: 2 | N76: 1022902-CaptainChris | O76: 0
A77: 1023616 | B77: MajestiC | C77: z | D77: Diamond | E77: Division Sentry Victor | F77: 36 | G77: 36 | H77: 613 | I77: 540 | J77: 2014-05-11 | K77: 16 days | L77: 2014-06-22T01:32:21 | M77: 6 | N77: 1023616-MajestiC | O77: 0
A78: 1024093 | B78: Billiboes | C78: t | D78: Diamond | E78: Division UED Lambda | F78: 54 | G78: 36 | H78: 758 | I78: 378 | J78: 2014-05-16 | K78: 25 days | L78: 2014-06-22T01:10:06 | M78: 4 | N78: 1024093-Billiboes | O78: 0
A79: 1024404 | B79: Drakula | C79: p | D79: Diamond | E79: Division Scout Indigo | F79: 5 | G79: 3 | H79: 171 | I79: 951 | J79: 2014-05-03 | K79: 49 days | L79: 2014-06-22T02:45:36 | M79: 10 | N79: 1024404-Drakula | O79: 0
A80: 1024488 | B80: Disease | C80: t | D80: Diamond | E80: Division Roxara Kappa | F80: 100 | G80: 103 | H80: 1007 | I80: 72 | J80: 2014-05-02 | K80: 6 hours | L80: 2014-06-22T00:29:57 | M80: 1 | N80: 1024488-Disease | O80: 0
A81: 1025118 | B81: Warpig | C81: t | D81: Diamond | E81: Division Liberty Kappa | F81: 49 | G81: 56 | H81: 1004 | I81: 175 | J81: 2014-04-14 | K81: 11 days | L81: 2014-06-22T00:30:43 | M81: 2 | N81: 1025118-Warpig | O81: 0
A82: 1025988 | B82: Wannabe | C82: z | D82: Diamond | E82: Division Argo Uncle | F82: 15 | G82: 13 | H82: 321 | I82: 798 | J82: 2014-04-14 | K82: 46 days | L82: 2014-06-22T02:21:46 | M82: 8 | N82: 1025988-Wannabe | O82: 0
A83: 1026090 | B83: TOnkA | C83: z | D83: Diamond | E83: Division Jorgensen Indigo | F83: 0 | G83: 4 | H83: 0 | I83: 1049 | J83: 2014-04-15 | K83: 61 days | L83: 2014-06-22T03:21:07 | M83: 11 | N83: 1026090-TOnkA | O83: 0
A84: 1026292 | B84: ValpraX | C84: p | D84: Diamond | E84: Division Roxara Psi | F84: 8 | G84: 8 | H84: 208 | I84: 877 | J84: 2014-05-05 | K84: 18 days | L84: 2014-06-22T02:39:57 | M84: 9 | N84: 1026292-ValpraX | O84: 0
A85: 1026517 | B85: sNfL | C85: t | D85: Diamond | E85: Division Nagglfar Foxtrot | F85: 70 | G85: 87 | H85: 908 | I85: 109 | J85: 2014-04-14 | K85: 1 days | L85: 2014-06-22T00:47:45 | M85: 2 | N85: 1026517-sNfL | O85: 0
A86: 1026621 | B86: BigDaddy | C86: z | D86: Diamond | E86: Division Brontes Beta | F86: 24 | G86: 7 | H86: 570 | I86: 678 | J86: 2014-06-01 | K86: 1 days | L86: 2014-06-22T01:39:06 | M86: 7 | N86: 1026621-BigDaddy | O86: 0
A87: 1026975 | B87: Brute | C87: r | D87: Diamond | E87: Division Overseer Eta | F87: 2 | G87: 3 | H87: 117 | I87: 1017 | J87: 2014-05-02 | K87: 50 days | L87: 2014-06-22T02:54:18 | M87: 10 | N87: 1026975-Brute | O87: 0
A88: 1027500 | B88: YnooZ | C88: p | D88: Diamond | E88: Division Hellion Phi | F88: 81 | G88: 55 | H88: 1038 | I88: 35 | J88: 2014-06-09 | K88: 2 days | L88: 2014-06-22T00:22:15 | M88: 1 | N88: 1027500-YnooZ | O88: 0
A89: 1028437 | B89: DuRaiN | C89: t | D89: Diamond | E89: Division Scout Indigo | F89: 9 | G89: 15 | H89: 298 | I89: 828 | J89: 2014-05-03 | K89: 43 days | L89: 2014-06-22T02:25:30 | M89: 8 | N89: 1028437-DuRaiN | O89: 0
A90: 1028696 | B90: Aesto | C90: p | D90: Diamond | E90: Division Boros Romeo | F90: 97 | G90: 91 | H90: 1084 | I90: 8 | J90: 2014-06-14 | K90: 7 hours | L90: 2014-06-22T00:05:53 | M90: 1 | N90: 1028696-Aesto | O90: 0
A91: 1028699 | B91: Sangoku | C91: p | D91: Diamond | E91: Division Judicator Epsilon | F91: 292 | G91: 285 | H91: 1326 | I91: 3 | J91: 2014-04-24 | K91: 26 minutes | L91: 2014-06-21T23:23:15 | M91: 1 | N91: 1028699-Sangoku | O91: 0
A92: 1028898 | B92: HurRiCaNe | C92: z | D92: Diamond | E92: Division Mutalisk X-Ray | F92: 5 | G92: 13 | H92: 128 | I92: 867 | J92: 2014-04-14 | K92: 18 days | L92: 2014-06-22T02:52:19 | M92: 9 | N92: 1028898-HurRiCaNe | O92: 0
A93: 1029137 | B93: Sprite | C93: t | D93: Diamond | E93: Division Dragoon November | F93: 19 | G93: 12 | H93: 407 | I93: 703 | J93: 2014-05-07 | K93: 45 days | L93: 2014-06-22T02:05:40 | M93: 7 | N93: 1029137-Sprite | O93: 0
A94: 1029656 | B94: Bertibaer | C94: z | D94: Diamond | E94: Division Kerrigan Phi | F94: 37 | G94: 13 | H94: 667 | I94: 464 | J94: 2014-05-29 | K94: 7 hours | L94: 2014-06-22T01:23:30 | M94: 5 | N94: 1029656-Bertibaer | O94: 0
A95: 1029987 | B95: Simba | C95: t | D95: Diamond | E95: Division Hellion Phi | F95: 12 | G95: 1 | H95: 249 | I95: 932 | J95: 2014-04-20 | K95: 62 days | L95: 2014-06-22T02:33:17 | M95: 9 | N95: 1029987-Simba | O95: 0
A96: 1030083 | B96: Infernalduck | C96: t | D96: Diamond | E96: Division Tychus Hawk | F96: 167 | G96: 166 | H96: 1097 | I96: 11 | J96: 2014-05-02 | K96: 4 hours | L96: 2014-06-22T00:00:23 | M96: 1 | N96: 1030083-Infernalduck | O96: 0
A97: 1030401 | B97: BIERLASTAAA | C97: r | D97: Diamond | E97: Division Dominion Zed | F97: 0 | G97: 1 | H97: 0 | I97: 1049 | J97: 2014-05-30 | K97: 22 days | L97: 2014-06-22T03:21:08 | M97: 11 | N97: 1030401-BIERLASTAAA | O97: 0
A98: 1030580 | B98: FrozenMagic | C98: p | D98: Diamond | E98: Division Viking Beta | F98: 88 | G98: 84 | H98: 1118 | I98: 19 | J98: 2014-04-15 | K98: 1 days | L98: 2014-06-21T23:50:42 | M98: 1 | N98: 1030580-FrozenMagic | O98: 0
A99: 1030603 | B99: MadTerran | C99: t | D99: Diamond | E99: Division Alzadar Rho | F99: 4 | G99: 3 | H99: 114 | I99: 976 | J99: 2014-05-25 | K99: 27 days | L99: 2014-06-22T02:55:27 | M99: 10 | N99: 1030603-MadTerran | O99: 0
A100: 1030664 | B100: Nico | C100: z | D100: Diamond | E100: Division Braken Sigma | F100: 68 | G100: 78 | H100: 1072 | I100: 60 | J100: 2014-04-20 | K100: 9 hours | L100: 2014-06-22T00:10:40 | M100: 1 | N100: 1030664-Nico | O100: 0
A101: 1030918 | B101: Echoes | C101: p | D101: Diamond | E101: Division Goliath Echo | F101: 17 | G101: 31 | H101: 532 | I101: 493 | J101: 2014-04-18 | K101: 3 days | L101: 2014-06-22T01:44:40 | M101: 5 | N101: 1030918-Echoes | O101: 0
A102: 1031607 | B102: Skeltyrious | C102: z | D102: Diamond | E102: Division Norad Theta | F102: 110 | G102: 78 | H102: 1044 | I102: 40 | J102: 2014-06-11 | K102: 2 days | L102: 2014-06-22T00:20:27 | M102: 1 | N102: 1031607-Skeltyrious | O102: 0
A103: 1032556 | B103: PoRcPouilleu | C103: p | D103: Diamond | E103: Division Viking Pepper | F103: 14 | G103: 7 | H103: 264 | I103: 860 | J103: 2014-04-21 | K103: 57 days | L103: 2014-06-22T02:31:04 | M103: 9 | N103: 1032556-PoRcPouilleu | O103: 0
A104: 1032798 | B104: BlackAlbum | C104: t | D104: Diamond | E104: Division Chau Sara Xi | F104: 105 | G104: 119 | H104: 1119 | I104: 2 | J104: 2014-05-02 | K104: 12 minutes | L104: 2014-06-21T23:50:17 | M104: 1 | N104: 1032798-BlackAlbum | O104: 0
A105: 1033481 | B105: relic | C105: z | D105: Diamond | E105: Division Nargil Iota | F105: 3 | G105: 6 | H105: 66 | I105: 959 | J105: 2014-05-05 | K105: 46 days | L105: 2014-06-22T03:02:16 | M105: 10 | N105: 1033481-relic | O105: 0
A106: 1033803 | B106: Lokí | C106: p | D106: Diamond | E106: Division Liberty Kappa | F106: 41 | G106: 31 | H106: 543 | I106: 676 | J106: 2014-04-14 | K106: 2 days | L106: 2014-06-22T01:43:05 | M106: 7 | N106: 1033803-Lokí | O106: 0
A107: 1033861 | B107: iMaDoBe | C107: t | D107: Diamond | E107: Division Colossus Omega | F107: 23 | G107: 17 | H107: 441 | I107: 705 | J107: 2014-04-17 | K107: 7 days | L107: 2014-06-22T01:59:35 | M107: 7 | N107: 1033861-iMaDoBe | O107: 0
A108: 1034305 | B108: teckpaf | C108: z | D108: Diamond | E108: Division Zamara Pi | F108: 2 | G108: 2 | H108: 154 | I108: 985 | J108: 2014-06-13 | K108: 8 days | L108: 2014-06-22T02:47:54 | M108: 10 | N108: 1034305-teckpaf | O108: 0
A109: 1034312 | B109: AfterDark | C109: t | D109: Diamond | E109: Division Alzadar Charlie | F109: 202 | G109: 187 | H109: 1351 | I109: 24 | J109: 2014-04-15 | K109: 1 days | L109: 2014-06-21T23:22:28 | M109: 1 | N109: 1034312-AfterDark | O109: 0
A110: 1034385 | B110: LiXan | C110: z | D110: Diamond | E110: Division Stukov Dixie | F110: 46 | G110: 34 | H110: 1112 | I110: 78 | J110: 2014-05-04 | K110: 5 days | L110: 2014-06-21T23:53:38 | M110: 1 | N110: 1034385-LiXan | O110: 0
A111: 1034449 | B111: rzeSnik | C111: p | D111: Diamond | E111: Division Moratun Xi | F111: 38 | G111: 29 | H111: 629 | I111: 479 | J111: 2014-05-09 | K111: 6 days | L111: 2014-06-22T01:29:41 | M111: 5 | N111: 1034449-rzeSnik | O111: 0
A112: 1034591 | B112: leONardO | C112: z | D112: Diamond | E112: Division SCV Alpha | F112: 41 | G112: 54 | H112: 1002 | I112: 128 | J112: 2014-04-14 | K112: 7 days | L112: 2014-06-22T00:31:06 | M112: 2 | N112: 1034591-leONardO | O112: 0
A113: 1034676 | B113: IIIIIIIIII | C113: z | D113: Diamond | E113: Division Overseer Eta | F113: 55 | G113: 46 | H113: 670 | I113: 525 | J113: 2014-05-02 | K113: 27 days | L113: 2014-06-22T01:23:02 | M113: 6 | N113: 1034676-IIIIIIIIII | O113: 0
A114: 1035721 | B114: LoleK | C114: p | D114: Diamond | E114: Division Goliath Echo | F114: 25 | G114: 28 | H114: 569 | I114: 545 | J114: 2014-04-22 | K114: 2 days | L114: 2014-06-22T01:39:16 | M114: 6 | N114: 1035721-LoleK | O114: 0
A115: 1035831 | B115: ZephyrPrime | C115: t | D115: Diamond | E115: Division Nexus X-Ray | F115: 9 | G115: 13 | H115: 236 | I115: 794 | J115: 2014-05-31 | K115: 8 days | L115: 2014-06-22T02:35:54 | M115: 8 | N115: 1035831-ZephyrPrime | O115: 0
A116: 1035896 | B116: Needless | C116: r | D116: Diamond | E116: Division Reaper Sigma | F116: 8 | G116: 8 | H116: 232 | I116: 874 | J116: 2014-05-08 | K116: 43 days | L116: 2014-06-22T02:36:30 | M116: 9 | N116: 1035896-Needless | O116: 0
A117: 1036237 | B117: Strøm | C117: p | D117: Diamond | E117: Division Overlord Sierra | F117: 4 | G117: 2 | H117: 86 | I117: 984 | J117: 2014-04-14 | K117: 1 minutes | L117: 2014-06-22T03:00:21 | M117: 10 | N117: 1036237-Strøm | O117: 0
A118: 1036379 | B118: EarendiL | C118: t | D118: Diamond | E118: Division Halcyon Kilo | F118: 100 | G118: 57 | H118: 1115 | I118: 50 | J118: 2014-05-08 | K118: 7 hours | L118: 2014-06-21T23:52:03 | M118: 1 | N118: 1036379-EarendiL | O118: 0
A119: 1036472 | B119: ǂTicǂ | C119: z | D119: Diamond | E119: Division Sentry Victor | F119: 8 | G119: 3 | H119: 234 | I119: 913 | J119: 2014-05-11 | K119: 1 days | L119: 2014-06-22T02:36:10 | M119: 9 | N119: 1036472-ǂTicǂ | O119: 0
A120: 1036760 | B120: AkaBob | C120: p | D120: Diamond | E120: Division Moria Mu | F120: 12 | G120: 4 | H120: 330 | I120: 803 | J120: 2014-06-16 | K120: 5 days | L120: 2014-06-22T02:20:08 | M120: 8 | N120: 1036760-AkaBob | O120: 0
A121: 1037553 | B121: Warhill | C121: p | D121: Diamond | E121: Division Dragoon November | F121: 4 | G121: 3 | H121: 142 | I121: 968 | J121: 2014-05-13 | K121: 37 days | L121: 2014-06-22T02:50:18 | M121: 10 | N121: 1037553-Warhill | O121: 0
A122: 103765 | B122: HDgNomad | C122: t | D122: Diamond | E122: Division Viking Beta | F122: 3 | G122: 5 | H122: 60 | I122: 989 | J122: 2014-04-15 | K122: 46 days | L122: 2014-06-22T03:03:22 | M122: 10 | N122: 103765-HDgNomad | O122: 0
A123: 1037846 | B123: Misix | C123: p | D123: Diamond | E123: Division Wraith Charlie | F123: 98 | G123: 45 | H123: 1197 | I123: 3 | J123: 2014-06-15 | K123: 2 hours | L123: 2014-06-21T23:30:55 | M123: 1 | N123: 1037846-Misix | O123: 0
A124: 1037923 | B124: GiZeH | C124: p | D124: Diamond | E124: Division Phoenix Uncle | F124: 7 | G124: 0 | H124: 180 | I124: 954 | J124: 2014-05-16 | K124: 36 days | L124: 2014-06-22T02:44:03 | M124: 10 | N124: 1037923-GiZeH | O124: 0
A125: 1038159 | B125: Ozymandias | C125: z | D125: Diamond | E125: Division Moria Mu | F125: 47 | G125: 38 | H125: 625 | I125: 452 | J125: 2014-05-18 | K125: 30 days | L125: 2014-06-22T01:30:23 | M125: 5 | N125: 1038159-Ozymandias | O125: 0
A126: 1038212 | B126: Plou | C126: z | D126: Diamond | E126: Division Moratun Xi | F126: 62 | G126: 55 | H126: 1227 | I126: 6 | J126: 2014-04-14 | K126: 3 hours | L126: 2014-06-21T23:27:39 | M126: 1 | N126: 1038212-Plou | O126: 0
A127: 1039118 | B127: Smummimmismu | C127: z | D127: Diamond | E127: Division Shuttle Alamo | F127: 48 | G127: 16 | H127: 658 | I127: 487 | J127: 2014-05-24 | K127: 21 days | L127: 2014-06-22T01:25:03 | M127: 5 | N127: 1039118-Smummimmismu | O127: 0
A128: 1039174 | B128: RenardBleu | C128: z | D128: Diamond | E128: Division Sentry Victor | F128: 105 | G128: 99 | H128: 1100 | I128: 14 | J128: 2014-05-11 | K128: 16 hours | L128: 2014-06-21T23:59:03 | M128: 1 | N128: 1039174-RenardBleu | O128: 0
A129: 1039505 | B129: Perfection | C129: t | D129: Diamond | E129: Division Braken Zeta | F129: 15 | G129: 20 | H129: 434 | I129: 637 | J129: 2014-05-02 | K129: 1 days | L129: 2014-06-22T02:00:38 | M129: 7 | N129: 1039505-Perfection | O129: 0
A130: 1039703 | B130: PuXoR | C130: t | D130: Diamond | E130: Division Colossus Hawk | F130: 73 | G130: 63 | H130: 1167 | I130: 20 | J130: 2014-04-14 | K130: 1 days | L130: 2014-06-21T23:35:43 | M130: 1 | N130: =A130&"-"&B130 -> 1039703-PuXoR | O130: 0
A131: 1039829 | B131: BrandonHeat | C131: z | D131: Diamond | E131: Division Zamara Pi | F131: 0 | G131: 3 | H131: 0 | I131: 1049 | J131: 2014-06-12 | K131: 5 days | L131: 2014-06-22T03:21:09 | M131: 11 | N131: 1039829-BrandonHeat | O131: 0
A132: 1039927 | B132: Nesciam | C132: t | D132: Diamond | E132: Division Moratun Xi | F132: 2 | G132: 10 | H132: 58 | I132: 979 | J132: 2014-04-14 | K132: 50 days | L132: 2014-06-22T03:05:40 | M132: 10 | N132: 1039927-Nesciam | O132: 0
A133: 104052 | B133: Runcorn | C133: p | D133: Diamond | E133: Division Halcyon Kilo | F133: 42 | G133: 24 | H133: 670 | I133: 490 | J133: 2014-05-08 | K133: 13 days | L133: 2014-06-22T01:23:00 | M133: 5 | N133: 104052-Runcorn | O133: 0
A134: 1040925 | B134: FreeHunter | C134: z | D134: Diamond | E134: Division Praetor Dixie | F134: 145 | G134: 127 | H134: 1299 | I134: 7 | J134: 2014-04-16 | K134: 6 hours | L134: 2014-06-21T23:24:06 | M134: 1 | N134: 1040925-FreeHunter | O134: 0
A135: 1041299 | B135: Scorpio | C135: z | D135: Diamond | E135: Division Pylon Alpha | F135: 1 | G135: 6 | H135: 30 | I135: 1034 | J135: 2014-05-20 | K135: 32 days | L135: 2014-06-22T03:10:49 | M135: 10 | N135: 1041299-Scorpio | O135: 0
A136: 1041353 | B136: TyLeur | C136: p | D136: Diamond | E136: Division Scourge Foxtrot | F136: 62 | G136: 27 | H136: 914 | I136: 137 | J136: 2014-05-27 | K136: 6 days | L136: 2014-06-22T00:46:55 | M136: 2 | N136: 1041353-TyLeur | O136: 0
A137: 1041627 | B137: Idjit | C137: z | D137: Diamond | E137: Division Corruptor Victor | F137: 89 | G137: 69 | H137: 1124 | I137: 8 | J137: 2014-05-24 | K137: 6 hours | L137: 2014-06-21T23:48:29 | M137: 1 | N137: 1041627-Idjit | O137: 0
A138: 1041858 | B138: Ralphy | C138: p | D138: Diamond | E138: Division Liberty Kappa | F138: 8 | G138: 9 | H138: 244 | I138: 871 | J138: 2014-04-14 | K138: 12 hours | L138: 2014-06-22T02:34:09 | M138: 9 | N138: 1041858-Ralphy | O138: 0
A139: 1041865 | B139: Zeaschling | C139: p | D139: Diamond | E139: Division Nahaan Tango | F139: 428 | G139: 409 | H139: 1180 | I139: 3 | J139: 2014-04-14 | K139: 4 minutes | L139: 2014-06-21T23:33:02 | M139: 1 | N139: 1041865-Zeaschling | O139: 0
A140: 1041987 | B140: nikiTOSS | C140: p | D140: Diamond | E140: Division Selendis Echo | F140: 25 | G140: 20 | H140: 625 | I140: 506 | J140: 2014-06-18 | K140: 1 days | L140: 2014-06-22T01:30:24 | M140: 5 | N140: 1041987-nikiTOSS | O140: 0
A141: 1041998 | B141: Akromile | C141: z | D141: Diamond | E141: Division Gorn Sierra | F141: 14 | G141: 15 | H141: 400 | I141: 721 | J141: 2014-05-29 | K141: 7 days | L141: 2014-06-22T02:07:01 | M141: 7 | N141: 1041998-Akromile | O141: 0
A142: 1042358 | B142: TyphooN | C142: t | D142: Diamond | E142: Division Brontes Beta | F142: 1 | G142: 0 | H142: 0 | I142: 1049 | J142: 2014-06-15 | K142: 6 days | L142: 2014-06-22T03:21:10 | M142: 11 | N142: 1042358-TyphooN | O142: 0
A143: 1042658 | B143: sysǂYepla | C143: t | D143: Diamond | E143: Division Sentry Victor | F143: 126 | G143: 120 | H143: 1076 | I143: 35 | J143: 2014-05-11 | K143: 2 days | L143: 2014-06-22T00:09:02 | M143: 1 | N143: 1042658-sysǂYepla | O143: 0
A144: 1043132 | B144: BlindeQ | C144: z | D144: Diamond | E144: Division Praetor Dixie | F144: 17 | G144: 15 | H144: 313 | I144: 801 | J144: 2014-04-16 | K144: 44 days | L144: 2014-06-22T02:22:53 | M144: 8 | N144: 1043132-BlindeQ | O144: 0
A145: 1043321 | B145: ArtifacT | C145: t | D145: Diamond | E145: Division Shuttle Omicron | F145: 1 | G145: 1 | H145: 0 | I145: 1049 | J145: 2014-04-26 | K145: 56 days | L145: 2014-06-22T03:21:11 | M145: 11 | N145: 1043321-ArtifacT | O145: 0
A146: 1043392 | B146: Halalkött | C146: z | D146: Diamond | E146: Division Argo Uncle | F146: 14 | G146: 4 | H146: 360 | I146: 831 | J146: 2014-04-30 | K146: 16 days | L146: 2014-06-22T02:14:59 | M146: 8 | N146: 1043392-Halalkött | O146: 0
A147: 1043456 | B147: ILoveSCgirls | C147: p | D147: Diamond | E147: Division Ursa Xi | F147: 23 | G147: 21 | H147: 652 | I147: 541 | J147: 2014-05-17 | K147: 14 days | L147: 2014-06-22T01:26:06 | M147: 6 | N147: 1043456-ILoveSCgirls | O147: 0
A148: 1043628 | B148: Bubba | C148: t | D148: Diamond | E148: Division Archon Whiskey | F148: 3 | G148: 2 | H148: 86 | I148: 995 | J148: 2014-06-06 | K148: 15 days | L148: 2014-06-22T03:00:22 | M148: 10 | N148: 1043628-Bubba | O148: 0
A149: 1043632 | B149: TheCrazyRam | C149: z | D149: Diamond | E149: Division Khaydarin Pepper | F149: 37 | G149: 33 | H149: 503 | I149: 601 | J149: 2014-05-09 | K149: 4 days | L149: 2014-06-22T01:49:09 | M149: 6 | N149: 1043632-TheCrazyRam | O149: 0
A150: 1043727 | B150: Vladix | C150: p | D150: Diamond | E150: Division Roxara Kappa | F150: 45 | G150: 17 | H150: 365 | I150: 757 | J150: 2014-05-02 | K150: 50 days | L150: 2014-06-22T02:14:10 | M150: 8 | N150: 1043727-Vladix | O150: 0
A151: 1044209 | B151: Flexl | C151: t | D151: Diamond | E151: Division Gateway November | F151: 47 | G151: 20 | H151: 928 | I151: 259 | J151: 2014-06-19 | K151: 1 days | L151: 2014-06-22T00:45:02 | M151: 3 | N151: 1044209-Flexl | O151: 0
A152: 1044366 | B152: SalatDestroy | C152: p | D152: Diamond | E152: Division Pylon Delta | F152: 217 | G152: 220 | H152: 1064 | I152: 69 | J152: 2014-04-22 | K152: 4 days | L152: 2014-06-22T00:13:46 | M152: 1 | N152: 1044366-SalatDestroy | O152: 0
A153: 1044631 | B153: Sesshomaru | C153: p | D153: Diamond | E153: Division Phoenix Romeo | F153: 134 | G153: 128 | H153: 1139 | I153: 4 | J153: 2014-05-26 | K153: 1 hours | L153: 2014-06-21T23:43:31 | M153: 1 | N153: 1044631-Sesshomaru | O153: 0
A154: 1044681 | B154: gecko | C154: p | D154: Diamond | E154: Division Argo Uncle | F154: 3 | G154: 0 | H154: 58 | I154: 1020 | J154: 2014-04-14 | K154: 67 days | L154: 2014-06-22T03:05:41 | M154: 10 | N154: 1044681-gecko | O154: 0
A155: 1044849 | B155: TFO | C155: t | D155: Diamond | E155: Division Shuttle Zed | F155: 8 | G155: 15 | H155: 252 | I155: 790 | J155: 2014-04-27 | K155: 1 days | L155: 2014-06-22T02:32:55 | M155: 8 | N155: 1044849-TFO | O155: 0
A156: 1045438 | B156: Dearion | C156: t | D156: Diamond | E156: Division Zer’atai Nu | F156: 37 | G156: 25 | H156: 848 | I156: 293 | J156: 2014-05-23 | K156: 8 days | L156: 2014-06-22T00:57:00 | M156: 3 | N156: 1045438-Dearion | O156: 0
A157: 1045457 | B157: madMax | C157: p | D157: Diamond | E157: Division Marauder Omega | F157: 10 | G157: 7 | H157: 246 | I157: 841 | J157: 2014-06-15 | K157: 3 hours | L157: 2014-06-22T02:33:46 | M157: 9 | N157: 1045457-madMax | O157: 0
A158: 1045690 | B158: Korpsy | C158: t | D158: Diamond | E158: Division Goliath Lima | F158: 48 | G158: 49 | H158: 887 | I158: 256 | J158: 2014-05-02 | K158: 7 days | L158: 2014-06-22T00:50:56 | M158: 3 | N158: 1045690-Korpsy | O158: 0
A159: 1046336 | B159: Jules | C159: t | D159: Diamond | E159: Division Aldaris Kappa | F159: 127 | G159: 88 | H159: 1118 | I159: 10 | J159: 2014-05-20 | K159: 11 hours | L159: 2014-06-21T23:50:44 | M159: 1 | N159: 1046336-Jules | O159: 0
A160: 1046720 | B160: Manny | C160: z | D160: Diamond | E160: Division Hydralisk Pi | F160: 14 | G160: 25 | H160: 344 | I160: 709 | J160: 2014-04-17 | K160: 47 days | L160: 2014-06-22T02:17:39 | M160: 7 | N160: 1046720-Manny | O160: 0
A161: 1047222 | B161: Filipsinger | C161: p | D161: Diamond | E161: Division Daggoth Iota | F161: 27 | G161: 30 | H161: 687 | I161: 413 | J161: 2014-05-26 | K161: 14 days | L161: 2014-06-22T01:20:22 | M161: 4 | N161: 1047222-Filipsinger | O161: 0
A162: 1047287 | B162: XelaPrimE | C162: t | D162: Diamond | E162: Division Kerrigan Tau | F162: 2 | G162: 1 | H162: 30 | I162: 1030 | J162: 2014-06-20 | K162: 12 hours | L162: 2014-06-22T03:10:50 | M162: 10 | N162: 1047287-XelaPrimE | O162: 0
A163: 1047520 | B163: Impression | C163: p | D163: Diamond | E163: Division Halcyon Eta | F163: 159 | G163: 131 | H163: 1180 | I163: 24 | J163: 2014-05-23 | K163: 1 days | L163: 2014-06-21T23:33:03 | M163: 1 | N163: 1047520-Impression | O163: 0
A164: 1047559 | B164: ТАМАНЕЦ | C164: t | D164: Diamond | E164: Division Hydralisk Lambda | F164: 223 | G164: 240 | H164: 1065 | I164: 37 | J164: 2014-05-02 | K164: 2 days | L164: 2014-06-22T00:13:22 | M164: 1 | N164: 1047559-ТАМАНЕЦ | O164: 0
A165: 1047584 | B165: harry | C165: t | D165: Diamond | E165: Division Scourge Upsilon | F165: 79 | G165: 81 | H165: 1101 | I165: 18 | J165: 2014-05-03 | K165: 23 hours | L165: 2014-06-21T23:58:22 | M165: 1 | N165: 1047584-harry | O165: 0
A166: 1047862 | B166: llllllllll | C166: z | D166: Diamond | E166: Division Overlord Sierra | F166: 57 | G166: 51 | H166: 1029 | I166: 244 | J166: 2014-04-15 | K166: 6 days | L166: 2014-06-22T00:24:35 | M166: 3 | N166: 1047862-llllllllll | O166: 0
A167: 1049005 | B167: ChandlerBing | C167: p | D167: Diamond | E167: Division Typhon Iota | F167: 4 | G167: 12 | H167: 208 | I167: 894 | J167: 2014-05-02 | K167: 29 days | L167: 2014-06-22T02:39:58 | M167: 9 | N167: 1049005-ChandlerBing | O167: 0
A168: 1049502 | B168: PriMe | C168: t | D168: Diamond | E168: Division Hydralisk Lambda | F168: 17 | G168: 6 | H168: 420 | I168: 776 | J168: 2014-05-02 | K168: 8 days | L168: 2014-06-22T02:03:12 | M168: 8 | N168: 1049502-PriMe | O168: 0
A169: 1050020 | B169: Oberdeldock | C169: z | D169: Diamond | E169: Division Ghost Tau | F169: 0 | G169: 5 | H169: 0 | I169: 1049 | J169: 2014-05-07 | K169: 1 days | L169: 2014-06-22T03:21:12 | M169: 11 | N169: 1050020-Oberdeldock | O169: 0
A170: 1050192 | B170: Joker | C170: t | D170: Diamond | E170: Division Archon Whiskey | F170: 2 | G170: 3 | H170: 60 | I170: 1008 | J170: 2014-06-07 | K170: 14 days | L170: 2014-06-22T03:03:55 | M170: 10 | N170: 1050192-Joker | O170: 0
A171: 1050234 | B171: Niborsom | C171: p | D171: Diamond | E171: Division Alzadar Rho | F171: 94 | G171: 94 | H171: 1019 | I171: 252 | J171: 2014-04-14 | K171: 16 days | L171: 2014-06-22T00:27:24 | M171: 3 | N171: 1050234-Niborsom | O171: 0
A172: 1050377 | B172: Djidane | C172: z | D172: Diamond | E172: Division Scout Oscar | F172: 1 | G172: 2 | H172: 30 | I172: 1023 | J172: 2014-05-01 | K172: 51 days | L172: 2014-06-22T03:10:51 | M172: 10 | N172: 1050377-Djidane | O172: 0
A173: 1050457 | B173: XenoMorpH | C173: z | D173: Diamond | E173: Division Halcyon Eta | F173: 130 | G173: 91 | H173: 1043 | I173: 87 | J173: 2014-05-27 | K173: 5 days | L173: 2014-06-22T00:20:42 | M173: 1 | N173: 1050457-XenoMorpH | O173: 0
A174: 1050596 | B174: CheckMate | C174: r | D174: Diamond | E174: Division Nargil Iota | F174: 229 | G174: 213 | H174: 1286 | I174: 55 | J174: 2014-04-14 | K174: 2 days | L174: 2014-06-21T23:24:31 | M174: 1 | N174: 1050596-CheckMate | O174: 0
A175: 105078 | B175: FIZik | C175: p | D175: Diamond | E175: Division Nagglfar Foxtrot | F175: 10 | G175: 13 | H175: 282 | I175: 807 | J175: 2014-04-14 | K175: 12 days | L175: 2014-06-22T02:27:47 | M175: 8 | N175: 105078-FIZik | O175: 0
A176: 1051229 | B176: Gabbor | C176: t | D176: Diamond | E176: Division Dragoon Theta | F176: 39 | G176: 13 | H176: 807 | I176: 400 | J176: 2014-05-19 | K176: 10 days | L176: 2014-06-22T01:03:12 | M176: 4 | N176: 1051229-Gabbor | O176: 0
A177: 1051250 | B177: Morganno | C177: p | D177: Diamond | E177: Division Braken Zeta | F177: 19 | G177: 12 | H177: 204 | I177: 894 | J177: 2014-05-02 | K177: 12 days | L177: 2014-06-22T02:40:32 | M177: 9 | N177: 1051250-Morganno | O177: 0
A178: 1051689 | B178: SunDarK | C178: z | D178: Diamond | E178: Division Praetor Dixie | F178: 57 | G178: 59 | H178: 698 | I178: 375 | J178: 2014-04-16 | K178: 5 hours | L178: 2014-06-22T01:18:32 | M178: 4 | N178: 1051689-SunDarK | O178: 0
A179: 1051888 | B179: luckyluciano | C179: t | D179: Diamond | E179: Division Scout Indigo | F179: 73 | G179: 85 | H179: 824 | I179: 243 | J179: 2014-05-03 | K179: 12 days | L179: 2014-06-22T01:00:32 | M179: 3 | N179: 1051888-luckyluciano | O179: 0
A180: 1052076 | B180: TAndRU | C180: t | D180: Diamond | E180: Division Typhon Iota | F180: 24 | G180: 21 | H180: 675 | I180: 481 | J180: 2014-05-02 | K180: 1 days | L180: 2014-06-22T01:22:07 | M180: 5 | N180: 1052076-TAndRU | O180: 0
A181: 1052340 | B181: Abbadon | C181: z | D181: Diamond | E181: Division Urun Quest | F181: 40 | G181: 44 | H181: 891 | I181: 225 | J181: 2014-04-22 | K181: 1 days | L181: 2014-06-22T00:50:27 | M181: 3 | N181: 1052340-Abbadon | O181: 0
A182: 1053058 | B182: LLIyT | C182: p | D182: Diamond | E182: Division Kerrigan Phi | F182: 17 | G182: 8 | H182: 382 | I182: 740 | J182: 2014-05-29 | K182: 23 days | L182: 2014-06-22T02:10:31 | M182: 8 | N182: 1053058-LLIyT | O182: 0
A183: 1053205 | B183: Günesh | C183: p | D183: Diamond | E183: Division Jorgensen Oscar | F183: 3 | G183: 4 | H183: 31 | I183: 1005 | J183: 2014-04-14 | K183: 66 days | L183: 2014-06-22T03:08:48 | M183: 10 | N183: 1053205-Günesh | O183: 0
A184: 1054138 | B184: Viibez | C184: r | D184: Diamond | E184: Division Moratun Xi | F184: 43 | G184: 45 | H184: 831 | I184: 315 | J184: 2014-04-14 | K184: 8 hours | L184: 2014-06-22T00:59:40 | M184: 4 | N184: 1054138-Viibez | O184: 0
A185: 1054255 | B185: pirayan | C185: p | D185: Diamond | E185: Division Typhon Juliet | F185: 227 | G185: 211 | H185: 1047 | I185: 129 | J185: 2014-04-24 | K185: 8 days | L185: 2014-06-22T00:19:44 | M185: 2 | N185: 1054255-pirayan | O185: 0
A186: 1054548 | B186: Neyron | C186: p | D186: Diamond | E186: Division Nahaan Tango | F186: 110 | G186: 107 | H186: 1261 | I186: 4 | J186: 2014-04-14 | K186: 14 minutes | L186: 2014-06-21T23:25:35 | M186: 1 | N186: 1054548-Neyron | O186: 0
A187: 1054586 | B187: Magen | C187: p | D187: Diamond | E187: Division Argo Uncle | F187: 61 | G187: 69 | H187: 814 | I187: 312 | J187: 2014-04-14 | K187: 9 days | L187: 2014-06-22T01:02:05 | M187: 3 | N187: 1054586-Magen | O187: 0
A188: 1054798 | B188: Thalandros | C188: z | D188: Diamond | E188: Division Corruptor Whiskey | F188: 162 | G188: 164 | H188: 1051 | I188: 2 | J188: 2014-04-15 | K188: 4 days | L188: 2014-06-22T00:18:35 | M188: 1 | N188: 1054798-Thalandros | O188: 0
A189: 1055018 | B189: TheLDK | C189: t | D189: Diamond | E189: Division Mutalisk Gravity | F189: 1 | G189: 3 | H189: 30 | I189: 1034 | J189: 2014-05-05 | K189: 36 days | L189: 2014-06-22T03:10:52 | M189: 10 | N189: 1055018-TheLDK | O189: 0
A190: 1055138 | B190: Trãx | C190: z | D190: Diamond | E190: Division Stukov Tango | F190: 22 | G190: 12 | H190: 561 | I190: 638 | J190: 2014-05-12 | K190: 1 days | L190: 2014-06-22T01:40:19 | M190: 7 | N190: 1055138-Trãx | O190: 0
A191: 1055247 | B191: Pazzle | C191: t | D191: Diamond | E191: Division Pylon Delta | F191: 4 | G191: 5 | H191: 136 | I191: 963 | J191: 2014-04-16 | K191: 33 days | L191: 2014-06-22T02:51:36 | M191: 10 | N191: 1055247-Pazzle | O191: 0
A192: 1055295 | B192: ZerGo | C192: z | D192: Diamond | E192: Division Roxara Psi | F192: 18 | G192: 6 | H192: 375 | I192: 747 | J192: 2014-05-05 | K192: 47 days | L192: 2014-06-22T02:11:53 | M192: 8 | N192: 1055295-ZerGo | O192: 0
A193: 1055471 | B193: Eagleofdeath | C193: z | D193: Diamond | E193: Division Scout Indigo | F193: 83 | G193: 47 | H193: 1103 | I193: 119 | J193: 2014-05-03 | K193: 5 days | L193: 2014-06-21T23:57:52 | M193: 2 | N193: 1055471-Eagleofdeath | O193: 0
A194: 1055529 | B194: Kane | C194: z | D194: Diamond | E194: Division Ghost Tau | F194: 28 | G194: 16 | H194: 650 | I194: 532 | J194: 2014-05-07 | K194: 9 hours | L194: 2014-06-22T01:26:25 | M194: 6 | N194: =A194&"-"&B194 -> 1055529-Kane | O194: 0
A195: 1055551 | B195: campaud | C195: p | D195: Diamond | E195: Division Alzadar Rho | F195: 121 | G195: 97 | H195: 746 | I195: 274 | J195: 2014-05-13 | K195: 11 days | L195: 2014-06-22T01:11:53 | M195: 3 | N195: 1055551-campaud | O195: 0
A196: 1055600 | B196: Bravehartler | C196: p | D196: Diamond | E196: Division Wraith Charlie | F196: 62 | G196: 31 | H196: 860 | I196: 235 | J196: 2014-06-02 | K196: 15 days | L196: 2014-06-22T00:55:11 | M196: 3 | N196: 1055600-Bravehartler | O196: 0
A197: 1055963 | B197: Kokolastiko | C197: z | D197: Diamond | E197: Division Selendis Echo | F197: 6 | G197: 2 | H197: 146 | I197: 954 | J197: 2014-06-19 | K197: 11 hours | L197: 2014-06-22T02:49:25 | M197: 10 | N197: 1055963-Kokolastiko | O197: 0
A198: 1056214 | B198: Ricardinho | C198: t | D198: Diamond | E198: Division War Pigs Nu | F198: 38 | G198: 48 | H198: 692 | I198: 304 | J198: 2014-05-02 | K198: 11 hours | L198: 2014-06-22T01:19:30 | M198: 3 | N198: 1056214-Ricardinho | O198: 0
A199: 1056437 | B199: YesterdaY | C199: p | D199: Diamond | E199: Division War Pigs Mu | F199: 5 | G199: 3 | H199: 144 | I199: 954 | J199: 2014-05-05 | K199: 47 days | L199: 2014-06-22T02:49:51 | M199: 10 | N199: 1056437-YesterdaY | O199: 0
A200: 1056441 | B200: Karlovacko | C200: t | D200: Diamond | E200: Division Chau Sara Bravo | F200: 78 | G200: 72 | H200: 1088 | I200: 9 | J200: 2014-05-04 | K200: 8 hours | L200: 2014-06-22T00:03:59 | M200: 1 | N200: 1056441-Karlovacko | O200: 0
... 4300 more rows

Sheet 1v1 Master
A1: ID | B1: Name | C1: Race | D1: League | E1: Division | F1: Win | G1: Loss | H1: Score | I1: Bonus Pool Remaining | J1: Date Joined | K1: Last Game | L1: Timestamp | M1: Bonus Pool Weeks Remaining | N1: ID-Name | O1: Duplicate
A2: 1004498 | B2: Molder | C2: t | D2: Master | E2: Division Tosh Psi | F2: 142 | G2: 133 | H2: 1714 | I2: 130 | J2: 2014-04-17 | K2: 1 days | L2: 2014-06-21T22:43:40 | M2: 1 | N2: =A2&"-"&B2 -> 1004498-Molder | O2: 0
A3: 1008174 | B3: Gerdi | C3: z | D3: Master | E3: Division Scimitar November | F3: 96 | G3: 103 | H3: 1341 | I3: 320 | J3: 2014-04-14 | K3: 4 days | L3: 2014-06-21T22:51:41 | M3: 2 | N3: 1008174-Gerdi | O3: 0
A4: 1008650 | B4: Vium | C4: p | D4: Master | E4: Division Hanson Dixie | F4: 41 | G4: 42 | H4: 1330 | I4: 861 | J4: 2014-04-22 | K4: 3 days | L4: 2014-06-21T22:51:53 | M4: 5 | N4: 1008650-Vium | O4: 0
A5: 1009988 | B5: NeRRoN | C5: z | D5: Master | E5: Division Zealot Zed | F5: 154 | G5: 138 | H5: 1434 | I5: 18 | J5: 2014-06-06 | K5: 11 hours | L5: 2014-06-21T22:49:46 | M5: 1 | N5: 1009988-NeRRoN | O5: 0
A6: 1011716 | B6: MlorD | C6: t | D6: Master | E6: Division Templar X-Ray | F6: 84 | G6: 77 | H6: 1678 | I6: 829 | J6: 2014-05-31 | K6: 21 days | L6: 2014-06-21T22:44:31 | M6: 5 | N6: 1011716-MlorD | O6: 0
A7: 1012023 | B7: iamvalkyr | C7: p | D7: Master | E7: Division Urun Tau | F7: 37 | G7: 32 | H7: 920 | I7: 1031 | J7: 2014-04-14 | K7: 1 days | L7: 2014-06-21T22:59:45 | M7: 6 | N7: 1012023-iamvalkyr | O7: 0
A8: 1014530 | B8: fire | C8: t | D8: Master | E8: Division Rimes Mu | F8: 20 | G8: 32 | H8: 466 | I8: 1172 | J8: 2014-04-16 | K8: 29 days | L8: 2014-06-21T23:09:03 | M8: 7 | N8: 1014530-fire | O8: 0
A9: 1016284 | B9: MrWorldPeace | C9: p | D9: Master | E9: Division Tosh Psi | F9: 229 | G9: 235 | H9: 1393 | I9: 249 | J9: 2014-04-24 | K9: 6 days | L9: 2014-06-21T22:50:46 | M9: 2 | N9: 1016284-MrWorldPeace | O9: 0
A10: 1020621 | B10: papst | C10: z | D10: Master | E10: Division Typhon Delta | F10: 60 | G10: 60 | H10: 1036 | I10: 610 | J10: 2014-04-18 | K10: 1 days | L10: 2014-06-21T22:57:05 | M10: 4 | N10: 1020621-papst | O10: 0
A11: 1021189 | B11: Dayshi | C11: r | D11: Master | E11: Division Urun Tau | F11: 14 | G11: 14 | H11: 542 | I11: 1451 | J11: 2014-04-15 | K11: 6 days | L11: 2014-06-21T23:07:31 | M11: 9 | N11: 1021189-Dayshi | O11: 0
A12: 1023822 | B12: Levi | C12: p | D12: Master | E12: Division Artanis Sigma | F12: 40 | G12: 21 | H12: 1276 | I12: 1007 | J12: 2014-04-30 | K12: 12 hours | L12: 2014-06-21T22:52:32 | M12: 6 | N12: 1023822-Levi | O12: 0
A13: 1025358 | B13: Aerox | C13: t | D13: Master | E13: Division Pylon Echo | F13: 19 | G13: 15 | H13: 316 | I13: 1436 | J13: 2014-05-01 | K13: 1 days | L13: 2014-06-21T23:12:36 | M13: 8 | N13: 1025358-Aerox | O13: 0
A14: 1025897 | B14: Gatsu | C14: t | D14: Master | E14: Division Artanis Sigma | F14: 1 | G14: 2 | H14: 34 | I14: 1788 | J14: 2014-04-14 | K14: 67 days | L14: 2014-06-21T23:18:26 | M14: 10 | N14: 1025897-Gatsu | O14: 0
A15: 1027243 | B15: Fusher | C15: z | D15: Master | E15: Division Pylon Echo | F15: 15 | G15: 15 | H15: 318 | I15: 1472 | J15: 2014-04-14 | K15: 53 days | L15: 2014-06-21T23:12:31 | M15: 9 | N15: 1027243-Fusher | O15: 0
A16: 1028366 | B16: Target | C16: t | D16: Master | E16: Division Tyrador Pi | F16: 15 | G16: 15 | H16: 336 | I16: 1489 | J16: 2014-04-16 | K16: 11 days | L16: 2014-06-21T23:12:10 | M16: 9 | N16: 1028366-Target | O16: 0
A17: 1029628 | B17: InZaNe | C17: t | D17: Master | E17: Division Brood Lord Pepper | F17: 212 | G17: 201 | H17: 2360 | I17: 4 | J17: 2014-04-14 | K17: 5 hours | L17: 2014-06-21T22:36:25 | M17: 1 | N17: 1029628-InZaNe | O17: 0
A18: 1029997 | B18: Apocalypse | C18: z | D18: Master | E18: Division Roxara Charlie | F18: 64 | G18: 51 | H18: 592 | I18: 1203 | J18: 2014-05-14 | K18: 16 days | L18: 2014-06-21T23:06:34 | M18: 7 | N18: 1029997-Apocalypse | O18: 0
A19: 1034641 | B19: HotkeyS | C19: p | D19: Master | E19: Division Tyrador Pi | F19: 17 | G19: 14 | H19: 325 | I19: 1471 | J19: 2014-04-16 | K19: 2 days | L19: 2014-06-21T23:12:20 | M19: 9 | N19: 1034641-HotkeyS | O19: 0
A20: 1040520 | B20: TRǂbLitZ | C20: z | D20: Master | E20: Division Raynor Omega | F20: 69 | G20: 36 | H20: 219 | I20: 1672 | J20: 2014-04-21 | K20: 14 days | L20: 2014-06-21T23:14:34 | M20: 10 | N20: 1040520-TRǂbLitZ | O20: 0
A21: 1042263 | B21: Bordan | C21: p | D21: Master | E21: Division Tyrador Pi | F21: 53 | G21: 50 | H21: 1696 | I21: 610 | J21: 2014-04-23 | K21: 2 days | L21: 2014-06-21T22:44:07 | M21: 4 | N21: 1042263-Bordan | O21: 0
A22: 1042807 | B22: Shakyor | C22: t | D22: Master | E22: Division Typhon Delta | F22: 58 | G22: 60 | H22: 1141 | I22: 583 | J22: 2014-04-19 | K22: 22 days | L22: 2014-06-21T22:54:57 | M22: 4 | N22: 1042807-Shakyor | O22: 0
A23: 1043721 | B23: Fortuna | C23: p | D23: Master | E23: Division Scimitar November | F23: 144 | G23: 151 | H23: 1554 | I23: 164 | J23: 2014-04-14 | K23: 1 days | L23: 2014-06-21T22:47:10 | M23: 1 | N23: 1043721-Fortuna | O23: 0
A24: 1044487 | B24: WavyOvermind | C24: z | D24: Master | E24: Division Judicator Mars | F24: 91 | G24: 75 | H24: 1217 | I24: 555 | J24: 2014-05-23 | K24: 3 days | L24: 2014-06-21T22:53:40 | M24: 4 | N24: 1044487-WavyOvermind | O24: 0
A25: 1044617 | B25: Mephtral | C25: z | D25: Master | E25: Division Judicator Mars | F25: 4 | G25: 9 | H25: 92 | I25: 1660 | J25: 2014-05-25 | K25: 20 days | L25: 2014-06-21T23:16:54 | M25: 10 | N25: 1044617-Mephtral | O25: 0
A26: 1046195 | B26: Krallman | C26: p | D26: Master | E26: Division Tabrenus Chi | F26: 10 | G26: 13 | H26: 196 | I26: 1576 | J26: 2014-04-14 | K26: 8 days | L26: 2014-06-21T23:14:51 | M26: 9 | N26: 1046195-Krallman | O26: 0
A27: 1047088 | B27: DMC | C27: p | D27: Master | E27: Division Lockwell Gamma | F27: 3 | G27: 3 | H27: 90 | I27: 1732 | J27: 2014-05-07 | K27: 4 days | L27: 2014-06-21T23:16:58 | M27: 10 | N27: 1047088-DMC | O27: 0
A28: 1047344 | B28: Arès | C28: p | D28: Master | E28: Division Tyrador Pi | F28: 194 | G28: 182 | H28: 2069 | I28: 7 | J28: 2014-04-16 | K28: 2 hours | L28: 2014-06-21T22:37:57 | M28: 1 | N28: 1047344-Arès | O28: 0
A29: 1049251 | B29: llllllllllll | C29: z | D29: Master | E29: Division Rimes Mu | F29: 73 | G29: 51 | H29: 2208 | I29: 254 | J29: 2014-04-23 | K29: 21 hours | L29: 2014-06-21T22:36:55 | M29: 2 | N29: 1049251-llllllllllll | O29: 0
A30: 1050610 | B30: Kumiko | C30: p | D30: Master | E30: Division Bucephalus Alamo | F30: 257 | G30: 252 | H30: 1973 | I30: 5 | J30: 2014-04-14 | K30: 33 minutes | L30: 2014-06-21T22:39:07 | M30: 1 | N30: 1050610-Kumiko | O30: 0
A31: 1055293 | B31: WaChu | C31: t | D31: Master | E31: Division Brood Lord Pepper | F31: 15 | G31: 18 | H31: 190 | I31: 1532 | J31: 2014-04-21 | K31: 5 hours | L31: 2014-06-21T23:14:56 | M31: 9 | N31: 1055293-WaChu | O31: 0
A32: 1055598 | B32: Kastle | C32: t | D32: Master | E32: Division Anselm Bravo | F32: 42 | G32: 55 | H32: 936 | I32: 624 | J32: 2014-05-02 | K32: 4 days | L32: 2014-06-21T22:59:27 | M32: 4 | N32: 1055598-Kastle | O32: 0
A33: 1056941 | B33: Ponke | C33: p | D33: Master | E33: Division Urun Tau | F33: 100 | G33: 92 | H33: 1078 | I33: 1019 | J33: 2014-04-14 | K33: 4 days | L33: 2014-06-21T22:56:16 | M33: 6 | N33: 1056941-Ponke | O33: 0
A34: 1059834 | B34: Rotface | C34: t | D34: Master | E34: Division Tosh Psi | F34: 2 | G34: 0 | H34: 38 | I34: 1786 | J34: 2014-04-17 | K34: 3 days | L34: 2014-06-21T23:18:18 | M34: 10 | N34: 1059834-Rotface | O34: 0
A35: 1059909 | B35: Zizou | C35: p | D35: Master | E35: Division Zealot Zed | F35: 91 | G35: 69 | H35: 1592 | I35: 213 | J35: 2014-06-07 | K35: 10 hours | L35: 2014-06-21T22:46:19 | M35: 2 | N35: 1059909-Zizou | O35: 0
A36: 1061712 | B36: yor | C36: r | D36: Master | E36: Division Templar X-Ray | F36: 0 | G36: 3 | H36: 0 | I36: 1805 | J36: 2014-05-29 | K36: 23 days | L36: 2014-06-21T23:19:58 | M36: 11 | N36: 1061712-yor | O36: 0
A37: 1063232 | B37: КоүоТ | C37: z | D37: Master | E37: Division Urun Tau | F37: 33 | G37: 56 | H37: 247 | I37: 1300 | J37: 2014-04-16 | K37: 35 days | L37: 2014-06-21T23:14:01 | M37: 8 | N37: 1063232-КоүоТ | O37: 0
A38: 1064685 | B38: MilLoRd | C38: z | D38: Master | E38: Division Hanson Dixie | F38: 52 | G38: 44 | H38: 801 | I38: 889 | J38: 2014-04-21 | K38: 5 days | L38: 2014-06-21T23:02:12 | M38: 5 | N38: 1064685-MilLoRd | O38: 0
A39: 1065208 | B39: elano | C39: t | D39: Master | E39: Division Scimitar November | F39: 216 | G39: 203 | H39: 2008 | I39: 16 | J39: 2014-04-14 | K39: 11 hours | L39: 2014-06-21T22:38:38 | M39: 1 | N39: 1065208-elano | O39: 0
A40: 1065727 | B40: aNAi | C40: z | D40: Master | E40: Division Rimes Mu | F40: 12 | G40: 4 | H40: 307 | I40: 1571 | J40: 2014-06-03 | K40: 18 days | L40: 2014-06-21T23:12:53 | M40: 9 | N40: 1065727-aNAi | O40: 0
A41: 1074169 | B41: Kickboxerj | C41: t | D41: Master | E41: Division Scimitar November | F41: 94 | G41: 95 | H41: 1261 | I41: 581 | J41: 2014-04-14 | K41: 1 days | L41: 2014-06-21T22:52:45 | M41: 4 | N41: 1074169-Kickboxerj | O41: 0
A42: 1074630 | B42: Rote | C42: t | D42: Master | E42: Division Selendis Upsilon | F42: 128 | G42: 123 | H42: 1512 | I42: 122 | J42: 2014-05-05 | K42: 1 days | L42: 2014-06-21T22:48:05 | M42: 1 | N42: 1074630-Rote | O42: 0
A43: 1075266 | B43: Drakeblitz | C43: t | D43: Master | E43: Division Scimitar November | F43: 37 | G43: 40 | H43: 900 | I43: 755 | J43: 2014-06-19 | K43: 7 hours | L43: 2014-06-21T23:00:13 | M43: 5 | N43: 1075266-Drakeblitz | O43: 0
A44: 1077801 | B44: RenZan | C44: z | D44: Master | E44: Division Tabrenus Chi | F44: 255 | G44: 231 | H44: 1991 | I44: 86 | J44: 2014-04-14 | K44: 3 days | L44: 2014-06-21T22:38:51 | M44: 1 | N44: 1077801-RenZan | O44: 0
A45: 1078293 | B45: yingyang | C45: r | D45: Master | E45: Division Pylon Echo | F45: 34 | G45: 50 | H45: 560 | I45: 996 | J45: 2014-04-14 | K45: 3 days | L45: 2014-06-21T23:07:15 | M45: 6 | N45: 1078293-yingyang | O45: 0
A46: 1078505 | B46: InTA | C46: z | D46: Master | E46: Division Bucephalus Alamo | F46: 28 | G46: 27 | H46: 742 | I46: 1135 | J46: 2014-06-09 | K46: 12 hours | L46: 2014-06-21T23:03:21 | M46: 7 | N46: 1078505-InTA | O46: 0
A47: 1079642 | B47: Reverence | C47: t | D47: Master | E47: Division Hanson Dixie | F47: 0 | G47: 1 | H47: 0 | I47: 1805 | J47: 2014-04-20 | K47: 62 days | L47: 2014-06-21T23:19:59 | M47: 11 | N47: 1079642-Reverence | O47: 0
A48: 1079901 | B48: NightOne | C48: z | D48: Master | E48: Division Rimes Mu | F48: 3 | G48: 3 | H48: 58 | I48: 1772 | J48: 2014-04-16 | K48: 58 days | L48: 2014-06-21T23:17:41 | M48: 10 | N48: 1079901-NightOne | O48: 0
A49: 1080065 | B49: Tankz | C49: t | D49: Master | E49: Division Lockwell Gamma | F49: 0 | G49: 3 | H49: 0 | I49: 1805 | J49: 2014-05-12 | K49: 40 days | L49: 2014-06-21T23:20:01 | M49: 11 | N49: 1080065-Tankz | O49: 0
A50: 1080403 | B50: eman | C50: t | D50: Master | E50: Division Torus Phi | F50: 18 | G50: 9 | H50: 426 | I50: 1467 | J50: 2014-06-14 | K50: 1 days | L50: 2014-06-21T23:10:09 | M50: 9 | N50: 1080403-eman | O50: 0
A51: 1081815 | B51: SidesWipe | C51: p | D51: Master | E51: Division Kelerchian Kilo | F51: 25 | G51: 26 | H51: 562 | I51: 1296 | J51: 2014-04-14 | K51: 5 hours | L51: 2014-06-21T23:07:12 | M51: 8 | N51: 1081815-SidesWipe | O51: 0
A52: 1082079 | B52: odd | C52: z | D52: Master | E52: Division Kelerchian Kilo | F52: 99 | G52: 99 | H52: 1540 | I52: 167 | J52: 2014-04-14 | K52: 1 days | L52: 2014-06-21T22:47:26 | M52: 1 | N52: 1082079-odd | O52: 0
A53: 1082652 | B53: sPlico | C53: p | D53: Master | E53: Division Tyrador Pi | F53: 77 | G53: 77 | H53: 2161 | I53: 166 | J53: 2014-04-19 | K53: 7 hours | L53: 2014-06-21T22:37:12 | M53: 1 | N53: 1082652-sPlico | O53: 0
A54: 1084310 | B54: Aszune | C54: p | D54: Master | E54: Division Pylon Echo | F54: 3 | G54: 3 | H54: 80 | I54: 1765 | J54: 2014-04-14 | K54: 66 days | L54: 2014-06-21T23:17:16 | M54: 10 | N54: 1084310-Aszune | O54: 0
A55: 1084330 | B55: Sync | C55: t | D55: Master | E55: Division Templar X-Ray | F55: 67 | G55: 67 | H55: 1444 | I55: 194 | J55: 2014-05-30 | K55: 13 hours | L55: 2014-06-21T22:49:35 | M55: 2 | N55: 1084330-Sync | O55: 0
A56: 1084354 | B56: llllllllllll | C56: p | D56: Master | E56: Division Pylon Echo | F56: 193 | G56: 196 | H56: 1699 | I56: 273 | J56: 2014-04-23 | K56: 5 hours | L56: 2014-06-21T22:44:00 | M56: 2 | N56: 1084354-llllllllllll | O56: 0
A57: 1089812 | B57: LRaide | C57: t | D57: Master | E57: Division Rimes Mu | F57: 172 | G57: 184 | H57: 1488 | I57: 114 | J57: 2014-05-11 | K57: 4 days | L57: 2014-06-21T22:48:38 | M57: 1 | N57: 1089812-LRaide | O57: 0
A58: 1094228 | B58: SiaBBo | C58: t | D58: Master | E58: Division Typhon Delta | F58: 46 | G58: 25 | H58: 784 | I58: 1039 | J58: 2014-04-19 | K58: 10 days | L58: 2014-06-21T23:02:29 | M58: 6 | N58: 1094228-SiaBBo | O58: 0
A59: 1094823 | B59: Fairwell | C59: p | D59: Master | E59: Division Changeling Romeo | F59: 5 | G59: 11 | H59: 92 | I59: 1645 | J59: 2014-04-21 | K59: 60 days | L59: 2014-06-21T23:16:55 | M59: 10 | N59: 1094823-Fairwell | O59: 0
A60: 1097589 | B60: JackKnife | C60: t | D60: Master | E60: Division Lassatar Beta | F60: 72 | G60: 52 | H60: 1322 | I60: 536 | J60: 2014-05-18 | K60: 20 days | L60: 2014-06-21T22:51:57 | M60: 3 | N60: 1097589-JackKnife | O60: 0
A61: 1097948 | B61: TerenZ | C61: z | D61: Master | E61: Division Roxara Charlie | F61: 132 | G61: 82 | H61: 1676 | I61: 23 | J61: 2014-06-02 | K61: 4 hours | L61: 2014-06-21T22:44:34 | M61: 1 | N61: 1097948-TerenZ | O61: 0
A62: 1098394 | B62: Fadiga | C62: p | D62: Master | E62: Division Brood Lord Pepper | F62: 17 | G62: 19 | H62: 268 | I62: 1509 | J62: 2014-04-13 | K62: 48 days | L62: 2014-06-21T23:13:34 | M62: 9 | N62: 1098394-Fadiga | O62: 0
A63: 1099210 | B63: JackO | C63: p | D63: Master | E63: Division Lockwell Gamma | F63: 129 | G63: 110 | H63: 2225 | I63: 38 | J63: 2014-05-04 | K63: 1 days | L63: 2014-06-21T22:36:46 | M63: 1 | N63: 1099210-JackO | O63: 0
A64: 1099755 | B64: TESTO | C64: z | D64: Master | E64: Division Selendis Upsilon | F64: 185 | G64: 161 | H64: 823 | I64: 918 | J64: 2014-05-28 | K64: 13 days | L64: 2014-06-21T23:01:58 | M64: 6 | N64: 1099755-TESTO | O64: 0
A65: 1103318 | B65: RageweaweR | C65: p | D65: Master | E65: Division Typhon Delta | F65: 57 | G65: 40 | H65: 1023 | I65: 1261 | J65: 2014-04-18 | K65: 12 hours | L65: 2014-06-21T22:57:20 | M65: 8 | N65: 1103318-RageweaweR | O65: 0
A66: 1103444 | B66: Davdou | C66: z | D66: Master | E66: Division Judicator Mars | F66: 160 | G66: 158 | H66: 1521 | I66: 15 | J66: 2014-05-24 | K66: 8 hours | L66: 2014-06-21T22:47:54 | M66: 1 | N66: =A66&"-"&B66 -> 1103444-Davdou | O66: 0
A67: 1105088 | B67: Ejim | C67: t | D67: Master | E67: Division Roxara Charlie | F67: 228 | G67: 242 | H67: 1463 | I67: 17 | J67: 2014-05-13 | K67: 11 hours | L67: 2014-06-21T22:49:02 | M67: 1 | N67: 1105088-Ejim | O67: 0
A68: 110689 | B68: Chelovek | C68: t | D68: Master | E68: Division Urun Tau | F68: 231 | G68: 230 | H68: 1415 | I68: 538 | J68: 2014-04-14 | K68: 20 days | L68: 2014-06-21T22:50:06 | M68: 3 | N68: 110689-Chelovek | O68: 0
A69: 1109021 | B69: ciNi | C69: z | D69: Master | E69: Division Torus Phi | F69: 17 | G69: 17 | H69: 310 | I69: 1428 | J69: 2014-06-14 | K69: 3 days | L69: 2014-06-21T23:12:44 | M69: 8 | N69: 1109021-ciNi | O69: 0
A70: 1110533 | B70: DirDevil | C70: p | D70: Master | E70: Division Grizzly Foxtrot | F70: 19 | G70: 8 | H70: 518 | I70: 1477 | J70: 2014-06-20 | K70: 1 days | L70: 2014-06-21T23:08:00 | M70: 9 | N70: 1110533-DirDevil | O70: 0
A71: 1115987 | B71: Dust | C71: p | D71: Master | E71: Division Khas Whiskey | F71: 51 | G71: 51 | H71: 737 | I71: 936 | J71: 2014-05-04 | K71: 1 hours | L71: 2014-06-21T23:03:31 | M71: 6 | N71: 1115987-Dust | O71: 0
A72: 1116164 | B72: llllllllllll | C72: p | D72: Master | E72: Division Typhon Delta | F72: 111 | G72: 95 | H72: 1053 | I72: 854 | J72: 2014-05-01 | K72: 33 days | L72: 2014-06-21T22:56:48 | M72: 5 | N72: 1116164-llllllllllll | O72: 0
A73: 1117658 | B73: Loacker | C73: p | D73: Master | E73: Division Lockwell Gamma | F73: 29 | G73: 32 | H73: 639 | I73: 1087 | J73: 2014-04-30 | K73: 19 days | L73: 2014-06-21T23:05:30 | M73: 7 | N73: 1117658-Loacker | O73: 0
A74: 1121143 | B74: MystiC | C74: t | D74: Master | E74: Division Brood Lord Pepper | F74: 79 | G74: 85 | H74: 779 | I74: 1186 | J74: 2014-04-13 | K74: 45 days | L74: 2014-06-21T23:02:31 | M74: 7 | N74: 1121143-MystiC | O74: 0
A75: 1121841 | B75: kiljardi | C75: p | D75: Master | E75: Division Selendis Upsilon | F75: 99 | G75: 75 | H75: 1716 | I75: 210 | J75: 2014-05-26 | K75: 7 days | L75: 2014-06-21T22:43:37 | M75: 2 | N75: 1121841-kiljardi | O75: 0
A76: 1122543 | B76: BARCODE | C76: p | D76: Master | E76: Division Hanson Dixie | F76: 61 | G76: 56 | H76: 1730 | I76: 399 | J76: 2014-04-21 | K76: 3 days | L76: 2014-06-21T22:43:14 | M76: 3 | N76: 1122543-BARCODE | O76: 0
A77: 1123051 | B77: hypnotoad | C77: z | D77: Master | E77: Division Selendis Upsilon | F77: 167 | G77: 130 | H77: 1725 | I77: 25 | J77: 2014-05-05 | K77: 11 hours | L77: 2014-06-21T22:43:19 | M77: 1 | N77: 1123051-hypnotoad | O77: 0
A78: 1127108 | B78: Windfall | C78: t | D78: Master | E78: Division Khas Whiskey | F78: 21 | G78: 22 | H78: 407 | I78: 1340 | J78: 2014-05-03 | K78: 19 hours | L78: 2014-06-21T23:10:47 | M78: 8 | N78: 1127108-Windfall | O78: 0
A79: 1132967 | B79: lllllllllll | C79: t | D79: Master | E79: Division Changeling Romeo | F79: 22 | G79: 19 | H79: 396 | I79: 1408 | J79: 2014-04-15 | K79: 7 days | L79: 2014-06-21T23:10:57 | M79: 8 | N79: 1132967-lllllllllll | O79: 0
A80: 1133496 | B80: DarthPotato | C80: t | D80: Master | E80: Division Kelerchian Kilo | F80: 34 | G80: 30 | H80: 702 | I80: 1147 | J80: 2014-04-23 | K80: 36 days | L80: 2014-06-21T23:04:21 | M80: 7 | N80: 1133496-DarthPotato | O80: 0
A81: 1133805 | B81: DarkSIV | C81: p | D81: Master | E81: Division Grizzly Foxtrot | F81: 15 | G81: 14 | H81: 204 | I81: 1519 | J81: 2014-06-20 | K81: 5 hours | L81: 2014-06-21T23:14:49 | M81: 9 | N81: 1133805-DarkSIV | O81: 0
A82: 1133975 | B82: IIIIIIIIIIII | C82: t | D82: Master | E82: Division Pylon Echo | F82: 191 | G82: 166 | H82: 1701 | I82: 42 | J82: 2014-04-14 | K82: 1 days | L82: 2014-06-21T22:43:57 | M82: 1 | N82: 1133975-IIIIIIIIIIII | O82: 0
A83: 1136479 | B83: eRRePe | C83: z | D83: Master | E83: Division Scimitar November | F83: 1 | G83: 0 | H83: 0 | I83: 1805 | J83: 2014-04-14 | K83: 67 days | L83: 2014-06-21T23:20:02 | M83: 11 | N83: 1136479-eRRePe | O83: 0
A84: 1137309 | B84: Kjeks | C84: z | D84: Master | E84: Division Pylon Echo | F84: 7 | G84: 11 | H84: 112 | I84: 1629 | J84: 2014-04-14 | K84: 54 days | L84: 2014-06-21T23:16:32 | M84: 10 | N84: 1137309-Kjeks | O84: 0
A85: 1137406 | B85: NorthBrute | C85: t | D85: Master | E85: Division Urun Tau | F85: 138 | G85: 138 | H85: 1992 | I85: 34 | J85: 2014-04-23 | K85: 1 days | L85: 2014-06-21T22:38:48 | M85: 1 | N85: 1137406-NorthBrute | O85: 0
A86: 1138459 | B86: VOrE | C86: t | D86: Master | E86: Division Changeling Romeo | F86: 78 | G86: 75 | H86: 1802 | I86: 190 | J86: 2014-04-15 | K86: 1 days | L86: 2014-06-21T22:41:49 | M86: 2 | N86: 1138459-VOrE | O86: 0
A87: 1138834 | B87: OrigoNTMFDP | C87: z | D87: Master | E87: Division Scimitar November | F87: 58 | G87: 30 | H87: 935 | I87: 1095 | J87: 2014-05-01 | K87: 42 days | L87: 2014-06-21T22:59:32 | M87: 7 | N87: 1138834-OrigoNTMFDP | O87: 0
A88: 1139330 | B88: PDizzle | C88: z | D88: Master | E88: Division Tyrador Pi | F88: 209 | G88: 188 | H88: 1855 | I88: 170 | J88: 2014-04-16 | K88: 1 hours | L88: 2014-06-21T22:40:54 | M88: 1 | N88: 1139330-PDizzle | O88: 0
A89: 1139531 | B89: ImpacTius | C89: t | D89: Master | E89: Division Typhon Delta | F89: 44 | G89: 53 | H89: 998 | I89: 609 | J89: 2014-05-12 | K89: 2 days | L89: 2014-06-21T22:58:05 | M89: 4 | N89: 1139531-ImpacTius | O89: 0
A90: 1143713 | B90: uThermal | C90: t | D90: Master | E90: Division Judicator Mars | F90: 49 | G90: 23 | H90: 1716 | I90: 779 | J90: 2014-05-22 | K90: 11 days | L90: 2014-06-21T22:43:38 | M90: 5 | N90: 1143713-uThermal | O90: 0
A91: 1146458 | B91: MeteoRain | C91: p | D91: Master | E91: Division Changeling Romeo | F91: 20 | G91: 20 | H91: 482 | I91: 1360 | J91: 2014-04-15 | K91: 8 days | L91: 2014-06-21T23:08:38 | M91: 8 | N91: 1146458-MeteoRain | O91: 0
A92: 1146593 | B92: Lysander | C92: z | D92: Master | E92: Division Brood Lord Pepper | F92: 51 | G92: 67 | H92: 1174 | I92: 432 | J92: 2014-04-13 | K92: 7 days | L92: 2014-06-21T22:54:22 | M92: 3 | N92: 1146593-Lysander | O92: 0
A93: 1151173 | B93: IIIIIIIIIIII | C93: z | D93: Master | E93: Division Anselm Bravo | F93: 90 | G93: 29 | H93: 1632 | I93: 429 | J93: 2014-05-27 | K93: 16 days | L93: 2014-06-21T22:45:20 | M93: 3 | N93: 1151173-IIIIIIIIIIII | O93: 0
A94: 1152557 | B94: Imotep | C94: p | D94: Master | E94: Division Tosh Psi | F94: 152 | G94: 68 | H94: 1860 | I94: 71 | J94: 2014-05-21 | K94: 2 days | L94: 2014-06-21T22:40:48 | M94: 1 | N94: 1152557-Imotep | O94: 0
A95: 1155884 | B95: DeLuxE | C95: p | D95: Master | E95: Division Hanson Dixie | F95: 56 | G95: 50 | H95: 840 | I95: 1187 | J95: 2014-04-20 | K95: 34 days | L95: 2014-06-21T23:01:36 | M95: 7 | N95: 1155884-DeLuxE | O95: 0
A96: 1155956 | B96: FireflyHugs | C96: z | D96: Master | E96: Division Bucephalus Alamo | F96: 152 | G96: 143 | H96: 2220 | I96: 70 | J96: 2014-04-14 | K96: 2 days | L96: 2014-06-21T22:36:48 | M96: 1 | N96: 1155956-FireflyHugs | O96: 0
A97: 1157667 | B97: HaPe | C97: p | D97: Master | E97: Division Scimitar November | F97: 82 | G97: 93 | H97: 1555 | I97: 96 | J97: 2014-04-14 | K97: 9 hours | L97: 2014-06-21T22:47:09 | M97: 1 | N97: 1157667-HaPe | O97: 0
A98: 1161617 | B98: AVA | C98: t | D98: Master | E98: Division Raynor Omega | F98: 1 | G98: 3 | H98: 20 | I98: 1787 | J98: 2014-05-02 | K98: 5 minutes | L98: 2014-06-21T23:18:47 | M98: 10 | N98: 1161617-AVA | O98: 0
A99: 1165245 | B99: Darkthorn | C99: z | D99: Master | E99: Division Tyrador Pi | F99: 45 | G99: 50 | H99: 777 | I99: 1248 | J99: 2014-04-15 | K99: 27 days | L99: 2014-06-21T23:02:34 | M99: 7 | N99: 1165245-Darkthorn | O99: 0
A100: 1165714 | B100: meny | C100: p | D100: Master | E100: Division Tyrador Pi | F100: 2 | G100: 3 | H100: 42 | I100: 1775 | J100: 2014-04-15 | K100: 66 days | L100: 2014-06-21T23:18:12 | M100: 10 | N100: 1165714-meny | O100: 0
A101: 1166142 | B101: zZVodKZz | C101: z | D101: Master | E101: Division Khas Whiskey | F101: 78 | G101: 73 | H101: 1078 | I101: 496 | J101: 2014-05-03 | K101: 5 days | L101: 2014-06-21T22:56:17 | M101: 3 | N101: 1166142-zZVodKZz | O101: 0
A102: 1170866 | B102: Humfluxx | C102: t | D102: Master | E102: Division Changeling Romeo | F102: 86 | G102: 86 | H102: 1661 | I102: 173 | J102: 2014-04-15 | K102: 1 days | L102: 2014-06-21T22:44:48 | M102: 1 | N102: 1170866-Humfluxx | O102: 0
A103: 1170905 | B103: LeMorse | C103: p | D103: Master | E103: Division Kelerchian Kilo | F103: 199 | G103: 207 | H103: 1692 | I103: 6 | J103: 2014-04-14 | K103: 1 hours | L103: 2014-06-21T22:44:14 | M103: 1 | N103: 1170905-LeMorse | O103: 0
A104: 1176349 | B104: TeslaTank | C104: t | D104: Master | E104: Division Roxara Charlie | F104: 10 | G104: 16 | H104: 250 | I104: 1531 | J104: 2014-05-15 | K104: 12 days | L104: 2014-06-21T23:13:57 | M104: 9 | N104: 1176349-TeslaTank | O104: 0
A105: 1176870 | B105: BRAZZERS | C105: t | D105: Master | E105: Division Judicator Mars | F105: 244 | G105: 214 | H105: 757 | I105: 1033 | J105: 2014-05-26 | K105: 24 days | L105: 2014-06-21T23:03:01 | M105: 6 | N105: 1176870-BRAZZERS | O105: 0
A106: 1178200 | B106: meTzelmaTz | C106: z | D106: Master | E106: Division Lassatar Beta | F106: 20 | G106: 19 | H106: 435 | I106: 1443 | J106: 2014-05-18 | K106: 34 days | L106: 2014-06-21T23:09:58 | M106: 9 | N106: 1178200-meTzelmaTz | O106: 0
A107: 1178473 | B107: Flame | C107: p | D107: Master | E107: Division Lassatar Beta | F107: 175 | G107: 163 | H107: 925 | I107: 591 | J107: 2014-05-19 | K107: 16 days | L107: 2014-06-21T22:59:40 | M107: 4 | N107: 1178473-Flame | O107: 0
A108: 1181011 | B108: CheeseKing | C108: p | D108: Master | E108: Division Raynor Omega | F108: 49 | G108: 36 | H108: 919 | I108: 1046 | J108: 2014-04-15 | K108: 3 days | L108: 2014-06-21T22:59:46 | M108: 6 | N108: 1181011-CheeseKing | O108: 0
A109: 1183969 | B109: Nimitz | C109: p | D109: Master | E109: Division Lassatar Beta | F109: 2 | G109: 3 | H109: 42 | I109: 1784 | J109: 2014-05-18 | K109: 34 days | L109: 2014-06-21T23:18:13 | M109: 10 | N109: 1183969-Nimitz | O109: 0
A110: 1184256 | B110: AvaTaR | C110: p | D110: Master | E110: Division Tyrador Pi | F110: 5 | G110: 0 | H110: 168 | I110: 1710 | J110: 2014-06-11 | K110: 10 days | L110: 2014-06-21T23:15:14 | M110: 10 | N110: 1184256-AvaTaR | O110: 0
A111: 1184841 | B111: SHYYYYYZ | C111: z | D111: Master | E111: Division Tosh Psi | F111: 81 | G111: 90 | H111: 1210 | I111: 352 | J111: 2014-04-17 | K111: 1 days | L111: 2014-06-21T22:53:46 | M111: 2 | N111: 1184841-SHYYYYYZ | O111: 0
A112: 1185596 | B112: RastlSNK | C112: t | D112: Master | E112: Division Zealot Zed | F112: 10 | G112: 9 | H112: 340 | I112: 1587 | J112: 2014-06-06 | K112: 8 days | L112: 2014-06-21T23:12:04 | M112: 9 | N112: 1185596-RastlSNK | O112: 0
A113: 1186435 | B113: KimG | C113: z | D113: Master | E113: Division Selendis Upsilon | F113: 125 | G113: 118 | H113: 1973 | I113: 205 | J113: 2014-05-05 | K113: 2 days | L113: 2014-06-21T22:39:08 | M113: 2 | N113: 1186435-KimG | O113: 0
A114: 1187397 | B114: Scyther | C114: t | D114: Master | E114: Division Judicator Mars | F114: 8 | G114: 17 | H114: 252 | I114: 1566 | J114: 2014-05-24 | K114: 17 days | L114: 2014-06-21T23:13:55 | M114: 9 | N114: 1187397-Scyther | O114: 0
A115: 118844 | B115: ghostINsky | C115: z | D115: Master | E115: Division Selendis Upsilon | F115: 7 | G115: 2 | H115: 84 | I115: 1745 | J115: 2014-05-06 | K115: 2 days | L115: 2014-06-21T23:17:09 | M115: 10 | N115: 118844-ghostINsky | O115: 0
A116: 1189052 | B116: Koerby | C116: p | D116: Master | E116: Division Pylon Echo | F116: 149 | G116: 130 | H116: 2238 | I116: 4 | J116: 2014-04-14 | K116: 9 hours | L116: 2014-06-21T22:36:44 | M116: 1 | N116: 1189052-Koerby | O116: 0
A117: 1197419 | B117: IIIlllIIIlll | C117: t | D117: Master | E117: Division Templar X-Ray | F117: 58 | G117: 15 | H117: 1899 | I117: 732 | J117: 2014-05-30 | K117: 7 hours | L117: 2014-06-21T22:40:02 | M117: 5 | N117: 1197419-IIIlllIIIlll | O117: 0
A118: 1198456 | B118: KOB | C118: z | D118: Master | E118: Division Changeling Romeo | F118: 39 | G118: 33 | H118: 453 | I118: 1318 | J118: 2014-04-24 | K118: 51 days | L118: 2014-06-21T23:09:27 | M118: 8 | N118: 1198456-KOB | O118: 0
A119: 1199911 | B119: HaCkNeRdRaGe | C119: z | D119: Master | E119: Division Khas Whiskey | F119: 7 | G119: 15 | H119: 164 | I119: 1551 | J119: 2014-05-04 | K119: 25 days | L119: 2014-06-21T23:15:19 | M119: 9 | N119: 1199911-HaCkNeRdRaGe | O119: 0
A120: 1202315 | B120: MasterYoda | C120: t | D120: Master | E120: Division Bucephalus Alamo | F120: 280 | G120: 265 | H120: 1640 | I120: 497 | J120: 2014-04-14 | K120: 19 days | L120: 2014-06-21T22:45:13 | M120: 3 | N120: 1202315-MasterYoda | O120: 0
A121: 1203339 | B121: DaeUhl | C121: p | D121: Master | E121: Division Scimitar November | F121: 145 | G121: 161 | H121: 1455 | I121: 233 | J121: 2014-04-14 | K121: 4 hours | L121: 2014-06-21T22:49:12 | M121: 2 | N121: 1203339-DaeUhl | O121: 0
A122: 1205664 | B122: ƇuillȅreƦose | C122: p | D122: Master | E122: Division Torus Phi | F122: 107 | G122: 67 | H122: 1392 | I122: 329 | J122: 2014-06-14 | K122: 6 hours | L122: 2014-06-21T22:50:47 | M122: 2 | N122: 1205664-ƇuillȅreƦose | O122: 0
A123: 1208277 | B123: WonnaPlay | C123: p | D123: Master | E123: Division Grizzly Foxtrot | F123: 69 | G123: 47 | H123: 1097 | I123: 742 | J123: 2014-06-20 | K123: 9 hours | L123: 2014-06-21T22:55:51 | M123: 5 | N123: 1208277-WonnaPlay | O123: 0
A124: 1209022 | B124: Pobcorn | C124: p | D124: Master | E124: Division Raynor Omega | F124: 2 | G124: 2 | H124: 16 | I124: 1770 | J124: 2014-04-24 | K124: 51 days | L124: 2014-06-21T23:18:54 | M124: 10 | N124: 1209022-Pobcorn | O124: 0
A125: 1213032 | B125: Zaph | C125: z | D125: Master | E125: Division Zealot Zed | F125: 235 | G125: 173 | H125: 1630 | I125: 152 | J125: 2014-06-04 | K125: 5 hours | L125: 2014-06-21T22:45:23 | M125: 1 | N125: 1213032-Zaph | O125: 0
A126: 1213739 | B126: JungleKing | C126: t | D126: Master | E126: Division Kelerchian Kilo | F126: 134 | G126: 96 | H126: 2262 | I126: 60 | J126: 2014-04-23 | K126: 6 hours | L126: 2014-06-21T22:36:40 | M126: 1 | N126: 1213739-JungleKing | O126: 0
A127: 1214230 | B127: BaradaKoraL | C127: z | D127: Master | E127: Division Judicator Mars | F127: 159 | G127: 137 | H127: 711 | I127: 1167 | J127: 2014-05-25 | K127: 27 days | L127: 2014-06-21T23:04:03 | M127: 7 | N127: 1214230-BaradaKoraL | O127: 0
A128: 12197 | B128: EliGioNieRR | C128: p | D128: Master | E128: Division Grizzly Foxtrot | F128: 81 | G128: 28 | H128: 1112 | I128: 766 | J128: 2014-06-21 | K128: 7 hours | L128: 2014-06-21T22:55:33 | M128: 5 | N128: 12197-EliGioNieRR | O128: 0
A129: 1223198 | B129: Monster | C129: t | D129: Master | E129: Division Rimes Mu | F129: 61 | G129: 58 | H129: 1686 | I129: 655 | J129: 2014-05-11 | K129: 3 days | L129: 2014-06-21T22:44:18 | M129: 4 | N129: 1223198-Monster | O129: 0
A130: 1224489 | B130: tresdglasses | C130: z | D130: Master | E130: Division Rimes Mu | F130: 326 | G130: 314 | H130: 1889 | I130: 9 | J130: 2014-04-16 | K130: 3 hours | L130: 2014-06-21T22:40:13 | M130: 1 | N130: =A130&"-"&B130 -> 1224489-tresdglasses | O130: 0
A131: 1226405 | B131: Snow | C131: t | D131: Master | E131: Division Tyrador Pi | F131: 41 | G131: 45 | H131: 790 | I131: 1055 | J131: 2014-04-15 | K131: 4 hours | L131: 2014-06-21T23:02:22 | M131: 6 | N131: 1226405-Snow | O131: 0
A132: 1227916 | B132: Frutiger | C132: z | D132: Master | E132: Division Brood Lord Pepper | F132: 5 | G132: 1 | H132: 46 | I132: 1764 | J132: 2014-04-21 | K132: 21 days | L132: 2014-06-21T23:18:01 | M132: 10 | N132: 1227916-Frutiger | O132: 0
A133: 1229370 | B133: Baltø | C133: z | D133: Master | E133: Division Ulrezaj Indigo | F133: 137 | G133: 144 | H133: 1404 | I133: 108 | J133: 2014-05-10 | K133: 7 hours | L133: 2014-06-21T22:50:25 | M133: 1 | N133: 1229370-Baltø | O133: 0
A134: 1230358 | B134: IIIIIIIIIIII | C134: t | D134: Master | E134: Division Templar X-Ray | F134: 45 | G134: 29 | H134: 898 | I134: 826 | J134: 2014-06-10 | K134: 7 days | L134: 2014-06-21T23:00:18 | M134: 5 | N134: 1230358-IIIIIIIIIIII | O134: 0
A135: 123118 | B135: MediuM | C135: z | D135: Master | E135: Division Torus Phi | F135: 1 | G135: 0 | H135: 0 | I135: 1805 | J135: 2014-06-14 | K135: 7 days | L135: 2014-06-21T23:19:15 | M135: 11 | N135: 123118-MediuM | O135: 0
A136: 1232964 | B136: WannaBeBlack | C136: t | D136: Master | E136: Division Khas Whiskey | F136: 1 | G136: 0 | H136: 0 | I136: 1805 | J136: 2014-05-04 | K136: 48 days | L136: 2014-06-21T23:20:03 | M136: 11 | N136: 1232964-WannaBeBlack | O136: 0
A137: 1234136 | B137: qbeN | C137: p | D137: Master | E137: Division Urun Tau | F137: 158 | G137: 149 | H137: 1944 | I137: 216 | J137: 2014-04-14 | K137: 5 hours | L137: 2014-06-21T22:39:31 | M137: 2 | N137: 1234136-qbeN | O137: 0
A138: 1239779 | B138: Diffe | C138: p | D138: Master | E138: Division Grizzly Foxtrot | F138: 5 | G138: 6 | H138: 162 | I138: 1695 | J138: 2014-06-20 | K138: 7 hours | L138: 2014-06-21T23:15:20 | M138: 10 | N138: 1239779-Diffe | O138: 0
A139: 1239782 | B139: PappiJoe | C139: p | D139: Master | E139: Division Lassatar Beta | F139: 191 | G139: 169 | H139: 1733 | I139: 205 | J139: 2014-05-17 | K139: 5 days | L139: 2014-06-21T22:43:10 | M139: 2 | N139: 1239782-PappiJoe | O139: 0
A140: 1241452 | B140: evilCursor | C140: t | D140: Master | E140: Division Roxara Charlie | F140: 85 | G140: 96 | H140: 665 | I140: 858 | J140: 2014-05-14 | K140: 24 days | L140: 2014-06-21T23:04:56 | M140: 5 | N140: 1241452-evilCursor | O140: 0
A141: 1243694 | B141: Cladorhiza | C141: z | D141: Master | E141: Division Tyrador Pi | F141: 191 | G141: 170 | H141: 1787 | I141: 69 | J141: 2014-04-19 | K141: 2 days | L141: 2014-06-21T22:42:08 | M141: 1 | N141: 1243694-Cladorhiza | O141: 0
A142: 1246160 | B142: BarRefaeli | C142: t | D142: Master | E142: Division Brood Lord Pepper | F142: 18 | G142: 5 | H142: 336 | I142: 1527 | J142: 2014-04-24 | K142: 8 days | L142: 2014-06-21T23:12:11 | M142: 9 | N142: 1246160-BarRefaeli | O142: 0
A143: 1248176 | B143: Trallrus | C143: p | D143: Master | E143: Division Zealot Zed | F143: 118 | G143: 106 | H143: 1901 | I143: 90 | J143: 2014-06-05 | K143: 3 days | L143: 2014-06-21T22:39:58 | M143: 1 | N143: 1248176-Trallrus | O143: 0
A144: 1248193 | B144: maGe | C144: p | D144: Master | E144: Division Khas Whiskey | F144: 2 | G144: 1 | H144: 10 | I144: 1790 | J144: 2014-05-04 | K144: 33 days | L144: 2014-06-21T23:19:06 | M144: 10 | N144: 1248193-maGe | O144: 0
A145: 1248369 | B145: roL | C145: z | D145: Master | E145: Division Lassatar Beta | F145: 43 | G145: 41 | H145: 635 | I145: 1155 | J145: 2014-05-20 | K145: 9 days | L145: 2014-06-21T23:05:34 | M145: 7 | N145: 1248369-roL | O145: 0
A146: 124842 | B146: Oleg | C146: p | D146: Master | E146: Division Roxara Charlie | F146: 97 | G146: 98 | H146: 1609 | I146: 37 | J146: 2014-05-13 | K146: 1 days | L146: 2014-06-21T22:45:50 | M146: 1 | N146: 124842-Oleg | O146: 0
A147: 1248493 | B147: NaiveZerg | C147: z | D147: Master | E147: Division Khas Whiskey | F147: 173 | G147: 170 | H147: 1477 | I147: 153 | J147: 2014-05-03 | K147: 5 days | L147: 2014-06-21T22:48:50 | M147: 1 | N147: 1248493-NaiveZerg | O147: 0
A148: 1249380 | B148: SWEDISHBICEP | C148: t | D148: Master | E148: Division Roxara Charlie | F148: 0 | G148: 1 | H148: 0 | I148: 1805 | J148: 2014-06-08 | K148: 13 days | L148: 2014-06-21T23:20:04 | M148: 11 | N148: 1249380-SWEDISHBICEP | O148: 0
A149: 1249537 | B149: Amazonic | C149: z | D149: Master | E149: Division Changeling Romeo | F149: 98 | G149: 92 | H149: 1521 | I149: 200 | J149: 2014-04-15 | K149: 6 days | L149: 2014-06-21T22:47:55 | M149: 2 | N149: 1249537-Amazonic | O149: 0
A150: 1252707 | B150: AlexUA | C150: r | D150: Master | E150: Division Brood Lord Pepper | F150: 47 | G150: 53 | H150: 1249 | I150: 680 | J150: 2014-04-19 | K150: 7 days | L150: 2014-06-21T22:53:02 | M150: 4 | N150: 1252707-AlexUA | O150: 0
A151: 1253230 | B151: Reborn | C151: z | D151: Master | E151: Division Rimes Mu | F151: 41 | G151: 37 | H151: 1034 | I151: 857 | J151: 2014-04-16 | K151: 1 days | L151: 2014-06-21T22:57:08 | M151: 5 | N151: 1253230-Reborn | O151: 0
A152: 1255846 | B152: Sandshrew | C152: t | D152: Master | E152: Division Kelerchian Kilo | F152: 76 | G152: 78 | H152: 1764 | I152: 166 | J152: 2014-04-21 | K152: 6 days | L152: 2014-06-21T22:42:34 | M152: 1 | N152: 1255846-Sandshrew | O152: 0
A153: 1257039 | B153: Thimius | C153: z | D153: Master | E153: Division Tyrador Pi | F153: 44 | G153: 33 | H153: 452 | I153: 1399 | J153: 2014-04-16 | K153: 51 days | L153: 2014-06-21T23:09:29 | M153: 8 | N153: 1257039-Thimius | O153: 0
A154: 1257423 | B154: aStLeeRoy | C154: z | D154: Master | E154: Division Roxara Charlie | F154: 157 | G154: 134 | H154: 695 | I154: 1127 | J154: 2014-05-13 | K154: 36 days | L154: 2014-06-21T23:04:32 | M154: 7 | N154: 1257423-aStLeeRoy | O154: 0
A155: 126257 | B155: MightyThor | C155: p | D155: Master | E155: Division Brood Lord Pepper | F155: 165 | G155: 143 | H155: 1976 | I155: 333 | J155: 2014-04-14 | K155: 12 days | L155: 2014-06-21T22:39:04 | M155: 2 | N155: 126257-MightyThor | O155: 0
A156: 1263550 | B156: Derto | C156: p | D156: Master | E156: Division Selendis Upsilon | F156: 80 | G156: 74 | H156: 435 | I156: 1375 | J156: 2014-05-06 | K156: 45 days | L156: 2014-06-21T23:09:59 | M156: 8 | N156: 1263550-Derto | O156: 0
A157: 1263831 | B157: FusRoDah | C157: p | D157: Master | E157: Division Kelerchian Kilo | F157: 5 | G157: 3 | H157: 132 | I157: 1727 | J157: 2014-04-15 | K157: 56 days | L157: 2014-06-21T23:15:59 | M157: 10 | N157: 1263831-FusRoDah | O157: 0
A158: 1265733 | B158: KróLu | C158: p | D158: Master | E158: Division Lassatar Beta | F158: 32 | G158: 27 | H158: 1124 | I158: 1083 | J158: 2014-06-10 | K158: 1 days | L158: 2014-06-21T22:55:15 | M158: 7 | N158: 1265733-KróLu | O158: 0
A159: 1265833 | B159: ChinkYY | C159: p | D159: Master | E159: Division Grizzly Foxtrot | F159: 1 | G159: 0 | H159: 0 | I159: 1805 | J159: 2014-06-20 | K159: 1 days | L159: 2014-06-21T23:20:05 | M159: 11 | N159: 1265833-ChinkYY | O159: 0
A160: 1267267 | B160: VikingBBII | C160: t | D160: Master | E160: Division Raynor Omega | F160: 197 | G160: 204 | H160: 1690 | I160: 22 | J160: 2014-04-15 | K160: 5 hours | L160: 2014-06-21T22:44:16 | M160: 1 | N160: 1267267-VikingBBII | O160: 0
A161: 1272228 | B161: KaWaii | C161: p | D161: Master | E161: Division Templar X-Ray | F161: 61 | G161: 12 | H161: 1061 | I161: 964 | J161: 2014-05-31 | K161: 18 days | L161: 2014-06-21T22:56:38 | M161: 6 | N161: 1272228-KaWaii | O161: 0
A162: 1274171 | B162: DarkNoobik | C162: t | D162: Master | E162: Division Rimes Mu | F162: 94 | G162: 71 | H162: 1364 | I162: 459 | J162: 2014-05-11 | K162: 4 days | L162: 2014-06-21T22:51:24 | M162: 3 | N162: 1274171-DarkNoobik | O162: 0
A163: 1275709 | B163: miNkie | C163: t | D163: Master | E163: Division Hanson Dixie | F163: 23 | G163: 20 | H163: 466 | I163: 1299 | J163: 2014-04-21 | K163: 6 hours | L163: 2014-06-21T23:09:04 | M163: 8 | N163: 1275709-miNkie | O163: 0
A164: 1276075 | B164: Risk | C164: p | D164: Master | E164: Division Lassatar Beta | F164: 60 | G164: 49 | H164: 908 | I164: 908 | J164: 2014-05-17 | K164: 13 hours | L164: 2014-06-21T22:59:58 | M164: 6 | N164: 1276075-Risk | O164: 0
A165: 1278016 | B165: Zelos | C165: t | D165: Master | E165: Division Brood Lord Pepper | F165: 525 | G165: 515 | H165: 1764 | I165: 7 | J165: 2014-04-13 | K165: 1 hours | L165: 2014-06-21T22:42:35 | M165: 1 | N165: 1278016-Zelos | O165: 0
A166: 1280336 | B166: Ada | C166: p | D166: Master | E166: Division Torus Phi | F166: 18 | G166: 13 | H166: 342 | I166: 1481 | J166: 2014-06-19 | K166: 8 hours | L166: 2014-06-21T23:12:02 | M166: 9 | N166: 1280336-Ada | O166: 0
A167: 1286240 | B167: Exogene | C167: p | D167: Master | E167: Division Scimitar November | F167: 63 | G167: 28 | H167: 280 | I167: 1526 | J167: 2014-04-25 | K167: 10 days | L167: 2014-06-21T23:13:18 | M167: 9 | N167: 1286240-Exogene | O167: 0
A168: 1286354 | B168: Graverobber | C168: z | D168: Master | E168: Division Khas Whiskey | F168: 112 | G168: 106 | H168: 1109 | I168: 445 | J168: 2014-05-03 | K168: 10 days | L168: 2014-06-21T22:55:39 | M168: 3 | N168: 1286354-Graverobber | O168: 0
A169: 1288277 | B169: Thylomer | C169: z | D169: Master | E169: Division Bucephalus Alamo | F169: 19 | G169: 12 | H169: 390 | I169: 1478 | J169: 2014-05-01 | K169: 44 days | L169: 2014-06-21T23:11:05 | M169: 9 | N169: 1288277-Thylomer | O169: 0
A170: 1298815 | B170: llllllllllll | C170: t | D170: Master | E170: Division Brood Lord Pepper | F170: 97 | G170: 90 | H170: 946 | I170: 1263 | J170: 2014-04-15 | K170: 48 days | L170: 2014-06-21T22:59:21 | M170: 8 | N170: 1298815-llllllllllll | O170: 0
A171: 1298878 | B171: Dzerzhinsky | C171: t | D171: Master | E171: Division Artanis Sigma | F171: 123 | G171: 123 | H171: 1237 | I171: 576 | J171: 2014-04-14 | K171: 22 days | L171: 2014-06-21T22:53:18 | M171: 4 | N171: 1298878-Dzerzhinsky | O171: 0
A172: 1307955 | B172: Megiddo | C172: z | D172: Master | E172: Division Lockwell Gamma | F172: 187 | G172: 163 | H172: 1619 | I172: 250 | J172: 2014-04-28 | K172: 9 days | L172: 2014-06-21T22:45:41 | M172: 2 | N172: 1307955-Megiddo | O172: 0
A173: 1308025 | B173: Duke | C173: p | D173: Master | E173: Division Grizzly Foxtrot | F173: 22 | G173: 11 | H173: 472 | I173: 1328 | J173: 2014-06-21 | K173: 29 minutes | L173: 2014-06-21T23:08:53 | M173: 8 | N173: 1308025-Duke | O173: 0
A174: 1313583 | B174: Aretis | C174: p | D174: Master | E174: Division Anselm Bravo | F174: 117 | G174: 76 | H174: 1153 | I174: 687 | J174: 2014-05-02 | K174: 12 days | L174: 2014-06-21T22:54:47 | M174: 4 | N174: 1313583-Aretis | O174: 0
A175: 1314099 | B175: Krootie | C175: z | D175: Master | E175: Division Lassatar Beta | F175: 224 | G175: 244 | H175: 1000 | I175: 335 | J175: 2014-05-18 | K175: 5 days | L175: 2014-06-21T22:58:01 | M175: 2 | N175: 1314099-Krootie | O175: 0
A176: 1314264 | B176: Eeel | C176: z | D176: Master | E176: Division Bucephalus Alamo | F176: 28 | G176: 18 | H176: 615 | I176: 1334 | J176: 2014-04-16 | K176: 21 days | L176: 2014-06-21T23:06:02 | M176: 8 | N176: 1314264-Eeel | O176: 0
A177: 1316863 | B177: userek | C177: z | D177: Master | E177: Division Rimes Mu | F177: 18 | G177: 6 | H177: 686 | I177: 1435 | J177: 2014-06-02 | K177: 5 days | L177: 2014-06-21T23:04:42 | M177: 8 | N177: 1316863-userek | O177: 0
A178: 1318108 | B178: FastxX | C178: z | D178: Master | E178: Division Urun Tau | F178: 4 | G178: 3 | H178: 90 | I178: 1744 | J178: 2014-04-14 | K178: 67 days | L178: 2014-06-21T23:16:59 | M178: 10 | N178: 1318108-FastxX | O178: 0
A179: 1321257 | B179: ANTISTAR | C179: z | D179: Master | E179: Division Torus Phi | F179: 236 | G179: 238 | H179: 1651 | I179: 441 | J179: 2014-06-14 | K179: 10 hours | L179: 2014-06-21T22:45:02 | M179: 3 | N179: 1321257-ANTISTAR | O179: 0
A180: 1326286 | B180: Depression | C180: p | D180: Master | E180: Division Pylon Echo | F180: 64 | G180: 61 | H180: 729 | I180: 1167 | J180: 2014-04-27 | K180: 22 days | L180: 2014-06-21T23:03:44 | M180: 7 | N180: 1326286-Depression | O180: 0
A181: 1329317 | B181: Ryu | C181: z | D181: Master | E181: Division Ulrezaj Indigo | F181: 66 | G181: 54 | H181: 1782 | I181: 402 | J181: 2014-05-10 | K181: 2 hours | L181: 2014-06-21T22:42:14 | M181: 3 | N181: 1329317-Ryu | O181: 0
A182: 1330636 | B182: ArdoR | C182: z | D182: Master | E182: Division Artanis Sigma | F182: 62 | G182: 55 | H182: 1112 | I182: 561 | J182: 2014-04-22 | K182: 1 days | L182: 2014-06-21T22:55:34 | M182: 4 | N182: 1330636-ArdoR | O182: 0
A183: 1332177 | B183: Flåklypa | C183: z | D183: Master | E183: Division Roxara Charlie | F183: 159 | G183: 145 | H183: 618 | I183: 1057 | J183: 2014-05-13 | K183: 28 days | L183: 2014-06-21T23:05:58 | M183: 6 | N183: 1332177-Flåklypa | O183: 0
A184: 1337673 | B184: Voodoo | C184: p | D184: Master | E184: Division Lockwell Gamma | F184: 36 | G184: 24 | H184: 366 | I184: 1512 | J184: 2014-05-02 | K184: 50 days | L184: 2014-06-21T23:11:38 | M184: 9 | N184: 1337673-Voodoo | O184: 0
A185: 1337855 | B185: Ãturîøn | C185: p | D185: Master | E185: Division Pylon Echo | F185: 37 | G185: 29 | H185: 500 | I185: 1184 | J185: 2014-04-19 | K185: 11 days | L185: 2014-06-21T23:08:15 | M185: 7 | N185: 1337855-Ãturîøn | O185: 0
A186: 1340956 | B186: androgyne | C186: z | D186: Master | E186: Division Typhon Delta | F186: 61 | G186: 52 | H186: 692 | I186: 1095 | J186: 2014-05-04 | K186: 7 days | L186: 2014-06-21T23:04:35 | M186: 7 | N186: 1340956-androgyne | O186: 0
